{"text_format":"1","workbook":"xlsx","n_sheets":2,"sheets":["Калькуляция","Лист1"],"not_rendered":{"charts":0,"images":0,"macros":1,"external_links":0,"defined_names":11,"comments":0,"pivot_tables":0},"unopened":[],"bounds":{"document_bytes":16777216,"sheet_cells":100000,"rows_first":2000,"rows_last":500,"rows_between":2000,"halvings":0,"cell_chars":16384,"cell_head_chars":4096},"cells_cut":0,"cells_raw":0,"read":"whole","date_system":"1900"}

{"sheet":"Калькуляция","index":0,"n_rows":44,"n_cols":12,"rows_kept":44,"cut":false,"hidden":false,"merged":[[40,5,41,5],[40,6,41,6],[37,1,39,1],[37,2,39,2],[37,3,39,3],[37,4,39,4],[37,5,39,5],[61,0,62,0],[42,5,46,5],[42,6,46,6],[37,6,39,6],[37,7,39,7],[40,7,41,7],[42,7,46,7],[37,0,39,0],[40,1,41,1],[40,2,41,2],[40,3,41,3],[61,2,62,2],[61,3,62,3],[58,0,58,11],[59,1,60,1],[40,0,41,0],[49,6,50,6],[49,7,50,7],[61,4,62,4],[61,5,62,5],[51,5,57,5],[59,7,60,7],[49,1,50,1],[49,2,50,2],[49,3,50,3],[49,4,50,4],[49,5,50,5],[0,0,0,1],[5,0,5,11],[6,0,6,11],[7,0,7,11],[1,0,1,1],[3,0,3,1],[4,0,4,1],[40,4,41,4],[59,0,60,0],[42,4,46,4],[51,6,57,6],[59,2,60,2],[59,3,60,3],[59,4,60,4],[42,0,46,0],[42,1,46,1],[42,2,46,2],[42,3,46,3],[51,0,57,0],[51,1,57,1],[51,2,57,2],[51,3,57,3],[49,0,50,0],[51,7,57,7],[51,4,57,4],[65,1,65,11],[59,5,60,5],[59,6,60,6],[61,6,62,6],[61,7,62,7],[61,1,62,1],[8,0,8,11],[9,0,9,11],[14,0,14,11],[11,0,12,0],[11,1,12,1],[11,2,11,3],[11,4,11,7],[11,8,11,11]]}
[null,null,null,null,"Накл.расх.",0.1,null,null,null,null,null,"УТВЕРЖДАЮ:"]
[null,null,null,null,"Смет. Приб.",0.25,null,null,null,null,null,"Директор"]
[null,null,null,null,"Непредв. Затр.",0.02]
[null,null,null,null,null,null,null,null,null,null,null,"______________И.В. Сидоров"]
[null,null,null,null,null,null,null,null,null,null,null,"\"___\"________________2017г."]
["Ведомость объемов работ (дефектная ведомость)"]
["Ремонт"]
["(категория ремонта)"]
[]
["(наименование объекта, станционный номер, инвентарный номер)"]
[]
["№ п.п.","Наименование работ","Объем работ",null,"Демонтируемый материал",null,null,null,"Потребность в основных материалах"]
[null,null,"Ед. изм.","Кол-во","Стоимость работ (ФОТ)","Стоимость материалов","Сметная прибыль","Накладные расходы","Наименование","Ед. изм.","Кол-во","Стоимость"]
[1,2,3,4,5,6,7,8,9,10,11,12]
["Раздел 1"]
[{"$f":"IF(B16>0,COUNT(D$16:D16,\"\"),\"\")","v":""},null,{"$f":"IFERROR(VLOOKUP(B16,Лист1!B1:J1000,3,0),\"\")","v":""},15,{"$f":"IFERROR(D16*VLOOKUP(B16,Лист1!B1:J1000,5,0),\"\")","v":""},null,{"$f":"E16*F$2","v":{"$error":"#VALUE!"}},{"$f":"F16*F$1","v":0}]
[{"$f":"IF(B17>0,COUNT(D$16:D17,\"\"),\"\")","v":""},null,{"$f":"IFERROR(VLOOKUP(B17,Лист1!B2:J1001,3,0),\"\")","v":""},null,{"$f":"IFERROR(D17*VLOOKUP(B17,Лист1!B2:J1001,5,0),\"\")","v":""},null,null,null,null,{"$f":"IFERROR(VLOOKUP(I17,Лист1!C3:F13,2,0),\"\")","v":""},{"$f":"IFERROR(CEILING(VLOOKUP(I17,Лист1!C$3:F$13,3,0)*$D$16,1),\"\")","v":""},{"$f":"IFERROR(CEILING(VLOOKUP(I17,Лист1!C$3:F$13,4,0)*K17,1),\"\")","v":""}]
[{"$f":"IF(B18>0,COUNT(D$16:D18,\"\"),\"\")","v":""},null,{"$f":"IFERROR(VLOOKUP(B18,Лист1!B3:J1002,3,0),\"\")","v":""},null,{"$f":"IFERROR(D18*VLOOKUP(B18,Лист1!B3:J1002,5,0),\"\")","v":""},null,null,null,null,{"$f":"IFERROR(VLOOKUP(I18,Лист1!C4:F14,2,0),\"\")","v":""},{"$f":"IFERROR(CEILING(VLOOKUP(I18,Лист1!C$3:F$13,3,0)*$D$16,1),\"\")","v":""},{"$f":"IFERROR(CEILING(VLOOKUP(I18,Лист1!C$3:F$13,4,0)*K18,1),\"\")","v":""}]
[{"$f":"IF(B19>0,COUNT(D$16:D19,\"\"),\"\")","v":""},null,{"$f":"IFERROR(VLOOKUP(B19,Лист1!B4:J1003,3,0),\"\")","v":""},null,{"$f":"IFERROR(D19*VLOOKUP(B19,Лист1!B4:J1003,5,0),\"\")","v":""},null,null,null,null,{"$f":"IFERROR(VLOOKUP(I19,Лист1!C5:F15,2,0),\"\")","v":""},{"$f":"IFERROR(CEILING(VLOOKUP(I19,Лист1!C$3:F$13,3,0)*$D$16,1),\"\")","v":""},{"$f":"IFERROR(CEILING(VLOOKUP(I19,Лист1!C$3:F$13,4,0)*K19,1),\"\")","v":""}]
[{"$f":"IF(B20>0,COUNT(D$16:D20,\"\"),\"\")","v":""},null,{"$f":"IFERROR(VLOOKUP(B20,Лист1!B5:J1004,3,0),\"\")","v":""},null,{"$f":"IFERROR(D20*VLOOKUP(B20,Лист1!B5:J1004,5,0),\"\")","v":""},null,null,null,null,{"$f":"IFERROR(VLOOKUP(I20,Лист1!C6:F16,2,0),\"\")","v":""},{"$f":"IFERROR(CEILING(VLOOKUP(I20,Лист1!C$3:F$13,3,0)*$D$16,1),\"\")","v":""},{"$f":"IFERROR(CEILING(VLOOKUP(I20,Лист1!C$3:F$13,4,0)*K20,1),\"\")","v":""}]
[{"$f":"IF(B21>0,COUNT(D$16:D21,\"\"),\"\")","v":""},null,{"$f":"IFERROR(VLOOKUP(B21,Лист1!B6:J1005,3,0),\"\")","v":""},null,{"$f":"IFERROR(D21*VLOOKUP(B21,Лист1!B6:J1005,5,0),\"\")","v":""},null,null,null,null,{"$f":"IFERROR(VLOOKUP(I21,Лист1!C7:F17,2,0),\"\")","v":""},{"$f":"IFERROR(CEILING(VLOOKUP(I21,Лист1!C$3:F$13,3,0)*$D$16,1),\"\")","v":""},{"$f":"IFERROR(CEILING(VLOOKUP(I21,Лист1!C$3:F$13,4,0)*K21,1),\"\")","v":""}]
[{"$f":"IF(B22>0,COUNT(D$16:D22,\"\"),\"\")","v":""},null,{"$f":"IFERROR(VLOOKUP(B22,Лист1!B7:J1006,3,0),\"\")","v":""},null,{"$f":"IFERROR(D22*VLOOKUP(B22,Лист1!B7:J1006,5,0),\"\")","v":""},null,null,null,null,{"$f":"IFERROR(VLOOKUP(I22,Лист1!C8:F18,2,0),\"\")","v":""},{"$f":"IFERROR(CEILING(VLOOKUP(I22,Лист1!C$3:F$13,3,0)*$D$16,1),\"\")","v":""},{"$f":"IFERROR(CEILING(VLOOKUP(I22,Лист1!C$3:F$13,4,0)*K22,1),\"\")","v":""}]
[{"$f":"IF(B23>0,COUNT(D$16:D23,\"\"),\"\")","v":""},null,{"$f":"IFERROR(VLOOKUP(B23,Лист1!B8:J1007,3,0),\"\")","v":""},null,{"$f":"IFERROR(D23*VLOOKUP(B23,Лист1!B8:J1007,5,0),\"\")","v":""},null,null,null,null,{"$f":"IFERROR(VLOOKUP(I23,Лист1!C9:F19,2,0),\"\")","v":""},{"$f":"IFERROR(CEILING(VLOOKUP(I23,Лист1!C$3:F$13,3,0)*$D$16,1),\"\")","v":""},{"$f":"IFERROR(CEILING(VLOOKUP(I23,Лист1!C$3:F$13,4,0)*K23,1),\"\")","v":""}]
[{"$f":"IF(B24>0,COUNT(D$16:D24,\"\"),\"\")","v":""},null,{"$f":"IFERROR(VLOOKUP(B24,Лист1!B9:J1008,3,0),\"\")","v":""},null,{"$f":"IFERROR(D24*VLOOKUP(B24,Лист1!B9:J1008,5,0),\"\")","v":""},null,null,null,null,{"$f":"IFERROR(VLOOKUP(I24,Лист1!C10:F20,2,0),\"\")","v":""},{"$f":"IFERROR(CEILING(VLOOKUP(I24,Лист1!C$3:F$13,3,0)*$D$16,1),\"\")","v":""},{"$f":"IFERROR(CEILING(VLOOKUP(I24,Лист1!C$3:F$13,4,0)*K24,1),\"\")","v":""}]
[null,null,null,null,null,null,null,null,null,{"$f":"IFERROR(VLOOKUP(I25,Лист1!C11:F21,2,0),\"\")","v":""},{"$f":"IFERROR(CEILING(VLOOKUP(I25,Лист1!C$3:F$13,3,0)*$D$16,1),\"\")","v":""},{"$f":"IFERROR(CEILING(VLOOKUP(I25,Лист1!C$3:F$13,4,0)*K25,1),\"\")","v":""}]
[null,null,null,null,null,null,null,null,null,{"$f":"IFERROR(VLOOKUP(I26,Лист1!C12:F22,2,0),\"\")","v":""},{"$f":"IFERROR(CEILING(VLOOKUP(I26,Лист1!C$3:F$13,3,0)*$D$16,1),\"\")","v":""},{"$f":"IFERROR(CEILING(VLOOKUP(I26,Лист1!C$3:F$13,4,0)*K26,1),\"\")","v":""}]
[null,null,null,null,null,null,null,null,null,{"$f":"IFERROR(VLOOKUP(I27,Лист1!C13:F23,2,0),\"\")","v":""},{"$f":"IFERROR(CEILING(VLOOKUP(I27,Лист1!C$3:F$13,3,0)*$D$16,1),\"\")","v":""},{"$f":"IFERROR(CEILING(VLOOKUP(I27,Лист1!C$3:F$13,4,0)*K27,1),\"\")","v":""}]
[null,null,null,null,null,null,null,null,null,{"$f":"IFERROR(VLOOKUP(I28,Лист1!C14:F24,2,0),\"\")","v":""},{"$f":"IFERROR(CEILING(VLOOKUP(I28,Лист1!C$3:F$13,3,0)*$D$16,1),\"\")","v":""},{"$f":"IFERROR(CEILING(VLOOKUP(I28,Лист1!C$3:F$13,4,0)*K28,1),\"\")","v":""}]
[null,null,null,null,null,null,null,null,null,{"$f":"IFERROR(VLOOKUP(I29,Лист1!C15:F25,2,0),\"\")","v":""},{"$f":"IFERROR(CEILING(VLOOKUP(I29,Лист1!C$3:F$13,3,0)*$D$16,1),\"\")","v":""},{"$f":"IFERROR(CEILING(VLOOKUP(I29,Лист1!C$3:F$13,4,0)*K29,1),\"\")","v":""}]
[null,null,null,null,null,null,null,null,null,{"$f":"IFERROR(VLOOKUP(I30,Лист1!C16:F26,2,0),\"\")","v":""},{"$f":"IFERROR(CEILING(VLOOKUP(I30,Лист1!C$3:F$13,3,0)*$D$16,1),\"\")","v":""},{"$f":"IFERROR(CEILING(VLOOKUP(I30,Лист1!C$3:F$13,4,0)*K30,1),\"\")","v":""}]
[null,null,null,null,null,null,null,null,null,{"$f":"IFERROR(VLOOKUP(I31,Лист1!C17:F27,2,0),\"\")","v":""},{"$f":"IFERROR(CEILING(VLOOKUP(I31,Лист1!C$3:F$13,3,0)*$D$16,1),\"\")","v":""},{"$f":"IFERROR(CEILING(VLOOKUP(I31,Лист1!C$3:F$13,4,0)*K31,1),\"\")","v":""}]
[null,null,null,null,null,null,null,null,null,{"$f":"IFERROR(VLOOKUP(I32,Лист1!C18:F28,2,0),\"\")","v":""},{"$f":"IFERROR(CEILING(VLOOKUP(I32,Лист1!C$3:F$13,3,0)*$D$16,1),\"\")","v":""},{"$f":"IFERROR(CEILING(VLOOKUP(I32,Лист1!C$3:F$13,4,0)*K32,1),\"\")","v":""}]
[null,null,null,null,null,null,null,null,null,{"$f":"IFERROR(VLOOKUP(I33,Лист1!C19:F29,2,0),\"\")","v":""},{"$f":"IFERROR(CEILING(VLOOKUP(I33,Лист1!C$3:F$13,3,0)*$D$16,1),\"\")","v":""},{"$f":"IFERROR(CEILING(VLOOKUP(I33,Лист1!C$3:F$13,4,0)*K33,1),\"\")","v":""}]
[null,null,null,null,null,null,null,null,null,{"$f":"IFERROR(VLOOKUP(I34,Лист1!C20:F30,2,0),\"\")","v":""},{"$f":"IFERROR(CEILING(VLOOKUP(I34,Лист1!C$3:F$13,3,0)*$D$16,1),\"\")","v":""},{"$f":"IFERROR(CEILING(VLOOKUP(I34,Лист1!C$3:F$13,4,0)*K34,1),\"\")","v":""}]
[null,null,null,null,null,null,null,null,null,{"$f":"IFERROR(VLOOKUP(I35,Лист1!C21:F31,2,0),\"\")","v":""},{"$f":"IFERROR(CEILING(VLOOKUP(I35,Лист1!C$3:F$13,3,0)*$D$16,1),\"\")","v":""},{"$f":"IFERROR(CEILING(VLOOKUP(I35,Лист1!C$3:F$13,4,0)*K35,1),\"\")","v":""}]
[null,null,null,null,null,null,null,null,null,{"$f":"IFERROR(VLOOKUP(I36,Лист1!C22:F32,2,0),\"\")","v":""},{"$f":"IFERROR(CEILING(VLOOKUP(I36,Лист1!C$3:F$13,3,0)*$D$16,1),\"\")","v":""},{"$f":"IFERROR(CEILING(VLOOKUP(I36,Лист1!C$3:F$13,4,0)*K36,1),\"\")","v":""}]
[null,null,null,null,null,null,null,null,null,{"$f":"IFERROR(VLOOKUP(I37,Лист1!C23:F33,2,0),\"\")","v":""},{"$f":"IFERROR(CEILING(VLOOKUP(I37,Лист1!C$3:F$13,3,0)*$D$16,1),\"\")","v":""},{"$f":"IFERROR(CEILING(VLOOKUP(I37,Лист1!C$3:F$13,4,0)*K37,1),\"\")","v":""}]
[null,null,null,null,null,null,null,null,null,{"$f":"IFERROR(VLOOKUP(I38,Лист1!C24:F34,2,0),\"\")","v":""},{"$f":"IFERROR(CEILING(VLOOKUP(I38,Лист1!C$3:F$13,3,0)*$D$16,1),\"\")","v":""},{"$f":"IFERROR(CEILING(VLOOKUP(I38,Лист1!C$3:F$13,4,0)*K38,1),\"\")","v":""}]
[null,null,null,null,null,null,null,null,null,{"$f":"IFERROR(VLOOKUP(I39,Лист1!C25:F35,2,0),\"\")","v":""},{"$f":"IFERROR(CEILING(VLOOKUP(I39,Лист1!C$3:F$13,3,0)*$D$16,1),\"\")","v":""},{"$f":"IFERROR(CEILING(VLOOKUP(I39,Лист1!C$3:F$13,4,0)*K39,1),\"\")","v":""}]
[null,null,null,null,null,null,null,null,null,{"$f":"IFERROR(VLOOKUP(I40,Лист1!C26:F36,2,0),\"\")","v":""},{"$f":"IFERROR(CEILING(VLOOKUP(I40,Лист1!C$3:F$13,3,0)*$D$16,1),\"\")","v":""},{"$f":"IFERROR(CEILING(VLOOKUP(I40,Лист1!C$3:F$13,4,0)*K40,1),\"\")","v":""}]
[null,null,null,null,null,null,null,null,null,{"$f":"IFERROR(VLOOKUP(I41,Лист1!C27:F37,2,0),\"\")","v":""},{"$f":"IFERROR(CEILING(VLOOKUP(I41,Лист1!C$3:F$13,3,0)*$D$16,1),\"\")","v":""},{"$f":"IFERROR(CEILING(VLOOKUP(I41,Лист1!C$3:F$13,4,0)*K41,1),\"\")","v":""}]
[null,null,null,null,null,null,null,null,null,{"$f":"IFERROR(VLOOKUP(I42,Лист1!C28:F38,2,0),\"\")","v":""},{"$f":"IFERROR(CEILING(VLOOKUP(I42,Лист1!C$3:F$13,3,0)*$D$16,1),\"\")","v":""},{"$f":"IFERROR(CEILING(VLOOKUP(I42,Лист1!C$3:F$13,4,0)*K42,1),\"\")","v":""}]
[null,null,null,null,null,null,null,null,null,{"$f":"IFERROR(VLOOKUP(I43,Лист1!C29:F39,2,0),\"\")","v":""},{"$f":"IFERROR(CEILING(VLOOKUP(I43,Лист1!C$3:F$13,3,0)*$D$16,1),\"\")","v":""},{"$f":"IFERROR(CEILING(VLOOKUP(I43,Лист1!C$3:F$13,4,0)*K43,1),\"\")","v":""}]
[null,null,null,null,null,null,null,null,null,{"$f":"IFERROR(VLOOKUP(I44,Лист1!C30:F40,2,0),\"\")","v":""},{"$f":"IFERROR(CEILING(VLOOKUP(I44,Лист1!C$3:F$13,3,0)*$D$16,1),\"\")","v":""},{"$f":"IFERROR(CEILING(VLOOKUP(I44,Лист1!C$3:F$13,4,0)*K44,1),\"\")","v":""}]

{"sheet":"Лист1","index":1,"n_rows":1000,"n_cols":8,"rows_kept":1000,"cut":false,"hidden":false,"merged":[[14,1,24,1],[26,1,36,1],[38,1,48,1]]}
[null,"Наименование работ","Необходимые материалы","Ед. изм.","Кол-во","Стоимость работ за ед."]
[1,"Облицовка стен листами из ГКЛ по металлическим направляющим",null,"м2",null,300,null,{"$f":"IF(ROW()-ROW(FolowList)+1>ROWS(WorkLisr)-COUNTBLANK(WorkLisr),\"\",INDIRECT(ADDRESS(SMALL((IF(WorkLisr<>\"\",ROW(WorkLisr),ROW()+ROWS(WorkLisr))),ROW()-ROW(FolowList)+1),COLUMN(WorkLisr),4)))","v":"Облицовка стен листами из ГКЛ по металлическим направляющим"}]
[null,null,"Профиль ПН 27*28","шт",1.6,79,null,{"$f":"IF(ROW()-ROW(FolowList)+1>ROWS(WorkLisr)-COUNTBLANK(WorkLisr),\"\",INDIRECT(ADDRESS(SMALL((IF(WorkLisr<>\"\",ROW(WorkLisr),ROW()+ROWS(WorkLisr))),ROW()-ROW(FolowList)+1),COLUMN(WorkLisr),4)))","v":"Облицовка откосов дверных или оконных листами из ГКЛ по металлическим направляющим"}]
[null,null,"Профиль ПП 60*27","шт",1,105,null,{"$f":"IF(ROW()-ROW(FolowList)+1>ROWS(WorkLisr)-COUNTBLANK(WorkLisr),\"\",INDIRECT(ADDRESS(SMALL((IF(WorkLisr<>\"\",ROW(WorkLisr),ROW()+ROWS(WorkLisr))),ROW()-ROW(FolowList)+1),COLUMN(WorkLisr),4)))","v":"Облицовка стен листами из ГВЛ по металлическим направляющим"}]
[null,null,"Саморез 3,5*11 (клоп)","шт",{"$f":"E6*2+E4*4+E7*8","v":47.6},0.35,null,{"$f":"IF(ROW()-ROW(FolowList)+1>ROWS(WorkLisr)-COUNTBLANK(WorkLisr),\"\",INDIRECT(ADDRESS(SMALL((IF(WorkLisr<>\"\",ROW(WorkLisr),ROW()+ROWS(WorkLisr))),ROW()-ROW(FolowList)+1),COLUMN(WorkLisr),4)))","v":"Облицовка откосов дверных или оконных листами из ГВЛ по металлическим направляющим"}]
[null,null,"Саморез 3,5*25","шт",20,0.55000000000000004,null,{"$f":"IF(ROW()-ROW(FolowList)+1>ROWS(WorkLisr)-COUNTBLANK(WorkLisr),\"\",INDIRECT(ADDRESS(SMALL((IF(WorkLisr<>\"\",ROW(WorkLisr),ROW()+ROWS(WorkLisr))),ROW()-ROW(FolowList)+1),COLUMN(WorkLisr),4)))","v":""}]
[null,null,"Соединитель \"Краб\"","шт",0.45,10,null,{"$f":"IF(ROW()-ROW(FolowList)+1>ROWS(WorkLisr)-COUNTBLANK(WorkLisr),\"\",INDIRECT(ADDRESS(SMALL((IF(WorkLisr<>\"\",ROW(WorkLisr),ROW()+ROWS(WorkLisr))),ROW()-ROW(FolowList)+1),COLUMN(WorkLisr),4)))","v":""}]
[null,null,"Подвес прямой 60*27","шт",5,6,null,{"$f":"IF(ROW()-ROW(FolowList)+1>ROWS(WorkLisr)-COUNTBLANK(WorkLisr),\"\",INDIRECT(ADDRESS(SMALL((IF(WorkLisr<>\"\",ROW(WorkLisr),ROW()+ROWS(WorkLisr))),ROW()-ROW(FolowList)+1),COLUMN(WorkLisr),4)))","v":""}]
[null,null,"Лист ГКЛ 9,5мм","шт",{"$f":"1/3","v":0.33333333333333331},280,null,{"$f":"IF(ROW()-ROW(FolowList)+1>ROWS(WorkLisr)-COUNTBLANK(WorkLisr),\"\",INDIRECT(ADDRESS(SMALL((IF(WorkLisr<>\"\",ROW(WorkLisr),ROW()+ROWS(WorkLisr))),ROW()-ROW(FolowList)+1),COLUMN(WorkLisr),4)))","v":""}]
[null,null,"Лента армирующая","м.п.",3.2,1,null,{"$f":"IF(ROW()-ROW(FolowList)+1>ROWS(WorkLisr)-COUNTBLANK(WorkLisr),\"\",INDIRECT(ADDRESS(SMALL((IF(WorkLisr<>\"\",ROW(WorkLisr),ROW()+ROWS(WorkLisr))),ROW()-ROW(FolowList)+1),COLUMN(WorkLisr),4)))","v":""}]
[null,null,null,null,null,null,null,{"$f":"IF(ROW()-ROW(FolowList)+1>ROWS(WorkLisr)-COUNTBLANK(WorkLisr),\"\",INDIRECT(ADDRESS(SMALL((IF(WorkLisr<>\"\",ROW(WorkLisr),ROW()+ROWS(WorkLisr))),ROW()-ROW(FolowList)+1),COLUMN(WorkLisr),4)))","v":""}]
[null,null,null,null,null,null,null,{"$f":"IF(ROW()-ROW(FolowList)+1>ROWS(WorkLisr)-COUNTBLANK(WorkLisr),\"\",INDIRECT(ADDRESS(SMALL((IF(WorkLisr<>\"\",ROW(WorkLisr),ROW()+ROWS(WorkLisr))),ROW()-ROW(FolowList)+1),COLUMN(WorkLisr),4)))","v":""}]
[null,null,null,null,null,null,null,{"$f":"IF(ROW()-ROW(FolowList)+1>ROWS(WorkLisr)-COUNTBLANK(WorkLisr),\"\",INDIRECT(ADDRESS(SMALL((IF(WorkLisr<>\"\",ROW(WorkLisr),ROW()+ROWS(WorkLisr))),ROW()-ROW(FolowList)+1),COLUMN(WorkLisr),4)))","v":""}]
[2,"Облицовка откосов дверных или оконных листами из ГКЛ по металлическим направляющим",null,"м.п.",null,200,null,{"$f":"IF(ROW()-ROW(FolowList)+1>ROWS(WorkLisr)-COUNTBLANK(WorkLisr),\"\",INDIRECT(ADDRESS(SMALL((IF(WorkLisr<>\"\",ROW(WorkLisr),ROW()+ROWS(WorkLisr))),ROW()-ROW(FolowList)+1),COLUMN(WorkLisr),4)))","v":""}]
[null,null,"Профиль ПН 27*28","шт",1.6,79,null,{"$f":"IF(ROW()-ROW(FolowList)+1>ROWS(WorkLisr)-COUNTBLANK(WorkLisr),\"\",INDIRECT(ADDRESS(SMALL((IF(WorkLisr<>\"\",ROW(WorkLisr),ROW()+ROWS(WorkLisr))),ROW()-ROW(FolowList)+1),COLUMN(WorkLisr),4)))","v":""}]
[null,null,"Профиль ПП 60*27","шт",1,105,null,{"$f":"IF(ROW()-ROW(FolowList)+1>ROWS(WorkLisr)-COUNTBLANK(WorkLisr),\"\",INDIRECT(ADDRESS(SMALL((IF(WorkLisr<>\"\",ROW(WorkLisr),ROW()+ROWS(WorkLisr))),ROW()-ROW(FolowList)+1),COLUMN(WorkLisr),4)))","v":""}]
[null,null,"Саморез 3,5*11 (клоп)","шт",{"$f":"E18*2+E16*4+E19*8","v":47.6},0.35,null,{"$f":"IF(ROW()-ROW(FolowList)+1>ROWS(WorkLisr)-COUNTBLANK(WorkLisr),\"\",INDIRECT(ADDRESS(SMALL((IF(WorkLisr<>\"\",ROW(WorkLisr),ROW()+ROWS(WorkLisr))),ROW()-ROW(FolowList)+1),COLUMN(WorkLisr),4)))","v":""}]
[null,null,"Саморез 3,5*25","шт",20,0.55000000000000004,null,{"$f":"IF(ROW()-ROW(FolowList)+1>ROWS(WorkLisr)-COUNTBLANK(WorkLisr),\"\",INDIRECT(ADDRESS(SMALL((IF(WorkLisr<>\"\",ROW(WorkLisr),ROW()+ROWS(WorkLisr))),ROW()-ROW(FolowList)+1),COLUMN(WorkLisr),4)))","v":""}]
[null,null,"Соединитель \"Краб\"","шт",0.45,10,null,{"$f":"IF(ROW()-ROW(FolowList)+1>ROWS(WorkLisr)-COUNTBLANK(WorkLisr),\"\",INDIRECT(ADDRESS(SMALL((IF(WorkLisr<>\"\",ROW(WorkLisr),ROW()+ROWS(WorkLisr))),ROW()-ROW(FolowList)+1),COLUMN(WorkLisr),4)))","v":""}]
[null,null,"Подвес прямой 60*27","шт",5,6,null,{"$f":"IF(ROW()-ROW(FolowList)+1>ROWS(WorkLisr)-COUNTBLANK(WorkLisr),\"\",INDIRECT(ADDRESS(SMALL((IF(WorkLisr<>\"\",ROW(WorkLisr),ROW()+ROWS(WorkLisr))),ROW()-ROW(FolowList)+1),COLUMN(WorkLisr),4)))","v":""}]
[null,null,"Профиль стартовый","м.п.",1,20,null,{"$f":"IF(ROW()-ROW(FolowList)+1>ROWS(WorkLisr)-COUNTBLANK(WorkLisr),\"\",INDIRECT(ADDRESS(SMALL((IF(WorkLisr<>\"\",ROW(WorkLisr),ROW()+ROWS(WorkLisr))),ROW()-ROW(FolowList)+1),COLUMN(WorkLisr),4)))","v":""}]
[null,null,"Лист ГКЛ 9,5мм","шт",{"$f":"1/3","v":0.33333333333333331},280,null,{"$f":"IF(ROW()-ROW(FolowList)+1>ROWS(WorkLisr)-COUNTBLANK(WorkLisr),\"\",INDIRECT(ADDRESS(SMALL((IF(WorkLisr<>\"\",ROW(WorkLisr),ROW()+ROWS(WorkLisr))),ROW()-ROW(FolowList)+1),COLUMN(WorkLisr),4)))","v":""}]
[null,null,"Лента армирующая","м.п.",3.2,1,null,{"$f":"IF(ROW()-ROW(FolowList)+1>ROWS(WorkLisr)-COUNTBLANK(WorkLisr),\"\",INDIRECT(ADDRESS(SMALL((IF(WorkLisr<>\"\",ROW(WorkLisr),ROW()+ROWS(WorkLisr))),ROW()-ROW(FolowList)+1),COLUMN(WorkLisr),4)))","v":""}]
[null,null,null,null,null,null,null,{"$f":"IF(ROW()-ROW(FolowList)+1>ROWS(WorkLisr)-COUNTBLANK(WorkLisr),\"\",INDIRECT(ADDRESS(SMALL((IF(WorkLisr<>\"\",ROW(WorkLisr),ROW()+ROWS(WorkLisr))),ROW()-ROW(FolowList)+1),COLUMN(WorkLisr),4)))","v":""}]
[null,null,null,null,null,null,null,{"$f":"IF(ROW()-ROW(FolowList)+1>ROWS(WorkLisr)-COUNTBLANK(WorkLisr),\"\",INDIRECT(ADDRESS(SMALL((IF(WorkLisr<>\"\",ROW(WorkLisr),ROW()+ROWS(WorkLisr))),ROW()-ROW(FolowList)+1),COLUMN(WorkLisr),4)))","v":""}]
[3,"Облицовка стен листами из ГВЛ по металлическим направляющим",null,"м2",null,350,null,{"$f":"IF(ROW()-ROW(FolowList)+1>ROWS(WorkLisr)-COUNTBLANK(WorkLisr),\"\",INDIRECT(ADDRESS(SMALL((IF(WorkLisr<>\"\",ROW(WorkLisr),ROW()+ROWS(WorkLisr))),ROW()-ROW(FolowList)+1),COLUMN(WorkLisr),4)))","v":""}]
[null,null,"Профиль ПН 27*28","шт",1.6,79,null,{"$f":"IF(ROW()-ROW(FolowList)+1>ROWS(WorkLisr)-COUNTBLANK(WorkLisr),\"\",INDIRECT(ADDRESS(SMALL((IF(WorkLisr<>\"\",ROW(WorkLisr),ROW()+ROWS(WorkLisr))),ROW()-ROW(FolowList)+1),COLUMN(WorkLisr),4)))","v":""}]
[null,null,"Профиль ПП 60*27","шт",1,105,null,{"$f":"IF(ROW()-ROW(FolowList)+1>ROWS(WorkLisr)-COUNTBLANK(WorkLisr),\"\",INDIRECT(ADDRESS(SMALL((IF(WorkLisr<>\"\",ROW(WorkLisr),ROW()+ROWS(WorkLisr))),ROW()-ROW(FolowList)+1),COLUMN(WorkLisr),4)))","v":""}]
[null,null,"Саморез 3,5*11 (клоп)","шт",{"$f":"E30*2+E28*4+E31*8","v":47.6},0.35,null,{"$f":"IF(ROW()-ROW(FolowList)+1>ROWS(WorkLisr)-COUNTBLANK(WorkLisr),\"\",INDIRECT(ADDRESS(SMALL((IF(WorkLisr<>\"\",ROW(WorkLisr),ROW()+ROWS(WorkLisr))),ROW()-ROW(FolowList)+1),COLUMN(WorkLisr),4)))","v":""}]
[null,null,"Саморез 3,5*25 (двузаходной)","шт",20,0.55000000000000004,null,{"$f":"IF(ROW()-ROW(FolowList)+1>ROWS(WorkLisr)-COUNTBLANK(WorkLisr),\"\",INDIRECT(ADDRESS(SMALL((IF(WorkLisr<>\"\",ROW(WorkLisr),ROW()+ROWS(WorkLisr))),ROW()-ROW(FolowList)+1),COLUMN(WorkLisr),4)))","v":""}]
[null,null,"Соединитель \"Краб\"","шт",0.45,10,null,{"$f":"IF(ROW()-ROW(FolowList)+1>ROWS(WorkLisr)-COUNTBLANK(WorkLisr),\"\",INDIRECT(ADDRESS(SMALL((IF(WorkLisr<>\"\",ROW(WorkLisr),ROW()+ROWS(WorkLisr))),ROW()-ROW(FolowList)+1),COLUMN(WorkLisr),4)))","v":""}]
[null,null,"Подвес прямой 60*27","шт",5,6,null,{"$f":"IF(ROW()-ROW(FolowList)+1>ROWS(WorkLisr)-COUNTBLANK(WorkLisr),\"\",INDIRECT(ADDRESS(SMALL((IF(WorkLisr<>\"\",ROW(WorkLisr),ROW()+ROWS(WorkLisr))),ROW()-ROW(FolowList)+1),COLUMN(WorkLisr),4)))","v":""}]
[null,null,"Лист ГВЛ 10мм","шт",{"$f":"1/3","v":0.33333333333333331},500,null,{"$f":"IF(ROW()-ROW(FolowList)+1>ROWS(WorkLisr)-COUNTBLANK(WorkLisr),\"\",INDIRECT(ADDRESS(SMALL((IF(WorkLisr<>\"\",ROW(WorkLisr),ROW()+ROWS(WorkLisr))),ROW()-ROW(FolowList)+1),COLUMN(WorkLisr),4)))","v":""}]
[null,null,"Лента армирующая","м.п.",3.2,1,null,{"$f":"IF(ROW()-ROW(FolowList)+1>ROWS(WorkLisr)-COUNTBLANK(WorkLisr),\"\",INDIRECT(ADDRESS(SMALL((IF(WorkLisr<>\"\",ROW(WorkLisr),ROW()+ROWS(WorkLisr))),ROW()-ROW(FolowList)+1),COLUMN(WorkLisr),4)))","v":""}]
[null,null,null,null,null,null,null,{"$f":"IF(ROW()-ROW(FolowList)+1>ROWS(WorkLisr)-COUNTBLANK(WorkLisr),\"\",INDIRECT(ADDRESS(SMALL((IF(WorkLisr<>\"\",ROW(WorkLisr),ROW()+ROWS(WorkLisr))),ROW()-ROW(FolowList)+1),COLUMN(WorkLisr),4)))","v":""}]
[null,null,null,null,null,null,null,{"$f":"IF(ROW()-ROW(FolowList)+1>ROWS(WorkLisr)-COUNTBLANK(WorkLisr),\"\",INDIRECT(ADDRESS(SMALL((IF(WorkLisr<>\"\",ROW(WorkLisr),ROW()+ROWS(WorkLisr))),ROW()-ROW(FolowList)+1),COLUMN(WorkLisr),4)))","v":""}]
[null,null,null,null,null,null,null,{"$f":"IF(ROW()-ROW(FolowList)+1>ROWS(WorkLisr)-COUNTBLANK(WorkLisr),\"\",INDIRECT(ADDRESS(SMALL((IF(WorkLisr<>\"\",ROW(WorkLisr),ROW()+ROWS(WorkLisr))),ROW()-ROW(FolowList)+1),COLUMN(WorkLisr),4)))","v":""}]
[4,"Облицовка откосов дверных или оконных листами из ГВЛ по металлическим направляющим",null,"м.п.",null,200,null,{"$f":"IF(ROW()-ROW(FolowList)+1>ROWS(WorkLisr)-COUNTBLANK(WorkLisr),\"\",INDIRECT(ADDRESS(SMALL((IF(WorkLisr<>\"\",ROW(WorkLisr),ROW()+ROWS(WorkLisr))),ROW()-ROW(FolowList)+1),COLUMN(WorkLisr),4)))","v":""}]
[null,null,"Профиль ПН 27*28","шт",1.6,79,null,{"$f":"IF(ROW()-ROW(FolowList)+1>ROWS(WorkLisr)-COUNTBLANK(WorkLisr),\"\",INDIRECT(ADDRESS(SMALL((IF(WorkLisr<>\"\",ROW(WorkLisr),ROW()+ROWS(WorkLisr))),ROW()-ROW(FolowList)+1),COLUMN(WorkLisr),4)))","v":""}]
[null,null,"Профиль ПП 60*27","шт",1,105,null,{"$f":"IF(ROW()-ROW(FolowList)+1>ROWS(WorkLisr)-COUNTBLANK(WorkLisr),\"\",INDIRECT(ADDRESS(SMALL((IF(WorkLisr<>\"\",ROW(WorkLisr),ROW()+ROWS(WorkLisr))),ROW()-ROW(FolowList)+1),COLUMN(WorkLisr),4)))","v":""}]
[null,null,"Саморез 3,5*11 (клоп)","шт",{"$f":"E42*2+E40*4+E43*8","v":47.6},0.35,null,{"$f":"IF(ROW()-ROW(FolowList)+1>ROWS(WorkLisr)-COUNTBLANK(WorkLisr),\"\",INDIRECT(ADDRESS(SMALL((IF(WorkLisr<>\"\",ROW(WorkLisr),ROW()+ROWS(WorkLisr))),ROW()-ROW(FolowList)+1),COLUMN(WorkLisr),4)))","v":""}]
[null,null,"Саморез 3,5*25 (двузаходной)","шт",20,0.55000000000000004,null,{"$f":"IF(ROW()-ROW(FolowList)+1>ROWS(WorkLisr)-COUNTBLANK(WorkLisr),\"\",INDIRECT(ADDRESS(SMALL((IF(WorkLisr<>\"\",ROW(WorkLisr),ROW()+ROWS(WorkLisr))),ROW()-ROW(FolowList)+1),COLUMN(WorkLisr),4)))","v":""}]
[null,null,"Соединитель \"Краб\"","шт",0.45,10,null,{"$f":"IF(ROW()-ROW(FolowList)+1>ROWS(WorkLisr)-COUNTBLANK(WorkLisr),\"\",INDIRECT(ADDRESS(SMALL((IF(WorkLisr<>\"\",ROW(WorkLisr),ROW()+ROWS(WorkLisr))),ROW()-ROW(FolowList)+1),COLUMN(WorkLisr),4)))","v":""}]
[null,null,"Подвес прямой 60*27","шт",5,6,null,{"$f":"IF(ROW()-ROW(FolowList)+1>ROWS(WorkLisr)-COUNTBLANK(WorkLisr),\"\",INDIRECT(ADDRESS(SMALL((IF(WorkLisr<>\"\",ROW(WorkLisr),ROW()+ROWS(WorkLisr))),ROW()-ROW(FolowList)+1),COLUMN(WorkLisr),4)))","v":""}]
[null,null,"Профиль стартовый","м.п.",1,20,null,{"$f":"IF(ROW()-ROW(FolowList)+1>ROWS(WorkLisr)-COUNTBLANK(WorkLisr),\"\",INDIRECT(ADDRESS(SMALL((IF(WorkLisr<>\"\",ROW(WorkLisr),ROW()+ROWS(WorkLisr))),ROW()-ROW(FolowList)+1),COLUMN(WorkLisr),4)))","v":""}]
[null,null,"Лист ГВЛ 10мм","шт",{"$f":"1/3","v":0.33333333333333331},500,null,{"$f":"IF(ROW()-ROW(FolowList)+1>ROWS(WorkLisr)-COUNTBLANK(WorkLisr),\"\",INDIRECT(ADDRESS(SMALL((IF(WorkLisr<>\"\",ROW(WorkLisr),ROW()+ROWS(WorkLisr))),ROW()-ROW(FolowList)+1),COLUMN(WorkLisr),4)))","v":""}]
[null,null,"Лента армирующая","м.п.",3.2,1,null,{"$f":"IF(ROW()-ROW(FolowList)+1>ROWS(WorkLisr)-COUNTBLANK(WorkLisr),\"\",INDIRECT(ADDRESS(SMALL((IF(WorkLisr<>\"\",ROW(WorkLisr),ROW()+ROWS(WorkLisr))),ROW()-ROW(FolowList)+1),COLUMN(WorkLisr),4)))","v":""}]
[null,null,null,null,null,null,null,{"$f":"IF(ROW()-ROW(FolowList)+1>ROWS(WorkLisr)-COUNTBLANK(WorkLisr),\"\",INDIRECT(ADDRESS(SMALL((IF(WorkLisr<>\"\",ROW(WorkLisr),ROW()+ROWS(WorkLisr))),ROW()-ROW(FolowList)+1),COLUMN(WorkLisr),4)))","v":""}]
[null,null,null,null,null,null,null,{"$f":"IF(ROW()-ROW(FolowList)+1>ROWS(WorkLisr)-COUNTBLANK(WorkLisr),\"\",INDIRECT(ADDRESS(SMALL((IF(WorkLisr<>\"\",ROW(WorkLisr),ROW()+ROWS(WorkLisr))),ROW()-ROW(FolowList)+1),COLUMN(WorkLisr),4)))","v":""}]
[null,null,null,null,null,null,null,{"$f":"IF(ROW()-ROW(FolowList)+1>ROWS(WorkLisr)-COUNTBLANK(WorkLisr),\"\",INDIRECT(ADDRESS(SMALL((IF(WorkLisr<>\"\",ROW(WorkLisr),ROW()+ROWS(WorkLisr))),ROW()-ROW(FolowList)+1),COLUMN(WorkLisr),4)))","v":""}]
[null,null,null,null,null,null,null,{"$f":"IF(ROW()-ROW(FolowList)+1>ROWS(WorkLisr)-COUNTBLANK(WorkLisr),\"\",INDIRECT(ADDRESS(SMALL((IF(WorkLisr<>\"\",ROW(WorkLisr),ROW()+ROWS(WorkLisr))),ROW()-ROW(FolowList)+1),COLUMN(WorkLisr),4)))","v":""}]
[null,null,null,null,null,null,null,{"$f":"IF(ROW()-ROW(FolowList)+1>ROWS(WorkLisr)-COUNTBLANK(WorkLisr),\"\",INDIRECT(ADDRESS(SMALL((IF(WorkLisr<>\"\",ROW(WorkLisr),ROW()+ROWS(WorkLisr))),ROW()-ROW(FolowList)+1),COLUMN(WorkLisr),4)))","v":""}]
[null,null,null,null,null,null,null,{"$f":"IF(ROW()-ROW(FolowList)+1>ROWS(WorkLisr)-COUNTBLANK(WorkLisr),\"\",INDIRECT(ADDRESS(SMALL((IF(WorkLisr<>\"\",ROW(WorkLisr),ROW()+ROWS(WorkLisr))),ROW()-ROW(FolowList)+1),COLUMN(WorkLisr),4)))","v":""}]
[null,null,null,null,null,null,null,{"$f":"IF(ROW()-ROW(FolowList)+1>ROWS(WorkLisr)-COUNTBLANK(WorkLisr),\"\",INDIRECT(ADDRESS(SMALL((IF(WorkLisr<>\"\",ROW(WorkLisr),ROW()+ROWS(WorkLisr))),ROW()-ROW(FolowList)+1),COLUMN(WorkLisr),4)))","v":""}]
[null,null,null,null,null,null,null,{"$f":"IF(ROW()-ROW(FolowList)+1>ROWS(WorkLisr)-COUNTBLANK(WorkLisr),\"\",INDIRECT(ADDRESS(SMALL((IF(WorkLisr<>\"\",ROW(WorkLisr),ROW()+ROWS(WorkLisr))),ROW()-ROW(FolowList)+1),COLUMN(WorkLisr),4)))","v":""}]
[null,null,null,null,null,null,null,{"$f":"IF(ROW()-ROW(FolowList)+1>ROWS(WorkLisr)-COUNTBLANK(WorkLisr),\"\",INDIRECT(ADDRESS(SMALL((IF(WorkLisr<>\"\",ROW(WorkLisr),ROW()+ROWS(WorkLisr))),ROW()-ROW(FolowList)+1),COLUMN(WorkLisr),4)))","v":""}]
[null,null,null,null,null,null,null,{"$f":"IF(ROW()-ROW(FolowList)+1>ROWS(WorkLisr)-COUNTBLANK(WorkLisr),\"\",INDIRECT(ADDRESS(SMALL((IF(WorkLisr<>\"\",ROW(WorkLisr),ROW()+ROWS(WorkLisr))),ROW()-ROW(FolowList)+1),COLUMN(WorkLisr),4)))","v":""}]
[null,null,null,null,null,null,null,{"$f":"IF(ROW()-ROW(FolowList)+1>ROWS(WorkLisr)-COUNTBLANK(WorkLisr),\"\",INDIRECT(ADDRESS(SMALL((IF(WorkLisr<>\"\",ROW(WorkLisr),ROW()+ROWS(WorkLisr))),ROW()-ROW(FolowList)+1),COLUMN(WorkLisr),4)))","v":""}]
[null,null,null,null,null,null,null,{"$f":"IF(ROW()-ROW(FolowList)+1>ROWS(WorkLisr)-COUNTBLANK(WorkLisr),\"\",INDIRECT(ADDRESS(SMALL((IF(WorkLisr<>\"\",ROW(WorkLisr),ROW()+ROWS(WorkLisr))),ROW()-ROW(FolowList)+1),COLUMN(WorkLisr),4)))","v":""}]
[null,null,null,null,null,null,null,{"$f":"IF(ROW()-ROW(FolowList)+1>ROWS(WorkLisr)-COUNTBLANK(WorkLisr),\"\",INDIRECT(ADDRESS(SMALL((IF(WorkLisr<>\"\",ROW(WorkLisr),ROW()+ROWS(WorkLisr))),ROW()-ROW(FolowList)+1),COLUMN(WorkLisr),4)))","v":""}]
[null,null,null,null,null,null,null,{"$f":"IF(ROW()-ROW(FolowList)+1>ROWS(WorkLisr)-COUNTBLANK(WorkLisr),\"\",INDIRECT(ADDRESS(SMALL((IF(WorkLisr<>\"\",ROW(WorkLisr),ROW()+ROWS(WorkLisr))),ROW()-ROW(FolowList)+1),COLUMN(WorkLisr),4)))","v":""}]
[null,null,null,null,null,null,null,{"$f":"IF(ROW()-ROW(FolowList)+1>ROWS(WorkLisr)-COUNTBLANK(WorkLisr),\"\",INDIRECT(ADDRESS(SMALL((IF(WorkLisr<>\"\",ROW(WorkLisr),ROW()+ROWS(WorkLisr))),ROW()-ROW(FolowList)+1),COLUMN(WorkLisr),4)))","v":""}]
[null,null,null,null,null,null,null,{"$f":"IF(ROW()-ROW(FolowList)+1>ROWS(WorkLisr)-COUNTBLANK(WorkLisr),\"\",INDIRECT(ADDRESS(SMALL((IF(WorkLisr<>\"\",ROW(WorkLisr),ROW()+ROWS(WorkLisr))),ROW()-ROW(FolowList)+1),COLUMN(WorkLisr),4)))","v":""}]
[null,null,null,null,null,null,null,{"$f":"IF(ROW()-ROW(FolowList)+1>ROWS(WorkLisr)-COUNTBLANK(WorkLisr),\"\",INDIRECT(ADDRESS(SMALL((IF(WorkLisr<>\"\",ROW(WorkLisr),ROW()+ROWS(WorkLisr))),ROW()-ROW(FolowList)+1),COLUMN(WorkLisr),4)))","v":""}]
[null,null,null,null,null,null,null,{"$f":"IF(ROW()-ROW(FolowList)+1>ROWS(WorkLisr)-COUNTBLANK(WorkLisr),\"\",INDIRECT(ADDRESS(SMALL((IF(WorkLisr<>\"\",ROW(WorkLisr),ROW()+ROWS(WorkLisr))),ROW()-ROW(FolowList)+1),COLUMN(WorkLisr),4)))","v":""}]
[null,null,null,null,null,null,null,{"$f":"IF(ROW()-ROW(FolowList)+1>ROWS(WorkLisr)-COUNTBLANK(WorkLisr),\"\",INDIRECT(ADDRESS(SMALL((IF(WorkLisr<>\"\",ROW(WorkLisr),ROW()+ROWS(WorkLisr))),ROW()-ROW(FolowList)+1),COLUMN(WorkLisr),4)))","v":""}]
[null,null,null,null,null,null,null,{"$f":"IF(ROW()-ROW(FolowList)+1>ROWS(WorkLisr)-COUNTBLANK(WorkLisr),\"\",INDIRECT(ADDRESS(SMALL((IF(WorkLisr<>\"\",ROW(WorkLisr),ROW()+ROWS(WorkLisr))),ROW()-ROW(FolowList)+1),COLUMN(WorkLisr),4)))","v":""}]
[null,null,null,null,null,null,null,{"$f":"IF(ROW()-ROW(FolowList)+1>ROWS(WorkLisr)-COUNTBLANK(WorkLisr),\"\",INDIRECT(ADDRESS(SMALL((IF(WorkLisr<>\"\",ROW(WorkLisr),ROW()+ROWS(WorkLisr))),ROW()-ROW(FolowList)+1),COLUMN(WorkLisr),4)))","v":""}]
[null,null,null,null,null,null,null,{"$f":"IF(ROW()-ROW(FolowList)+1>ROWS(WorkLisr)-COUNTBLANK(WorkLisr),\"\",INDIRECT(ADDRESS(SMALL((IF(WorkLisr<>\"\",ROW(WorkLisr),ROW()+ROWS(WorkLisr))),ROW()-ROW(FolowList)+1),COLUMN(WorkLisr),4)))","v":""}]
[null,null,null,null,null,null,null,{"$f":"IF(ROW()-ROW(FolowList)+1>ROWS(WorkLisr)-COUNTBLANK(WorkLisr),\"\",INDIRECT(ADDRESS(SMALL((IF(WorkLisr<>\"\",ROW(WorkLisr),ROW()+ROWS(WorkLisr))),ROW()-ROW(FolowList)+1),COLUMN(WorkLisr),4)))","v":""}]
[null,null,null,null,null,null,null,{"$f":"IF(ROW()-ROW(FolowList)+1>ROWS(WorkLisr)-COUNTBLANK(WorkLisr),\"\",INDIRECT(ADDRESS(SMALL((IF(WorkLisr<>\"\",ROW(WorkLisr),ROW()+ROWS(WorkLisr))),ROW()-ROW(FolowList)+1),COLUMN(WorkLisr),4)))","v":""}]
[null,null,null,null,null,null,null,{"$f":"IF(ROW()-ROW(FolowList)+1>ROWS(WorkLisr)-COUNTBLANK(WorkLisr),\"\",INDIRECT(ADDRESS(SMALL((IF(WorkLisr<>\"\",ROW(WorkLisr),ROW()+ROWS(WorkLisr))),ROW()-ROW(FolowList)+1),COLUMN(WorkLisr),4)))","v":""}]
[null,null,null,null,null,null,null,{"$f":"IF(ROW()-ROW(FolowList)+1>ROWS(WorkLisr)-COUNTBLANK(WorkLisr),\"\",INDIRECT(ADDRESS(SMALL((IF(WorkLisr<>\"\",ROW(WorkLisr),ROW()+ROWS(WorkLisr))),ROW()-ROW(FolowList)+1),COLUMN(WorkLisr),4)))","v":""}]
[null,null,null,null,null,null,null,{"$f":"IF(ROW()-ROW(FolowList)+1>ROWS(WorkLisr)-COUNTBLANK(WorkLisr),\"\",INDIRECT(ADDRESS(SMALL((IF(WorkLisr<>\"\",ROW(WorkLisr),ROW()+ROWS(WorkLisr))),ROW()-ROW(FolowList)+1),COLUMN(WorkLisr),4)))","v":""}]
[null,null,null,null,null,null,null,{"$f":"IF(ROW()-ROW(FolowList)+1>ROWS(WorkLisr)-COUNTBLANK(WorkLisr),\"\",INDIRECT(ADDRESS(SMALL((IF(WorkLisr<>\"\",ROW(WorkLisr),ROW()+ROWS(WorkLisr))),ROW()-ROW(FolowList)+1),COLUMN(WorkLisr),4)))","v":""}]
[null,null,null,null,null,null,null,{"$f":"IF(ROW()-ROW(FolowList)+1>ROWS(WorkLisr)-COUNTBLANK(WorkLisr),\"\",INDIRECT(ADDRESS(SMALL((IF(WorkLisr<>\"\",ROW(WorkLisr),ROW()+ROWS(WorkLisr))),ROW()-ROW(FolowList)+1),COLUMN(WorkLisr),4)))","v":""}]
[null,null,null,null,null,null,null,{"$f":"IF(ROW()-ROW(FolowList)+1>ROWS(WorkLisr)-COUNTBLANK(WorkLisr),\"\",INDIRECT(ADDRESS(SMALL((IF(WorkLisr<>\"\",ROW(WorkLisr),ROW()+ROWS(WorkLisr))),ROW()-ROW(FolowList)+1),COLUMN(WorkLisr),4)))","v":""}]
[null,null,null,null,null,null,null,{"$f":"IF(ROW()-ROW(FolowList)+1>ROWS(WorkLisr)-COUNTBLANK(WorkLisr),\"\",INDIRECT(ADDRESS(SMALL((IF(WorkLisr<>\"\",ROW(WorkLisr),ROW()+ROWS(WorkLisr))),ROW()-ROW(FolowList)+1),COLUMN(WorkLisr),4)))","v":""}]
[null,null,null,null,null,null,null,{"$f":"IF(ROW()-ROW(FolowList)+1>ROWS(WorkLisr)-COUNTBLANK(WorkLisr),\"\",INDIRECT(ADDRESS(SMALL((IF(WorkLisr<>\"\",ROW(WorkLisr),ROW()+ROWS(WorkLisr))),ROW()-ROW(FolowList)+1),COLUMN(WorkLisr),4)))","v":""}]
[null,null,null,null,null,null,null,{"$f":"IF(ROW()-ROW(FolowList)+1>ROWS(WorkLisr)-COUNTBLANK(WorkLisr),\"\",INDIRECT(ADDRESS(SMALL((IF(WorkLisr<>\"\",ROW(WorkLisr),ROW()+ROWS(WorkLisr))),ROW()-ROW(FolowList)+1),COLUMN(WorkLisr),4)))","v":""}]
[null,null,null,null,null,null,null,{"$f":"IF(ROW()-ROW(FolowList)+1>ROWS(WorkLisr)-COUNTBLANK(WorkLisr),\"\",INDIRECT(ADDRESS(SMALL((IF(WorkLisr<>\"\",ROW(WorkLisr),ROW()+ROWS(WorkLisr))),ROW()-ROW(FolowList)+1),COLUMN(WorkLisr),4)))","v":""}]
[null,null,null,null,null,null,null,{"$f":"IF(ROW()-ROW(FolowList)+1>ROWS(WorkLisr)-COUNTBLANK(WorkLisr),\"\",INDIRECT(ADDRESS(SMALL((IF(WorkLisr<>\"\",ROW(WorkLisr),ROW()+ROWS(WorkLisr))),ROW()-ROW(FolowList)+1),COLUMN(WorkLisr),4)))","v":""}]
[null,null,null,null,null,null,null,{"$f":"IF(ROW()-ROW(FolowList)+1>ROWS(WorkLisr)-COUNTBLANK(WorkLisr),\"\",INDIRECT(ADDRESS(SMALL((IF(WorkLisr<>\"\",ROW(WorkLisr),ROW()+ROWS(WorkLisr))),ROW()-ROW(FolowList)+1),COLUMN(WorkLisr),4)))","v":""}]
[null,null,null,null,null,null,null,{"$f":"IF(ROW()-ROW(FolowList)+1>ROWS(WorkLisr)-COUNTBLANK(WorkLisr),\"\",INDIRECT(ADDRESS(SMALL((IF(WorkLisr<>\"\",ROW(WorkLisr),ROW()+ROWS(WorkLisr))),ROW()-ROW(FolowList)+1),COLUMN(WorkLisr),4)))","v":""}]
[null,null,null,null,null,null,null,{"$f":"IF(ROW()-ROW(FolowList)+1>ROWS(WorkLisr)-COUNTBLANK(WorkLisr),\"\",INDIRECT(ADDRESS(SMALL((IF(WorkLisr<>\"\",ROW(WorkLisr),ROW()+ROWS(WorkLisr))),ROW()-ROW(FolowList)+1),COLUMN(WorkLisr),4)))","v":""}]
[null,null,null,null,null,null,null,{"$f":"IF(ROW()-ROW(FolowList)+1>ROWS(WorkLisr)-COUNTBLANK(WorkLisr),\"\",INDIRECT(ADDRESS(SMALL((IF(WorkLisr<>\"\",ROW(WorkLisr),ROW()+ROWS(WorkLisr))),ROW()-ROW(FolowList)+1),COLUMN(WorkLisr),4)))","v":""}]
[null,null,null,null,null,null,null,{"$f":"IF(ROW()-ROW(FolowList)+1>ROWS(WorkLisr)-COUNTBLANK(WorkLisr),\"\",INDIRECT(ADDRESS(SMALL((IF(WorkLisr<>\"\",ROW(WorkLisr),ROW()+ROWS(WorkLisr))),ROW()-ROW(FolowList)+1),COLUMN(WorkLisr),4)))","v":""}]
[null,null,null,null,null,null,null,{"$f":"IF(ROW()-ROW(FolowList)+1>ROWS(WorkLisr)-COUNTBLANK(WorkLisr),\"\",INDIRECT(ADDRESS(SMALL((IF(WorkLisr<>\"\",ROW(WorkLisr),ROW()+ROWS(WorkLisr))),ROW()-ROW(FolowList)+1),COLUMN(WorkLisr),4)))","v":""}]
[null,null,null,null,null,null,null,{"$f":"IF(ROW()-ROW(FolowList)+1>ROWS(WorkLisr)-COUNTBLANK(WorkLisr),\"\",INDIRECT(ADDRESS(SMALL((IF(WorkLisr<>\"\",ROW(WorkLisr),ROW()+ROWS(WorkLisr))),ROW()-ROW(FolowList)+1),COLUMN(WorkLisr),4)))","v":""}]
[null,null,null,null,null,null,null,{"$f":"IF(ROW()-ROW(FolowList)+1>ROWS(WorkLisr)-COUNTBLANK(WorkLisr),\"\",INDIRECT(ADDRESS(SMALL((IF(WorkLisr<>\"\",ROW(WorkLisr),ROW()+ROWS(WorkLisr))),ROW()-ROW(FolowList)+1),COLUMN(WorkLisr),4)))","v":""}]
[null,null,null,null,null,null,null,{"$f":"IF(ROW()-ROW(FolowList)+1>ROWS(WorkLisr)-COUNTBLANK(WorkLisr),\"\",INDIRECT(ADDRESS(SMALL((IF(WorkLisr<>\"\",ROW(WorkLisr),ROW()+ROWS(WorkLisr))),ROW()-ROW(FolowList)+1),COLUMN(WorkLisr),4)))","v":""}]
[null,null,null,null,null,null,null,{"$f":"IF(ROW()-ROW(FolowList)+1>ROWS(WorkLisr)-COUNTBLANK(WorkLisr),\"\",INDIRECT(ADDRESS(SMALL((IF(WorkLisr<>\"\",ROW(WorkLisr),ROW()+ROWS(WorkLisr))),ROW()-ROW(FolowList)+1),COLUMN(WorkLisr),4)))","v":""}]
[null,null,null,null,null,null,null,{"$f":"IF(ROW()-ROW(FolowList)+1>ROWS(WorkLisr)-COUNTBLANK(WorkLisr),\"\",INDIRECT(ADDRESS(SMALL((IF(WorkLisr<>\"\",ROW(WorkLisr),ROW()+ROWS(WorkLisr))),ROW()-ROW(FolowList)+1),COLUMN(WorkLisr),4)))","v":""}]
[null,null,null,null,null,null,null,{"$f":"IF(ROW()-ROW(FolowList)+1>ROWS(WorkLisr)-COUNTBLANK(WorkLisr),\"\",INDIRECT(ADDRESS(SMALL((IF(WorkLisr<>\"\",ROW(WorkLisr),ROW()+ROWS(WorkLisr))),ROW()-ROW(FolowList)+1),COLUMN(WorkLisr),4)))","v":""}]
[null,null,null,null,null,null,null,{"$f":"IF(ROW()-ROW(FolowList)+1>ROWS(WorkLisr)-COUNTBLANK(WorkLisr),\"\",INDIRECT(ADDRESS(SMALL((IF(WorkLisr<>\"\",ROW(WorkLisr),ROW()+ROWS(WorkLisr))),ROW()-ROW(FolowList)+1),COLUMN(WorkLisr),4)))","v":""}]
[null,null,null,null,null,null,null,{"$f":"IF(ROW()-ROW(FolowList)+1>ROWS(WorkLisr)-COUNTBLANK(WorkLisr),\"\",INDIRECT(ADDRESS(SMALL((IF(WorkLisr<>\"\",ROW(WorkLisr),ROW()+ROWS(WorkLisr))),ROW()-ROW(FolowList)+1),COLUMN(WorkLisr),4)))","v":""}]
[null,null,null,null,null,null,null,{"$f":"IF(ROW()-ROW(FolowList)+1>ROWS(WorkLisr)-COUNTBLANK(WorkLisr),\"\",INDIRECT(ADDRESS(SMALL((IF(WorkLisr<>\"\",ROW(WorkLisr),ROW()+ROWS(WorkLisr))),ROW()-ROW(FolowList)+1),COLUMN(WorkLisr),4)))","v":""}]
[null,null,null,null,null,null,null,{"$f":"IF(ROW()-ROW(FolowList)+1>ROWS(WorkLisr)-COUNTBLANK(WorkLisr),\"\",INDIRECT(ADDRESS(SMALL((IF(WorkLisr<>\"\",ROW(WorkLisr),ROW()+ROWS(WorkLisr))),ROW()-ROW(FolowList)+1),COLUMN(WorkLisr),4)))","v":""}]
[null,null,null,null,null,null,null,{"$f":"IF(ROW()-ROW(FolowList)+1>ROWS(WorkLisr)-COUNTBLANK(WorkLisr),\"\",INDIRECT(ADDRESS(SMALL((IF(WorkLisr<>\"\",ROW(WorkLisr),ROW()+ROWS(WorkLisr))),ROW()-ROW(FolowList)+1),COLUMN(WorkLisr),4)))","v":""}]
[null,null,null,null,null,null,null,{"$f":"IF(ROW()-ROW(FolowList)+1>ROWS(WorkLisr)-COUNTBLANK(WorkLisr),\"\",INDIRECT(ADDRESS(SMALL((IF(WorkLisr<>\"\",ROW(WorkLisr),ROW()+ROWS(WorkLisr))),ROW()-ROW(FolowList)+1),COLUMN(WorkLisr),4)))","v":""}]
[null,null,null,null,null,null,null,{"$f":"IF(ROW()-ROW(FolowList)+1>ROWS(WorkLisr)-COUNTBLANK(WorkLisr),\"\",INDIRECT(ADDRESS(SMALL((IF(WorkLisr<>\"\",ROW(WorkLisr),ROW()+ROWS(WorkLisr))),ROW()-ROW(FolowList)+1),COLUMN(WorkLisr),4)))","v":""}]
[null,null,null,null,null,null,null,{"$f":"IF(ROW()-ROW(FolowList)+1>ROWS(WorkLisr)-COUNTBLANK(WorkLisr),\"\",INDIRECT(ADDRESS(SMALL((IF(WorkLisr<>\"\",ROW(WorkLisr),ROW()+ROWS(WorkLisr))),ROW()-ROW(FolowList)+1),COLUMN(WorkLisr),4)))","v":""}]
[null,null,null,null,null,null,null,{"$f":"IF(ROW()-ROW(FolowList)+1>ROWS(WorkLisr)-COUNTBLANK(WorkLisr),\"\",INDIRECT(ADDRESS(SMALL((IF(WorkLisr<>\"\",ROW(WorkLisr),ROW()+ROWS(WorkLisr))),ROW()-ROW(FolowList)+1),COLUMN(WorkLisr),4)))","v":""}]
[null,null,null,null,null,null,null,{"$f":"IF(ROW()-ROW(FolowList)+1>ROWS(WorkLisr)-COUNTBLANK(WorkLisr),\"\",INDIRECT(ADDRESS(SMALL((IF(WorkLisr<>\"\",ROW(WorkLisr),ROW()+ROWS(WorkLisr))),ROW()-ROW(FolowList)+1),COLUMN(WorkLisr),4)))","v":""}]
[null,null,null,null,null,null,null,{"$f":"IF(ROW()-ROW(FolowList)+1>ROWS(WorkLisr)-COUNTBLANK(WorkLisr),\"\",INDIRECT(ADDRESS(SMALL((IF(WorkLisr<>\"\",ROW(WorkLisr),ROW()+ROWS(WorkLisr))),ROW()-ROW(FolowList)+1),COLUMN(WorkLisr),4)))","v":""}]
[null,null,null,null,null,null,null,{"$f":"IF(ROW()-ROW(FolowList)+1>ROWS(WorkLisr)-COUNTBLANK(WorkLisr),\"\",INDIRECT(ADDRESS(SMALL((IF(WorkLisr<>\"\",ROW(WorkLisr),ROW()+ROWS(WorkLisr))),ROW()-ROW(FolowList)+1),COLUMN(WorkLisr),4)))","v":""}]
[null,null,null,null,null,null,null,{"$f":"IF(ROW()-ROW(FolowList)+1>ROWS(WorkLisr)-COUNTBLANK(WorkLisr),\"\",INDIRECT(ADDRESS(SMALL((IF(WorkLisr<>\"\",ROW(WorkLisr),ROW()+ROWS(WorkLisr))),ROW()-ROW(FolowList)+1),COLUMN(WorkLisr),4)))","v":""}]
[null,null,null,null,null,null,null,{"$f":"IF(ROW()-ROW(FolowList)+1>ROWS(WorkLisr)-COUNTBLANK(WorkLisr),\"\",INDIRECT(ADDRESS(SMALL((IF(WorkLisr<>\"\",ROW(WorkLisr),ROW()+ROWS(WorkLisr))),ROW()-ROW(FolowList)+1),COLUMN(WorkLisr),4)))","v":""}]
[null,null,null,null,null,null,null,{"$f":"IF(ROW()-ROW(FolowList)+1>ROWS(WorkLisr)-COUNTBLANK(WorkLisr),\"\",INDIRECT(ADDRESS(SMALL((IF(WorkLisr<>\"\",ROW(WorkLisr),ROW()+ROWS(WorkLisr))),ROW()-ROW(FolowList)+1),COLUMN(WorkLisr),4)))","v":""}]
[null,null,null,null,null,null,null,{"$f":"IF(ROW()-ROW(FolowList)+1>ROWS(WorkLisr)-COUNTBLANK(WorkLisr),\"\",INDIRECT(ADDRESS(SMALL((IF(WorkLisr<>\"\",ROW(WorkLisr),ROW()+ROWS(WorkLisr))),ROW()-ROW(FolowList)+1),COLUMN(WorkLisr),4)))","v":""}]
[null,null,null,null,null,null,null,{"$f":"IF(ROW()-ROW(FolowList)+1>ROWS(WorkLisr)-COUNTBLANK(WorkLisr),\"\",INDIRECT(ADDRESS(SMALL((IF(WorkLisr<>\"\",ROW(WorkLisr),ROW()+ROWS(WorkLisr))),ROW()-ROW(FolowList)+1),COLUMN(WorkLisr),4)))","v":""}]
[null,null,null,null,null,null,null,{"$f":"IF(ROW()-ROW(FolowList)+1>ROWS(WorkLisr)-COUNTBLANK(WorkLisr),\"\",INDIRECT(ADDRESS(SMALL((IF(WorkLisr<>\"\",ROW(WorkLisr),ROW()+ROWS(WorkLisr))),ROW()-ROW(FolowList)+1),COLUMN(WorkLisr),4)))","v":""}]
[null,null,null,null,null,null,null,{"$f":"IF(ROW()-ROW(FolowList)+1>ROWS(WorkLisr)-COUNTBLANK(WorkLisr),\"\",INDIRECT(ADDRESS(SMALL((IF(WorkLisr<>\"\",ROW(WorkLisr),ROW()+ROWS(WorkLisr))),ROW()-ROW(FolowList)+1),COLUMN(WorkLisr),4)))","v":""}]
[null,null,null,null,null,null,null,{"$f":"IF(ROW()-ROW(FolowList)+1>ROWS(WorkLisr)-COUNTBLANK(WorkLisr),\"\",INDIRECT(ADDRESS(SMALL((IF(WorkLisr<>\"\",ROW(WorkLisr),ROW()+ROWS(WorkLisr))),ROW()-ROW(FolowList)+1),COLUMN(WorkLisr),4)))","v":""}]
[null,null,null,null,null,null,null,{"$f":"IF(ROW()-ROW(FolowList)+1>ROWS(WorkLisr)-COUNTBLANK(WorkLisr),\"\",INDIRECT(ADDRESS(SMALL((IF(WorkLisr<>\"\",ROW(WorkLisr),ROW()+ROWS(WorkLisr))),ROW()-ROW(FolowList)+1),COLUMN(WorkLisr),4)))","v":""}]
[null,null,null,null,null,null,null,{"$f":"IF(ROW()-ROW(FolowList)+1>ROWS(WorkLisr)-COUNTBLANK(WorkLisr),\"\",INDIRECT(ADDRESS(SMALL((IF(WorkLisr<>\"\",ROW(WorkLisr),ROW()+ROWS(WorkLisr))),ROW()-ROW(FolowList)+1),COLUMN(WorkLisr),4)))","v":""}]
[null,null,null,null,null,null,null,{"$f":"IF(ROW()-ROW(FolowList)+1>ROWS(WorkLisr)-COUNTBLANK(WorkLisr),\"\",INDIRECT(ADDRESS(SMALL((IF(WorkLisr<>\"\",ROW(WorkLisr),ROW()+ROWS(WorkLisr))),ROW()-ROW(FolowList)+1),COLUMN(WorkLisr),4)))","v":""}]
[null,null,null,null,null,null,null,{"$f":"IF(ROW()-ROW(FolowList)+1>ROWS(WorkLisr)-COUNTBLANK(WorkLisr),\"\",INDIRECT(ADDRESS(SMALL((IF(WorkLisr<>\"\",ROW(WorkLisr),ROW()+ROWS(WorkLisr))),ROW()-ROW(FolowList)+1),COLUMN(WorkLisr),4)))","v":""}]
[null,null,null,null,null,null,null,{"$f":"IF(ROW()-ROW(FolowList)+1>ROWS(WorkLisr)-COUNTBLANK(WorkLisr),\"\",INDIRECT(ADDRESS(SMALL((IF(WorkLisr<>\"\",ROW(WorkLisr),ROW()+ROWS(WorkLisr))),ROW()-ROW(FolowList)+1),COLUMN(WorkLisr),4)))","v":""}]
[null,null,null,null,null,null,null,{"$f":"IF(ROW()-ROW(FolowList)+1>ROWS(WorkLisr)-COUNTBLANK(WorkLisr),\"\",INDIRECT(ADDRESS(SMALL((IF(WorkLisr<>\"\",ROW(WorkLisr),ROW()+ROWS(WorkLisr))),ROW()-ROW(FolowList)+1),COLUMN(WorkLisr),4)))","v":""}]
[null,null,null,null,null,null,null,{"$f":"IF(ROW()-ROW(FolowList)+1>ROWS(WorkLisr)-COUNTBLANK(WorkLisr),\"\",INDIRECT(ADDRESS(SMALL((IF(WorkLisr<>\"\",ROW(WorkLisr),ROW()+ROWS(WorkLisr))),ROW()-ROW(FolowList)+1),COLUMN(WorkLisr),4)))","v":""}]
[null,null,null,null,null,null,null,{"$f":"IF(ROW()-ROW(FolowList)+1>ROWS(WorkLisr)-COUNTBLANK(WorkLisr),\"\",INDIRECT(ADDRESS(SMALL((IF(WorkLisr<>\"\",ROW(WorkLisr),ROW()+ROWS(WorkLisr))),ROW()-ROW(FolowList)+1),COLUMN(WorkLisr),4)))","v":""}]
[null,null,null,null,null,null,null,{"$f":"IF(ROW()-ROW(FolowList)+1>ROWS(WorkLisr)-COUNTBLANK(WorkLisr),\"\",INDIRECT(ADDRESS(SMALL((IF(WorkLisr<>\"\",ROW(WorkLisr),ROW()+ROWS(WorkLisr))),ROW()-ROW(FolowList)+1),COLUMN(WorkLisr),4)))","v":""}]
[null,null,null,null,null,null,null,{"$f":"IF(ROW()-ROW(FolowList)+1>ROWS(WorkLisr)-COUNTBLANK(WorkLisr),\"\",INDIRECT(ADDRESS(SMALL((IF(WorkLisr<>\"\",ROW(WorkLisr),ROW()+ROWS(WorkLisr))),ROW()-ROW(FolowList)+1),COLUMN(WorkLisr),4)))","v":""}]
[null,null,null,null,null,null,null,{"$f":"IF(ROW()-ROW(FolowList)+1>ROWS(WorkLisr)-COUNTBLANK(WorkLisr),\"\",INDIRECT(ADDRESS(SMALL((IF(WorkLisr<>\"\",ROW(WorkLisr),ROW()+ROWS(WorkLisr))),ROW()-ROW(FolowList)+1),COLUMN(WorkLisr),4)))","v":""}]
[null,null,null,null,null,null,null,{"$f":"IF(ROW()-ROW(FolowList)+1>ROWS(WorkLisr)-COUNTBLANK(WorkLisr),\"\",INDIRECT(ADDRESS(SMALL((IF(WorkLisr<>\"\",ROW(WorkLisr),ROW()+ROWS(WorkLisr))),ROW()-ROW(FolowList)+1),COLUMN(WorkLisr),4)))","v":""}]
[null,null,null,null,null,null,null,{"$f":"IF(ROW()-ROW(FolowList)+1>ROWS(WorkLisr)-COUNTBLANK(WorkLisr),\"\",INDIRECT(ADDRESS(SMALL((IF(WorkLisr<>\"\",ROW(WorkLisr),ROW()+ROWS(WorkLisr))),ROW()-ROW(FolowList)+1),COLUMN(WorkLisr),4)))","v":""}]
[null,null,null,null,null,null,null,{"$f":"IF(ROW()-ROW(FolowList)+1>ROWS(WorkLisr)-COUNTBLANK(WorkLisr),\"\",INDIRECT(ADDRESS(SMALL((IF(WorkLisr<>\"\",ROW(WorkLisr),ROW()+ROWS(WorkLisr))),ROW()-ROW(FolowList)+1),COLUMN(WorkLisr),4)))","v":""}]
[null,null,null,null,null,null,null,{"$f":"IF(ROW()-ROW(FolowList)+1>ROWS(WorkLisr)-COUNTBLANK(WorkLisr),\"\",INDIRECT(ADDRESS(SMALL((IF(WorkLisr<>\"\",ROW(WorkLisr),ROW()+ROWS(WorkLisr))),ROW()-ROW(FolowList)+1),COLUMN(WorkLisr),4)))","v":""}]
[null,null,null,null,null,null,null,{"$f":"IF(ROW()-ROW(FolowList)+1>ROWS(WorkLisr)-COUNTBLANK(WorkLisr),\"\",INDIRECT(ADDRESS(SMALL((IF(WorkLisr<>\"\",ROW(WorkLisr),ROW()+ROWS(WorkLisr))),ROW()-ROW(FolowList)+1),COLUMN(WorkLisr),4)))","v":""}]
[null,null,null,null,null,null,null,{"$f":"IF(ROW()-ROW(FolowList)+1>ROWS(WorkLisr)-COUNTBLANK(WorkLisr),\"\",INDIRECT(ADDRESS(SMALL((IF(WorkLisr<>\"\",ROW(WorkLisr),ROW()+ROWS(WorkLisr))),ROW()-ROW(FolowList)+1),COLUMN(WorkLisr),4)))","v":""}]
[null,null,null,null,null,null,null,{"$f":"IF(ROW()-ROW(FolowList)+1>ROWS(WorkLisr)-COUNTBLANK(WorkLisr),\"\",INDIRECT(ADDRESS(SMALL((IF(WorkLisr<>\"\",ROW(WorkLisr),ROW()+ROWS(WorkLisr))),ROW()-ROW(FolowList)+1),COLUMN(WorkLisr),4)))","v":""}]
[null,null,null,null,null,null,null,{"$f":"IF(ROW()-ROW(FolowList)+1>ROWS(WorkLisr)-COUNTBLANK(WorkLisr),\"\",INDIRECT(ADDRESS(SMALL((IF(WorkLisr<>\"\",ROW(WorkLisr),ROW()+ROWS(WorkLisr))),ROW()-ROW(FolowList)+1),COLUMN(WorkLisr),4)))","v":""}]
[null,null,null,null,null,null,null,{"$f":"IF(ROW()-ROW(FolowList)+1>ROWS(WorkLisr)-COUNTBLANK(WorkLisr),\"\",INDIRECT(ADDRESS(SMALL((IF(WorkLisr<>\"\",ROW(WorkLisr),ROW()+ROWS(WorkLisr))),ROW()-ROW(FolowList)+1),COLUMN(WorkLisr),4)))","v":""}]
[null,null,null,null,null,null,null,{"$f":"IF(ROW()-ROW(FolowList)+1>ROWS(WorkLisr)-COUNTBLANK(WorkLisr),\"\",INDIRECT(ADDRESS(SMALL((IF(WorkLisr<>\"\",ROW(WorkLisr),ROW()+ROWS(WorkLisr))),ROW()-ROW(FolowList)+1),COLUMN(WorkLisr),4)))","v":""}]
[null,null,null,null,null,null,null,{"$f":"IF(ROW()-ROW(FolowList)+1>ROWS(WorkLisr)-COUNTBLANK(WorkLisr),\"\",INDIRECT(ADDRESS(SMALL((IF(WorkLisr<>\"\",ROW(WorkLisr),ROW()+ROWS(WorkLisr))),ROW()-ROW(FolowList)+1),COLUMN(WorkLisr),4)))","v":""}]
[null,null,null,null,null,null,null,{"$f":"IF(ROW()-ROW(FolowList)+1>ROWS(WorkLisr)-COUNTBLANK(WorkLisr),\"\",INDIRECT(ADDRESS(SMALL((IF(WorkLisr<>\"\",ROW(WorkLisr),ROW()+ROWS(WorkLisr))),ROW()-ROW(FolowList)+1),COLUMN(WorkLisr),4)))","v":""}]
[null,null,null,null,null,null,null,{"$f":"IF(ROW()-ROW(FolowList)+1>ROWS(WorkLisr)-COUNTBLANK(WorkLisr),\"\",INDIRECT(ADDRESS(SMALL((IF(WorkLisr<>\"\",ROW(WorkLisr),ROW()+ROWS(WorkLisr))),ROW()-ROW(FolowList)+1),COLUMN(WorkLisr),4)))","v":""}]
[null,null,null,null,null,null,null,{"$f":"IF(ROW()-ROW(FolowList)+1>ROWS(WorkLisr)-COUNTBLANK(WorkLisr),\"\",INDIRECT(ADDRESS(SMALL((IF(WorkLisr<>\"\",ROW(WorkLisr),ROW()+ROWS(WorkLisr))),ROW()-ROW(FolowList)+1),COLUMN(WorkLisr),4)))","v":""}]
[null,null,null,null,null,null,null,{"$f":"IF(ROW()-ROW(FolowList)+1>ROWS(WorkLisr)-COUNTBLANK(WorkLisr),\"\",INDIRECT(ADDRESS(SMALL((IF(WorkLisr<>\"\",ROW(WorkLisr),ROW()+ROWS(WorkLisr))),ROW()-ROW(FolowList)+1),COLUMN(WorkLisr),4)))","v":""}]
[null,null,null,null,null,null,null,{"$f":"IF(ROW()-ROW(FolowList)+1>ROWS(WorkLisr)-COUNTBLANK(WorkLisr),\"\",INDIRECT(ADDRESS(SMALL((IF(WorkLisr<>\"\",ROW(WorkLisr),ROW()+ROWS(WorkLisr))),ROW()-ROW(FolowList)+1),COLUMN(WorkLisr),4)))","v":""}]
[null,null,null,null,null,null,null,{"$f":"IF(ROW()-ROW(FolowList)+1>ROWS(WorkLisr)-COUNTBLANK(WorkLisr),\"\",INDIRECT(ADDRESS(SMALL((IF(WorkLisr<>\"\",ROW(WorkLisr),ROW()+ROWS(WorkLisr))),ROW()-ROW(FolowList)+1),COLUMN(WorkLisr),4)))","v":""}]
[null,null,null,null,null,null,null,{"$f":"IF(ROW()-ROW(FolowList)+1>ROWS(WorkLisr)-COUNTBLANK(WorkLisr),\"\",INDIRECT(ADDRESS(SMALL((IF(WorkLisr<>\"\",ROW(WorkLisr),ROW()+ROWS(WorkLisr))),ROW()-ROW(FolowList)+1),COLUMN(WorkLisr),4)))","v":""}]
[null,null,null,null,null,null,null,{"$f":"IF(ROW()-ROW(FolowList)+1>ROWS(WorkLisr)-COUNTBLANK(WorkLisr),\"\",INDIRECT(ADDRESS(SMALL((IF(WorkLisr<>\"\",ROW(WorkLisr),ROW()+ROWS(WorkLisr))),ROW()-ROW(FolowList)+1),COLUMN(WorkLisr),4)))","v":""}]
[null,null,null,null,null,null,null,{"$f":"IF(ROW()-ROW(FolowList)+1>ROWS(WorkLisr)-COUNTBLANK(WorkLisr),\"\",INDIRECT(ADDRESS(SMALL((IF(WorkLisr<>\"\",ROW(WorkLisr),ROW()+ROWS(WorkLisr))),ROW()-ROW(FolowList)+1),COLUMN(WorkLisr),4)))","v":""}]
[null,null,null,null,null,null,null,{"$f":"IF(ROW()-ROW(FolowList)+1>ROWS(WorkLisr)-COUNTBLANK(WorkLisr),\"\",INDIRECT(ADDRESS(SMALL((IF(WorkLisr<>\"\",ROW(WorkLisr),ROW()+ROWS(WorkLisr))),ROW()-ROW(FolowList)+1),COLUMN(WorkLisr),4)))","v":""}]
[null,null,null,null,null,null,null,{"$f":"IF(ROW()-ROW(FolowList)+1>ROWS(WorkLisr)-COUNTBLANK(WorkLisr),\"\",INDIRECT(ADDRESS(SMALL((IF(WorkLisr<>\"\",ROW(WorkLisr),ROW()+ROWS(WorkLisr))),ROW()-ROW(FolowList)+1),COLUMN(WorkLisr),4)))","v":""}]
[null,null,null,null,null,null,null,{"$f":"IF(ROW()-ROW(FolowList)+1>ROWS(WorkLisr)-COUNTBLANK(WorkLisr),\"\",INDIRECT(ADDRESS(SMALL((IF(WorkLisr<>\"\",ROW(WorkLisr),ROW()+ROWS(WorkLisr))),ROW()-ROW(FolowList)+1),COLUMN(WorkLisr),4)))","v":""}]
[null,null,null,null,null,null,null,{"$f":"IF(ROW()-ROW(FolowList)+1>ROWS(WorkLisr)-COUNTBLANK(WorkLisr),\"\",INDIRECT(ADDRESS(SMALL((IF(WorkLisr<>\"\",ROW(WorkLisr),ROW()+ROWS(WorkLisr))),ROW()-ROW(FolowList)+1),COLUMN(WorkLisr),4)))","v":""}]
[null,null,null,null,null,null,null,{"$f":"IF(ROW()-ROW(FolowList)+1>ROWS(WorkLisr)-COUNTBLANK(WorkLisr),\"\",INDIRECT(ADDRESS(SMALL((IF(WorkLisr<>\"\",ROW(WorkLisr),ROW()+ROWS(WorkLisr))),ROW()-ROW(FolowList)+1),COLUMN(WorkLisr),4)))","v":""}]
[null,null,null,null,null,null,null,{"$f":"IF(ROW()-ROW(FolowList)+1>ROWS(WorkLisr)-COUNTBLANK(WorkLisr),\"\",INDIRECT(ADDRESS(SMALL((IF(WorkLisr<>\"\",ROW(WorkLisr),ROW()+ROWS(WorkLisr))),ROW()-ROW(FolowList)+1),COLUMN(WorkLisr),4)))","v":""}]
[null,null,null,null,null,null,null,{"$f":"IF(ROW()-ROW(FolowList)+1>ROWS(WorkLisr)-COUNTBLANK(WorkLisr),\"\",INDIRECT(ADDRESS(SMALL((IF(WorkLisr<>\"\",ROW(WorkLisr),ROW()+ROWS(WorkLisr))),ROW()-ROW(FolowList)+1),COLUMN(WorkLisr),4)))","v":""}]
[null,null,null,null,null,null,null,{"$f":"IF(ROW()-ROW(FolowList)+1>ROWS(WorkLisr)-COUNTBLANK(WorkLisr),\"\",INDIRECT(ADDRESS(SMALL((IF(WorkLisr<>\"\",ROW(WorkLisr),ROW()+ROWS(WorkLisr))),ROW()-ROW(FolowList)+1),COLUMN(WorkLisr),4)))","v":""}]
[null,null,null,null,null,null,null,{"$f":"IF(ROW()-ROW(FolowList)+1>ROWS(WorkLisr)-COUNTBLANK(WorkLisr),\"\",INDIRECT(ADDRESS(SMALL((IF(WorkLisr<>\"\",ROW(WorkLisr),ROW()+ROWS(WorkLisr))),ROW()-ROW(FolowList)+1),COLUMN(WorkLisr),4)))","v":""}]
[null,null,null,null,null,null,null,{"$f":"IF(ROW()-ROW(FolowList)+1>ROWS(WorkLisr)-COUNTBLANK(WorkLisr),\"\",INDIRECT(ADDRESS(SMALL((IF(WorkLisr<>\"\",ROW(WorkLisr),ROW()+ROWS(WorkLisr))),ROW()-ROW(FolowList)+1),COLUMN(WorkLisr),4)))","v":""}]
[null,null,null,null,null,null,null,{"$f":"IF(ROW()-ROW(FolowList)+1>ROWS(WorkLisr)-COUNTBLANK(WorkLisr),\"\",INDIRECT(ADDRESS(SMALL((IF(WorkLisr<>\"\",ROW(WorkLisr),ROW()+ROWS(WorkLisr))),ROW()-ROW(FolowList)+1),COLUMN(WorkLisr),4)))","v":""}]
[null,null,null,null,null,null,null,{"$f":"IF(ROW()-ROW(FolowList)+1>ROWS(WorkLisr)-COUNTBLANK(WorkLisr),\"\",INDIRECT(ADDRESS(SMALL((IF(WorkLisr<>\"\",ROW(WorkLisr),ROW()+ROWS(WorkLisr))),ROW()-ROW(FolowList)+1),COLUMN(WorkLisr),4)))","v":""}]
[null,null,null,null,null,null,null,{"$f":"IF(ROW()-ROW(FolowList)+1>ROWS(WorkLisr)-COUNTBLANK(WorkLisr),\"\",INDIRECT(ADDRESS(SMALL((IF(WorkLisr<>\"\",ROW(WorkLisr),ROW()+ROWS(WorkLisr))),ROW()-ROW(FolowList)+1),COLUMN(WorkLisr),4)))","v":""}]
[null,null,null,null,null,null,null,{"$f":"IF(ROW()-ROW(FolowList)+1>ROWS(WorkLisr)-COUNTBLANK(WorkLisr),\"\",INDIRECT(ADDRESS(SMALL((IF(WorkLisr<>\"\",ROW(WorkLisr),ROW()+ROWS(WorkLisr))),ROW()-ROW(FolowList)+1),COLUMN(WorkLisr),4)))","v":""}]
[null,null,null,null,null,null,null,{"$f":"IF(ROW()-ROW(FolowList)+1>ROWS(WorkLisr)-COUNTBLANK(WorkLisr),\"\",INDIRECT(ADDRESS(SMALL((IF(WorkLisr<>\"\",ROW(WorkLisr),ROW()+ROWS(WorkLisr))),ROW()-ROW(FolowList)+1),COLUMN(WorkLisr),4)))","v":""}]
[null,null,null,null,null,null,null,{"$f":"IF(ROW()-ROW(FolowList)+1>ROWS(WorkLisr)-COUNTBLANK(WorkLisr),\"\",INDIRECT(ADDRESS(SMALL((IF(WorkLisr<>\"\",ROW(WorkLisr),ROW()+ROWS(WorkLisr))),ROW()-ROW(FolowList)+1),COLUMN(WorkLisr),4)))","v":""}]
[null,null,null,null,null,null,null,{"$f":"IF(ROW()-ROW(FolowList)+1>ROWS(WorkLisr)-COUNTBLANK(WorkLisr),\"\",INDIRECT(ADDRESS(SMALL((IF(WorkLisr<>\"\",ROW(WorkLisr),ROW()+ROWS(WorkLisr))),ROW()-ROW(FolowList)+1),COLUMN(WorkLisr),4)))","v":""}]
[null,null,null,null,null,null,null,{"$f":"IF(ROW()-ROW(FolowList)+1>ROWS(WorkLisr)-COUNTBLANK(WorkLisr),\"\",INDIRECT(ADDRESS(SMALL((IF(WorkLisr<>\"\",ROW(WorkLisr),ROW()+ROWS(WorkLisr))),ROW()-ROW(FolowList)+1),COLUMN(WorkLisr),4)))","v":""}]
[null,null,null,null,null,null,null,{"$f":"IF(ROW()-ROW(FolowList)+1>ROWS(WorkLisr)-COUNTBLANK(WorkLisr),\"\",INDIRECT(ADDRESS(SMALL((IF(WorkLisr<>\"\",ROW(WorkLisr),ROW()+ROWS(WorkLisr))),ROW()-ROW(FolowList)+1),COLUMN(WorkLisr),4)))","v":""}]
[null,null,null,null,null,null,null,{"$f":"IF(ROW()-ROW(FolowList)+1>ROWS(WorkLisr)-COUNTBLANK(WorkLisr),\"\",INDIRECT(ADDRESS(SMALL((IF(WorkLisr<>\"\",ROW(WorkLisr),ROW()+ROWS(WorkLisr))),ROW()-ROW(FolowList)+1),COLUMN(WorkLisr),4)))","v":""}]
[null,null,null,null,null,null,null,{"$f":"IF(ROW()-ROW(FolowList)+1>ROWS(WorkLisr)-COUNTBLANK(WorkLisr),\"\",INDIRECT(ADDRESS(SMALL((IF(WorkLisr<>\"\",ROW(WorkLisr),ROW()+ROWS(WorkLisr))),ROW()-ROW(FolowList)+1),COLUMN(WorkLisr),4)))","v":""}]
[null,null,null,null,null,null,null,{"$f":"IF(ROW()-ROW(FolowList)+1>ROWS(WorkLisr)-COUNTBLANK(WorkLisr),\"\",INDIRECT(ADDRESS(SMALL((IF(WorkLisr<>\"\",ROW(WorkLisr),ROW()+ROWS(WorkLisr))),ROW()-ROW(FolowList)+1),COLUMN(WorkLisr),4)))","v":""}]
[null,null,null,null,null,null,null,{"$f":"IF(ROW()-ROW(FolowList)+1>ROWS(WorkLisr)-COUNTBLANK(WorkLisr),\"\",INDIRECT(ADDRESS(SMALL((IF(WorkLisr<>\"\",ROW(WorkLisr),ROW()+ROWS(WorkLisr))),ROW()-ROW(FolowList)+1),COLUMN(WorkLisr),4)))","v":""}]
[null,null,null,null,null,null,null,{"$f":"IF(ROW()-ROW(FolowList)+1>ROWS(WorkLisr)-COUNTBLANK(WorkLisr),\"\",INDIRECT(ADDRESS(SMALL((IF(WorkLisr<>\"\",ROW(WorkLisr),ROW()+ROWS(WorkLisr))),ROW()-ROW(FolowList)+1),COLUMN(WorkLisr),4)))","v":""}]
[null,null,null,null,null,null,null,{"$f":"IF(ROW()-ROW(FolowList)+1>ROWS(WorkLisr)-COUNTBLANK(WorkLisr),\"\",INDIRECT(ADDRESS(SMALL((IF(WorkLisr<>\"\",ROW(WorkLisr),ROW()+ROWS(WorkLisr))),ROW()-ROW(FolowList)+1),COLUMN(WorkLisr),4)))","v":""}]
[null,null,null,null,null,null,null,{"$f":"IF(ROW()-ROW(FolowList)+1>ROWS(WorkLisr)-COUNTBLANK(WorkLisr),\"\",INDIRECT(ADDRESS(SMALL((IF(WorkLisr<>\"\",ROW(WorkLisr),ROW()+ROWS(WorkLisr))),ROW()-ROW(FolowList)+1),COLUMN(WorkLisr),4)))","v":""}]
[null,null,null,null,null,null,null,{"$f":"IF(ROW()-ROW(FolowList)+1>ROWS(WorkLisr)-COUNTBLANK(WorkLisr),\"\",INDIRECT(ADDRESS(SMALL((IF(WorkLisr<>\"\",ROW(WorkLisr),ROW()+ROWS(WorkLisr))),ROW()-ROW(FolowList)+1),COLUMN(WorkLisr),4)))","v":""}]
[null,null,null,null,null,null,null,{"$f":"IF(ROW()-ROW(FolowList)+1>ROWS(WorkLisr)-COUNTBLANK(WorkLisr),\"\",INDIRECT(ADDRESS(SMALL((IF(WorkLisr<>\"\",ROW(WorkLisr),ROW()+ROWS(WorkLisr))),ROW()-ROW(FolowList)+1),COLUMN(WorkLisr),4)))","v":""}]
[null,null,null,null,null,null,null,{"$f":"IF(ROW()-ROW(FolowList)+1>ROWS(WorkLisr)-COUNTBLANK(WorkLisr),\"\",INDIRECT(ADDRESS(SMALL((IF(WorkLisr<>\"\",ROW(WorkLisr),ROW()+ROWS(WorkLisr))),ROW()-ROW(FolowList)+1),COLUMN(WorkLisr),4)))","v":""}]
[null,null,null,null,null,null,null,{"$f":"IF(ROW()-ROW(FolowList)+1>ROWS(WorkLisr)-COUNTBLANK(WorkLisr),\"\",INDIRECT(ADDRESS(SMALL((IF(WorkLisr<>\"\",ROW(WorkLisr),ROW()+ROWS(WorkLisr))),ROW()-ROW(FolowList)+1),COLUMN(WorkLisr),4)))","v":""}]
[null,null,null,null,null,null,null,{"$f":"IF(ROW()-ROW(FolowList)+1>ROWS(WorkLisr)-COUNTBLANK(WorkLisr),\"\",INDIRECT(ADDRESS(SMALL((IF(WorkLisr<>\"\",ROW(WorkLisr),ROW()+ROWS(WorkLisr))),ROW()-ROW(FolowList)+1),COLUMN(WorkLisr),4)))","v":""}]
[null,null,null,null,null,null,null,{"$f":"IF(ROW()-ROW(FolowList)+1>ROWS(WorkLisr)-COUNTBLANK(WorkLisr),\"\",INDIRECT(ADDRESS(SMALL((IF(WorkLisr<>\"\",ROW(WorkLisr),ROW()+ROWS(WorkLisr))),ROW()-ROW(FolowList)+1),COLUMN(WorkLisr),4)))","v":""}]
[null,null,null,null,null,null,null,{"$f":"IF(ROW()-ROW(FolowList)+1>ROWS(WorkLisr)-COUNTBLANK(WorkLisr),\"\",INDIRECT(ADDRESS(SMALL((IF(WorkLisr<>\"\",ROW(WorkLisr),ROW()+ROWS(WorkLisr))),ROW()-ROW(FolowList)+1),COLUMN(WorkLisr),4)))","v":""}]
[null,null,null,null,null,null,null,{"$f":"IF(ROW()-ROW(FolowList)+1>ROWS(WorkLisr)-COUNTBLANK(WorkLisr),\"\",INDIRECT(ADDRESS(SMALL((IF(WorkLisr<>\"\",ROW(WorkLisr),ROW()+ROWS(WorkLisr))),ROW()-ROW(FolowList)+1),COLUMN(WorkLisr),4)))","v":""}]
[null,null,null,null,null,null,null,{"$f":"IF(ROW()-ROW(FolowList)+1>ROWS(WorkLisr)-COUNTBLANK(WorkLisr),\"\",INDIRECT(ADDRESS(SMALL((IF(WorkLisr<>\"\",ROW(WorkLisr),ROW()+ROWS(WorkLisr))),ROW()-ROW(FolowList)+1),COLUMN(WorkLisr),4)))","v":""}]
[null,null,null,null,null,null,null,{"$f":"IF(ROW()-ROW(FolowList)+1>ROWS(WorkLisr)-COUNTBLANK(WorkLisr),\"\",INDIRECT(ADDRESS(SMALL((IF(WorkLisr<>\"\",ROW(WorkLisr),ROW()+ROWS(WorkLisr))),ROW()-ROW(FolowList)+1),COLUMN(WorkLisr),4)))","v":""}]
[null,null,null,null,null,null,null,{"$f":"IF(ROW()-ROW(FolowList)+1>ROWS(WorkLisr)-COUNTBLANK(WorkLisr),\"\",INDIRECT(ADDRESS(SMALL((IF(WorkLisr<>\"\",ROW(WorkLisr),ROW()+ROWS(WorkLisr))),ROW()-ROW(FolowList)+1),COLUMN(WorkLisr),4)))","v":""}]
[null,null,null,null,null,null,null,{"$f":"IF(ROW()-ROW(FolowList)+1>ROWS(WorkLisr)-COUNTBLANK(WorkLisr),\"\",INDIRECT(ADDRESS(SMALL((IF(WorkLisr<>\"\",ROW(WorkLisr),ROW()+ROWS(WorkLisr))),ROW()-ROW(FolowList)+1),COLUMN(WorkLisr),4)))","v":""}]
[null,null,null,null,null,null,null,{"$f":"IF(ROW()-ROW(FolowList)+1>ROWS(WorkLisr)-COUNTBLANK(WorkLisr),\"\",INDIRECT(ADDRESS(SMALL((IF(WorkLisr<>\"\",ROW(WorkLisr),ROW()+ROWS(WorkLisr))),ROW()-ROW(FolowList)+1),COLUMN(WorkLisr),4)))","v":""}]
[null,null,null,null,null,null,null,{"$f":"IF(ROW()-ROW(FolowList)+1>ROWS(WorkLisr)-COUNTBLANK(WorkLisr),\"\",INDIRECT(ADDRESS(SMALL((IF(WorkLisr<>\"\",ROW(WorkLisr),ROW()+ROWS(WorkLisr))),ROW()-ROW(FolowList)+1),COLUMN(WorkLisr),4)))","v":""}]
[null,null,null,null,null,null,null,{"$f":"IF(ROW()-ROW(FolowList)+1>ROWS(WorkLisr)-COUNTBLANK(WorkLisr),\"\",INDIRECT(ADDRESS(SMALL((IF(WorkLisr<>\"\",ROW(WorkLisr),ROW()+ROWS(WorkLisr))),ROW()-ROW(FolowList)+1),COLUMN(WorkLisr),4)))","v":""}]
[null,null,null,null,null,null,null,{"$f":"IF(ROW()-ROW(FolowList)+1>ROWS(WorkLisr)-COUNTBLANK(WorkLisr),\"\",INDIRECT(ADDRESS(SMALL((IF(WorkLisr<>\"\",ROW(WorkLisr),ROW()+ROWS(WorkLisr))),ROW()-ROW(FolowList)+1),COLUMN(WorkLisr),4)))","v":""}]
[null,null,null,null,null,null,null,{"$f":"IF(ROW()-ROW(FolowList)+1>ROWS(WorkLisr)-COUNTBLANK(WorkLisr),\"\",INDIRECT(ADDRESS(SMALL((IF(WorkLisr<>\"\",ROW(WorkLisr),ROW()+ROWS(WorkLisr))),ROW()-ROW(FolowList)+1),COLUMN(WorkLisr),4)))","v":""}]
[null,null,null,null,null,null,null,{"$f":"IF(ROW()-ROW(FolowList)+1>ROWS(WorkLisr)-COUNTBLANK(WorkLisr),\"\",INDIRECT(ADDRESS(SMALL((IF(WorkLisr<>\"\",ROW(WorkLisr),ROW()+ROWS(WorkLisr))),ROW()-ROW(FolowList)+1),COLUMN(WorkLisr),4)))","v":""}]
[null,null,null,null,null,null,null,{"$f":"IF(ROW()-ROW(FolowList)+1>ROWS(WorkLisr)-COUNTBLANK(WorkLisr),\"\",INDIRECT(ADDRESS(SMALL((IF(WorkLisr<>\"\",ROW(WorkLisr),ROW()+ROWS(WorkLisr))),ROW()-ROW(FolowList)+1),COLUMN(WorkLisr),4)))","v":""}]
[null,null,null,null,null,null,null,{"$f":"IF(ROW()-ROW(FolowList)+1>ROWS(WorkLisr)-COUNTBLANK(WorkLisr),\"\",INDIRECT(ADDRESS(SMALL((IF(WorkLisr<>\"\",ROW(WorkLisr),ROW()+ROWS(WorkLisr))),ROW()-ROW(FolowList)+1),COLUMN(WorkLisr),4)))","v":""}]
[null,null,null,null,null,null,null,{"$f":"IF(ROW()-ROW(FolowList)+1>ROWS(WorkLisr)-COUNTBLANK(WorkLisr),\"\",INDIRECT(ADDRESS(SMALL((IF(WorkLisr<>\"\",ROW(WorkLisr),ROW()+ROWS(WorkLisr))),ROW()-ROW(FolowList)+1),COLUMN(WorkLisr),4)))","v":""}]
[null,null,null,null,null,null,null,{"$f":"IF(ROW()-ROW(FolowList)+1>ROWS(WorkLisr)-COUNTBLANK(WorkLisr),\"\",INDIRECT(ADDRESS(SMALL((IF(WorkLisr<>\"\",ROW(WorkLisr),ROW()+ROWS(WorkLisr))),ROW()-ROW(FolowList)+1),COLUMN(WorkLisr),4)))","v":""}]
[null,null,null,null,null,null,null,{"$f":"IF(ROW()-ROW(FolowList)+1>ROWS(WorkLisr)-COUNTBLANK(WorkLisr),\"\",INDIRECT(ADDRESS(SMALL((IF(WorkLisr<>\"\",ROW(WorkLisr),ROW()+ROWS(WorkLisr))),ROW()-ROW(FolowList)+1),COLUMN(WorkLisr),4)))","v":""}]
[null,null,null,null,null,null,null,{"$f":"IF(ROW()-ROW(FolowList)+1>ROWS(WorkLisr)-COUNTBLANK(WorkLisr),\"\",INDIRECT(ADDRESS(SMALL((IF(WorkLisr<>\"\",ROW(WorkLisr),ROW()+ROWS(WorkLisr))),ROW()-ROW(FolowList)+1),COLUMN(WorkLisr),4)))","v":""}]
[null,null,null,null,null,null,null,{"$f":"IF(ROW()-ROW(FolowList)+1>ROWS(WorkLisr)-COUNTBLANK(WorkLisr),\"\",INDIRECT(ADDRESS(SMALL((IF(WorkLisr<>\"\",ROW(WorkLisr),ROW()+ROWS(WorkLisr))),ROW()-ROW(FolowList)+1),COLUMN(WorkLisr),4)))","v":""}]
[null,null,null,null,null,null,null,{"$f":"IF(ROW()-ROW(FolowList)+1>ROWS(WorkLisr)-COUNTBLANK(WorkLisr),\"\",INDIRECT(ADDRESS(SMALL((IF(WorkLisr<>\"\",ROW(WorkLisr),ROW()+ROWS(WorkLisr))),ROW()-ROW(FolowList)+1),COLUMN(WorkLisr),4)))","v":""}]
[null,null,null,null,null,null,null,{"$f":"IF(ROW()-ROW(FolowList)+1>ROWS(WorkLisr)-COUNTBLANK(WorkLisr),\"\",INDIRECT(ADDRESS(SMALL((IF(WorkLisr<>\"\",ROW(WorkLisr),ROW()+ROWS(WorkLisr))),ROW()-ROW(FolowList)+1),COLUMN(WorkLisr),4)))","v":""}]
[null,null,null,null,null,null,null,{"$f":"IF(ROW()-ROW(FolowList)+1>ROWS(WorkLisr)-COUNTBLANK(WorkLisr),\"\",INDIRECT(ADDRESS(SMALL((IF(WorkLisr<>\"\",ROW(WorkLisr),ROW()+ROWS(WorkLisr))),ROW()-ROW(FolowList)+1),COLUMN(WorkLisr),4)))","v":""}]
[null,null,null,null,null,null,null,{"$f":"IF(ROW()-ROW(FolowList)+1>ROWS(WorkLisr)-COUNTBLANK(WorkLisr),\"\",INDIRECT(ADDRESS(SMALL((IF(WorkLisr<>\"\",ROW(WorkLisr),ROW()+ROWS(WorkLisr))),ROW()-ROW(FolowList)+1),COLUMN(WorkLisr),4)))","v":""}]
[null,null,null,null,null,null,null,{"$f":"IF(ROW()-ROW(FolowList)+1>ROWS(WorkLisr)-COUNTBLANK(WorkLisr),\"\",INDIRECT(ADDRESS(SMALL((IF(WorkLisr<>\"\",ROW(WorkLisr),ROW()+ROWS(WorkLisr))),ROW()-ROW(FolowList)+1),COLUMN(WorkLisr),4)))","v":""}]
[null,null,null,null,null,null,null,{"$f":"IF(ROW()-ROW(FolowList)+1>ROWS(WorkLisr)-COUNTBLANK(WorkLisr),\"\",INDIRECT(ADDRESS(SMALL((IF(WorkLisr<>\"\",ROW(WorkLisr),ROW()+ROWS(WorkLisr))),ROW()-ROW(FolowList)+1),COLUMN(WorkLisr),4)))","v":""}]
[null,null,null,null,null,null,null,{"$f":"IF(ROW()-ROW(FolowList)+1>ROWS(WorkLisr)-COUNTBLANK(WorkLisr),\"\",INDIRECT(ADDRESS(SMALL((IF(WorkLisr<>\"\",ROW(WorkLisr),ROW()+ROWS(WorkLisr))),ROW()-ROW(FolowList)+1),COLUMN(WorkLisr),4)))","v":""}]
[null,null,null,null,null,null,null,{"$f":"IF(ROW()-ROW(FolowList)+1>ROWS(WorkLisr)-COUNTBLANK(WorkLisr),\"\",INDIRECT(ADDRESS(SMALL((IF(WorkLisr<>\"\",ROW(WorkLisr),ROW()+ROWS(WorkLisr))),ROW()-ROW(FolowList)+1),COLUMN(WorkLisr),4)))","v":""}]
[null,null,null,null,null,null,null,{"$f":"IF(ROW()-ROW(FolowList)+1>ROWS(WorkLisr)-COUNTBLANK(WorkLisr),\"\",INDIRECT(ADDRESS(SMALL((IF(WorkLisr<>\"\",ROW(WorkLisr),ROW()+ROWS(WorkLisr))),ROW()-ROW(FolowList)+1),COLUMN(WorkLisr),4)))","v":""}]
[null,null,null,null,null,null,null,{"$f":"IF(ROW()-ROW(FolowList)+1>ROWS(WorkLisr)-COUNTBLANK(WorkLisr),\"\",INDIRECT(ADDRESS(SMALL((IF(WorkLisr<>\"\",ROW(WorkLisr),ROW()+ROWS(WorkLisr))),ROW()-ROW(FolowList)+1),COLUMN(WorkLisr),4)))","v":""}]
[null,null,null,null,null,null,null,{"$f":"IF(ROW()-ROW(FolowList)+1>ROWS(WorkLisr)-COUNTBLANK(WorkLisr),\"\",INDIRECT(ADDRESS(SMALL((IF(WorkLisr<>\"\",ROW(WorkLisr),ROW()+ROWS(WorkLisr))),ROW()-ROW(FolowList)+1),COLUMN(WorkLisr),4)))","v":""}]
[null,null,null,null,null,null,null,{"$f":"IF(ROW()-ROW(FolowList)+1>ROWS(WorkLisr)-COUNTBLANK(WorkLisr),\"\",INDIRECT(ADDRESS(SMALL((IF(WorkLisr<>\"\",ROW(WorkLisr),ROW()+ROWS(WorkLisr))),ROW()-ROW(FolowList)+1),COLUMN(WorkLisr),4)))","v":""}]
[null,null,null,null,null,null,null,{"$f":"IF(ROW()-ROW(FolowList)+1>ROWS(WorkLisr)-COUNTBLANK(WorkLisr),\"\",INDIRECT(ADDRESS(SMALL((IF(WorkLisr<>\"\",ROW(WorkLisr),ROW()+ROWS(WorkLisr))),ROW()-ROW(FolowList)+1),COLUMN(WorkLisr),4)))","v":""}]
[null,null,null,null,null,null,null,{"$f":"IF(ROW()-ROW(FolowList)+1>ROWS(WorkLisr)-COUNTBLANK(WorkLisr),\"\",INDIRECT(ADDRESS(SMALL((IF(WorkLisr<>\"\",ROW(WorkLisr),ROW()+ROWS(WorkLisr))),ROW()-ROW(FolowList)+1),COLUMN(WorkLisr),4)))","v":""}]
[null,null,null,null,null,null,null,{"$f":"IF(ROW()-ROW(FolowList)+1>ROWS(WorkLisr)-COUNTBLANK(WorkLisr),\"\",INDIRECT(ADDRESS(SMALL((IF(WorkLisr<>\"\",ROW(WorkLisr),ROW()+ROWS(WorkLisr))),ROW()-ROW(FolowList)+1),COLUMN(WorkLisr),4)))","v":""}]
[null,null,null,null,null,null,null,{"$f":"IF(ROW()-ROW(FolowList)+1>ROWS(WorkLisr)-COUNTBLANK(WorkLisr),\"\",INDIRECT(ADDRESS(SMALL((IF(WorkLisr<>\"\",ROW(WorkLisr),ROW()+ROWS(WorkLisr))),ROW()-ROW(FolowList)+1),COLUMN(WorkLisr),4)))","v":""}]
[null,null,null,null,null,null,null,{"$f":"IF(ROW()-ROW(FolowList)+1>ROWS(WorkLisr)-COUNTBLANK(WorkLisr),\"\",INDIRECT(ADDRESS(SMALL((IF(WorkLisr<>\"\",ROW(WorkLisr),ROW()+ROWS(WorkLisr))),ROW()-ROW(FolowList)+1),COLUMN(WorkLisr),4)))","v":""}]
[null,null,null,null,null,null,null,{"$f":"IF(ROW()-ROW(FolowList)+1>ROWS(WorkLisr)-COUNTBLANK(WorkLisr),\"\",INDIRECT(ADDRESS(SMALL((IF(WorkLisr<>\"\",ROW(WorkLisr),ROW()+ROWS(WorkLisr))),ROW()-ROW(FolowList)+1),COLUMN(WorkLisr),4)))","v":""}]
[null,null,null,null,null,null,null,{"$f":"IF(ROW()-ROW(FolowList)+1>ROWS(WorkLisr)-COUNTBLANK(WorkLisr),\"\",INDIRECT(ADDRESS(SMALL((IF(WorkLisr<>\"\",ROW(WorkLisr),ROW()+ROWS(WorkLisr))),ROW()-ROW(FolowList)+1),COLUMN(WorkLisr),4)))","v":""}]
[null,null,null,null,null,null,null,{"$f":"IF(ROW()-ROW(FolowList)+1>ROWS(WorkLisr)-COUNTBLANK(WorkLisr),\"\",INDIRECT(ADDRESS(SMALL((IF(WorkLisr<>\"\",ROW(WorkLisr),ROW()+ROWS(WorkLisr))),ROW()-ROW(FolowList)+1),COLUMN(WorkLisr),4)))","v":""}]
[null,null,null,null,null,null,null,{"$f":"IF(ROW()-ROW(FolowList)+1>ROWS(WorkLisr)-COUNTBLANK(WorkLisr),\"\",INDIRECT(ADDRESS(SMALL((IF(WorkLisr<>\"\",ROW(WorkLisr),ROW()+ROWS(WorkLisr))),ROW()-ROW(FolowList)+1),COLUMN(WorkLisr),4)))","v":""}]
[null,null,null,null,null,null,null,{"$f":"IF(ROW()-ROW(FolowList)+1>ROWS(WorkLisr)-COUNTBLANK(WorkLisr),\"\",INDIRECT(ADDRESS(SMALL((IF(WorkLisr<>\"\",ROW(WorkLisr),ROW()+ROWS(WorkLisr))),ROW()-ROW(FolowList)+1),COLUMN(WorkLisr),4)))","v":""}]
[null,null,null,null,null,null,null,{"$f":"IF(ROW()-ROW(FolowList)+1>ROWS(WorkLisr)-COUNTBLANK(WorkLisr),\"\",INDIRECT(ADDRESS(SMALL((IF(WorkLisr<>\"\",ROW(WorkLisr),ROW()+ROWS(WorkLisr))),ROW()-ROW(FolowList)+1),COLUMN(WorkLisr),4)))","v":""}]
[null,null,null,null,null,null,null,{"$f":"IF(ROW()-ROW(FolowList)+1>ROWS(WorkLisr)-COUNTBLANK(WorkLisr),\"\",INDIRECT(ADDRESS(SMALL((IF(WorkLisr<>\"\",ROW(WorkLisr),ROW()+ROWS(WorkLisr))),ROW()-ROW(FolowList)+1),COLUMN(WorkLisr),4)))","v":""}]
[null,null,null,null,null,null,null,{"$f":"IF(ROW()-ROW(FolowList)+1>ROWS(WorkLisr)-COUNTBLANK(WorkLisr),\"\",INDIRECT(ADDRESS(SMALL((IF(WorkLisr<>\"\",ROW(WorkLisr),ROW()+ROWS(WorkLisr))),ROW()-ROW(FolowList)+1),COLUMN(WorkLisr),4)))","v":""}]
[null,null,null,null,null,null,null,{"$f":"IF(ROW()-ROW(FolowList)+1>ROWS(WorkLisr)-COUNTBLANK(WorkLisr),\"\",INDIRECT(ADDRESS(SMALL((IF(WorkLisr<>\"\",ROW(WorkLisr),ROW()+ROWS(WorkLisr))),ROW()-ROW(FolowList)+1),COLUMN(WorkLisr),4)))","v":""}]
[null,null,null,null,null,null,null,{"$f":"IF(ROW()-ROW(FolowList)+1>ROWS(WorkLisr)-COUNTBLANK(WorkLisr),\"\",INDIRECT(ADDRESS(SMALL((IF(WorkLisr<>\"\",ROW(WorkLisr),ROW()+ROWS(WorkLisr))),ROW()-ROW(FolowList)+1),COLUMN(WorkLisr),4)))","v":""}]
[null,null,null,null,null,null,null,{"$f":"IF(ROW()-ROW(FolowList)+1>ROWS(WorkLisr)-COUNTBLANK(WorkLisr),\"\",INDIRECT(ADDRESS(SMALL((IF(WorkLisr<>\"\",ROW(WorkLisr),ROW()+ROWS(WorkLisr))),ROW()-ROW(FolowList)+1),COLUMN(WorkLisr),4)))","v":""}]
[null,null,null,null,null,null,null,{"$f":"IF(ROW()-ROW(FolowList)+1>ROWS(WorkLisr)-COUNTBLANK(WorkLisr),\"\",INDIRECT(ADDRESS(SMALL((IF(WorkLisr<>\"\",ROW(WorkLisr),ROW()+ROWS(WorkLisr))),ROW()-ROW(FolowList)+1),COLUMN(WorkLisr),4)))","v":""}]
[null,null,null,null,null,null,null,{"$f":"IF(ROW()-ROW(FolowList)+1>ROWS(WorkLisr)-COUNTBLANK(WorkLisr),\"\",INDIRECT(ADDRESS(SMALL((IF(WorkLisr<>\"\",ROW(WorkLisr),ROW()+ROWS(WorkLisr))),ROW()-ROW(FolowList)+1),COLUMN(WorkLisr),4)))","v":""}]
[null,null,null,null,null,null,null,{"$f":"IF(ROW()-ROW(FolowList)+1>ROWS(WorkLisr)-COUNTBLANK(WorkLisr),\"\",INDIRECT(ADDRESS(SMALL((IF(WorkLisr<>\"\",ROW(WorkLisr),ROW()+ROWS(WorkLisr))),ROW()-ROW(FolowList)+1),COLUMN(WorkLisr),4)))","v":""}]
[null,null,null,null,null,null,null,{"$f":"IF(ROW()-ROW(FolowList)+1>ROWS(WorkLisr)-COUNTBLANK(WorkLisr),\"\",INDIRECT(ADDRESS(SMALL((IF(WorkLisr<>\"\",ROW(WorkLisr),ROW()+ROWS(WorkLisr))),ROW()-ROW(FolowList)+1),COLUMN(WorkLisr),4)))","v":""}]
[null,null,null,null,null,null,null,{"$f":"IF(ROW()-ROW(FolowList)+1>ROWS(WorkLisr)-COUNTBLANK(WorkLisr),\"\",INDIRECT(ADDRESS(SMALL((IF(WorkLisr<>\"\",ROW(WorkLisr),ROW()+ROWS(WorkLisr))),ROW()-ROW(FolowList)+1),COLUMN(WorkLisr),4)))","v":""}]
[null,null,null,null,null,null,null,{"$f":"IF(ROW()-ROW(FolowList)+1>ROWS(WorkLisr)-COUNTBLANK(WorkLisr),\"\",INDIRECT(ADDRESS(SMALL((IF(WorkLisr<>\"\",ROW(WorkLisr),ROW()+ROWS(WorkLisr))),ROW()-ROW(FolowList)+1),COLUMN(WorkLisr),4)))","v":""}]
[null,null,null,null,null,null,null,{"$f":"IF(ROW()-ROW(FolowList)+1>ROWS(WorkLisr)-COUNTBLANK(WorkLisr),\"\",INDIRECT(ADDRESS(SMALL((IF(WorkLisr<>\"\",ROW(WorkLisr),ROW()+ROWS(WorkLisr))),ROW()-ROW(FolowList)+1),COLUMN(WorkLisr),4)))","v":""}]
[null,null,null,null,null,null,null,{"$f":"IF(ROW()-ROW(FolowList)+1>ROWS(WorkLisr)-COUNTBLANK(WorkLisr),\"\",INDIRECT(ADDRESS(SMALL((IF(WorkLisr<>\"\",ROW(WorkLisr),ROW()+ROWS(WorkLisr))),ROW()-ROW(FolowList)+1),COLUMN(WorkLisr),4)))","v":""}]
[null,null,null,null,null,null,null,{"$f":"IF(ROW()-ROW(FolowList)+1>ROWS(WorkLisr)-COUNTBLANK(WorkLisr),\"\",INDIRECT(ADDRESS(SMALL((IF(WorkLisr<>\"\",ROW(WorkLisr),ROW()+ROWS(WorkLisr))),ROW()-ROW(FolowList)+1),COLUMN(WorkLisr),4)))","v":""}]
[null,null,null,null,null,null,null,{"$f":"IF(ROW()-ROW(FolowList)+1>ROWS(WorkLisr)-COUNTBLANK(WorkLisr),\"\",INDIRECT(ADDRESS(SMALL((IF(WorkLisr<>\"\",ROW(WorkLisr),ROW()+ROWS(WorkLisr))),ROW()-ROW(FolowList)+1),COLUMN(WorkLisr),4)))","v":""}]
[null,null,null,null,null,null,null,{"$f":"IF(ROW()-ROW(FolowList)+1>ROWS(WorkLisr)-COUNTBLANK(WorkLisr),\"\",INDIRECT(ADDRESS(SMALL((IF(WorkLisr<>\"\",ROW(WorkLisr),ROW()+ROWS(WorkLisr))),ROW()-ROW(FolowList)+1),COLUMN(WorkLisr),4)))","v":""}]
[null,null,null,null,null,null,null,{"$f":"IF(ROW()-ROW(FolowList)+1>ROWS(WorkLisr)-COUNTBLANK(WorkLisr),\"\",INDIRECT(ADDRESS(SMALL((IF(WorkLisr<>\"\",ROW(WorkLisr),ROW()+ROWS(WorkLisr))),ROW()-ROW(FolowList)+1),COLUMN(WorkLisr),4)))","v":""}]
[null,null,null,null,null,null,null,{"$f":"IF(ROW()-ROW(FolowList)+1>ROWS(WorkLisr)-COUNTBLANK(WorkLisr),\"\",INDIRECT(ADDRESS(SMALL((IF(WorkLisr<>\"\",ROW(WorkLisr),ROW()+ROWS(WorkLisr))),ROW()-ROW(FolowList)+1),COLUMN(WorkLisr),4)))","v":""}]
[null,null,null,null,null,null,null,{"$f":"IF(ROW()-ROW(FolowList)+1>ROWS(WorkLisr)-COUNTBLANK(WorkLisr),\"\",INDIRECT(ADDRESS(SMALL((IF(WorkLisr<>\"\",ROW(WorkLisr),ROW()+ROWS(WorkLisr))),ROW()-ROW(FolowList)+1),COLUMN(WorkLisr),4)))","v":""}]
[null,null,null,null,null,null,null,{"$f":"IF(ROW()-ROW(FolowList)+1>ROWS(WorkLisr)-COUNTBLANK(WorkLisr),\"\",INDIRECT(ADDRESS(SMALL((IF(WorkLisr<>\"\",ROW(WorkLisr),ROW()+ROWS(WorkLisr))),ROW()-ROW(FolowList)+1),COLUMN(WorkLisr),4)))","v":""}]
[null,null,null,null,null,null,null,{"$f":"IF(ROW()-ROW(FolowList)+1>ROWS(WorkLisr)-COUNTBLANK(WorkLisr),\"\",INDIRECT(ADDRESS(SMALL((IF(WorkLisr<>\"\",ROW(WorkLisr),ROW()+ROWS(WorkLisr))),ROW()-ROW(FolowList)+1),COLUMN(WorkLisr),4)))","v":""}]
[null,null,null,null,null,null,null,{"$f":"IF(ROW()-ROW(FolowList)+1>ROWS(WorkLisr)-COUNTBLANK(WorkLisr),\"\",INDIRECT(ADDRESS(SMALL((IF(WorkLisr<>\"\",ROW(WorkLisr),ROW()+ROWS(WorkLisr))),ROW()-ROW(FolowList)+1),COLUMN(WorkLisr),4)))","v":""}]
[null,null,null,null,null,null,null,{"$f":"IF(ROW()-ROW(FolowList)+1>ROWS(WorkLisr)-COUNTBLANK(WorkLisr),\"\",INDIRECT(ADDRESS(SMALL((IF(WorkLisr<>\"\",ROW(WorkLisr),ROW()+ROWS(WorkLisr))),ROW()-ROW(FolowList)+1),COLUMN(WorkLisr),4)))","v":""}]
[null,null,null,null,null,null,null,{"$f":"IF(ROW()-ROW(FolowList)+1>ROWS(WorkLisr)-COUNTBLANK(WorkLisr),\"\",INDIRECT(ADDRESS(SMALL((IF(WorkLisr<>\"\",ROW(WorkLisr),ROW()+ROWS(WorkLisr))),ROW()-ROW(FolowList)+1),COLUMN(WorkLisr),4)))","v":""}]
[null,null,null,null,null,null,null,{"$f":"IF(ROW()-ROW(FolowList)+1>ROWS(WorkLisr)-COUNTBLANK(WorkLisr),\"\",INDIRECT(ADDRESS(SMALL((IF(WorkLisr<>\"\",ROW(WorkLisr),ROW()+ROWS(WorkLisr))),ROW()-ROW(FolowList)+1),COLUMN(WorkLisr),4)))","v":""}]
[null,null,null,null,null,null,null,{"$f":"IF(ROW()-ROW(FolowList)+1>ROWS(WorkLisr)-COUNTBLANK(WorkLisr),\"\",INDIRECT(ADDRESS(SMALL((IF(WorkLisr<>\"\",ROW(WorkLisr),ROW()+ROWS(WorkLisr))),ROW()-ROW(FolowList)+1),COLUMN(WorkLisr),4)))","v":""}]
[null,null,null,null,null,null,null,{"$f":"IF(ROW()-ROW(FolowList)+1>ROWS(WorkLisr)-COUNTBLANK(WorkLisr),\"\",INDIRECT(ADDRESS(SMALL((IF(WorkLisr<>\"\",ROW(WorkLisr),ROW()+ROWS(WorkLisr))),ROW()-ROW(FolowList)+1),COLUMN(WorkLisr),4)))","v":""}]
[null,null,null,null,null,null,null,{"$f":"IF(ROW()-ROW(FolowList)+1>ROWS(WorkLisr)-COUNTBLANK(WorkLisr),\"\",INDIRECT(ADDRESS(SMALL((IF(WorkLisr<>\"\",ROW(WorkLisr),ROW()+ROWS(WorkLisr))),ROW()-ROW(FolowList)+1),COLUMN(WorkLisr),4)))","v":""}]
[null,null,null,null,null,null,null,{"$f":"IF(ROW()-ROW(FolowList)+1>ROWS(WorkLisr)-COUNTBLANK(WorkLisr),\"\",INDIRECT(ADDRESS(SMALL((IF(WorkLisr<>\"\",ROW(WorkLisr),ROW()+ROWS(WorkLisr))),ROW()-ROW(FolowList)+1),COLUMN(WorkLisr),4)))","v":""}]
[null,null,null,null,null,null,null,{"$f":"IF(ROW()-ROW(FolowList)+1>ROWS(WorkLisr)-COUNTBLANK(WorkLisr),\"\",INDIRECT(ADDRESS(SMALL((IF(WorkLisr<>\"\",ROW(WorkLisr),ROW()+ROWS(WorkLisr))),ROW()-ROW(FolowList)+1),COLUMN(WorkLisr),4)))","v":""}]
[null,null,null,null,null,null,null,{"$f":"IF(ROW()-ROW(FolowList)+1>ROWS(WorkLisr)-COUNTBLANK(WorkLisr),\"\",INDIRECT(ADDRESS(SMALL((IF(WorkLisr<>\"\",ROW(WorkLisr),ROW()+ROWS(WorkLisr))),ROW()-ROW(FolowList)+1),COLUMN(WorkLisr),4)))","v":""}]
[null,null,null,null,null,null,null,{"$f":"IF(ROW()-ROW(FolowList)+1>ROWS(WorkLisr)-COUNTBLANK(WorkLisr),\"\",INDIRECT(ADDRESS(SMALL((IF(WorkLisr<>\"\",ROW(WorkLisr),ROW()+ROWS(WorkLisr))),ROW()-ROW(FolowList)+1),COLUMN(WorkLisr),4)))","v":""}]
[null,null,null,null,null,null,null,{"$f":"IF(ROW()-ROW(FolowList)+1>ROWS(WorkLisr)-COUNTBLANK(WorkLisr),\"\",INDIRECT(ADDRESS(SMALL((IF(WorkLisr<>\"\",ROW(WorkLisr),ROW()+ROWS(WorkLisr))),ROW()-ROW(FolowList)+1),COLUMN(WorkLisr),4)))","v":""}]
[null,null,null,null,null,null,null,{"$f":"IF(ROW()-ROW(FolowList)+1>ROWS(WorkLisr)-COUNTBLANK(WorkLisr),\"\",INDIRECT(ADDRESS(SMALL((IF(WorkLisr<>\"\",ROW(WorkLisr),ROW()+ROWS(WorkLisr))),ROW()-ROW(FolowList)+1),COLUMN(WorkLisr),4)))","v":""}]
[null,null,null,null,null,null,null,{"$f":"IF(ROW()-ROW(FolowList)+1>ROWS(WorkLisr)-COUNTBLANK(WorkLisr),\"\",INDIRECT(ADDRESS(SMALL((IF(WorkLisr<>\"\",ROW(WorkLisr),ROW()+ROWS(WorkLisr))),ROW()-ROW(FolowList)+1),COLUMN(WorkLisr),4)))","v":""}]
[null,null,null,null,null,null,null,{"$f":"IF(ROW()-ROW(FolowList)+1>ROWS(WorkLisr)-COUNTBLANK(WorkLisr),\"\",INDIRECT(ADDRESS(SMALL((IF(WorkLisr<>\"\",ROW(WorkLisr),ROW()+ROWS(WorkLisr))),ROW()-ROW(FolowList)+1),COLUMN(WorkLisr),4)))","v":""}]
[null,null,null,null,null,null,null,{"$f":"IF(ROW()-ROW(FolowList)+1>ROWS(WorkLisr)-COUNTBLANK(WorkLisr),\"\",INDIRECT(ADDRESS(SMALL((IF(WorkLisr<>\"\",ROW(WorkLisr),ROW()+ROWS(WorkLisr))),ROW()-ROW(FolowList)+1),COLUMN(WorkLisr),4)))","v":""}]
[null,null,null,null,null,null,null,{"$f":"IF(ROW()-ROW(FolowList)+1>ROWS(WorkLisr)-COUNTBLANK(WorkLisr),\"\",INDIRECT(ADDRESS(SMALL((IF(WorkLisr<>\"\",ROW(WorkLisr),ROW()+ROWS(WorkLisr))),ROW()-ROW(FolowList)+1),COLUMN(WorkLisr),4)))","v":""}]
[null,null,null,null,null,null,null,{"$f":"IF(ROW()-ROW(FolowList)+1>ROWS(WorkLisr)-COUNTBLANK(WorkLisr),\"\",INDIRECT(ADDRESS(SMALL((IF(WorkLisr<>\"\",ROW(WorkLisr),ROW()+ROWS(WorkLisr))),ROW()-ROW(FolowList)+1),COLUMN(WorkLisr),4)))","v":""}]
[null,null,null,null,null,null,null,{"$f":"IF(ROW()-ROW(FolowList)+1>ROWS(WorkLisr)-COUNTBLANK(WorkLisr),\"\",INDIRECT(ADDRESS(SMALL((IF(WorkLisr<>\"\",ROW(WorkLisr),ROW()+ROWS(WorkLisr))),ROW()-ROW(FolowList)+1),COLUMN(WorkLisr),4)))","v":""}]
[null,null,null,null,null,null,null,{"$f":"IF(ROW()-ROW(FolowList)+1>ROWS(WorkLisr)-COUNTBLANK(WorkLisr),\"\",INDIRECT(ADDRESS(SMALL((IF(WorkLisr<>\"\",ROW(WorkLisr),ROW()+ROWS(WorkLisr))),ROW()-ROW(FolowList)+1),COLUMN(WorkLisr),4)))","v":""}]
[null,null,null,null,null,null,null,{"$f":"IF(ROW()-ROW(FolowList)+1>ROWS(WorkLisr)-COUNTBLANK(WorkLisr),\"\",INDIRECT(ADDRESS(SMALL((IF(WorkLisr<>\"\",ROW(WorkLisr),ROW()+ROWS(WorkLisr))),ROW()-ROW(FolowList)+1),COLUMN(WorkLisr),4)))","v":""}]
[null,null,null,null,null,null,null,{"$f":"IF(ROW()-ROW(FolowList)+1>ROWS(WorkLisr)-COUNTBLANK(WorkLisr),\"\",INDIRECT(ADDRESS(SMALL((IF(WorkLisr<>\"\",ROW(WorkLisr),ROW()+ROWS(WorkLisr))),ROW()-ROW(FolowList)+1),COLUMN(WorkLisr),4)))","v":""}]
[null,null,null,null,null,null,null,{"$f":"IF(ROW()-ROW(FolowList)+1>ROWS(WorkLisr)-COUNTBLANK(WorkLisr),\"\",INDIRECT(ADDRESS(SMALL((IF(WorkLisr<>\"\",ROW(WorkLisr),ROW()+ROWS(WorkLisr))),ROW()-ROW(FolowList)+1),COLUMN(WorkLisr),4)))","v":""}]
[null,null,null,null,null,null,null,{"$f":"IF(ROW()-ROW(FolowList)+1>ROWS(WorkLisr)-COUNTBLANK(WorkLisr),\"\",INDIRECT(ADDRESS(SMALL((IF(WorkLisr<>\"\",ROW(WorkLisr),ROW()+ROWS(WorkLisr))),ROW()-ROW(FolowList)+1),COLUMN(WorkLisr),4)))","v":""}]
[null,null,null,null,null,null,null,{"$f":"IF(ROW()-ROW(FolowList)+1>ROWS(WorkLisr)-COUNTBLANK(WorkLisr),\"\",INDIRECT(ADDRESS(SMALL((IF(WorkLisr<>\"\",ROW(WorkLisr),ROW()+ROWS(WorkLisr))),ROW()-ROW(FolowList)+1),COLUMN(WorkLisr),4)))","v":""}]
[null,null,null,null,null,null,null,{"$f":"IF(ROW()-ROW(FolowList)+1>ROWS(WorkLisr)-COUNTBLANK(WorkLisr),\"\",INDIRECT(ADDRESS(SMALL((IF(WorkLisr<>\"\",ROW(WorkLisr),ROW()+ROWS(WorkLisr))),ROW()-ROW(FolowList)+1),COLUMN(WorkLisr),4)))","v":""}]
[null,null,null,null,null,null,null,{"$f":"IF(ROW()-ROW(FolowList)+1>ROWS(WorkLisr)-COUNTBLANK(WorkLisr),\"\",INDIRECT(ADDRESS(SMALL((IF(WorkLisr<>\"\",ROW(WorkLisr),ROW()+ROWS(WorkLisr))),ROW()-ROW(FolowList)+1),COLUMN(WorkLisr),4)))","v":""}]
[null,null,null,null,null,null,null,{"$f":"IF(ROW()-ROW(FolowList)+1>ROWS(WorkLisr)-COUNTBLANK(WorkLisr),\"\",INDIRECT(ADDRESS(SMALL((IF(WorkLisr<>\"\",ROW(WorkLisr),ROW()+ROWS(WorkLisr))),ROW()-ROW(FolowList)+1),COLUMN(WorkLisr),4)))","v":""}]
[null,null,null,null,null,null,null,{"$f":"IF(ROW()-ROW(FolowList)+1>ROWS(WorkLisr)-COUNTBLANK(WorkLisr),\"\",INDIRECT(ADDRESS(SMALL((IF(WorkLisr<>\"\",ROW(WorkLisr),ROW()+ROWS(WorkLisr))),ROW()-ROW(FolowList)+1),COLUMN(WorkLisr),4)))","v":""}]
[null,null,null,null,null,null,null,{"$f":"IF(ROW()-ROW(FolowList)+1>ROWS(WorkLisr)-COUNTBLANK(WorkLisr),\"\",INDIRECT(ADDRESS(SMALL((IF(WorkLisr<>\"\",ROW(WorkLisr),ROW()+ROWS(WorkLisr))),ROW()-ROW(FolowList)+1),COLUMN(WorkLisr),4)))","v":""}]
[null,null,null,null,null,null,null,{"$f":"IF(ROW()-ROW(FolowList)+1>ROWS(WorkLisr)-COUNTBLANK(WorkLisr),\"\",INDIRECT(ADDRESS(SMALL((IF(WorkLisr<>\"\",ROW(WorkLisr),ROW()+ROWS(WorkLisr))),ROW()-ROW(FolowList)+1),COLUMN(WorkLisr),4)))","v":""}]
[null,null,null,null,null,null,null,{"$f":"IF(ROW()-ROW(FolowList)+1>ROWS(WorkLisr)-COUNTBLANK(WorkLisr),\"\",INDIRECT(ADDRESS(SMALL((IF(WorkLisr<>\"\",ROW(WorkLisr),ROW()+ROWS(WorkLisr))),ROW()-ROW(FolowList)+1),COLUMN(WorkLisr),4)))","v":""}]
[null,null,null,null,null,null,null,{"$f":"IF(ROW()-ROW(FolowList)+1>ROWS(WorkLisr)-COUNTBLANK(WorkLisr),\"\",INDIRECT(ADDRESS(SMALL((IF(WorkLisr<>\"\",ROW(WorkLisr),ROW()+ROWS(WorkLisr))),ROW()-ROW(FolowList)+1),COLUMN(WorkLisr),4)))","v":""}]
[null,null,null,null,null,null,null,{"$f":"IF(ROW()-ROW(FolowList)+1>ROWS(WorkLisr)-COUNTBLANK(WorkLisr),\"\",INDIRECT(ADDRESS(SMALL((IF(WorkLisr<>\"\",ROW(WorkLisr),ROW()+ROWS(WorkLisr))),ROW()-ROW(FolowList)+1),COLUMN(WorkLisr),4)))","v":""}]
[null,null,null,null,null,null,null,{"$f":"IF(ROW()-ROW(FolowList)+1>ROWS(WorkLisr)-COUNTBLANK(WorkLisr),\"\",INDIRECT(ADDRESS(SMALL((IF(WorkLisr<>\"\",ROW(WorkLisr),ROW()+ROWS(WorkLisr))),ROW()-ROW(FolowList)+1),COLUMN(WorkLisr),4)))","v":""}]
[null,null,null,null,null,null,null,{"$f":"IF(ROW()-ROW(FolowList)+1>ROWS(WorkLisr)-COUNTBLANK(WorkLisr),\"\",INDIRECT(ADDRESS(SMALL((IF(WorkLisr<>\"\",ROW(WorkLisr),ROW()+ROWS(WorkLisr))),ROW()-ROW(FolowList)+1),COLUMN(WorkLisr),4)))","v":""}]
[null,null,null,null,null,null,null,{"$f":"IF(ROW()-ROW(FolowList)+1>ROWS(WorkLisr)-COUNTBLANK(WorkLisr),\"\",INDIRECT(ADDRESS(SMALL((IF(WorkLisr<>\"\",ROW(WorkLisr),ROW()+ROWS(WorkLisr))),ROW()-ROW(FolowList)+1),COLUMN(WorkLisr),4)))","v":""}]
[null,null,null,null,null,null,null,{"$f":"IF(ROW()-ROW(FolowList)+1>ROWS(WorkLisr)-COUNTBLANK(WorkLisr),\"\",INDIRECT(ADDRESS(SMALL((IF(WorkLisr<>\"\",ROW(WorkLisr),ROW()+ROWS(WorkLisr))),ROW()-ROW(FolowList)+1),COLUMN(WorkLisr),4)))","v":""}]
[null,null,null,null,null,null,null,{"$f":"IF(ROW()-ROW(FolowList)+1>ROWS(WorkLisr)-COUNTBLANK(WorkLisr),\"\",INDIRECT(ADDRESS(SMALL((IF(WorkLisr<>\"\",ROW(WorkLisr),ROW()+ROWS(WorkLisr))),ROW()-ROW(FolowList)+1),COLUMN(WorkLisr),4)))","v":""}]
[null,null,null,null,null,null,null,{"$f":"IF(ROW()-ROW(FolowList)+1>ROWS(WorkLisr)-COUNTBLANK(WorkLisr),\"\",INDIRECT(ADDRESS(SMALL((IF(WorkLisr<>\"\",ROW(WorkLisr),ROW()+ROWS(WorkLisr))),ROW()-ROW(FolowList)+1),COLUMN(WorkLisr),4)))","v":""}]
[null,null,null,null,null,null,null,{"$f":"IF(ROW()-ROW(FolowList)+1>ROWS(WorkLisr)-COUNTBLANK(WorkLisr),\"\",INDIRECT(ADDRESS(SMALL((IF(WorkLisr<>\"\",ROW(WorkLisr),ROW()+ROWS(WorkLisr))),ROW()-ROW(FolowList)+1),COLUMN(WorkLisr),4)))","v":""}]
[null,null,null,null,null,null,null,{"$f":"IF(ROW()-ROW(FolowList)+1>ROWS(WorkLisr)-COUNTBLANK(WorkLisr),\"\",INDIRECT(ADDRESS(SMALL((IF(WorkLisr<>\"\",ROW(WorkLisr),ROW()+ROWS(WorkLisr))),ROW()-ROW(FolowList)+1),COLUMN(WorkLisr),4)))","v":""}]
[null,null,null,null,null,null,null,{"$f":"IF(ROW()-ROW(FolowList)+1>ROWS(WorkLisr)-COUNTBLANK(WorkLisr),\"\",INDIRECT(ADDRESS(SMALL((IF(WorkLisr<>\"\",ROW(WorkLisr),ROW()+ROWS(WorkLisr))),ROW()-ROW(FolowList)+1),COLUMN(WorkLisr),4)))","v":""}]
[null,null,null,null,null,null,null,{"$f":"IF(ROW()-ROW(FolowList)+1>ROWS(WorkLisr)-COUNTBLANK(WorkLisr),\"\",INDIRECT(ADDRESS(SMALL((IF(WorkLisr<>\"\",ROW(WorkLisr),ROW()+ROWS(WorkLisr))),ROW()-ROW(FolowList)+1),COLUMN(WorkLisr),4)))","v":""}]
[null,null,null,null,null,null,null,{"$f":"IF(ROW()-ROW(FolowList)+1>ROWS(WorkLisr)-COUNTBLANK(WorkLisr),\"\",INDIRECT(ADDRESS(SMALL((IF(WorkLisr<>\"\",ROW(WorkLisr),ROW()+ROWS(WorkLisr))),ROW()-ROW(FolowList)+1),COLUMN(WorkLisr),4)))","v":""}]
[null,null,null,null,null,null,null,{"$f":"IF(ROW()-ROW(FolowList)+1>ROWS(WorkLisr)-COUNTBLANK(WorkLisr),\"\",INDIRECT(ADDRESS(SMALL((IF(WorkLisr<>\"\",ROW(WorkLisr),ROW()+ROWS(WorkLisr))),ROW()-ROW(FolowList)+1),COLUMN(WorkLisr),4)))","v":""}]
[null,null,null,null,null,null,null,{"$f":"IF(ROW()-ROW(FolowList)+1>ROWS(WorkLisr)-COUNTBLANK(WorkLisr),\"\",INDIRECT(ADDRESS(SMALL((IF(WorkLisr<>\"\",ROW(WorkLisr),ROW()+ROWS(WorkLisr))),ROW()-ROW(FolowList)+1),COLUMN(WorkLisr),4)))","v":""}]
[null,null,null,null,null,null,null,{"$f":"IF(ROW()-ROW(FolowList)+1>ROWS(WorkLisr)-COUNTBLANK(WorkLisr),\"\",INDIRECT(ADDRESS(SMALL((IF(WorkLisr<>\"\",ROW(WorkLisr),ROW()+ROWS(WorkLisr))),ROW()-ROW(FolowList)+1),COLUMN(WorkLisr),4)))","v":""}]
[null,null,null,null,null,null,null,{"$f":"IF(ROW()-ROW(FolowList)+1>ROWS(WorkLisr)-COUNTBLANK(WorkLisr),\"\",INDIRECT(ADDRESS(SMALL((IF(WorkLisr<>\"\",ROW(WorkLisr),ROW()+ROWS(WorkLisr))),ROW()-ROW(FolowList)+1),COLUMN(WorkLisr),4)))","v":""}]
[null,null,null,null,null,null,null,{"$f":"IF(ROW()-ROW(FolowList)+1>ROWS(WorkLisr)-COUNTBLANK(WorkLisr),\"\",INDIRECT(ADDRESS(SMALL((IF(WorkLisr<>\"\",ROW(WorkLisr),ROW()+ROWS(WorkLisr))),ROW()-ROW(FolowList)+1),COLUMN(WorkLisr),4)))","v":""}]
[null,null,null,null,null,null,null,{"$f":"IF(ROW()-ROW(FolowList)+1>ROWS(WorkLisr)-COUNTBLANK(WorkLisr),\"\",INDIRECT(ADDRESS(SMALL((IF(WorkLisr<>\"\",ROW(WorkLisr),ROW()+ROWS(WorkLisr))),ROW()-ROW(FolowList)+1),COLUMN(WorkLisr),4)))","v":""}]
[null,null,null,null,null,null,null,{"$f":"IF(ROW()-ROW(FolowList)+1>ROWS(WorkLisr)-COUNTBLANK(WorkLisr),\"\",INDIRECT(ADDRESS(SMALL((IF(WorkLisr<>\"\",ROW(WorkLisr),ROW()+ROWS(WorkLisr))),ROW()-ROW(FolowList)+1),COLUMN(WorkLisr),4)))","v":""}]
[null,null,null,null,null,null,null,{"$f":"IF(ROW()-ROW(FolowList)+1>ROWS(WorkLisr)-COUNTBLANK(WorkLisr),\"\",INDIRECT(ADDRESS(SMALL((IF(WorkLisr<>\"\",ROW(WorkLisr),ROW()+ROWS(WorkLisr))),ROW()-ROW(FolowList)+1),COLUMN(WorkLisr),4)))","v":""}]
[null,null,null,null,null,null,null,{"$f":"IF(ROW()-ROW(FolowList)+1>ROWS(WorkLisr)-COUNTBLANK(WorkLisr),\"\",INDIRECT(ADDRESS(SMALL((IF(WorkLisr<>\"\",ROW(WorkLisr),ROW()+ROWS(WorkLisr))),ROW()-ROW(FolowList)+1),COLUMN(WorkLisr),4)))","v":""}]
[null,null,null,null,null,null,null,{"$f":"IF(ROW()-ROW(FolowList)+1>ROWS(WorkLisr)-COUNTBLANK(WorkLisr),\"\",INDIRECT(ADDRESS(SMALL((IF(WorkLisr<>\"\",ROW(WorkLisr),ROW()+ROWS(WorkLisr))),ROW()-ROW(FolowList)+1),COLUMN(WorkLisr),4)))","v":""}]
[null,null,null,null,null,null,null,{"$f":"IF(ROW()-ROW(FolowList)+1>ROWS(WorkLisr)-COUNTBLANK(WorkLisr),\"\",INDIRECT(ADDRESS(SMALL((IF(WorkLisr<>\"\",ROW(WorkLisr),ROW()+ROWS(WorkLisr))),ROW()-ROW(FolowList)+1),COLUMN(WorkLisr),4)))","v":""}]
[null,null,null,null,null,null,null,{"$f":"IF(ROW()-ROW(FolowList)+1>ROWS(WorkLisr)-COUNTBLANK(WorkLisr),\"\",INDIRECT(ADDRESS(SMALL((IF(WorkLisr<>\"\",ROW(WorkLisr),ROW()+ROWS(WorkLisr))),ROW()-ROW(FolowList)+1),COLUMN(WorkLisr),4)))","v":""}]
[null,null,null,null,null,null,null,{"$f":"IF(ROW()-ROW(FolowList)+1>ROWS(WorkLisr)-COUNTBLANK(WorkLisr),\"\",INDIRECT(ADDRESS(SMALL((IF(WorkLisr<>\"\",ROW(WorkLisr),ROW()+ROWS(WorkLisr))),ROW()-ROW(FolowList)+1),COLUMN(WorkLisr),4)))","v":""}]
[null,null,null,null,null,null,null,{"$f":"IF(ROW()-ROW(FolowList)+1>ROWS(WorkLisr)-COUNTBLANK(WorkLisr),\"\",INDIRECT(ADDRESS(SMALL((IF(WorkLisr<>\"\",ROW(WorkLisr),ROW()+ROWS(WorkLisr))),ROW()-ROW(FolowList)+1),COLUMN(WorkLisr),4)))","v":""}]
[null,null,null,null,null,null,null,{"$f":"IF(ROW()-ROW(FolowList)+1>ROWS(WorkLisr)-COUNTBLANK(WorkLisr),\"\",INDIRECT(ADDRESS(SMALL((IF(WorkLisr<>\"\",ROW(WorkLisr),ROW()+ROWS(WorkLisr))),ROW()-ROW(FolowList)+1),COLUMN(WorkLisr),4)))","v":""}]
[null,null,null,null,null,null,null,{"$f":"IF(ROW()-ROW(FolowList)+1>ROWS(WorkLisr)-COUNTBLANK(WorkLisr),\"\",INDIRECT(ADDRESS(SMALL((IF(WorkLisr<>\"\",ROW(WorkLisr),ROW()+ROWS(WorkLisr))),ROW()-ROW(FolowList)+1),COLUMN(WorkLisr),4)))","v":""}]
[null,null,null,null,null,null,null,{"$f":"IF(ROW()-ROW(FolowList)+1>ROWS(WorkLisr)-COUNTBLANK(WorkLisr),\"\",INDIRECT(ADDRESS(SMALL((IF(WorkLisr<>\"\",ROW(WorkLisr),ROW()+ROWS(WorkLisr))),ROW()-ROW(FolowList)+1),COLUMN(WorkLisr),4)))","v":""}]
[null,null,null,null,null,null,null,{"$f":"IF(ROW()-ROW(FolowList)+1>ROWS(WorkLisr)-COUNTBLANK(WorkLisr),\"\",INDIRECT(ADDRESS(SMALL((IF(WorkLisr<>\"\",ROW(WorkLisr),ROW()+ROWS(WorkLisr))),ROW()-ROW(FolowList)+1),COLUMN(WorkLisr),4)))","v":""}]
[null,null,null,null,null,null,null,{"$f":"IF(ROW()-ROW(FolowList)+1>ROWS(WorkLisr)-COUNTBLANK(WorkLisr),\"\",INDIRECT(ADDRESS(SMALL((IF(WorkLisr<>\"\",ROW(WorkLisr),ROW()+ROWS(WorkLisr))),ROW()-ROW(FolowList)+1),COLUMN(WorkLisr),4)))","v":""}]
[null,null,null,null,null,null,null,{"$f":"IF(ROW()-ROW(FolowList)+1>ROWS(WorkLisr)-COUNTBLANK(WorkLisr),\"\",INDIRECT(ADDRESS(SMALL((IF(WorkLisr<>\"\",ROW(WorkLisr),ROW()+ROWS(WorkLisr))),ROW()-ROW(FolowList)+1),COLUMN(WorkLisr),4)))","v":""}]
[null,null,null,null,null,null,null,{"$f":"IF(ROW()-ROW(FolowList)+1>ROWS(WorkLisr)-COUNTBLANK(WorkLisr),\"\",INDIRECT(ADDRESS(SMALL((IF(WorkLisr<>\"\",ROW(WorkLisr),ROW()+ROWS(WorkLisr))),ROW()-ROW(FolowList)+1),COLUMN(WorkLisr),4)))","v":""}]
[null,null,null,null,null,null,null,{"$f":"IF(ROW()-ROW(FolowList)+1>ROWS(WorkLisr)-COUNTBLANK(WorkLisr),\"\",INDIRECT(ADDRESS(SMALL((IF(WorkLisr<>\"\",ROW(WorkLisr),ROW()+ROWS(WorkLisr))),ROW()-ROW(FolowList)+1),COLUMN(WorkLisr),4)))","v":""}]
[null,null,null,null,null,null,null,{"$f":"IF(ROW()-ROW(FolowList)+1>ROWS(WorkLisr)-COUNTBLANK(WorkLisr),\"\",INDIRECT(ADDRESS(SMALL((IF(WorkLisr<>\"\",ROW(WorkLisr),ROW()+ROWS(WorkLisr))),ROW()-ROW(FolowList)+1),COLUMN(WorkLisr),4)))","v":""}]
[null,null,null,null,null,null,null,{"$f":"IF(ROW()-ROW(FolowList)+1>ROWS(WorkLisr)-COUNTBLANK(WorkLisr),\"\",INDIRECT(ADDRESS(SMALL((IF(WorkLisr<>\"\",ROW(WorkLisr),ROW()+ROWS(WorkLisr))),ROW()-ROW(FolowList)+1),COLUMN(WorkLisr),4)))","v":""}]
[null,null,null,null,null,null,null,{"$f":"IF(ROW()-ROW(FolowList)+1>ROWS(WorkLisr)-COUNTBLANK(WorkLisr),\"\",INDIRECT(ADDRESS(SMALL((IF(WorkLisr<>\"\",ROW(WorkLisr),ROW()+ROWS(WorkLisr))),ROW()-ROW(FolowList)+1),COLUMN(WorkLisr),4)))","v":""}]
[null,null,null,null,null,null,null,{"$f":"IF(ROW()-ROW(FolowList)+1>ROWS(WorkLisr)-COUNTBLANK(WorkLisr),\"\",INDIRECT(ADDRESS(SMALL((IF(WorkLisr<>\"\",ROW(WorkLisr),ROW()+ROWS(WorkLisr))),ROW()-ROW(FolowList)+1),COLUMN(WorkLisr),4)))","v":""}]
[null,null,null,null,null,null,null,{"$f":"IF(ROW()-ROW(FolowList)+1>ROWS(WorkLisr)-COUNTBLANK(WorkLisr),\"\",INDIRECT(ADDRESS(SMALL((IF(WorkLisr<>\"\",ROW(WorkLisr),ROW()+ROWS(WorkLisr))),ROW()-ROW(FolowList)+1),COLUMN(WorkLisr),4)))","v":""}]
[null,null,null,null,null,null,null,{"$f":"IF(ROW()-ROW(FolowList)+1>ROWS(WorkLisr)-COUNTBLANK(WorkLisr),\"\",INDIRECT(ADDRESS(SMALL((IF(WorkLisr<>\"\",ROW(WorkLisr),ROW()+ROWS(WorkLisr))),ROW()-ROW(FolowList)+1),COLUMN(WorkLisr),4)))","v":""}]
[null,null,null,null,null,null,null,{"$f":"IF(ROW()-ROW(FolowList)+1>ROWS(WorkLisr)-COUNTBLANK(WorkLisr),\"\",INDIRECT(ADDRESS(SMALL((IF(WorkLisr<>\"\",ROW(WorkLisr),ROW()+ROWS(WorkLisr))),ROW()-ROW(FolowList)+1),COLUMN(WorkLisr),4)))","v":""}]
[null,null,null,null,null,null,null,{"$f":"IF(ROW()-ROW(FolowList)+1>ROWS(WorkLisr)-COUNTBLANK(WorkLisr),\"\",INDIRECT(ADDRESS(SMALL((IF(WorkLisr<>\"\",ROW(WorkLisr),ROW()+ROWS(WorkLisr))),ROW()-ROW(FolowList)+1),COLUMN(WorkLisr),4)))","v":""}]
[null,null,null,null,null,null,null,{"$f":"IF(ROW()-ROW(FolowList)+1>ROWS(WorkLisr)-COUNTBLANK(WorkLisr),\"\",INDIRECT(ADDRESS(SMALL((IF(WorkLisr<>\"\",ROW(WorkLisr),ROW()+ROWS(WorkLisr))),ROW()-ROW(FolowList)+1),COLUMN(WorkLisr),4)))","v":""}]
[null,null,null,null,null,null,null,{"$f":"IF(ROW()-ROW(FolowList)+1>ROWS(WorkLisr)-COUNTBLANK(WorkLisr),\"\",INDIRECT(ADDRESS(SMALL((IF(WorkLisr<>\"\",ROW(WorkLisr),ROW()+ROWS(WorkLisr))),ROW()-ROW(FolowList)+1),COLUMN(WorkLisr),4)))","v":""}]
[null,null,null,null,null,null,null,{"$f":"IF(ROW()-ROW(FolowList)+1>ROWS(WorkLisr)-COUNTBLANK(WorkLisr),\"\",INDIRECT(ADDRESS(SMALL((IF(WorkLisr<>\"\",ROW(WorkLisr),ROW()+ROWS(WorkLisr))),ROW()-ROW(FolowList)+1),COLUMN(WorkLisr),4)))","v":""}]
[null,null,null,null,null,null,null,{"$f":"IF(ROW()-ROW(FolowList)+1>ROWS(WorkLisr)-COUNTBLANK(WorkLisr),\"\",INDIRECT(ADDRESS(SMALL((IF(WorkLisr<>\"\",ROW(WorkLisr),ROW()+ROWS(WorkLisr))),ROW()-ROW(FolowList)+1),COLUMN(WorkLisr),4)))","v":""}]
[null,null,null,null,null,null,null,{"$f":"IF(ROW()-ROW(FolowList)+1>ROWS(WorkLisr)-COUNTBLANK(WorkLisr),\"\",INDIRECT(ADDRESS(SMALL((IF(WorkLisr<>\"\",ROW(WorkLisr),ROW()+ROWS(WorkLisr))),ROW()-ROW(FolowList)+1),COLUMN(WorkLisr),4)))","v":""}]
[null,null,null,null,null,null,null,{"$f":"IF(ROW()-ROW(FolowList)+1>ROWS(WorkLisr)-COUNTBLANK(WorkLisr),\"\",INDIRECT(ADDRESS(SMALL((IF(WorkLisr<>\"\",ROW(WorkLisr),ROW()+ROWS(WorkLisr))),ROW()-ROW(FolowList)+1),COLUMN(WorkLisr),4)))","v":""}]
[null,null,null,null,null,null,null,{"$f":"IF(ROW()-ROW(FolowList)+1>ROWS(WorkLisr)-COUNTBLANK(WorkLisr),\"\",INDIRECT(ADDRESS(SMALL((IF(WorkLisr<>\"\",ROW(WorkLisr),ROW()+ROWS(WorkLisr))),ROW()-ROW(FolowList)+1),COLUMN(WorkLisr),4)))","v":""}]
[null,null,null,null,null,null,null,{"$f":"IF(ROW()-ROW(FolowList)+1>ROWS(WorkLisr)-COUNTBLANK(WorkLisr),\"\",INDIRECT(ADDRESS(SMALL((IF(WorkLisr<>\"\",ROW(WorkLisr),ROW()+ROWS(WorkLisr))),ROW()-ROW(FolowList)+1),COLUMN(WorkLisr),4)))","v":""}]
[null,null,null,null,null,null,null,{"$f":"IF(ROW()-ROW(FolowList)+1>ROWS(WorkLisr)-COUNTBLANK(WorkLisr),\"\",INDIRECT(ADDRESS(SMALL((IF(WorkLisr<>\"\",ROW(WorkLisr),ROW()+ROWS(WorkLisr))),ROW()-ROW(FolowList)+1),COLUMN(WorkLisr),4)))","v":""}]
[null,null,null,null,null,null,null,{"$f":"IF(ROW()-ROW(FolowList)+1>ROWS(WorkLisr)-COUNTBLANK(WorkLisr),\"\",INDIRECT(ADDRESS(SMALL((IF(WorkLisr<>\"\",ROW(WorkLisr),ROW()+ROWS(WorkLisr))),ROW()-ROW(FolowList)+1),COLUMN(WorkLisr),4)))","v":""}]
[null,null,null,null,null,null,null,{"$f":"IF(ROW()-ROW(FolowList)+1>ROWS(WorkLisr)-COUNTBLANK(WorkLisr),\"\",INDIRECT(ADDRESS(SMALL((IF(WorkLisr<>\"\",ROW(WorkLisr),ROW()+ROWS(WorkLisr))),ROW()-ROW(FolowList)+1),COLUMN(WorkLisr),4)))","v":""}]
[null,null,null,null,null,null,null,{"$f":"IF(ROW()-ROW(FolowList)+1>ROWS(WorkLisr)-COUNTBLANK(WorkLisr),\"\",INDIRECT(ADDRESS(SMALL((IF(WorkLisr<>\"\",ROW(WorkLisr),ROW()+ROWS(WorkLisr))),ROW()-ROW(FolowList)+1),COLUMN(WorkLisr),4)))","v":""}]
[null,null,null,null,null,null,null,{"$f":"IF(ROW()-ROW(FolowList)+1>ROWS(WorkLisr)-COUNTBLANK(WorkLisr),\"\",INDIRECT(ADDRESS(SMALL((IF(WorkLisr<>\"\",ROW(WorkLisr),ROW()+ROWS(WorkLisr))),ROW()-ROW(FolowList)+1),COLUMN(WorkLisr),4)))","v":""}]
[null,null,null,null,null,null,null,{"$f":"IF(ROW()-ROW(FolowList)+1>ROWS(WorkLisr)-COUNTBLANK(WorkLisr),\"\",INDIRECT(ADDRESS(SMALL((IF(WorkLisr<>\"\",ROW(WorkLisr),ROW()+ROWS(WorkLisr))),ROW()-ROW(FolowList)+1),COLUMN(WorkLisr),4)))","v":""}]
[null,null,null,null,null,null,null,{"$f":"IF(ROW()-ROW(FolowList)+1>ROWS(WorkLisr)-COUNTBLANK(WorkLisr),\"\",INDIRECT(ADDRESS(SMALL((IF(WorkLisr<>\"\",ROW(WorkLisr),ROW()+ROWS(WorkLisr))),ROW()-ROW(FolowList)+1),COLUMN(WorkLisr),4)))","v":""}]
[null,null,null,null,null,null,null,{"$f":"IF(ROW()-ROW(FolowList)+1>ROWS(WorkLisr)-COUNTBLANK(WorkLisr),\"\",INDIRECT(ADDRESS(SMALL((IF(WorkLisr<>\"\",ROW(WorkLisr),ROW()+ROWS(WorkLisr))),ROW()-ROW(FolowList)+1),COLUMN(WorkLisr),4)))","v":""}]
[null,null,null,null,null,null,null,{"$f":"IF(ROW()-ROW(FolowList)+1>ROWS(WorkLisr)-COUNTBLANK(WorkLisr),\"\",INDIRECT(ADDRESS(SMALL((IF(WorkLisr<>\"\",ROW(WorkLisr),ROW()+ROWS(WorkLisr))),ROW()-ROW(FolowList)+1),COLUMN(WorkLisr),4)))","v":""}]
[null,null,null,null,null,null,null,{"$f":"IF(ROW()-ROW(FolowList)+1>ROWS(WorkLisr)-COUNTBLANK(WorkLisr),\"\",INDIRECT(ADDRESS(SMALL((IF(WorkLisr<>\"\",ROW(WorkLisr),ROW()+ROWS(WorkLisr))),ROW()-ROW(FolowList)+1),COLUMN(WorkLisr),4)))","v":""}]
[null,null,null,null,null,null,null,{"$f":"IF(ROW()-ROW(FolowList)+1>ROWS(WorkLisr)-COUNTBLANK(WorkLisr),\"\",INDIRECT(ADDRESS(SMALL((IF(WorkLisr<>\"\",ROW(WorkLisr),ROW()+ROWS(WorkLisr))),ROW()-ROW(FolowList)+1),COLUMN(WorkLisr),4)))","v":""}]
[null,null,null,null,null,null,null,{"$f":"IF(ROW()-ROW(FolowList)+1>ROWS(WorkLisr)-COUNTBLANK(WorkLisr),\"\",INDIRECT(ADDRESS(SMALL((IF(WorkLisr<>\"\",ROW(WorkLisr),ROW()+ROWS(WorkLisr))),ROW()-ROW(FolowList)+1),COLUMN(WorkLisr),4)))","v":""}]
[null,null,null,null,null,null,null,{"$f":"IF(ROW()-ROW(FolowList)+1>ROWS(WorkLisr)-COUNTBLANK(WorkLisr),\"\",INDIRECT(ADDRESS(SMALL((IF(WorkLisr<>\"\",ROW(WorkLisr),ROW()+ROWS(WorkLisr))),ROW()-ROW(FolowList)+1),COLUMN(WorkLisr),4)))","v":""}]
[null,null,null,null,null,null,null,{"$f":"IF(ROW()-ROW(FolowList)+1>ROWS(WorkLisr)-COUNTBLANK(WorkLisr),\"\",INDIRECT(ADDRESS(SMALL((IF(WorkLisr<>\"\",ROW(WorkLisr),ROW()+ROWS(WorkLisr))),ROW()-ROW(FolowList)+1),COLUMN(WorkLisr),4)))","v":""}]
[null,null,null,null,null,null,null,{"$f":"IF(ROW()-ROW(FolowList)+1>ROWS(WorkLisr)-COUNTBLANK(WorkLisr),\"\",INDIRECT(ADDRESS(SMALL((IF(WorkLisr<>\"\",ROW(WorkLisr),ROW()+ROWS(WorkLisr))),ROW()-ROW(FolowList)+1),COLUMN(WorkLisr),4)))","v":""}]
[null,null,null,null,null,null,null,{"$f":"IF(ROW()-ROW(FolowList)+1>ROWS(WorkLisr)-COUNTBLANK(WorkLisr),\"\",INDIRECT(ADDRESS(SMALL((IF(WorkLisr<>\"\",ROW(WorkLisr),ROW()+ROWS(WorkLisr))),ROW()-ROW(FolowList)+1),COLUMN(WorkLisr),4)))","v":""}]
[null,null,null,null,null,null,null,{"$f":"IF(ROW()-ROW(FolowList)+1>ROWS(WorkLisr)-COUNTBLANK(WorkLisr),\"\",INDIRECT(ADDRESS(SMALL((IF(WorkLisr<>\"\",ROW(WorkLisr),ROW()+ROWS(WorkLisr))),ROW()-ROW(FolowList)+1),COLUMN(WorkLisr),4)))","v":""}]
[null,null,null,null,null,null,null,{"$f":"IF(ROW()-ROW(FolowList)+1>ROWS(WorkLisr)-COUNTBLANK(WorkLisr),\"\",INDIRECT(ADDRESS(SMALL((IF(WorkLisr<>\"\",ROW(WorkLisr),ROW()+ROWS(WorkLisr))),ROW()-ROW(FolowList)+1),COLUMN(WorkLisr),4)))","v":""}]
[null,null,null,null,null,null,null,{"$f":"IF(ROW()-ROW(FolowList)+1>ROWS(WorkLisr)-COUNTBLANK(WorkLisr),\"\",INDIRECT(ADDRESS(SMALL((IF(WorkLisr<>\"\",ROW(WorkLisr),ROW()+ROWS(WorkLisr))),ROW()-ROW(FolowList)+1),COLUMN(WorkLisr),4)))","v":""}]
[null,null,null,null,null,null,null,{"$f":"IF(ROW()-ROW(FolowList)+1>ROWS(WorkLisr)-COUNTBLANK(WorkLisr),\"\",INDIRECT(ADDRESS(SMALL((IF(WorkLisr<>\"\",ROW(WorkLisr),ROW()+ROWS(WorkLisr))),ROW()-ROW(FolowList)+1),COLUMN(WorkLisr),4)))","v":""}]
[null,null,null,null,null,null,null,{"$f":"IF(ROW()-ROW(FolowList)+1>ROWS(WorkLisr)-COUNTBLANK(WorkLisr),\"\",INDIRECT(ADDRESS(SMALL((IF(WorkLisr<>\"\",ROW(WorkLisr),ROW()+ROWS(WorkLisr))),ROW()-ROW(FolowList)+1),COLUMN(WorkLisr),4)))","v":""}]
[null,null,null,null,null,null,null,{"$f":"IF(ROW()-ROW(FolowList)+1>ROWS(WorkLisr)-COUNTBLANK(WorkLisr),\"\",INDIRECT(ADDRESS(SMALL((IF(WorkLisr<>\"\",ROW(WorkLisr),ROW()+ROWS(WorkLisr))),ROW()-ROW(FolowList)+1),COLUMN(WorkLisr),4)))","v":""}]
[null,null,null,null,null,null,null,{"$f":"IF(ROW()-ROW(FolowList)+1>ROWS(WorkLisr)-COUNTBLANK(WorkLisr),\"\",INDIRECT(ADDRESS(SMALL((IF(WorkLisr<>\"\",ROW(WorkLisr),ROW()+ROWS(WorkLisr))),ROW()-ROW(FolowList)+1),COLUMN(WorkLisr),4)))","v":""}]
[null,null,null,null,null,null,null,{"$f":"IF(ROW()-ROW(FolowList)+1>ROWS(WorkLisr)-COUNTBLANK(WorkLisr),\"\",INDIRECT(ADDRESS(SMALL((IF(WorkLisr<>\"\",ROW(WorkLisr),ROW()+ROWS(WorkLisr))),ROW()-ROW(FolowList)+1),COLUMN(WorkLisr),4)))","v":""}]
[null,null,null,null,null,null,null,{"$f":"IF(ROW()-ROW(FolowList)+1>ROWS(WorkLisr)-COUNTBLANK(WorkLisr),\"\",INDIRECT(ADDRESS(SMALL((IF(WorkLisr<>\"\",ROW(WorkLisr),ROW()+ROWS(WorkLisr))),ROW()-ROW(FolowList)+1),COLUMN(WorkLisr),4)))","v":""}]
[null,null,null,null,null,null,null,{"$f":"IF(ROW()-ROW(FolowList)+1>ROWS(WorkLisr)-COUNTBLANK(WorkLisr),\"\",INDIRECT(ADDRESS(SMALL((IF(WorkLisr<>\"\",ROW(WorkLisr),ROW()+ROWS(WorkLisr))),ROW()-ROW(FolowList)+1),COLUMN(WorkLisr),4)))","v":""}]
[null,null,null,null,null,null,null,{"$f":"IF(ROW()-ROW(FolowList)+1>ROWS(WorkLisr)-COUNTBLANK(WorkLisr),\"\",INDIRECT(ADDRESS(SMALL((IF(WorkLisr<>\"\",ROW(WorkLisr),ROW()+ROWS(WorkLisr))),ROW()-ROW(FolowList)+1),COLUMN(WorkLisr),4)))","v":""}]
[null,null,null,null,null,null,null,{"$f":"IF(ROW()-ROW(FolowList)+1>ROWS(WorkLisr)-COUNTBLANK(WorkLisr),\"\",INDIRECT(ADDRESS(SMALL((IF(WorkLisr<>\"\",ROW(WorkLisr),ROW()+ROWS(WorkLisr))),ROW()-ROW(FolowList)+1),COLUMN(WorkLisr),4)))","v":""}]
[null,null,null,null,null,null,null,{"$f":"IF(ROW()-ROW(FolowList)+1>ROWS(WorkLisr)-COUNTBLANK(WorkLisr),\"\",INDIRECT(ADDRESS(SMALL((IF(WorkLisr<>\"\",ROW(WorkLisr),ROW()+ROWS(WorkLisr))),ROW()-ROW(FolowList)+1),COLUMN(WorkLisr),4)))","v":""}]
[null,null,null,null,null,null,null,{"$f":"IF(ROW()-ROW(FolowList)+1>ROWS(WorkLisr)-COUNTBLANK(WorkLisr),\"\",INDIRECT(ADDRESS(SMALL((IF(WorkLisr<>\"\",ROW(WorkLisr),ROW()+ROWS(WorkLisr))),ROW()-ROW(FolowList)+1),COLUMN(WorkLisr),4)))","v":""}]
[null,null,null,null,null,null,null,{"$f":"IF(ROW()-ROW(FolowList)+1>ROWS(WorkLisr)-COUNTBLANK(WorkLisr),\"\",INDIRECT(ADDRESS(SMALL((IF(WorkLisr<>\"\",ROW(WorkLisr),ROW()+ROWS(WorkLisr))),ROW()-ROW(FolowList)+1),COLUMN(WorkLisr),4)))","v":""}]
[null,null,null,null,null,null,null,{"$f":"IF(ROW()-ROW(FolowList)+1>ROWS(WorkLisr)-COUNTBLANK(WorkLisr),\"\",INDIRECT(ADDRESS(SMALL((IF(WorkLisr<>\"\",ROW(WorkLisr),ROW()+ROWS(WorkLisr))),ROW()-ROW(FolowList)+1),COLUMN(WorkLisr),4)))","v":""}]
[null,null,null,null,null,null,null,{"$f":"IF(ROW()-ROW(FolowList)+1>ROWS(WorkLisr)-COUNTBLANK(WorkLisr),\"\",INDIRECT(ADDRESS(SMALL((IF(WorkLisr<>\"\",ROW(WorkLisr),ROW()+ROWS(WorkLisr))),ROW()-ROW(FolowList)+1),COLUMN(WorkLisr),4)))","v":""}]
[null,null,null,null,null,null,null,{"$f":"IF(ROW()-ROW(FolowList)+1>ROWS(WorkLisr)-COUNTBLANK(WorkLisr),\"\",INDIRECT(ADDRESS(SMALL((IF(WorkLisr<>\"\",ROW(WorkLisr),ROW()+ROWS(WorkLisr))),ROW()-ROW(FolowList)+1),COLUMN(WorkLisr),4)))","v":""}]
[null,null,null,null,null,null,null,{"$f":"IF(ROW()-ROW(FolowList)+1>ROWS(WorkLisr)-COUNTBLANK(WorkLisr),\"\",INDIRECT(ADDRESS(SMALL((IF(WorkLisr<>\"\",ROW(WorkLisr),ROW()+ROWS(WorkLisr))),ROW()-ROW(FolowList)+1),COLUMN(WorkLisr),4)))","v":""}]
[null,null,null,null,null,null,null,{"$f":"IF(ROW()-ROW(FolowList)+1>ROWS(WorkLisr)-COUNTBLANK(WorkLisr),\"\",INDIRECT(ADDRESS(SMALL((IF(WorkLisr<>\"\",ROW(WorkLisr),ROW()+ROWS(WorkLisr))),ROW()-ROW(FolowList)+1),COLUMN(WorkLisr),4)))","v":""}]
[null,null,null,null,null,null,null,{"$f":"IF(ROW()-ROW(FolowList)+1>ROWS(WorkLisr)-COUNTBLANK(WorkLisr),\"\",INDIRECT(ADDRESS(SMALL((IF(WorkLisr<>\"\",ROW(WorkLisr),ROW()+ROWS(WorkLisr))),ROW()-ROW(FolowList)+1),COLUMN(WorkLisr),4)))","v":""}]
[null,null,null,null,null,null,null,{"$f":"IF(ROW()-ROW(FolowList)+1>ROWS(WorkLisr)-COUNTBLANK(WorkLisr),\"\",INDIRECT(ADDRESS(SMALL((IF(WorkLisr<>\"\",ROW(WorkLisr),ROW()+ROWS(WorkLisr))),ROW()-ROW(FolowList)+1),COLUMN(WorkLisr),4)))","v":""}]
[null,null,null,null,null,null,null,{"$f":"IF(ROW()-ROW(FolowList)+1>ROWS(WorkLisr)-COUNTBLANK(WorkLisr),\"\",INDIRECT(ADDRESS(SMALL((IF(WorkLisr<>\"\",ROW(WorkLisr),ROW()+ROWS(WorkLisr))),ROW()-ROW(FolowList)+1),COLUMN(WorkLisr),4)))","v":""}]
[null,null,null,null,null,null,null,{"$f":"IF(ROW()-ROW(FolowList)+1>ROWS(WorkLisr)-COUNTBLANK(WorkLisr),\"\",INDIRECT(ADDRESS(SMALL((IF(WorkLisr<>\"\",ROW(WorkLisr),ROW()+ROWS(WorkLisr))),ROW()-ROW(FolowList)+1),COLUMN(WorkLisr),4)))","v":""}]
[null,null,null,null,null,null,null,{"$f":"IF(ROW()-ROW(FolowList)+1>ROWS(WorkLisr)-COUNTBLANK(WorkLisr),\"\",INDIRECT(ADDRESS(SMALL((IF(WorkLisr<>\"\",ROW(WorkLisr),ROW()+ROWS(WorkLisr))),ROW()-ROW(FolowList)+1),COLUMN(WorkLisr),4)))","v":""}]
[null,null,null,null,null,null,null,{"$f":"IF(ROW()-ROW(FolowList)+1>ROWS(WorkLisr)-COUNTBLANK(WorkLisr),\"\",INDIRECT(ADDRESS(SMALL((IF(WorkLisr<>\"\",ROW(WorkLisr),ROW()+ROWS(WorkLisr))),ROW()-ROW(FolowList)+1),COLUMN(WorkLisr),4)))","v":""}]
[null,null,null,null,null,null,null,{"$f":"IF(ROW()-ROW(FolowList)+1>ROWS(WorkLisr)-COUNTBLANK(WorkLisr),\"\",INDIRECT(ADDRESS(SMALL((IF(WorkLisr<>\"\",ROW(WorkLisr),ROW()+ROWS(WorkLisr))),ROW()-ROW(FolowList)+1),COLUMN(WorkLisr),4)))","v":""}]
[null,null,null,null,null,null,null,{"$f":"IF(ROW()-ROW(FolowList)+1>ROWS(WorkLisr)-COUNTBLANK(WorkLisr),\"\",INDIRECT(ADDRESS(SMALL((IF(WorkLisr<>\"\",ROW(WorkLisr),ROW()+ROWS(WorkLisr))),ROW()-ROW(FolowList)+1),COLUMN(WorkLisr),4)))","v":""}]
[null,null,null,null,null,null,null,{"$f":"IF(ROW()-ROW(FolowList)+1>ROWS(WorkLisr)-COUNTBLANK(WorkLisr),\"\",INDIRECT(ADDRESS(SMALL((IF(WorkLisr<>\"\",ROW(WorkLisr),ROW()+ROWS(WorkLisr))),ROW()-ROW(FolowList)+1),COLUMN(WorkLisr),4)))","v":""}]
[null,null,null,null,null,null,null,{"$f":"IF(ROW()-ROW(FolowList)+1>ROWS(WorkLisr)-COUNTBLANK(WorkLisr),\"\",INDIRECT(ADDRESS(SMALL((IF(WorkLisr<>\"\",ROW(WorkLisr),ROW()+ROWS(WorkLisr))),ROW()-ROW(FolowList)+1),COLUMN(WorkLisr),4)))","v":""}]
[null,null,null,null,null,null,null,{"$f":"IF(ROW()-ROW(FolowList)+1>ROWS(WorkLisr)-COUNTBLANK(WorkLisr),\"\",INDIRECT(ADDRESS(SMALL((IF(WorkLisr<>\"\",ROW(WorkLisr),ROW()+ROWS(WorkLisr))),ROW()-ROW(FolowList)+1),COLUMN(WorkLisr),4)))","v":""}]
[null,null,null,null,null,null,null,{"$f":"IF(ROW()-ROW(FolowList)+1>ROWS(WorkLisr)-COUNTBLANK(WorkLisr),\"\",INDIRECT(ADDRESS(SMALL((IF(WorkLisr<>\"\",ROW(WorkLisr),ROW()+ROWS(WorkLisr))),ROW()-ROW(FolowList)+1),COLUMN(WorkLisr),4)))","v":""}]
[null,null,null,null,null,null,null,{"$f":"IF(ROW()-ROW(FolowList)+1>ROWS(WorkLisr)-COUNTBLANK(WorkLisr),\"\",INDIRECT(ADDRESS(SMALL((IF(WorkLisr<>\"\",ROW(WorkLisr),ROW()+ROWS(WorkLisr))),ROW()-ROW(FolowList)+1),COLUMN(WorkLisr),4)))","v":""}]
[null,null,null,null,null,null,null,{"$f":"IF(ROW()-ROW(FolowList)+1>ROWS(WorkLisr)-COUNTBLANK(WorkLisr),\"\",INDIRECT(ADDRESS(SMALL((IF(WorkLisr<>\"\",ROW(WorkLisr),ROW()+ROWS(WorkLisr))),ROW()-ROW(FolowList)+1),COLUMN(WorkLisr),4)))","v":""}]
[null,null,null,null,null,null,null,{"$f":"IF(ROW()-ROW(FolowList)+1>ROWS(WorkLisr)-COUNTBLANK(WorkLisr),\"\",INDIRECT(ADDRESS(SMALL((IF(WorkLisr<>\"\",ROW(WorkLisr),ROW()+ROWS(WorkLisr))),ROW()-ROW(FolowList)+1),COLUMN(WorkLisr),4)))","v":""}]
[null,null,null,null,null,null,null,{"$f":"IF(ROW()-ROW(FolowList)+1>ROWS(WorkLisr)-COUNTBLANK(WorkLisr),\"\",INDIRECT(ADDRESS(SMALL((IF(WorkLisr<>\"\",ROW(WorkLisr),ROW()+ROWS(WorkLisr))),ROW()-ROW(FolowList)+1),COLUMN(WorkLisr),4)))","v":""}]
[null,null,null,null,null,null,null,{"$f":"IF(ROW()-ROW(FolowList)+1>ROWS(WorkLisr)-COUNTBLANK(WorkLisr),\"\",INDIRECT(ADDRESS(SMALL((IF(WorkLisr<>\"\",ROW(WorkLisr),ROW()+ROWS(WorkLisr))),ROW()-ROW(FolowList)+1),COLUMN(WorkLisr),4)))","v":""}]
[null,null,null,null,null,null,null,{"$f":"IF(ROW()-ROW(FolowList)+1>ROWS(WorkLisr)-COUNTBLANK(WorkLisr),\"\",INDIRECT(ADDRESS(SMALL((IF(WorkLisr<>\"\",ROW(WorkLisr),ROW()+ROWS(WorkLisr))),ROW()-ROW(FolowList)+1),COLUMN(WorkLisr),4)))","v":""}]
[null,null,null,null,null,null,null,{"$f":"IF(ROW()-ROW(FolowList)+1>ROWS(WorkLisr)-COUNTBLANK(WorkLisr),\"\",INDIRECT(ADDRESS(SMALL((IF(WorkLisr<>\"\",ROW(WorkLisr),ROW()+ROWS(WorkLisr))),ROW()-ROW(FolowList)+1),COLUMN(WorkLisr),4)))","v":""}]
[null,null,null,null,null,null,null,{"$f":"IF(ROW()-ROW(FolowList)+1>ROWS(WorkLisr)-COUNTBLANK(WorkLisr),\"\",INDIRECT(ADDRESS(SMALL((IF(WorkLisr<>\"\",ROW(WorkLisr),ROW()+ROWS(WorkLisr))),ROW()-ROW(FolowList)+1),COLUMN(WorkLisr),4)))","v":""}]
[null,null,null,null,null,null,null,{"$f":"IF(ROW()-ROW(FolowList)+1>ROWS(WorkLisr)-COUNTBLANK(WorkLisr),\"\",INDIRECT(ADDRESS(SMALL((IF(WorkLisr<>\"\",ROW(WorkLisr),ROW()+ROWS(WorkLisr))),ROW()-ROW(FolowList)+1),COLUMN(WorkLisr),4)))","v":""}]
[null,null,null,null,null,null,null,{"$f":"IF(ROW()-ROW(FolowList)+1>ROWS(WorkLisr)-COUNTBLANK(WorkLisr),\"\",INDIRECT(ADDRESS(SMALL((IF(WorkLisr<>\"\",ROW(WorkLisr),ROW()+ROWS(WorkLisr))),ROW()-ROW(FolowList)+1),COLUMN(WorkLisr),4)))","v":""}]
[null,null,null,null,null,null,null,{"$f":"IF(ROW()-ROW(FolowList)+1>ROWS(WorkLisr)-COUNTBLANK(WorkLisr),\"\",INDIRECT(ADDRESS(SMALL((IF(WorkLisr<>\"\",ROW(WorkLisr),ROW()+ROWS(WorkLisr))),ROW()-ROW(FolowList)+1),COLUMN(WorkLisr),4)))","v":""}]
[null,null,null,null,null,null,null,{"$f":"IF(ROW()-ROW(FolowList)+1>ROWS(WorkLisr)-COUNTBLANK(WorkLisr),\"\",INDIRECT(ADDRESS(SMALL((IF(WorkLisr<>\"\",ROW(WorkLisr),ROW()+ROWS(WorkLisr))),ROW()-ROW(FolowList)+1),COLUMN(WorkLisr),4)))","v":""}]
[null,null,null,null,null,null,null,{"$f":"IF(ROW()-ROW(FolowList)+1>ROWS(WorkLisr)-COUNTBLANK(WorkLisr),\"\",INDIRECT(ADDRESS(SMALL((IF(WorkLisr<>\"\",ROW(WorkLisr),ROW()+ROWS(WorkLisr))),ROW()-ROW(FolowList)+1),COLUMN(WorkLisr),4)))","v":""}]
[null,null,null,null,null,null,null,{"$f":"IF(ROW()-ROW(FolowList)+1>ROWS(WorkLisr)-COUNTBLANK(WorkLisr),\"\",INDIRECT(ADDRESS(SMALL((IF(WorkLisr<>\"\",ROW(WorkLisr),ROW()+ROWS(WorkLisr))),ROW()-ROW(FolowList)+1),COLUMN(WorkLisr),4)))","v":""}]
[null,null,null,null,null,null,null,{"$f":"IF(ROW()-ROW(FolowList)+1>ROWS(WorkLisr)-COUNTBLANK(WorkLisr),\"\",INDIRECT(ADDRESS(SMALL((IF(WorkLisr<>\"\",ROW(WorkLisr),ROW()+ROWS(WorkLisr))),ROW()-ROW(FolowList)+1),COLUMN(WorkLisr),4)))","v":""}]
[null,null,null,null,null,null,null,{"$f":"IF(ROW()-ROW(FolowList)+1>ROWS(WorkLisr)-COUNTBLANK(WorkLisr),\"\",INDIRECT(ADDRESS(SMALL((IF(WorkLisr<>\"\",ROW(WorkLisr),ROW()+ROWS(WorkLisr))),ROW()-ROW(FolowList)+1),COLUMN(WorkLisr),4)))","v":""}]
[null,null,null,null,null,null,null,{"$f":"IF(ROW()-ROW(FolowList)+1>ROWS(WorkLisr)-COUNTBLANK(WorkLisr),\"\",INDIRECT(ADDRESS(SMALL((IF(WorkLisr<>\"\",ROW(WorkLisr),ROW()+ROWS(WorkLisr))),ROW()-ROW(FolowList)+1),COLUMN(WorkLisr),4)))","v":""}]
[null,null,null,null,null,null,null,{"$f":"IF(ROW()-ROW(FolowList)+1>ROWS(WorkLisr)-COUNTBLANK(WorkLisr),\"\",INDIRECT(ADDRESS(SMALL((IF(WorkLisr<>\"\",ROW(WorkLisr),ROW()+ROWS(WorkLisr))),ROW()-ROW(FolowList)+1),COLUMN(WorkLisr),4)))","v":""}]
[null,null,null,null,null,null,null,{"$f":"IF(ROW()-ROW(FolowList)+1>ROWS(WorkLisr)-COUNTBLANK(WorkLisr),\"\",INDIRECT(ADDRESS(SMALL((IF(WorkLisr<>\"\",ROW(WorkLisr),ROW()+ROWS(WorkLisr))),ROW()-ROW(FolowList)+1),COLUMN(WorkLisr),4)))","v":""}]
[null,null,null,null,null,null,null,{"$f":"IF(ROW()-ROW(FolowList)+1>ROWS(WorkLisr)-COUNTBLANK(WorkLisr),\"\",INDIRECT(ADDRESS(SMALL((IF(WorkLisr<>\"\",ROW(WorkLisr),ROW()+ROWS(WorkLisr))),ROW()-ROW(FolowList)+1),COLUMN(WorkLisr),4)))","v":""}]
[null,null,null,null,null,null,null,{"$f":"IF(ROW()-ROW(FolowList)+1>ROWS(WorkLisr)-COUNTBLANK(WorkLisr),\"\",INDIRECT(ADDRESS(SMALL((IF(WorkLisr<>\"\",ROW(WorkLisr),ROW()+ROWS(WorkLisr))),ROW()-ROW(FolowList)+1),COLUMN(WorkLisr),4)))","v":""}]
[null,null,null,null,null,null,null,{"$f":"IF(ROW()-ROW(FolowList)+1>ROWS(WorkLisr)-COUNTBLANK(WorkLisr),\"\",INDIRECT(ADDRESS(SMALL((IF(WorkLisr<>\"\",ROW(WorkLisr),ROW()+ROWS(WorkLisr))),ROW()-ROW(FolowList)+1),COLUMN(WorkLisr),4)))","v":""}]
[null,null,null,null,null,null,null,{"$f":"IF(ROW()-ROW(FolowList)+1>ROWS(WorkLisr)-COUNTBLANK(WorkLisr),\"\",INDIRECT(ADDRESS(SMALL((IF(WorkLisr<>\"\",ROW(WorkLisr),ROW()+ROWS(WorkLisr))),ROW()-ROW(FolowList)+1),COLUMN(WorkLisr),4)))","v":""}]
[null,null,null,null,null,null,null,{"$f":"IF(ROW()-ROW(FolowList)+1>ROWS(WorkLisr)-COUNTBLANK(WorkLisr),\"\",INDIRECT(ADDRESS(SMALL((IF(WorkLisr<>\"\",ROW(WorkLisr),ROW()+ROWS(WorkLisr))),ROW()-ROW(FolowList)+1),COLUMN(WorkLisr),4)))","v":""}]
[null,null,null,null,null,null,null,{"$f":"IF(ROW()-ROW(FolowList)+1>ROWS(WorkLisr)-COUNTBLANK(WorkLisr),\"\",INDIRECT(ADDRESS(SMALL((IF(WorkLisr<>\"\",ROW(WorkLisr),ROW()+ROWS(WorkLisr))),ROW()-ROW(FolowList)+1),COLUMN(WorkLisr),4)))","v":""}]
[null,null,null,null,null,null,null,{"$f":"IF(ROW()-ROW(FolowList)+1>ROWS(WorkLisr)-COUNTBLANK(WorkLisr),\"\",INDIRECT(ADDRESS(SMALL((IF(WorkLisr<>\"\",ROW(WorkLisr),ROW()+ROWS(WorkLisr))),ROW()-ROW(FolowList)+1),COLUMN(WorkLisr),4)))","v":""}]
[null,null,null,null,null,null,null,{"$f":"IF(ROW()-ROW(FolowList)+1>ROWS(WorkLisr)-COUNTBLANK(WorkLisr),\"\",INDIRECT(ADDRESS(SMALL((IF(WorkLisr<>\"\",ROW(WorkLisr),ROW()+ROWS(WorkLisr))),ROW()-ROW(FolowList)+1),COLUMN(WorkLisr),4)))","v":""}]
[null,null,null,null,null,null,null,{"$f":"IF(ROW()-ROW(FolowList)+1>ROWS(WorkLisr)-COUNTBLANK(WorkLisr),\"\",INDIRECT(ADDRESS(SMALL((IF(WorkLisr<>\"\",ROW(WorkLisr),ROW()+ROWS(WorkLisr))),ROW()-ROW(FolowList)+1),COLUMN(WorkLisr),4)))","v":""}]
[null,null,null,null,null,null,null,{"$f":"IF(ROW()-ROW(FolowList)+1>ROWS(WorkLisr)-COUNTBLANK(WorkLisr),\"\",INDIRECT(ADDRESS(SMALL((IF(WorkLisr<>\"\",ROW(WorkLisr),ROW()+ROWS(WorkLisr))),ROW()-ROW(FolowList)+1),COLUMN(WorkLisr),4)))","v":""}]
[null,null,null,null,null,null,null,{"$f":"IF(ROW()-ROW(FolowList)+1>ROWS(WorkLisr)-COUNTBLANK(WorkLisr),\"\",INDIRECT(ADDRESS(SMALL((IF(WorkLisr<>\"\",ROW(WorkLisr),ROW()+ROWS(WorkLisr))),ROW()-ROW(FolowList)+1),COLUMN(WorkLisr),4)))","v":""}]
[null,null,null,null,null,null,null,{"$f":"IF(ROW()-ROW(FolowList)+1>ROWS(WorkLisr)-COUNTBLANK(WorkLisr),\"\",INDIRECT(ADDRESS(SMALL((IF(WorkLisr<>\"\",ROW(WorkLisr),ROW()+ROWS(WorkLisr))),ROW()-ROW(FolowList)+1),COLUMN(WorkLisr),4)))","v":""}]
[null,null,null,null,null,null,null,{"$f":"IF(ROW()-ROW(FolowList)+1>ROWS(WorkLisr)-COUNTBLANK(WorkLisr),\"\",INDIRECT(ADDRESS(SMALL((IF(WorkLisr<>\"\",ROW(WorkLisr),ROW()+ROWS(WorkLisr))),ROW()-ROW(FolowList)+1),COLUMN(WorkLisr),4)))","v":""}]
[null,null,null,null,null,null,null,{"$f":"IF(ROW()-ROW(FolowList)+1>ROWS(WorkLisr)-COUNTBLANK(WorkLisr),\"\",INDIRECT(ADDRESS(SMALL((IF(WorkLisr<>\"\",ROW(WorkLisr),ROW()+ROWS(WorkLisr))),ROW()-ROW(FolowList)+1),COLUMN(WorkLisr),4)))","v":""}]
[null,null,null,null,null,null,null,{"$f":"IF(ROW()-ROW(FolowList)+1>ROWS(WorkLisr)-COUNTBLANK(WorkLisr),\"\",INDIRECT(ADDRESS(SMALL((IF(WorkLisr<>\"\",ROW(WorkLisr),ROW()+ROWS(WorkLisr))),ROW()-ROW(FolowList)+1),COLUMN(WorkLisr),4)))","v":""}]
[null,null,null,null,null,null,null,{"$f":"IF(ROW()-ROW(FolowList)+1>ROWS(WorkLisr)-COUNTBLANK(WorkLisr),\"\",INDIRECT(ADDRESS(SMALL((IF(WorkLisr<>\"\",ROW(WorkLisr),ROW()+ROWS(WorkLisr))),ROW()-ROW(FolowList)+1),COLUMN(WorkLisr),4)))","v":""}]
[null,null,null,null,null,null,null,{"$f":"IF(ROW()-ROW(FolowList)+1>ROWS(WorkLisr)-COUNTBLANK(WorkLisr),\"\",INDIRECT(ADDRESS(SMALL((IF(WorkLisr<>\"\",ROW(WorkLisr),ROW()+ROWS(WorkLisr))),ROW()-ROW(FolowList)+1),COLUMN(WorkLisr),4)))","v":""}]
[null,null,null,null,null,null,null,{"$f":"IF(ROW()-ROW(FolowList)+1>ROWS(WorkLisr)-COUNTBLANK(WorkLisr),\"\",INDIRECT(ADDRESS(SMALL((IF(WorkLisr<>\"\",ROW(WorkLisr),ROW()+ROWS(WorkLisr))),ROW()-ROW(FolowList)+1),COLUMN(WorkLisr),4)))","v":""}]
[null,null,null,null,null,null,null,{"$f":"IF(ROW()-ROW(FolowList)+1>ROWS(WorkLisr)-COUNTBLANK(WorkLisr),\"\",INDIRECT(ADDRESS(SMALL((IF(WorkLisr<>\"\",ROW(WorkLisr),ROW()+ROWS(WorkLisr))),ROW()-ROW(FolowList)+1),COLUMN(WorkLisr),4)))","v":""}]
[null,null,null,null,null,null,null,{"$f":"IF(ROW()-ROW(FolowList)+1>ROWS(WorkLisr)-COUNTBLANK(WorkLisr),\"\",INDIRECT(ADDRESS(SMALL((IF(WorkLisr<>\"\",ROW(WorkLisr),ROW()+ROWS(WorkLisr))),ROW()-ROW(FolowList)+1),COLUMN(WorkLisr),4)))","v":""}]
[null,null,null,null,null,null,null,{"$f":"IF(ROW()-ROW(FolowList)+1>ROWS(WorkLisr)-COUNTBLANK(WorkLisr),\"\",INDIRECT(ADDRESS(SMALL((IF(WorkLisr<>\"\",ROW(WorkLisr),ROW()+ROWS(WorkLisr))),ROW()-ROW(FolowList)+1),COLUMN(WorkLisr),4)))","v":""}]
[null,null,null,null,null,null,null,{"$f":"IF(ROW()-ROW(FolowList)+1>ROWS(WorkLisr)-COUNTBLANK(WorkLisr),\"\",INDIRECT(ADDRESS(SMALL((IF(WorkLisr<>\"\",ROW(WorkLisr),ROW()+ROWS(WorkLisr))),ROW()-ROW(FolowList)+1),COLUMN(WorkLisr),4)))","v":""}]
[null,null,null,null,null,null,null,{"$f":"IF(ROW()-ROW(FolowList)+1>ROWS(WorkLisr)-COUNTBLANK(WorkLisr),\"\",INDIRECT(ADDRESS(SMALL((IF(WorkLisr<>\"\",ROW(WorkLisr),ROW()+ROWS(WorkLisr))),ROW()-ROW(FolowList)+1),COLUMN(WorkLisr),4)))","v":""}]
[null,null,null,null,null,null,null,{"$f":"IF(ROW()-ROW(FolowList)+1>ROWS(WorkLisr)-COUNTBLANK(WorkLisr),\"\",INDIRECT(ADDRESS(SMALL((IF(WorkLisr<>\"\",ROW(WorkLisr),ROW()+ROWS(WorkLisr))),ROW()-ROW(FolowList)+1),COLUMN(WorkLisr),4)))","v":""}]
[null,null,null,null,null,null,null,{"$f":"IF(ROW()-ROW(FolowList)+1>ROWS(WorkLisr)-COUNTBLANK(WorkLisr),\"\",INDIRECT(ADDRESS(SMALL((IF(WorkLisr<>\"\",ROW(WorkLisr),ROW()+ROWS(WorkLisr))),ROW()-ROW(FolowList)+1),COLUMN(WorkLisr),4)))","v":""}]
[null,null,null,null,null,null,null,{"$f":"IF(ROW()-ROW(FolowList)+1>ROWS(WorkLisr)-COUNTBLANK(WorkLisr),\"\",INDIRECT(ADDRESS(SMALL((IF(WorkLisr<>\"\",ROW(WorkLisr),ROW()+ROWS(WorkLisr))),ROW()-ROW(FolowList)+1),COLUMN(WorkLisr),4)))","v":""}]
[null,null,null,null,null,null,null,{"$f":"IF(ROW()-ROW(FolowList)+1>ROWS(WorkLisr)-COUNTBLANK(WorkLisr),\"\",INDIRECT(ADDRESS(SMALL((IF(WorkLisr<>\"\",ROW(WorkLisr),ROW()+ROWS(WorkLisr))),ROW()-ROW(FolowList)+1),COLUMN(WorkLisr),4)))","v":""}]
[null,null,null,null,null,null,null,{"$f":"IF(ROW()-ROW(FolowList)+1>ROWS(WorkLisr)-COUNTBLANK(WorkLisr),\"\",INDIRECT(ADDRESS(SMALL((IF(WorkLisr<>\"\",ROW(WorkLisr),ROW()+ROWS(WorkLisr))),ROW()-ROW(FolowList)+1),COLUMN(WorkLisr),4)))","v":""}]
[null,null,null,null,null,null,null,{"$f":"IF(ROW()-ROW(FolowList)+1>ROWS(WorkLisr)-COUNTBLANK(WorkLisr),\"\",INDIRECT(ADDRESS(SMALL((IF(WorkLisr<>\"\",ROW(WorkLisr),ROW()+ROWS(WorkLisr))),ROW()-ROW(FolowList)+1),COLUMN(WorkLisr),4)))","v":""}]
[null,null,null,null,null,null,null,{"$f":"IF(ROW()-ROW(FolowList)+1>ROWS(WorkLisr)-COUNTBLANK(WorkLisr),\"\",INDIRECT(ADDRESS(SMALL((IF(WorkLisr<>\"\",ROW(WorkLisr),ROW()+ROWS(WorkLisr))),ROW()-ROW(FolowList)+1),COLUMN(WorkLisr),4)))","v":""}]
[null,null,null,null,null,null,null,{"$f":"IF(ROW()-ROW(FolowList)+1>ROWS(WorkLisr)-COUNTBLANK(WorkLisr),\"\",INDIRECT(ADDRESS(SMALL((IF(WorkLisr<>\"\",ROW(WorkLisr),ROW()+ROWS(WorkLisr))),ROW()-ROW(FolowList)+1),COLUMN(WorkLisr),4)))","v":""}]
[null,null,null,null,null,null,null,{"$f":"IF(ROW()-ROW(FolowList)+1>ROWS(WorkLisr)-COUNTBLANK(WorkLisr),\"\",INDIRECT(ADDRESS(SMALL((IF(WorkLisr<>\"\",ROW(WorkLisr),ROW()+ROWS(WorkLisr))),ROW()-ROW(FolowList)+1),COLUMN(WorkLisr),4)))","v":""}]
[null,null,null,null,null,null,null,{"$f":"IF(ROW()-ROW(FolowList)+1>ROWS(WorkLisr)-COUNTBLANK(WorkLisr),\"\",INDIRECT(ADDRESS(SMALL((IF(WorkLisr<>\"\",ROW(WorkLisr),ROW()+ROWS(WorkLisr))),ROW()-ROW(FolowList)+1),COLUMN(WorkLisr),4)))","v":""}]
[null,null,null,null,null,null,null,{"$f":"IF(ROW()-ROW(FolowList)+1>ROWS(WorkLisr)-COUNTBLANK(WorkLisr),\"\",INDIRECT(ADDRESS(SMALL((IF(WorkLisr<>\"\",ROW(WorkLisr),ROW()+ROWS(WorkLisr))),ROW()-ROW(FolowList)+1),COLUMN(WorkLisr),4)))","v":""}]
[null,null,null,null,null,null,null,{"$f":"IF(ROW()-ROW(FolowList)+1>ROWS(WorkLisr)-COUNTBLANK(WorkLisr),\"\",INDIRECT(ADDRESS(SMALL((IF(WorkLisr<>\"\",ROW(WorkLisr),ROW()+ROWS(WorkLisr))),ROW()-ROW(FolowList)+1),COLUMN(WorkLisr),4)))","v":""}]
[null,null,null,null,null,null,null,{"$f":"IF(ROW()-ROW(FolowList)+1>ROWS(WorkLisr)-COUNTBLANK(WorkLisr),\"\",INDIRECT(ADDRESS(SMALL((IF(WorkLisr<>\"\",ROW(WorkLisr),ROW()+ROWS(WorkLisr))),ROW()-ROW(FolowList)+1),COLUMN(WorkLisr),4)))","v":""}]
[null,null,null,null,null,null,null,{"$f":"IF(ROW()-ROW(FolowList)+1>ROWS(WorkLisr)-COUNTBLANK(WorkLisr),\"\",INDIRECT(ADDRESS(SMALL((IF(WorkLisr<>\"\",ROW(WorkLisr),ROW()+ROWS(WorkLisr))),ROW()-ROW(FolowList)+1),COLUMN(WorkLisr),4)))","v":""}]
[null,null,null,null,null,null,null,{"$f":"IF(ROW()-ROW(FolowList)+1>ROWS(WorkLisr)-COUNTBLANK(WorkLisr),\"\",INDIRECT(ADDRESS(SMALL((IF(WorkLisr<>\"\",ROW(WorkLisr),ROW()+ROWS(WorkLisr))),ROW()-ROW(FolowList)+1),COLUMN(WorkLisr),4)))","v":""}]
[null,null,null,null,null,null,null,{"$f":"IF(ROW()-ROW(FolowList)+1>ROWS(WorkLisr)-COUNTBLANK(WorkLisr),\"\",INDIRECT(ADDRESS(SMALL((IF(WorkLisr<>\"\",ROW(WorkLisr),ROW()+ROWS(WorkLisr))),ROW()-ROW(FolowList)+1),COLUMN(WorkLisr),4)))","v":""}]
[null,null,null,null,null,null,null,{"$f":"IF(ROW()-ROW(FolowList)+1>ROWS(WorkLisr)-COUNTBLANK(WorkLisr),\"\",INDIRECT(ADDRESS(SMALL((IF(WorkLisr<>\"\",ROW(WorkLisr),ROW()+ROWS(WorkLisr))),ROW()-ROW(FolowList)+1),COLUMN(WorkLisr),4)))","v":""}]
[null,null,null,null,null,null,null,{"$f":"IF(ROW()-ROW(FolowList)+1>ROWS(WorkLisr)-COUNTBLANK(WorkLisr),\"\",INDIRECT(ADDRESS(SMALL((IF(WorkLisr<>\"\",ROW(WorkLisr),ROW()+ROWS(WorkLisr))),ROW()-ROW(FolowList)+1),COLUMN(WorkLisr),4)))","v":""}]
[null,null,null,null,null,null,null,{"$f":"IF(ROW()-ROW(FolowList)+1>ROWS(WorkLisr)-COUNTBLANK(WorkLisr),\"\",INDIRECT(ADDRESS(SMALL((IF(WorkLisr<>\"\",ROW(WorkLisr),ROW()+ROWS(WorkLisr))),ROW()-ROW(FolowList)+1),COLUMN(WorkLisr),4)))","v":""}]
[null,null,null,null,null,null,null,{"$f":"IF(ROW()-ROW(FolowList)+1>ROWS(WorkLisr)-COUNTBLANK(WorkLisr),\"\",INDIRECT(ADDRESS(SMALL((IF(WorkLisr<>\"\",ROW(WorkLisr),ROW()+ROWS(WorkLisr))),ROW()-ROW(FolowList)+1),COLUMN(WorkLisr),4)))","v":""}]
[null,null,null,null,null,null,null,{"$f":"IF(ROW()-ROW(FolowList)+1>ROWS(WorkLisr)-COUNTBLANK(WorkLisr),\"\",INDIRECT(ADDRESS(SMALL((IF(WorkLisr<>\"\",ROW(WorkLisr),ROW()+ROWS(WorkLisr))),ROW()-ROW(FolowList)+1),COLUMN(WorkLisr),4)))","v":""}]
[null,null,null,null,null,null,null,{"$f":"IF(ROW()-ROW(FolowList)+1>ROWS(WorkLisr)-COUNTBLANK(WorkLisr),\"\",INDIRECT(ADDRESS(SMALL((IF(WorkLisr<>\"\",ROW(WorkLisr),ROW()+ROWS(WorkLisr))),ROW()-ROW(FolowList)+1),COLUMN(WorkLisr),4)))","v":""}]
[null,null,null,null,null,null,null,{"$f":"IF(ROW()-ROW(FolowList)+1>ROWS(WorkLisr)-COUNTBLANK(WorkLisr),\"\",INDIRECT(ADDRESS(SMALL((IF(WorkLisr<>\"\",ROW(WorkLisr),ROW()+ROWS(WorkLisr))),ROW()-ROW(FolowList)+1),COLUMN(WorkLisr),4)))","v":""}]
[null,null,null,null,null,null,null,{"$f":"IF(ROW()-ROW(FolowList)+1>ROWS(WorkLisr)-COUNTBLANK(WorkLisr),\"\",INDIRECT(ADDRESS(SMALL((IF(WorkLisr<>\"\",ROW(WorkLisr),ROW()+ROWS(WorkLisr))),ROW()-ROW(FolowList)+1),COLUMN(WorkLisr),4)))","v":""}]
[null,null,null,null,null,null,null,{"$f":"IF(ROW()-ROW(FolowList)+1>ROWS(WorkLisr)-COUNTBLANK(WorkLisr),\"\",INDIRECT(ADDRESS(SMALL((IF(WorkLisr<>\"\",ROW(WorkLisr),ROW()+ROWS(WorkLisr))),ROW()-ROW(FolowList)+1),COLUMN(WorkLisr),4)))","v":""}]
[null,null,null,null,null,null,null,{"$f":"IF(ROW()-ROW(FolowList)+1>ROWS(WorkLisr)-COUNTBLANK(WorkLisr),\"\",INDIRECT(ADDRESS(SMALL((IF(WorkLisr<>\"\",ROW(WorkLisr),ROW()+ROWS(WorkLisr))),ROW()-ROW(FolowList)+1),COLUMN(WorkLisr),4)))","v":""}]
[null,null,null,null,null,null,null,{"$f":"IF(ROW()-ROW(FolowList)+1>ROWS(WorkLisr)-COUNTBLANK(WorkLisr),\"\",INDIRECT(ADDRESS(SMALL((IF(WorkLisr<>\"\",ROW(WorkLisr),ROW()+ROWS(WorkLisr))),ROW()-ROW(FolowList)+1),COLUMN(WorkLisr),4)))","v":""}]
[null,null,null,null,null,null,null,{"$f":"IF(ROW()-ROW(FolowList)+1>ROWS(WorkLisr)-COUNTBLANK(WorkLisr),\"\",INDIRECT(ADDRESS(SMALL((IF(WorkLisr<>\"\",ROW(WorkLisr),ROW()+ROWS(WorkLisr))),ROW()-ROW(FolowList)+1),COLUMN(WorkLisr),4)))","v":""}]
[null,null,null,null,null,null,null,{"$f":"IF(ROW()-ROW(FolowList)+1>ROWS(WorkLisr)-COUNTBLANK(WorkLisr),\"\",INDIRECT(ADDRESS(SMALL((IF(WorkLisr<>\"\",ROW(WorkLisr),ROW()+ROWS(WorkLisr))),ROW()-ROW(FolowList)+1),COLUMN(WorkLisr),4)))","v":""}]
[null,null,null,null,null,null,null,{"$f":"IF(ROW()-ROW(FolowList)+1>ROWS(WorkLisr)-COUNTBLANK(WorkLisr),\"\",INDIRECT(ADDRESS(SMALL((IF(WorkLisr<>\"\",ROW(WorkLisr),ROW()+ROWS(WorkLisr))),ROW()-ROW(FolowList)+1),COLUMN(WorkLisr),4)))","v":""}]
[null,null,null,null,null,null,null,{"$f":"IF(ROW()-ROW(FolowList)+1>ROWS(WorkLisr)-COUNTBLANK(WorkLisr),\"\",INDIRECT(ADDRESS(SMALL((IF(WorkLisr<>\"\",ROW(WorkLisr),ROW()+ROWS(WorkLisr))),ROW()-ROW(FolowList)+1),COLUMN(WorkLisr),4)))","v":""}]
[null,null,null,null,null,null,null,{"$f":"IF(ROW()-ROW(FolowList)+1>ROWS(WorkLisr)-COUNTBLANK(WorkLisr),\"\",INDIRECT(ADDRESS(SMALL((IF(WorkLisr<>\"\",ROW(WorkLisr),ROW()+ROWS(WorkLisr))),ROW()-ROW(FolowList)+1),COLUMN(WorkLisr),4)))","v":""}]
[null,null,null,null,null,null,null,{"$f":"IF(ROW()-ROW(FolowList)+1>ROWS(WorkLisr)-COUNTBLANK(WorkLisr),\"\",INDIRECT(ADDRESS(SMALL((IF(WorkLisr<>\"\",ROW(WorkLisr),ROW()+ROWS(WorkLisr))),ROW()-ROW(FolowList)+1),COLUMN(WorkLisr),4)))","v":""}]
[null,null,null,null,null,null,null,{"$f":"IF(ROW()-ROW(FolowList)+1>ROWS(WorkLisr)-COUNTBLANK(WorkLisr),\"\",INDIRECT(ADDRESS(SMALL((IF(WorkLisr<>\"\",ROW(WorkLisr),ROW()+ROWS(WorkLisr))),ROW()-ROW(FolowList)+1),COLUMN(WorkLisr),4)))","v":""}]
[null,null,null,null,null,null,null,{"$f":"IF(ROW()-ROW(FolowList)+1>ROWS(WorkLisr)-COUNTBLANK(WorkLisr),\"\",INDIRECT(ADDRESS(SMALL((IF(WorkLisr<>\"\",ROW(WorkLisr),ROW()+ROWS(WorkLisr))),ROW()-ROW(FolowList)+1),COLUMN(WorkLisr),4)))","v":""}]
[null,null,null,null,null,null,null,{"$f":"IF(ROW()-ROW(FolowList)+1>ROWS(WorkLisr)-COUNTBLANK(WorkLisr),\"\",INDIRECT(ADDRESS(SMALL((IF(WorkLisr<>\"\",ROW(WorkLisr),ROW()+ROWS(WorkLisr))),ROW()-ROW(FolowList)+1),COLUMN(WorkLisr),4)))","v":""}]
[null,null,null,null,null,null,null,{"$f":"IF(ROW()-ROW(FolowList)+1>ROWS(WorkLisr)-COUNTBLANK(WorkLisr),\"\",INDIRECT(ADDRESS(SMALL((IF(WorkLisr<>\"\",ROW(WorkLisr),ROW()+ROWS(WorkLisr))),ROW()-ROW(FolowList)+1),COLUMN(WorkLisr),4)))","v":""}]
[null,null,null,null,null,null,null,{"$f":"IF(ROW()-ROW(FolowList)+1>ROWS(WorkLisr)-COUNTBLANK(WorkLisr),\"\",INDIRECT(ADDRESS(SMALL((IF(WorkLisr<>\"\",ROW(WorkLisr),ROW()+ROWS(WorkLisr))),ROW()-ROW(FolowList)+1),COLUMN(WorkLisr),4)))","v":""}]
[null,null,null,null,null,null,null,{"$f":"IF(ROW()-ROW(FolowList)+1>ROWS(WorkLisr)-COUNTBLANK(WorkLisr),\"\",INDIRECT(ADDRESS(SMALL((IF(WorkLisr<>\"\",ROW(WorkLisr),ROW()+ROWS(WorkLisr))),ROW()-ROW(FolowList)+1),COLUMN(WorkLisr),4)))","v":""}]
[null,null,null,null,null,null,null,{"$f":"IF(ROW()-ROW(FolowList)+1>ROWS(WorkLisr)-COUNTBLANK(WorkLisr),\"\",INDIRECT(ADDRESS(SMALL((IF(WorkLisr<>\"\",ROW(WorkLisr),ROW()+ROWS(WorkLisr))),ROW()-ROW(FolowList)+1),COLUMN(WorkLisr),4)))","v":""}]
[null,null,null,null,null,null,null,{"$f":"IF(ROW()-ROW(FolowList)+1>ROWS(WorkLisr)-COUNTBLANK(WorkLisr),\"\",INDIRECT(ADDRESS(SMALL((IF(WorkLisr<>\"\",ROW(WorkLisr),ROW()+ROWS(WorkLisr))),ROW()-ROW(FolowList)+1),COLUMN(WorkLisr),4)))","v":""}]
[null,null,null,null,null,null,null,{"$f":"IF(ROW()-ROW(FolowList)+1>ROWS(WorkLisr)-COUNTBLANK(WorkLisr),\"\",INDIRECT(ADDRESS(SMALL((IF(WorkLisr<>\"\",ROW(WorkLisr),ROW()+ROWS(WorkLisr))),ROW()-ROW(FolowList)+1),COLUMN(WorkLisr),4)))","v":""}]
[null,null,null,null,null,null,null,{"$f":"IF(ROW()-ROW(FolowList)+1>ROWS(WorkLisr)-COUNTBLANK(WorkLisr),\"\",INDIRECT(ADDRESS(SMALL((IF(WorkLisr<>\"\",ROW(WorkLisr),ROW()+ROWS(WorkLisr))),ROW()-ROW(FolowList)+1),COLUMN(WorkLisr),4)))","v":""}]
[null,null,null,null,null,null,null,{"$f":"IF(ROW()-ROW(FolowList)+1>ROWS(WorkLisr)-COUNTBLANK(WorkLisr),\"\",INDIRECT(ADDRESS(SMALL((IF(WorkLisr<>\"\",ROW(WorkLisr),ROW()+ROWS(WorkLisr))),ROW()-ROW(FolowList)+1),COLUMN(WorkLisr),4)))","v":""}]
[null,null,null,null,null,null,null,{"$f":"IF(ROW()-ROW(FolowList)+1>ROWS(WorkLisr)-COUNTBLANK(WorkLisr),\"\",INDIRECT(ADDRESS(SMALL((IF(WorkLisr<>\"\",ROW(WorkLisr),ROW()+ROWS(WorkLisr))),ROW()-ROW(FolowList)+1),COLUMN(WorkLisr),4)))","v":""}]
[null,null,null,null,null,null,null,{"$f":"IF(ROW()-ROW(FolowList)+1>ROWS(WorkLisr)-COUNTBLANK(WorkLisr),\"\",INDIRECT(ADDRESS(SMALL((IF(WorkLisr<>\"\",ROW(WorkLisr),ROW()+ROWS(WorkLisr))),ROW()-ROW(FolowList)+1),COLUMN(WorkLisr),4)))","v":""}]
[null,null,null,null,null,null,null,{"$f":"IF(ROW()-ROW(FolowList)+1>ROWS(WorkLisr)-COUNTBLANK(WorkLisr),\"\",INDIRECT(ADDRESS(SMALL((IF(WorkLisr<>\"\",ROW(WorkLisr),ROW()+ROWS(WorkLisr))),ROW()-ROW(FolowList)+1),COLUMN(WorkLisr),4)))","v":""}]
[null,null,null,null,null,null,null,{"$f":"IF(ROW()-ROW(FolowList)+1>ROWS(WorkLisr)-COUNTBLANK(WorkLisr),\"\",INDIRECT(ADDRESS(SMALL((IF(WorkLisr<>\"\",ROW(WorkLisr),ROW()+ROWS(WorkLisr))),ROW()-ROW(FolowList)+1),COLUMN(WorkLisr),4)))","v":""}]
[null,null,null,null,null,null,null,{"$f":"IF(ROW()-ROW(FolowList)+1>ROWS(WorkLisr)-COUNTBLANK(WorkLisr),\"\",INDIRECT(ADDRESS(SMALL((IF(WorkLisr<>\"\",ROW(WorkLisr),ROW()+ROWS(WorkLisr))),ROW()-ROW(FolowList)+1),COLUMN(WorkLisr),4)))","v":""}]
[null,null,null,null,null,null,null,{"$f":"IF(ROW()-ROW(FolowList)+1>ROWS(WorkLisr)-COUNTBLANK(WorkLisr),\"\",INDIRECT(ADDRESS(SMALL((IF(WorkLisr<>\"\",ROW(WorkLisr),ROW()+ROWS(WorkLisr))),ROW()-ROW(FolowList)+1),COLUMN(WorkLisr),4)))","v":""}]
[null,null,null,null,null,null,null,{"$f":"IF(ROW()-ROW(FolowList)+1>ROWS(WorkLisr)-COUNTBLANK(WorkLisr),\"\",INDIRECT(ADDRESS(SMALL((IF(WorkLisr<>\"\",ROW(WorkLisr),ROW()+ROWS(WorkLisr))),ROW()-ROW(FolowList)+1),COLUMN(WorkLisr),4)))","v":""}]
[null,null,null,null,null,null,null,{"$f":"IF(ROW()-ROW(FolowList)+1>ROWS(WorkLisr)-COUNTBLANK(WorkLisr),\"\",INDIRECT(ADDRESS(SMALL((IF(WorkLisr<>\"\",ROW(WorkLisr),ROW()+ROWS(WorkLisr))),ROW()-ROW(FolowList)+1),COLUMN(WorkLisr),4)))","v":""}]
[null,null,null,null,null,null,null,{"$f":"IF(ROW()-ROW(FolowList)+1>ROWS(WorkLisr)-COUNTBLANK(WorkLisr),\"\",INDIRECT(ADDRESS(SMALL((IF(WorkLisr<>\"\",ROW(WorkLisr),ROW()+ROWS(WorkLisr))),ROW()-ROW(FolowList)+1),COLUMN(WorkLisr),4)))","v":""}]
[null,null,null,null,null,null,null,{"$f":"IF(ROW()-ROW(FolowList)+1>ROWS(WorkLisr)-COUNTBLANK(WorkLisr),\"\",INDIRECT(ADDRESS(SMALL((IF(WorkLisr<>\"\",ROW(WorkLisr),ROW()+ROWS(WorkLisr))),ROW()-ROW(FolowList)+1),COLUMN(WorkLisr),4)))","v":""}]
[null,null,null,null,null,null,null,{"$f":"IF(ROW()-ROW(FolowList)+1>ROWS(WorkLisr)-COUNTBLANK(WorkLisr),\"\",INDIRECT(ADDRESS(SMALL((IF(WorkLisr<>\"\",ROW(WorkLisr),ROW()+ROWS(WorkLisr))),ROW()-ROW(FolowList)+1),COLUMN(WorkLisr),4)))","v":""}]
[null,null,null,null,null,null,null,{"$f":"IF(ROW()-ROW(FolowList)+1>ROWS(WorkLisr)-COUNTBLANK(WorkLisr),\"\",INDIRECT(ADDRESS(SMALL((IF(WorkLisr<>\"\",ROW(WorkLisr),ROW()+ROWS(WorkLisr))),ROW()-ROW(FolowList)+1),COLUMN(WorkLisr),4)))","v":""}]
[null,null,null,null,null,null,null,{"$f":"IF(ROW()-ROW(FolowList)+1>ROWS(WorkLisr)-COUNTBLANK(WorkLisr),\"\",INDIRECT(ADDRESS(SMALL((IF(WorkLisr<>\"\",ROW(WorkLisr),ROW()+ROWS(WorkLisr))),ROW()-ROW(FolowList)+1),COLUMN(WorkLisr),4)))","v":""}]
[null,null,null,null,null,null,null,{"$f":"IF(ROW()-ROW(FolowList)+1>ROWS(WorkLisr)-COUNTBLANK(WorkLisr),\"\",INDIRECT(ADDRESS(SMALL((IF(WorkLisr<>\"\",ROW(WorkLisr),ROW()+ROWS(WorkLisr))),ROW()-ROW(FolowList)+1),COLUMN(WorkLisr),4)))","v":""}]
[null,null,null,null,null,null,null,{"$f":"IF(ROW()-ROW(FolowList)+1>ROWS(WorkLisr)-COUNTBLANK(WorkLisr),\"\",INDIRECT(ADDRESS(SMALL((IF(WorkLisr<>\"\",ROW(WorkLisr),ROW()+ROWS(WorkLisr))),ROW()-ROW(FolowList)+1),COLUMN(WorkLisr),4)))","v":""}]
[null,null,null,null,null,null,null,{"$f":"IF(ROW()-ROW(FolowList)+1>ROWS(WorkLisr)-COUNTBLANK(WorkLisr),\"\",INDIRECT(ADDRESS(SMALL((IF(WorkLisr<>\"\",ROW(WorkLisr),ROW()+ROWS(WorkLisr))),ROW()-ROW(FolowList)+1),COLUMN(WorkLisr),4)))","v":""}]
[null,null,null,null,null,null,null,{"$f":"IF(ROW()-ROW(FolowList)+1>ROWS(WorkLisr)-COUNTBLANK(WorkLisr),\"\",INDIRECT(ADDRESS(SMALL((IF(WorkLisr<>\"\",ROW(WorkLisr),ROW()+ROWS(WorkLisr))),ROW()-ROW(FolowList)+1),COLUMN(WorkLisr),4)))","v":""}]
[null,null,null,null,null,null,null,{"$f":"IF(ROW()-ROW(FolowList)+1>ROWS(WorkLisr)-COUNTBLANK(WorkLisr),\"\",INDIRECT(ADDRESS(SMALL((IF(WorkLisr<>\"\",ROW(WorkLisr),ROW()+ROWS(WorkLisr))),ROW()-ROW(FolowList)+1),COLUMN(WorkLisr),4)))","v":""}]
[null,null,null,null,null,null,null,{"$f":"IF(ROW()-ROW(FolowList)+1>ROWS(WorkLisr)-COUNTBLANK(WorkLisr),\"\",INDIRECT(ADDRESS(SMALL((IF(WorkLisr<>\"\",ROW(WorkLisr),ROW()+ROWS(WorkLisr))),ROW()-ROW(FolowList)+1),COLUMN(WorkLisr),4)))","v":""}]
[null,null,null,null,null,null,null,{"$f":"IF(ROW()-ROW(FolowList)+1>ROWS(WorkLisr)-COUNTBLANK(WorkLisr),\"\",INDIRECT(ADDRESS(SMALL((IF(WorkLisr<>\"\",ROW(WorkLisr),ROW()+ROWS(WorkLisr))),ROW()-ROW(FolowList)+1),COLUMN(WorkLisr),4)))","v":""}]
[null,null,null,null,null,null,null,{"$f":"IF(ROW()-ROW(FolowList)+1>ROWS(WorkLisr)-COUNTBLANK(WorkLisr),\"\",INDIRECT(ADDRESS(SMALL((IF(WorkLisr<>\"\",ROW(WorkLisr),ROW()+ROWS(WorkLisr))),ROW()-ROW(FolowList)+1),COLUMN(WorkLisr),4)))","v":""}]
[null,null,null,null,null,null,null,{"$f":"IF(ROW()-ROW(FolowList)+1>ROWS(WorkLisr)-COUNTBLANK(WorkLisr),\"\",INDIRECT(ADDRESS(SMALL((IF(WorkLisr<>\"\",ROW(WorkLisr),ROW()+ROWS(WorkLisr))),ROW()-ROW(FolowList)+1),COLUMN(WorkLisr),4)))","v":""}]
[null,null,null,null,null,null,null,{"$f":"IF(ROW()-ROW(FolowList)+1>ROWS(WorkLisr)-COUNTBLANK(WorkLisr),\"\",INDIRECT(ADDRESS(SMALL((IF(WorkLisr<>\"\",ROW(WorkLisr),ROW()+ROWS(WorkLisr))),ROW()-ROW(FolowList)+1),COLUMN(WorkLisr),4)))","v":""}]
[null,null,null,null,null,null,null,{"$f":"IF(ROW()-ROW(FolowList)+1>ROWS(WorkLisr)-COUNTBLANK(WorkLisr),\"\",INDIRECT(ADDRESS(SMALL((IF(WorkLisr<>\"\",ROW(WorkLisr),ROW()+ROWS(WorkLisr))),ROW()-ROW(FolowList)+1),COLUMN(WorkLisr),4)))","v":""}]
[null,null,null,null,null,null,null,{"$f":"IF(ROW()-ROW(FolowList)+1>ROWS(WorkLisr)-COUNTBLANK(WorkLisr),\"\",INDIRECT(ADDRESS(SMALL((IF(WorkLisr<>\"\",ROW(WorkLisr),ROW()+ROWS(WorkLisr))),ROW()-ROW(FolowList)+1),COLUMN(WorkLisr),4)))","v":""}]
[null,null,null,null,null,null,null,{"$f":"IF(ROW()-ROW(FolowList)+1>ROWS(WorkLisr)-COUNTBLANK(WorkLisr),\"\",INDIRECT(ADDRESS(SMALL((IF(WorkLisr<>\"\",ROW(WorkLisr),ROW()+ROWS(WorkLisr))),ROW()-ROW(FolowList)+1),COLUMN(WorkLisr),4)))","v":""}]
[null,null,null,null,null,null,null,{"$f":"IF(ROW()-ROW(FolowList)+1>ROWS(WorkLisr)-COUNTBLANK(WorkLisr),\"\",INDIRECT(ADDRESS(SMALL((IF(WorkLisr<>\"\",ROW(WorkLisr),ROW()+ROWS(WorkLisr))),ROW()-ROW(FolowList)+1),COLUMN(WorkLisr),4)))","v":""}]
[null,null,null,null,null,null,null,{"$f":"IF(ROW()-ROW(FolowList)+1>ROWS(WorkLisr)-COUNTBLANK(WorkLisr),\"\",INDIRECT(ADDRESS(SMALL((IF(WorkLisr<>\"\",ROW(WorkLisr),ROW()+ROWS(WorkLisr))),ROW()-ROW(FolowList)+1),COLUMN(WorkLisr),4)))","v":""}]
[null,null,null,null,null,null,null,{"$f":"IF(ROW()-ROW(FolowList)+1>ROWS(WorkLisr)-COUNTBLANK(WorkLisr),\"\",INDIRECT(ADDRESS(SMALL((IF(WorkLisr<>\"\",ROW(WorkLisr),ROW()+ROWS(WorkLisr))),ROW()-ROW(FolowList)+1),COLUMN(WorkLisr),4)))","v":""}]
[null,null,null,null,null,null,null,{"$f":"IF(ROW()-ROW(FolowList)+1>ROWS(WorkLisr)-COUNTBLANK(WorkLisr),\"\",INDIRECT(ADDRESS(SMALL((IF(WorkLisr<>\"\",ROW(WorkLisr),ROW()+ROWS(WorkLisr))),ROW()-ROW(FolowList)+1),COLUMN(WorkLisr),4)))","v":""}]
[null,null,null,null,null,null,null,{"$f":"IF(ROW()-ROW(FolowList)+1>ROWS(WorkLisr)-COUNTBLANK(WorkLisr),\"\",INDIRECT(ADDRESS(SMALL((IF(WorkLisr<>\"\",ROW(WorkLisr),ROW()+ROWS(WorkLisr))),ROW()-ROW(FolowList)+1),COLUMN(WorkLisr),4)))","v":""}]
[null,null,null,null,null,null,null,{"$f":"IF(ROW()-ROW(FolowList)+1>ROWS(WorkLisr)-COUNTBLANK(WorkLisr),\"\",INDIRECT(ADDRESS(SMALL((IF(WorkLisr<>\"\",ROW(WorkLisr),ROW()+ROWS(WorkLisr))),ROW()-ROW(FolowList)+1),COLUMN(WorkLisr),4)))","v":""}]
[null,null,null,null,null,null,null,{"$f":"IF(ROW()-ROW(FolowList)+1>ROWS(WorkLisr)-COUNTBLANK(WorkLisr),\"\",INDIRECT(ADDRESS(SMALL((IF(WorkLisr<>\"\",ROW(WorkLisr),ROW()+ROWS(WorkLisr))),ROW()-ROW(FolowList)+1),COLUMN(WorkLisr),4)))","v":""}]
[null,null,null,null,null,null,null,{"$f":"IF(ROW()-ROW(FolowList)+1>ROWS(WorkLisr)-COUNTBLANK(WorkLisr),\"\",INDIRECT(ADDRESS(SMALL((IF(WorkLisr<>\"\",ROW(WorkLisr),ROW()+ROWS(WorkLisr))),ROW()-ROW(FolowList)+1),COLUMN(WorkLisr),4)))","v":""}]
[null,null,null,null,null,null,null,{"$f":"IF(ROW()-ROW(FolowList)+1>ROWS(WorkLisr)-COUNTBLANK(WorkLisr),\"\",INDIRECT(ADDRESS(SMALL((IF(WorkLisr<>\"\",ROW(WorkLisr),ROW()+ROWS(WorkLisr))),ROW()-ROW(FolowList)+1),COLUMN(WorkLisr),4)))","v":""}]
[null,null,null,null,null,null,null,{"$f":"IF(ROW()-ROW(FolowList)+1>ROWS(WorkLisr)-COUNTBLANK(WorkLisr),\"\",INDIRECT(ADDRESS(SMALL((IF(WorkLisr<>\"\",ROW(WorkLisr),ROW()+ROWS(WorkLisr))),ROW()-ROW(FolowList)+1),COLUMN(WorkLisr),4)))","v":""}]
[null,null,null,null,null,null,null,{"$f":"IF(ROW()-ROW(FolowList)+1>ROWS(WorkLisr)-COUNTBLANK(WorkLisr),\"\",INDIRECT(ADDRESS(SMALL((IF(WorkLisr<>\"\",ROW(WorkLisr),ROW()+ROWS(WorkLisr))),ROW()-ROW(FolowList)+1),COLUMN(WorkLisr),4)))","v":""}]
[null,null,null,null,null,null,null,{"$f":"IF(ROW()-ROW(FolowList)+1>ROWS(WorkLisr)-COUNTBLANK(WorkLisr),\"\",INDIRECT(ADDRESS(SMALL((IF(WorkLisr<>\"\",ROW(WorkLisr),ROW()+ROWS(WorkLisr))),ROW()-ROW(FolowList)+1),COLUMN(WorkLisr),4)))","v":""}]
[null,null,null,null,null,null,null,{"$f":"IF(ROW()-ROW(FolowList)+1>ROWS(WorkLisr)-COUNTBLANK(WorkLisr),\"\",INDIRECT(ADDRESS(SMALL((IF(WorkLisr<>\"\",ROW(WorkLisr),ROW()+ROWS(WorkLisr))),ROW()-ROW(FolowList)+1),COLUMN(WorkLisr),4)))","v":""}]
[null,null,null,null,null,null,null,{"$f":"IF(ROW()-ROW(FolowList)+1>ROWS(WorkLisr)-COUNTBLANK(WorkLisr),\"\",INDIRECT(ADDRESS(SMALL((IF(WorkLisr<>\"\",ROW(WorkLisr),ROW()+ROWS(WorkLisr))),ROW()-ROW(FolowList)+1),COLUMN(WorkLisr),4)))","v":""}]
[null,null,null,null,null,null,null,{"$f":"IF(ROW()-ROW(FolowList)+1>ROWS(WorkLisr)-COUNTBLANK(WorkLisr),\"\",INDIRECT(ADDRESS(SMALL((IF(WorkLisr<>\"\",ROW(WorkLisr),ROW()+ROWS(WorkLisr))),ROW()-ROW(FolowList)+1),COLUMN(WorkLisr),4)))","v":""}]
[null,null,null,null,null,null,null,{"$f":"IF(ROW()-ROW(FolowList)+1>ROWS(WorkLisr)-COUNTBLANK(WorkLisr),\"\",INDIRECT(ADDRESS(SMALL((IF(WorkLisr<>\"\",ROW(WorkLisr),ROW()+ROWS(WorkLisr))),ROW()-ROW(FolowList)+1),COLUMN(WorkLisr),4)))","v":""}]
[null,null,null,null,null,null,null,{"$f":"IF(ROW()-ROW(FolowList)+1>ROWS(WorkLisr)-COUNTBLANK(WorkLisr),\"\",INDIRECT(ADDRESS(SMALL((IF(WorkLisr<>\"\",ROW(WorkLisr),ROW()+ROWS(WorkLisr))),ROW()-ROW(FolowList)+1),COLUMN(WorkLisr),4)))","v":""}]
[null,null,null,null,null,null,null,{"$f":"IF(ROW()-ROW(FolowList)+1>ROWS(WorkLisr)-COUNTBLANK(WorkLisr),\"\",INDIRECT(ADDRESS(SMALL((IF(WorkLisr<>\"\",ROW(WorkLisr),ROW()+ROWS(WorkLisr))),ROW()-ROW(FolowList)+1),COLUMN(WorkLisr),4)))","v":""}]
[null,null,null,null,null,null,null,{"$f":"IF(ROW()-ROW(FolowList)+1>ROWS(WorkLisr)-COUNTBLANK(WorkLisr),\"\",INDIRECT(ADDRESS(SMALL((IF(WorkLisr<>\"\",ROW(WorkLisr),ROW()+ROWS(WorkLisr))),ROW()-ROW(FolowList)+1),COLUMN(WorkLisr),4)))","v":""}]
[null,null,null,null,null,null,null,{"$f":"IF(ROW()-ROW(FolowList)+1>ROWS(WorkLisr)-COUNTBLANK(WorkLisr),\"\",INDIRECT(ADDRESS(SMALL((IF(WorkLisr<>\"\",ROW(WorkLisr),ROW()+ROWS(WorkLisr))),ROW()-ROW(FolowList)+1),COLUMN(WorkLisr),4)))","v":""}]
[null,null,null,null,null,null,null,{"$f":"IF(ROW()-ROW(FolowList)+1>ROWS(WorkLisr)-COUNTBLANK(WorkLisr),\"\",INDIRECT(ADDRESS(SMALL((IF(WorkLisr<>\"\",ROW(WorkLisr),ROW()+ROWS(WorkLisr))),ROW()-ROW(FolowList)+1),COLUMN(WorkLisr),4)))","v":""}]
[null,null,null,null,null,null,null,{"$f":"IF(ROW()-ROW(FolowList)+1>ROWS(WorkLisr)-COUNTBLANK(WorkLisr),\"\",INDIRECT(ADDRESS(SMALL((IF(WorkLisr<>\"\",ROW(WorkLisr),ROW()+ROWS(WorkLisr))),ROW()-ROW(FolowList)+1),COLUMN(WorkLisr),4)))","v":""}]
[null,null,null,null,null,null,null,{"$f":"IF(ROW()-ROW(FolowList)+1>ROWS(WorkLisr)-COUNTBLANK(WorkLisr),\"\",INDIRECT(ADDRESS(SMALL((IF(WorkLisr<>\"\",ROW(WorkLisr),ROW()+ROWS(WorkLisr))),ROW()-ROW(FolowList)+1),COLUMN(WorkLisr),4)))","v":""}]
[null,null,null,null,null,null,null,{"$f":"IF(ROW()-ROW(FolowList)+1>ROWS(WorkLisr)-COUNTBLANK(WorkLisr),\"\",INDIRECT(ADDRESS(SMALL((IF(WorkLisr<>\"\",ROW(WorkLisr),ROW()+ROWS(WorkLisr))),ROW()-ROW(FolowList)+1),COLUMN(WorkLisr),4)))","v":""}]
[null,null,null,null,null,null,null,{"$f":"IF(ROW()-ROW(FolowList)+1>ROWS(WorkLisr)-COUNTBLANK(WorkLisr),\"\",INDIRECT(ADDRESS(SMALL((IF(WorkLisr<>\"\",ROW(WorkLisr),ROW()+ROWS(WorkLisr))),ROW()-ROW(FolowList)+1),COLUMN(WorkLisr),4)))","v":""}]
[null,null,null,null,null,null,null,{"$f":"IF(ROW()-ROW(FolowList)+1>ROWS(WorkLisr)-COUNTBLANK(WorkLisr),\"\",INDIRECT(ADDRESS(SMALL((IF(WorkLisr<>\"\",ROW(WorkLisr),ROW()+ROWS(WorkLisr))),ROW()-ROW(FolowList)+1),COLUMN(WorkLisr),4)))","v":""}]
[null,null,null,null,null,null,null,{"$f":"IF(ROW()-ROW(FolowList)+1>ROWS(WorkLisr)-COUNTBLANK(WorkLisr),\"\",INDIRECT(ADDRESS(SMALL((IF(WorkLisr<>\"\",ROW(WorkLisr),ROW()+ROWS(WorkLisr))),ROW()-ROW(FolowList)+1),COLUMN(WorkLisr),4)))","v":""}]
[null,null,null,null,null,null,null,{"$f":"IF(ROW()-ROW(FolowList)+1>ROWS(WorkLisr)-COUNTBLANK(WorkLisr),\"\",INDIRECT(ADDRESS(SMALL((IF(WorkLisr<>\"\",ROW(WorkLisr),ROW()+ROWS(WorkLisr))),ROW()-ROW(FolowList)+1),COLUMN(WorkLisr),4)))","v":""}]
[null,null,null,null,null,null,null,{"$f":"IF(ROW()-ROW(FolowList)+1>ROWS(WorkLisr)-COUNTBLANK(WorkLisr),\"\",INDIRECT(ADDRESS(SMALL((IF(WorkLisr<>\"\",ROW(WorkLisr),ROW()+ROWS(WorkLisr))),ROW()-ROW(FolowList)+1),COLUMN(WorkLisr),4)))","v":""}]
[null,null,null,null,null,null,null,{"$f":"IF(ROW()-ROW(FolowList)+1>ROWS(WorkLisr)-COUNTBLANK(WorkLisr),\"\",INDIRECT(ADDRESS(SMALL((IF(WorkLisr<>\"\",ROW(WorkLisr),ROW()+ROWS(WorkLisr))),ROW()-ROW(FolowList)+1),COLUMN(WorkLisr),4)))","v":""}]
[null,null,null,null,null,null,null,{"$f":"IF(ROW()-ROW(FolowList)+1>ROWS(WorkLisr)-COUNTBLANK(WorkLisr),\"\",INDIRECT(ADDRESS(SMALL((IF(WorkLisr<>\"\",ROW(WorkLisr),ROW()+ROWS(WorkLisr))),ROW()-ROW(FolowList)+1),COLUMN(WorkLisr),4)))","v":""}]
[null,null,null,null,null,null,null,{"$f":"IF(ROW()-ROW(FolowList)+1>ROWS(WorkLisr)-COUNTBLANK(WorkLisr),\"\",INDIRECT(ADDRESS(SMALL((IF(WorkLisr<>\"\",ROW(WorkLisr),ROW()+ROWS(WorkLisr))),ROW()-ROW(FolowList)+1),COLUMN(WorkLisr),4)))","v":""}]
[null,null,null,null,null,null,null,{"$f":"IF(ROW()-ROW(FolowList)+1>ROWS(WorkLisr)-COUNTBLANK(WorkLisr),\"\",INDIRECT(ADDRESS(SMALL((IF(WorkLisr<>\"\",ROW(WorkLisr),ROW()+ROWS(WorkLisr))),ROW()-ROW(FolowList)+1),COLUMN(WorkLisr),4)))","v":""}]
[null,null,null,null,null,null,null,{"$f":"IF(ROW()-ROW(FolowList)+1>ROWS(WorkLisr)-COUNTBLANK(WorkLisr),\"\",INDIRECT(ADDRESS(SMALL((IF(WorkLisr<>\"\",ROW(WorkLisr),ROW()+ROWS(WorkLisr))),ROW()-ROW(FolowList)+1),COLUMN(WorkLisr),4)))","v":""}]
[null,null,null,null,null,null,null,{"$f":"IF(ROW()-ROW(FolowList)+1>ROWS(WorkLisr)-COUNTBLANK(WorkLisr),\"\",INDIRECT(ADDRESS(SMALL((IF(WorkLisr<>\"\",ROW(WorkLisr),ROW()+ROWS(WorkLisr))),ROW()-ROW(FolowList)+1),COLUMN(WorkLisr),4)))","v":""}]
[null,null,null,null,null,null,null,{"$f":"IF(ROW()-ROW(FolowList)+1>ROWS(WorkLisr)-COUNTBLANK(WorkLisr),\"\",INDIRECT(ADDRESS(SMALL((IF(WorkLisr<>\"\",ROW(WorkLisr),ROW()+ROWS(WorkLisr))),ROW()-ROW(FolowList)+1),COLUMN(WorkLisr),4)))","v":""}]
[null,null,null,null,null,null,null,{"$f":"IF(ROW()-ROW(FolowList)+1>ROWS(WorkLisr)-COUNTBLANK(WorkLisr),\"\",INDIRECT(ADDRESS(SMALL((IF(WorkLisr<>\"\",ROW(WorkLisr),ROW()+ROWS(WorkLisr))),ROW()-ROW(FolowList)+1),COLUMN(WorkLisr),4)))","v":""}]
[null,null,null,null,null,null,null,{"$f":"IF(ROW()-ROW(FolowList)+1>ROWS(WorkLisr)-COUNTBLANK(WorkLisr),\"\",INDIRECT(ADDRESS(SMALL((IF(WorkLisr<>\"\",ROW(WorkLisr),ROW()+ROWS(WorkLisr))),ROW()-ROW(FolowList)+1),COLUMN(WorkLisr),4)))","v":""}]
[null,null,null,null,null,null,null,{"$f":"IF(ROW()-ROW(FolowList)+1>ROWS(WorkLisr)-COUNTBLANK(WorkLisr),\"\",INDIRECT(ADDRESS(SMALL((IF(WorkLisr<>\"\",ROW(WorkLisr),ROW()+ROWS(WorkLisr))),ROW()-ROW(FolowList)+1),COLUMN(WorkLisr),4)))","v":""}]
[null,null,null,null,null,null,null,{"$f":"IF(ROW()-ROW(FolowList)+1>ROWS(WorkLisr)-COUNTBLANK(WorkLisr),\"\",INDIRECT(ADDRESS(SMALL((IF(WorkLisr<>\"\",ROW(WorkLisr),ROW()+ROWS(WorkLisr))),ROW()-ROW(FolowList)+1),COLUMN(WorkLisr),4)))","v":""}]
[null,null,null,null,null,null,null,{"$f":"IF(ROW()-ROW(FolowList)+1>ROWS(WorkLisr)-COUNTBLANK(WorkLisr),\"\",INDIRECT(ADDRESS(SMALL((IF(WorkLisr<>\"\",ROW(WorkLisr),ROW()+ROWS(WorkLisr))),ROW()-ROW(FolowList)+1),COLUMN(WorkLisr),4)))","v":""}]
[null,null,null,null,null,null,null,{"$f":"IF(ROW()-ROW(FolowList)+1>ROWS(WorkLisr)-COUNTBLANK(WorkLisr),\"\",INDIRECT(ADDRESS(SMALL((IF(WorkLisr<>\"\",ROW(WorkLisr),ROW()+ROWS(WorkLisr))),ROW()-ROW(FolowList)+1),COLUMN(WorkLisr),4)))","v":""}]
[null,null,null,null,null,null,null,{"$f":"IF(ROW()-ROW(FolowList)+1>ROWS(WorkLisr)-COUNTBLANK(WorkLisr),\"\",INDIRECT(ADDRESS(SMALL((IF(WorkLisr<>\"\",ROW(WorkLisr),ROW()+ROWS(WorkLisr))),ROW()-ROW(FolowList)+1),COLUMN(WorkLisr),4)))","v":""}]
[null,null,null,null,null,null,null,{"$f":"IF(ROW()-ROW(FolowList)+1>ROWS(WorkLisr)-COUNTBLANK(WorkLisr),\"\",INDIRECT(ADDRESS(SMALL((IF(WorkLisr<>\"\",ROW(WorkLisr),ROW()+ROWS(WorkLisr))),ROW()-ROW(FolowList)+1),COLUMN(WorkLisr),4)))","v":""}]
[null,null,null,null,null,null,null,{"$f":"IF(ROW()-ROW(FolowList)+1>ROWS(WorkLisr)-COUNTBLANK(WorkLisr),\"\",INDIRECT(ADDRESS(SMALL((IF(WorkLisr<>\"\",ROW(WorkLisr),ROW()+ROWS(WorkLisr))),ROW()-ROW(FolowList)+1),COLUMN(WorkLisr),4)))","v":""}]
[null,null,null,null,null,null,null,{"$f":"IF(ROW()-ROW(FolowList)+1>ROWS(WorkLisr)-COUNTBLANK(WorkLisr),\"\",INDIRECT(ADDRESS(SMALL((IF(WorkLisr<>\"\",ROW(WorkLisr),ROW()+ROWS(WorkLisr))),ROW()-ROW(FolowList)+1),COLUMN(WorkLisr),4)))","v":""}]
[null,null,null,null,null,null,null,{"$f":"IF(ROW()-ROW(FolowList)+1>ROWS(WorkLisr)-COUNTBLANK(WorkLisr),\"\",INDIRECT(ADDRESS(SMALL((IF(WorkLisr<>\"\",ROW(WorkLisr),ROW()+ROWS(WorkLisr))),ROW()-ROW(FolowList)+1),COLUMN(WorkLisr),4)))","v":""}]
[null,null,null,null,null,null,null,{"$f":"IF(ROW()-ROW(FolowList)+1>ROWS(WorkLisr)-COUNTBLANK(WorkLisr),\"\",INDIRECT(ADDRESS(SMALL((IF(WorkLisr<>\"\",ROW(WorkLisr),ROW()+ROWS(WorkLisr))),ROW()-ROW(FolowList)+1),COLUMN(WorkLisr),4)))","v":""}]
[null,null,null,null,null,null,null,{"$f":"IF(ROW()-ROW(FolowList)+1>ROWS(WorkLisr)-COUNTBLANK(WorkLisr),\"\",INDIRECT(ADDRESS(SMALL((IF(WorkLisr<>\"\",ROW(WorkLisr),ROW()+ROWS(WorkLisr))),ROW()-ROW(FolowList)+1),COLUMN(WorkLisr),4)))","v":""}]
[null,null,null,null,null,null,null,{"$f":"IF(ROW()-ROW(FolowList)+1>ROWS(WorkLisr)-COUNTBLANK(WorkLisr),\"\",INDIRECT(ADDRESS(SMALL((IF(WorkLisr<>\"\",ROW(WorkLisr),ROW()+ROWS(WorkLisr))),ROW()-ROW(FolowList)+1),COLUMN(WorkLisr),4)))","v":""}]
[null,null,null,null,null,null,null,{"$f":"IF(ROW()-ROW(FolowList)+1>ROWS(WorkLisr)-COUNTBLANK(WorkLisr),\"\",INDIRECT(ADDRESS(SMALL((IF(WorkLisr<>\"\",ROW(WorkLisr),ROW()+ROWS(WorkLisr))),ROW()-ROW(FolowList)+1),COLUMN(WorkLisr),4)))","v":""}]
[null,null,null,null,null,null,null,{"$f":"IF(ROW()-ROW(FolowList)+1>ROWS(WorkLisr)-COUNTBLANK(WorkLisr),\"\",INDIRECT(ADDRESS(SMALL((IF(WorkLisr<>\"\",ROW(WorkLisr),ROW()+ROWS(WorkLisr))),ROW()-ROW(FolowList)+1),COLUMN(WorkLisr),4)))","v":""}]
[null,null,null,null,null,null,null,{"$f":"IF(ROW()-ROW(FolowList)+1>ROWS(WorkLisr)-COUNTBLANK(WorkLisr),\"\",INDIRECT(ADDRESS(SMALL((IF(WorkLisr<>\"\",ROW(WorkLisr),ROW()+ROWS(WorkLisr))),ROW()-ROW(FolowList)+1),COLUMN(WorkLisr),4)))","v":""}]
[null,null,null,null,null,null,null,{"$f":"IF(ROW()-ROW(FolowList)+1>ROWS(WorkLisr)-COUNTBLANK(WorkLisr),\"\",INDIRECT(ADDRESS(SMALL((IF(WorkLisr<>\"\",ROW(WorkLisr),ROW()+ROWS(WorkLisr))),ROW()-ROW(FolowList)+1),COLUMN(WorkLisr),4)))","v":""}]
[null,null,null,null,null,null,null,{"$f":"IF(ROW()-ROW(FolowList)+1>ROWS(WorkLisr)-COUNTBLANK(WorkLisr),\"\",INDIRECT(ADDRESS(SMALL((IF(WorkLisr<>\"\",ROW(WorkLisr),ROW()+ROWS(WorkLisr))),ROW()-ROW(FolowList)+1),COLUMN(WorkLisr),4)))","v":""}]
[null,null,null,null,null,null,null,{"$f":"IF(ROW()-ROW(FolowList)+1>ROWS(WorkLisr)-COUNTBLANK(WorkLisr),\"\",INDIRECT(ADDRESS(SMALL((IF(WorkLisr<>\"\",ROW(WorkLisr),ROW()+ROWS(WorkLisr))),ROW()-ROW(FolowList)+1),COLUMN(WorkLisr),4)))","v":""}]
[null,null,null,null,null,null,null,{"$f":"IF(ROW()-ROW(FolowList)+1>ROWS(WorkLisr)-COUNTBLANK(WorkLisr),\"\",INDIRECT(ADDRESS(SMALL((IF(WorkLisr<>\"\",ROW(WorkLisr),ROW()+ROWS(WorkLisr))),ROW()-ROW(FolowList)+1),COLUMN(WorkLisr),4)))","v":""}]
[null,null,null,null,null,null,null,{"$f":"IF(ROW()-ROW(FolowList)+1>ROWS(WorkLisr)-COUNTBLANK(WorkLisr),\"\",INDIRECT(ADDRESS(SMALL((IF(WorkLisr<>\"\",ROW(WorkLisr),ROW()+ROWS(WorkLisr))),ROW()-ROW(FolowList)+1),COLUMN(WorkLisr),4)))","v":""}]
[null,null,null,null,null,null,null,{"$f":"IF(ROW()-ROW(FolowList)+1>ROWS(WorkLisr)-COUNTBLANK(WorkLisr),\"\",INDIRECT(ADDRESS(SMALL((IF(WorkLisr<>\"\",ROW(WorkLisr),ROW()+ROWS(WorkLisr))),ROW()-ROW(FolowList)+1),COLUMN(WorkLisr),4)))","v":""}]
[null,null,null,null,null,null,null,{"$f":"IF(ROW()-ROW(FolowList)+1>ROWS(WorkLisr)-COUNTBLANK(WorkLisr),\"\",INDIRECT(ADDRESS(SMALL((IF(WorkLisr<>\"\",ROW(WorkLisr),ROW()+ROWS(WorkLisr))),ROW()-ROW(FolowList)+1),COLUMN(WorkLisr),4)))","v":""}]
[null,null,null,null,null,null,null,{"$f":"IF(ROW()-ROW(FolowList)+1>ROWS(WorkLisr)-COUNTBLANK(WorkLisr),\"\",INDIRECT(ADDRESS(SMALL((IF(WorkLisr<>\"\",ROW(WorkLisr),ROW()+ROWS(WorkLisr))),ROW()-ROW(FolowList)+1),COLUMN(WorkLisr),4)))","v":""}]
[null,null,null,null,null,null,null,{"$f":"IF(ROW()-ROW(FolowList)+1>ROWS(WorkLisr)-COUNTBLANK(WorkLisr),\"\",INDIRECT(ADDRESS(SMALL((IF(WorkLisr<>\"\",ROW(WorkLisr),ROW()+ROWS(WorkLisr))),ROW()-ROW(FolowList)+1),COLUMN(WorkLisr),4)))","v":""}]
[null,null,null,null,null,null,null,{"$f":"IF(ROW()-ROW(FolowList)+1>ROWS(WorkLisr)-COUNTBLANK(WorkLisr),\"\",INDIRECT(ADDRESS(SMALL((IF(WorkLisr<>\"\",ROW(WorkLisr),ROW()+ROWS(WorkLisr))),ROW()-ROW(FolowList)+1),COLUMN(WorkLisr),4)))","v":""}]
[null,null,null,null,null,null,null,{"$f":"IF(ROW()-ROW(FolowList)+1>ROWS(WorkLisr)-COUNTBLANK(WorkLisr),\"\",INDIRECT(ADDRESS(SMALL((IF(WorkLisr<>\"\",ROW(WorkLisr),ROW()+ROWS(WorkLisr))),ROW()-ROW(FolowList)+1),COLUMN(WorkLisr),4)))","v":""}]
[null,null,null,null,null,null,null,{"$f":"IF(ROW()-ROW(FolowList)+1>ROWS(WorkLisr)-COUNTBLANK(WorkLisr),\"\",INDIRECT(ADDRESS(SMALL((IF(WorkLisr<>\"\",ROW(WorkLisr),ROW()+ROWS(WorkLisr))),ROW()-ROW(FolowList)+1),COLUMN(WorkLisr),4)))","v":""}]
[null,null,null,null,null,null,null,{"$f":"IF(ROW()-ROW(FolowList)+1>ROWS(WorkLisr)-COUNTBLANK(WorkLisr),\"\",INDIRECT(ADDRESS(SMALL((IF(WorkLisr<>\"\",ROW(WorkLisr),ROW()+ROWS(WorkLisr))),ROW()-ROW(FolowList)+1),COLUMN(WorkLisr),4)))","v":""}]
[null,null,null,null,null,null,null,{"$f":"IF(ROW()-ROW(FolowList)+1>ROWS(WorkLisr)-COUNTBLANK(WorkLisr),\"\",INDIRECT(ADDRESS(SMALL((IF(WorkLisr<>\"\",ROW(WorkLisr),ROW()+ROWS(WorkLisr))),ROW()-ROW(FolowList)+1),COLUMN(WorkLisr),4)))","v":""}]
[null,null,null,null,null,null,null,{"$f":"IF(ROW()-ROW(FolowList)+1>ROWS(WorkLisr)-COUNTBLANK(WorkLisr),\"\",INDIRECT(ADDRESS(SMALL((IF(WorkLisr<>\"\",ROW(WorkLisr),ROW()+ROWS(WorkLisr))),ROW()-ROW(FolowList)+1),COLUMN(WorkLisr),4)))","v":""}]
[null,null,null,null,null,null,null,{"$f":"IF(ROW()-ROW(FolowList)+1>ROWS(WorkLisr)-COUNTBLANK(WorkLisr),\"\",INDIRECT(ADDRESS(SMALL((IF(WorkLisr<>\"\",ROW(WorkLisr),ROW()+ROWS(WorkLisr))),ROW()-ROW(FolowList)+1),COLUMN(WorkLisr),4)))","v":""}]
[null,null,null,null,null,null,null,{"$f":"IF(ROW()-ROW(FolowList)+1>ROWS(WorkLisr)-COUNTBLANK(WorkLisr),\"\",INDIRECT(ADDRESS(SMALL((IF(WorkLisr<>\"\",ROW(WorkLisr),ROW()+ROWS(WorkLisr))),ROW()-ROW(FolowList)+1),COLUMN(WorkLisr),4)))","v":""}]
[null,null,null,null,null,null,null,{"$f":"IF(ROW()-ROW(FolowList)+1>ROWS(WorkLisr)-COUNTBLANK(WorkLisr),\"\",INDIRECT(ADDRESS(SMALL((IF(WorkLisr<>\"\",ROW(WorkLisr),ROW()+ROWS(WorkLisr))),ROW()-ROW(FolowList)+1),COLUMN(WorkLisr),4)))","v":""}]
[null,null,null,null,null,null,null,{"$f":"IF(ROW()-ROW(FolowList)+1>ROWS(WorkLisr)-COUNTBLANK(WorkLisr),\"\",INDIRECT(ADDRESS(SMALL((IF(WorkLisr<>\"\",ROW(WorkLisr),ROW()+ROWS(WorkLisr))),ROW()-ROW(FolowList)+1),COLUMN(WorkLisr),4)))","v":""}]
[null,null,null,null,null,null,null,{"$f":"IF(ROW()-ROW(FolowList)+1>ROWS(WorkLisr)-COUNTBLANK(WorkLisr),\"\",INDIRECT(ADDRESS(SMALL((IF(WorkLisr<>\"\",ROW(WorkLisr),ROW()+ROWS(WorkLisr))),ROW()-ROW(FolowList)+1),COLUMN(WorkLisr),4)))","v":""}]
[null,null,null,null,null,null,null,{"$f":"IF(ROW()-ROW(FolowList)+1>ROWS(WorkLisr)-COUNTBLANK(WorkLisr),\"\",INDIRECT(ADDRESS(SMALL((IF(WorkLisr<>\"\",ROW(WorkLisr),ROW()+ROWS(WorkLisr))),ROW()-ROW(FolowList)+1),COLUMN(WorkLisr),4)))","v":""}]
[null,null,null,null,null,null,null,{"$f":"IF(ROW()-ROW(FolowList)+1>ROWS(WorkLisr)-COUNTBLANK(WorkLisr),\"\",INDIRECT(ADDRESS(SMALL((IF(WorkLisr<>\"\",ROW(WorkLisr),ROW()+ROWS(WorkLisr))),ROW()-ROW(FolowList)+1),COLUMN(WorkLisr),4)))","v":""}]
[null,null,null,null,null,null,null,{"$f":"IF(ROW()-ROW(FolowList)+1>ROWS(WorkLisr)-COUNTBLANK(WorkLisr),\"\",INDIRECT(ADDRESS(SMALL((IF(WorkLisr<>\"\",ROW(WorkLisr),ROW()+ROWS(WorkLisr))),ROW()-ROW(FolowList)+1),COLUMN(WorkLisr),4)))","v":""}]
[null,null,null,null,null,null,null,{"$f":"IF(ROW()-ROW(FolowList)+1>ROWS(WorkLisr)-COUNTBLANK(WorkLisr),\"\",INDIRECT(ADDRESS(SMALL((IF(WorkLisr<>\"\",ROW(WorkLisr),ROW()+ROWS(WorkLisr))),ROW()-ROW(FolowList)+1),COLUMN(WorkLisr),4)))","v":""}]
[null,null,null,null,null,null,null,{"$f":"IF(ROW()-ROW(FolowList)+1>ROWS(WorkLisr)-COUNTBLANK(WorkLisr),\"\",INDIRECT(ADDRESS(SMALL((IF(WorkLisr<>\"\",ROW(WorkLisr),ROW()+ROWS(WorkLisr))),ROW()-ROW(FolowList)+1),COLUMN(WorkLisr),4)))","v":""}]
[null,null,null,null,null,null,null,{"$f":"IF(ROW()-ROW(FolowList)+1>ROWS(WorkLisr)-COUNTBLANK(WorkLisr),\"\",INDIRECT(ADDRESS(SMALL((IF(WorkLisr<>\"\",ROW(WorkLisr),ROW()+ROWS(WorkLisr))),ROW()-ROW(FolowList)+1),COLUMN(WorkLisr),4)))","v":""}]
[null,null,null,null,null,null,null,{"$f":"IF(ROW()-ROW(FolowList)+1>ROWS(WorkLisr)-COUNTBLANK(WorkLisr),\"\",INDIRECT(ADDRESS(SMALL((IF(WorkLisr<>\"\",ROW(WorkLisr),ROW()+ROWS(WorkLisr))),ROW()-ROW(FolowList)+1),COLUMN(WorkLisr),4)))","v":""}]
[null,null,null,null,null,null,null,{"$f":"IF(ROW()-ROW(FolowList)+1>ROWS(WorkLisr)-COUNTBLANK(WorkLisr),\"\",INDIRECT(ADDRESS(SMALL((IF(WorkLisr<>\"\",ROW(WorkLisr),ROW()+ROWS(WorkLisr))),ROW()-ROW(FolowList)+1),COLUMN(WorkLisr),4)))","v":""}]
[null,null,null,null,null,null,null,{"$f":"IF(ROW()-ROW(FolowList)+1>ROWS(WorkLisr)-COUNTBLANK(WorkLisr),\"\",INDIRECT(ADDRESS(SMALL((IF(WorkLisr<>\"\",ROW(WorkLisr),ROW()+ROWS(WorkLisr))),ROW()-ROW(FolowList)+1),COLUMN(WorkLisr),4)))","v":""}]
[null,null,null,null,null,null,null,{"$f":"IF(ROW()-ROW(FolowList)+1>ROWS(WorkLisr)-COUNTBLANK(WorkLisr),\"\",INDIRECT(ADDRESS(SMALL((IF(WorkLisr<>\"\",ROW(WorkLisr),ROW()+ROWS(WorkLisr))),ROW()-ROW(FolowList)+1),COLUMN(WorkLisr),4)))","v":""}]
[null,null,null,null,null,null,null,{"$f":"IF(ROW()-ROW(FolowList)+1>ROWS(WorkLisr)-COUNTBLANK(WorkLisr),\"\",INDIRECT(ADDRESS(SMALL((IF(WorkLisr<>\"\",ROW(WorkLisr),ROW()+ROWS(WorkLisr))),ROW()-ROW(FolowList)+1),COLUMN(WorkLisr),4)))","v":""}]
[null,null,null,null,null,null,null,{"$f":"IF(ROW()-ROW(FolowList)+1>ROWS(WorkLisr)-COUNTBLANK(WorkLisr),\"\",INDIRECT(ADDRESS(SMALL((IF(WorkLisr<>\"\",ROW(WorkLisr),ROW()+ROWS(WorkLisr))),ROW()-ROW(FolowList)+1),COLUMN(WorkLisr),4)))","v":""}]
[null,null,null,null,null,null,null,{"$f":"IF(ROW()-ROW(FolowList)+1>ROWS(WorkLisr)-COUNTBLANK(WorkLisr),\"\",INDIRECT(ADDRESS(SMALL((IF(WorkLisr<>\"\",ROW(WorkLisr),ROW()+ROWS(WorkLisr))),ROW()-ROW(FolowList)+1),COLUMN(WorkLisr),4)))","v":""}]
[null,null,null,null,null,null,null,{"$f":"IF(ROW()-ROW(FolowList)+1>ROWS(WorkLisr)-COUNTBLANK(WorkLisr),\"\",INDIRECT(ADDRESS(SMALL((IF(WorkLisr<>\"\",ROW(WorkLisr),ROW()+ROWS(WorkLisr))),ROW()-ROW(FolowList)+1),COLUMN(WorkLisr),4)))","v":""}]
[null,null,null,null,null,null,null,{"$f":"IF(ROW()-ROW(FolowList)+1>ROWS(WorkLisr)-COUNTBLANK(WorkLisr),\"\",INDIRECT(ADDRESS(SMALL((IF(WorkLisr<>\"\",ROW(WorkLisr),ROW()+ROWS(WorkLisr))),ROW()-ROW(FolowList)+1),COLUMN(WorkLisr),4)))","v":""}]
[null,null,null,null,null,null,null,{"$f":"IF(ROW()-ROW(FolowList)+1>ROWS(WorkLisr)-COUNTBLANK(WorkLisr),\"\",INDIRECT(ADDRESS(SMALL((IF(WorkLisr<>\"\",ROW(WorkLisr),ROW()+ROWS(WorkLisr))),ROW()-ROW(FolowList)+1),COLUMN(WorkLisr),4)))","v":""}]
[null,null,null,null,null,null,null,{"$f":"IF(ROW()-ROW(FolowList)+1>ROWS(WorkLisr)-COUNTBLANK(WorkLisr),\"\",INDIRECT(ADDRESS(SMALL((IF(WorkLisr<>\"\",ROW(WorkLisr),ROW()+ROWS(WorkLisr))),ROW()-ROW(FolowList)+1),COLUMN(WorkLisr),4)))","v":""}]
[null,null,null,null,null,null,null,{"$f":"IF(ROW()-ROW(FolowList)+1>ROWS(WorkLisr)-COUNTBLANK(WorkLisr),\"\",INDIRECT(ADDRESS(SMALL((IF(WorkLisr<>\"\",ROW(WorkLisr),ROW()+ROWS(WorkLisr))),ROW()-ROW(FolowList)+1),COLUMN(WorkLisr),4)))","v":""}]
[null,null,null,null,null,null,null,{"$f":"IF(ROW()-ROW(FolowList)+1>ROWS(WorkLisr)-COUNTBLANK(WorkLisr),\"\",INDIRECT(ADDRESS(SMALL((IF(WorkLisr<>\"\",ROW(WorkLisr),ROW()+ROWS(WorkLisr))),ROW()-ROW(FolowList)+1),COLUMN(WorkLisr),4)))","v":""}]
[null,null,null,null,null,null,null,{"$f":"IF(ROW()-ROW(FolowList)+1>ROWS(WorkLisr)-COUNTBLANK(WorkLisr),\"\",INDIRECT(ADDRESS(SMALL((IF(WorkLisr<>\"\",ROW(WorkLisr),ROW()+ROWS(WorkLisr))),ROW()-ROW(FolowList)+1),COLUMN(WorkLisr),4)))","v":""}]
[null,null,null,null,null,null,null,{"$f":"IF(ROW()-ROW(FolowList)+1>ROWS(WorkLisr)-COUNTBLANK(WorkLisr),\"\",INDIRECT(ADDRESS(SMALL((IF(WorkLisr<>\"\",ROW(WorkLisr),ROW()+ROWS(WorkLisr))),ROW()-ROW(FolowList)+1),COLUMN(WorkLisr),4)))","v":""}]
[null,null,null,null,null,null,null,{"$f":"IF(ROW()-ROW(FolowList)+1>ROWS(WorkLisr)-COUNTBLANK(WorkLisr),\"\",INDIRECT(ADDRESS(SMALL((IF(WorkLisr<>\"\",ROW(WorkLisr),ROW()+ROWS(WorkLisr))),ROW()-ROW(FolowList)+1),COLUMN(WorkLisr),4)))","v":""}]
[null,null,null,null,null,null,null,{"$f":"IF(ROW()-ROW(FolowList)+1>ROWS(WorkLisr)-COUNTBLANK(WorkLisr),\"\",INDIRECT(ADDRESS(SMALL((IF(WorkLisr<>\"\",ROW(WorkLisr),ROW()+ROWS(WorkLisr))),ROW()-ROW(FolowList)+1),COLUMN(WorkLisr),4)))","v":""}]
[null,null,null,null,null,null,null,{"$f":"IF(ROW()-ROW(FolowList)+1>ROWS(WorkLisr)-COUNTBLANK(WorkLisr),\"\",INDIRECT(ADDRESS(SMALL((IF(WorkLisr<>\"\",ROW(WorkLisr),ROW()+ROWS(WorkLisr))),ROW()-ROW(FolowList)+1),COLUMN(WorkLisr),4)))","v":""}]
[null,null,null,null,null,null,null,{"$f":"IF(ROW()-ROW(FolowList)+1>ROWS(WorkLisr)-COUNTBLANK(WorkLisr),\"\",INDIRECT(ADDRESS(SMALL((IF(WorkLisr<>\"\",ROW(WorkLisr),ROW()+ROWS(WorkLisr))),ROW()-ROW(FolowList)+1),COLUMN(WorkLisr),4)))","v":""}]
[null,null,null,null,null,null,null,{"$f":"IF(ROW()-ROW(FolowList)+1>ROWS(WorkLisr)-COUNTBLANK(WorkLisr),\"\",INDIRECT(ADDRESS(SMALL((IF(WorkLisr<>\"\",ROW(WorkLisr),ROW()+ROWS(WorkLisr))),ROW()-ROW(FolowList)+1),COLUMN(WorkLisr),4)))","v":""}]
[null,null,null,null,null,null,null,{"$f":"IF(ROW()-ROW(FolowList)+1>ROWS(WorkLisr)-COUNTBLANK(WorkLisr),\"\",INDIRECT(ADDRESS(SMALL((IF(WorkLisr<>\"\",ROW(WorkLisr),ROW()+ROWS(WorkLisr))),ROW()-ROW(FolowList)+1),COLUMN(WorkLisr),4)))","v":""}]
[null,null,null,null,null,null,null,{"$f":"IF(ROW()-ROW(FolowList)+1>ROWS(WorkLisr)-COUNTBLANK(WorkLisr),\"\",INDIRECT(ADDRESS(SMALL((IF(WorkLisr<>\"\",ROW(WorkLisr),ROW()+ROWS(WorkLisr))),ROW()-ROW(FolowList)+1),COLUMN(WorkLisr),4)))","v":""}]
[null,null,null,null,null,null,null,{"$f":"IF(ROW()-ROW(FolowList)+1>ROWS(WorkLisr)-COUNTBLANK(WorkLisr),\"\",INDIRECT(ADDRESS(SMALL((IF(WorkLisr<>\"\",ROW(WorkLisr),ROW()+ROWS(WorkLisr))),ROW()-ROW(FolowList)+1),COLUMN(WorkLisr),4)))","v":""}]
[null,null,null,null,null,null,null,{"$f":"IF(ROW()-ROW(FolowList)+1>ROWS(WorkLisr)-COUNTBLANK(WorkLisr),\"\",INDIRECT(ADDRESS(SMALL((IF(WorkLisr<>\"\",ROW(WorkLisr),ROW()+ROWS(WorkLisr))),ROW()-ROW(FolowList)+1),COLUMN(WorkLisr),4)))","v":""}]
[null,null,null,null,null,null,null,{"$f":"IF(ROW()-ROW(FolowList)+1>ROWS(WorkLisr)-COUNTBLANK(WorkLisr),\"\",INDIRECT(ADDRESS(SMALL((IF(WorkLisr<>\"\",ROW(WorkLisr),ROW()+ROWS(WorkLisr))),ROW()-ROW(FolowList)+1),COLUMN(WorkLisr),4)))","v":""}]
[null,null,null,null,null,null,null,{"$f":"IF(ROW()-ROW(FolowList)+1>ROWS(WorkLisr)-COUNTBLANK(WorkLisr),\"\",INDIRECT(ADDRESS(SMALL((IF(WorkLisr<>\"\",ROW(WorkLisr),ROW()+ROWS(WorkLisr))),ROW()-ROW(FolowList)+1),COLUMN(WorkLisr),4)))","v":""}]
[null,null,null,null,null,null,null,{"$f":"IF(ROW()-ROW(FolowList)+1>ROWS(WorkLisr)-COUNTBLANK(WorkLisr),\"\",INDIRECT(ADDRESS(SMALL((IF(WorkLisr<>\"\",ROW(WorkLisr),ROW()+ROWS(WorkLisr))),ROW()-ROW(FolowList)+1),COLUMN(WorkLisr),4)))","v":""}]
[null,null,null,null,null,null,null,{"$f":"IF(ROW()-ROW(FolowList)+1>ROWS(WorkLisr)-COUNTBLANK(WorkLisr),\"\",INDIRECT(ADDRESS(SMALL((IF(WorkLisr<>\"\",ROW(WorkLisr),ROW()+ROWS(WorkLisr))),ROW()-ROW(FolowList)+1),COLUMN(WorkLisr),4)))","v":""}]
[null,null,null,null,null,null,null,{"$f":"IF(ROW()-ROW(FolowList)+1>ROWS(WorkLisr)-COUNTBLANK(WorkLisr),\"\",INDIRECT(ADDRESS(SMALL((IF(WorkLisr<>\"\",ROW(WorkLisr),ROW()+ROWS(WorkLisr))),ROW()-ROW(FolowList)+1),COLUMN(WorkLisr),4)))","v":""}]
[null,null,null,null,null,null,null,{"$f":"IF(ROW()-ROW(FolowList)+1>ROWS(WorkLisr)-COUNTBLANK(WorkLisr),\"\",INDIRECT(ADDRESS(SMALL((IF(WorkLisr<>\"\",ROW(WorkLisr),ROW()+ROWS(WorkLisr))),ROW()-ROW(FolowList)+1),COLUMN(WorkLisr),4)))","v":""}]
[null,null,null,null,null,null,null,{"$f":"IF(ROW()-ROW(FolowList)+1>ROWS(WorkLisr)-COUNTBLANK(WorkLisr),\"\",INDIRECT(ADDRESS(SMALL((IF(WorkLisr<>\"\",ROW(WorkLisr),ROW()+ROWS(WorkLisr))),ROW()-ROW(FolowList)+1),COLUMN(WorkLisr),4)))","v":""}]
[null,null,null,null,null,null,null,{"$f":"IF(ROW()-ROW(FolowList)+1>ROWS(WorkLisr)-COUNTBLANK(WorkLisr),\"\",INDIRECT(ADDRESS(SMALL((IF(WorkLisr<>\"\",ROW(WorkLisr),ROW()+ROWS(WorkLisr))),ROW()-ROW(FolowList)+1),COLUMN(WorkLisr),4)))","v":""}]
[null,null,null,null,null,null,null,{"$f":"IF(ROW()-ROW(FolowList)+1>ROWS(WorkLisr)-COUNTBLANK(WorkLisr),\"\",INDIRECT(ADDRESS(SMALL((IF(WorkLisr<>\"\",ROW(WorkLisr),ROW()+ROWS(WorkLisr))),ROW()-ROW(FolowList)+1),COLUMN(WorkLisr),4)))","v":""}]
[null,null,null,null,null,null,null,{"$f":"IF(ROW()-ROW(FolowList)+1>ROWS(WorkLisr)-COUNTBLANK(WorkLisr),\"\",INDIRECT(ADDRESS(SMALL((IF(WorkLisr<>\"\",ROW(WorkLisr),ROW()+ROWS(WorkLisr))),ROW()-ROW(FolowList)+1),COLUMN(WorkLisr),4)))","v":""}]
[null,null,null,null,null,null,null,{"$f":"IF(ROW()-ROW(FolowList)+1>ROWS(WorkLisr)-COUNTBLANK(WorkLisr),\"\",INDIRECT(ADDRESS(SMALL((IF(WorkLisr<>\"\",ROW(WorkLisr),ROW()+ROWS(WorkLisr))),ROW()-ROW(FolowList)+1),COLUMN(WorkLisr),4)))","v":""}]
[null,null,null,null,null,null,null,{"$f":"IF(ROW()-ROW(FolowList)+1>ROWS(WorkLisr)-COUNTBLANK(WorkLisr),\"\",INDIRECT(ADDRESS(SMALL((IF(WorkLisr<>\"\",ROW(WorkLisr),ROW()+ROWS(WorkLisr))),ROW()-ROW(FolowList)+1),COLUMN(WorkLisr),4)))","v":""}]
[null,null,null,null,null,null,null,{"$f":"IF(ROW()-ROW(FolowList)+1>ROWS(WorkLisr)-COUNTBLANK(WorkLisr),\"\",INDIRECT(ADDRESS(SMALL((IF(WorkLisr<>\"\",ROW(WorkLisr),ROW()+ROWS(WorkLisr))),ROW()-ROW(FolowList)+1),COLUMN(WorkLisr),4)))","v":""}]
[null,null,null,null,null,null,null,{"$f":"IF(ROW()-ROW(FolowList)+1>ROWS(WorkLisr)-COUNTBLANK(WorkLisr),\"\",INDIRECT(ADDRESS(SMALL((IF(WorkLisr<>\"\",ROW(WorkLisr),ROW()+ROWS(WorkLisr))),ROW()-ROW(FolowList)+1),COLUMN(WorkLisr),4)))","v":""}]
[null,null,null,null,null,null,null,{"$f":"IF(ROW()-ROW(FolowList)+1>ROWS(WorkLisr)-COUNTBLANK(WorkLisr),\"\",INDIRECT(ADDRESS(SMALL((IF(WorkLisr<>\"\",ROW(WorkLisr),ROW()+ROWS(WorkLisr))),ROW()-ROW(FolowList)+1),COLUMN(WorkLisr),4)))","v":""}]
[null,null,null,null,null,null,null,{"$f":"IF(ROW()-ROW(FolowList)+1>ROWS(WorkLisr)-COUNTBLANK(WorkLisr),\"\",INDIRECT(ADDRESS(SMALL((IF(WorkLisr<>\"\",ROW(WorkLisr),ROW()+ROWS(WorkLisr))),ROW()-ROW(FolowList)+1),COLUMN(WorkLisr),4)))","v":""}]
[null,null,null,null,null,null,null,{"$f":"IF(ROW()-ROW(FolowList)+1>ROWS(WorkLisr)-COUNTBLANK(WorkLisr),\"\",INDIRECT(ADDRESS(SMALL((IF(WorkLisr<>\"\",ROW(WorkLisr),ROW()+ROWS(WorkLisr))),ROW()-ROW(FolowList)+1),COLUMN(WorkLisr),4)))","v":""}]
[null,null,null,null,null,null,null,{"$f":"IF(ROW()-ROW(FolowList)+1>ROWS(WorkLisr)-COUNTBLANK(WorkLisr),\"\",INDIRECT(ADDRESS(SMALL((IF(WorkLisr<>\"\",ROW(WorkLisr),ROW()+ROWS(WorkLisr))),ROW()-ROW(FolowList)+1),COLUMN(WorkLisr),4)))","v":""}]
[null,null,null,null,null,null,null,{"$f":"IF(ROW()-ROW(FolowList)+1>ROWS(WorkLisr)-COUNTBLANK(WorkLisr),\"\",INDIRECT(ADDRESS(SMALL((IF(WorkLisr<>\"\",ROW(WorkLisr),ROW()+ROWS(WorkLisr))),ROW()-ROW(FolowList)+1),COLUMN(WorkLisr),4)))","v":""}]
[null,null,null,null,null,null,null,{"$f":"IF(ROW()-ROW(FolowList)+1>ROWS(WorkLisr)-COUNTBLANK(WorkLisr),\"\",INDIRECT(ADDRESS(SMALL((IF(WorkLisr<>\"\",ROW(WorkLisr),ROW()+ROWS(WorkLisr))),ROW()-ROW(FolowList)+1),COLUMN(WorkLisr),4)))","v":""}]
[null,null,null,null,null,null,null,{"$f":"IF(ROW()-ROW(FolowList)+1>ROWS(WorkLisr)-COUNTBLANK(WorkLisr),\"\",INDIRECT(ADDRESS(SMALL((IF(WorkLisr<>\"\",ROW(WorkLisr),ROW()+ROWS(WorkLisr))),ROW()-ROW(FolowList)+1),COLUMN(WorkLisr),4)))","v":""}]
[null,null,null,null,null,null,null,{"$f":"IF(ROW()-ROW(FolowList)+1>ROWS(WorkLisr)-COUNTBLANK(WorkLisr),\"\",INDIRECT(ADDRESS(SMALL((IF(WorkLisr<>\"\",ROW(WorkLisr),ROW()+ROWS(WorkLisr))),ROW()-ROW(FolowList)+1),COLUMN(WorkLisr),4)))","v":""}]
[null,null,null,null,null,null,null,{"$f":"IF(ROW()-ROW(FolowList)+1>ROWS(WorkLisr)-COUNTBLANK(WorkLisr),\"\",INDIRECT(ADDRESS(SMALL((IF(WorkLisr<>\"\",ROW(WorkLisr),ROW()+ROWS(WorkLisr))),ROW()-ROW(FolowList)+1),COLUMN(WorkLisr),4)))","v":""}]
[null,null,null,null,null,null,null,{"$f":"IF(ROW()-ROW(FolowList)+1>ROWS(WorkLisr)-COUNTBLANK(WorkLisr),\"\",INDIRECT(ADDRESS(SMALL((IF(WorkLisr<>\"\",ROW(WorkLisr),ROW()+ROWS(WorkLisr))),ROW()-ROW(FolowList)+1),COLUMN(WorkLisr),4)))","v":""}]
[null,null,null,null,null,null,null,{"$f":"IF(ROW()-ROW(FolowList)+1>ROWS(WorkLisr)-COUNTBLANK(WorkLisr),\"\",INDIRECT(ADDRESS(SMALL((IF(WorkLisr<>\"\",ROW(WorkLisr),ROW()+ROWS(WorkLisr))),ROW()-ROW(FolowList)+1),COLUMN(WorkLisr),4)))","v":""}]
[null,null,null,null,null,null,null,{"$f":"IF(ROW()-ROW(FolowList)+1>ROWS(WorkLisr)-COUNTBLANK(WorkLisr),\"\",INDIRECT(ADDRESS(SMALL((IF(WorkLisr<>\"\",ROW(WorkLisr),ROW()+ROWS(WorkLisr))),ROW()-ROW(FolowList)+1),COLUMN(WorkLisr),4)))","v":""}]
[null,null,null,null,null,null,null,{"$f":"IF(ROW()-ROW(FolowList)+1>ROWS(WorkLisr)-COUNTBLANK(WorkLisr),\"\",INDIRECT(ADDRESS(SMALL((IF(WorkLisr<>\"\",ROW(WorkLisr),ROW()+ROWS(WorkLisr))),ROW()-ROW(FolowList)+1),COLUMN(WorkLisr),4)))","v":""}]
[null,null,null,null,null,null,null,{"$f":"IF(ROW()-ROW(FolowList)+1>ROWS(WorkLisr)-COUNTBLANK(WorkLisr),\"\",INDIRECT(ADDRESS(SMALL((IF(WorkLisr<>\"\",ROW(WorkLisr),ROW()+ROWS(WorkLisr))),ROW()-ROW(FolowList)+1),COLUMN(WorkLisr),4)))","v":""}]
[null,null,null,null,null,null,null,{"$f":"IF(ROW()-ROW(FolowList)+1>ROWS(WorkLisr)-COUNTBLANK(WorkLisr),\"\",INDIRECT(ADDRESS(SMALL((IF(WorkLisr<>\"\",ROW(WorkLisr),ROW()+ROWS(WorkLisr))),ROW()-ROW(FolowList)+1),COLUMN(WorkLisr),4)))","v":""}]
[null,null,null,null,null,null,null,{"$f":"IF(ROW()-ROW(FolowList)+1>ROWS(WorkLisr)-COUNTBLANK(WorkLisr),\"\",INDIRECT(ADDRESS(SMALL((IF(WorkLisr<>\"\",ROW(WorkLisr),ROW()+ROWS(WorkLisr))),ROW()-ROW(FolowList)+1),COLUMN(WorkLisr),4)))","v":""}]
[null,null,null,null,null,null,null,{"$f":"IF(ROW()-ROW(FolowList)+1>ROWS(WorkLisr)-COUNTBLANK(WorkLisr),\"\",INDIRECT(ADDRESS(SMALL((IF(WorkLisr<>\"\",ROW(WorkLisr),ROW()+ROWS(WorkLisr))),ROW()-ROW(FolowList)+1),COLUMN(WorkLisr),4)))","v":""}]
[null,null,null,null,null,null,null,{"$f":"IF(ROW()-ROW(FolowList)+1>ROWS(WorkLisr)-COUNTBLANK(WorkLisr),\"\",INDIRECT(ADDRESS(SMALL((IF(WorkLisr<>\"\",ROW(WorkLisr),ROW()+ROWS(WorkLisr))),ROW()-ROW(FolowList)+1),COLUMN(WorkLisr),4)))","v":""}]
[null,null,null,null,null,null,null,{"$f":"IF(ROW()-ROW(FolowList)+1>ROWS(WorkLisr)-COUNTBLANK(WorkLisr),\"\",INDIRECT(ADDRESS(SMALL((IF(WorkLisr<>\"\",ROW(WorkLisr),ROW()+ROWS(WorkLisr))),ROW()-ROW(FolowList)+1),COLUMN(WorkLisr),4)))","v":""}]
[null,null,null,null,null,null,null,{"$f":"IF(ROW()-ROW(FolowList)+1>ROWS(WorkLisr)-COUNTBLANK(WorkLisr),\"\",INDIRECT(ADDRESS(SMALL((IF(WorkLisr<>\"\",ROW(WorkLisr),ROW()+ROWS(WorkLisr))),ROW()-ROW(FolowList)+1),COLUMN(WorkLisr),4)))","v":""}]
[null,null,null,null,null,null,null,{"$f":"IF(ROW()-ROW(FolowList)+1>ROWS(WorkLisr)-COUNTBLANK(WorkLisr),\"\",INDIRECT(ADDRESS(SMALL((IF(WorkLisr<>\"\",ROW(WorkLisr),ROW()+ROWS(WorkLisr))),ROW()-ROW(FolowList)+1),COLUMN(WorkLisr),4)))","v":""}]
[null,null,null,null,null,null,null,{"$f":"IF(ROW()-ROW(FolowList)+1>ROWS(WorkLisr)-COUNTBLANK(WorkLisr),\"\",INDIRECT(ADDRESS(SMALL((IF(WorkLisr<>\"\",ROW(WorkLisr),ROW()+ROWS(WorkLisr))),ROW()-ROW(FolowList)+1),COLUMN(WorkLisr),4)))","v":""}]
[null,null,null,null,null,null,null,{"$f":"IF(ROW()-ROW(FolowList)+1>ROWS(WorkLisr)-COUNTBLANK(WorkLisr),\"\",INDIRECT(ADDRESS(SMALL((IF(WorkLisr<>\"\",ROW(WorkLisr),ROW()+ROWS(WorkLisr))),ROW()-ROW(FolowList)+1),COLUMN(WorkLisr),4)))","v":""}]
[null,null,null,null,null,null,null,{"$f":"IF(ROW()-ROW(FolowList)+1>ROWS(WorkLisr)-COUNTBLANK(WorkLisr),\"\",INDIRECT(ADDRESS(SMALL((IF(WorkLisr<>\"\",ROW(WorkLisr),ROW()+ROWS(WorkLisr))),ROW()-ROW(FolowList)+1),COLUMN(WorkLisr),4)))","v":""}]
[null,null,null,null,null,null,null,{"$f":"IF(ROW()-ROW(FolowList)+1>ROWS(WorkLisr)-COUNTBLANK(WorkLisr),\"\",INDIRECT(ADDRESS(SMALL((IF(WorkLisr<>\"\",ROW(WorkLisr),ROW()+ROWS(WorkLisr))),ROW()-ROW(FolowList)+1),COLUMN(WorkLisr),4)))","v":""}]
[null,null,null,null,null,null,null,{"$f":"IF(ROW()-ROW(FolowList)+1>ROWS(WorkLisr)-COUNTBLANK(WorkLisr),\"\",INDIRECT(ADDRESS(SMALL((IF(WorkLisr<>\"\",ROW(WorkLisr),ROW()+ROWS(WorkLisr))),ROW()-ROW(FolowList)+1),COLUMN(WorkLisr),4)))","v":""}]
[null,null,null,null,null,null,null,{"$f":"IF(ROW()-ROW(FolowList)+1>ROWS(WorkLisr)-COUNTBLANK(WorkLisr),\"\",INDIRECT(ADDRESS(SMALL((IF(WorkLisr<>\"\",ROW(WorkLisr),ROW()+ROWS(WorkLisr))),ROW()-ROW(FolowList)+1),COLUMN(WorkLisr),4)))","v":""}]
[null,null,null,null,null,null,null,{"$f":"IF(ROW()-ROW(FolowList)+1>ROWS(WorkLisr)-COUNTBLANK(WorkLisr),\"\",INDIRECT(ADDRESS(SMALL((IF(WorkLisr<>\"\",ROW(WorkLisr),ROW()+ROWS(WorkLisr))),ROW()-ROW(FolowList)+1),COLUMN(WorkLisr),4)))","v":""}]
[null,null,null,null,null,null,null,{"$f":"IF(ROW()-ROW(FolowList)+1>ROWS(WorkLisr)-COUNTBLANK(WorkLisr),\"\",INDIRECT(ADDRESS(SMALL((IF(WorkLisr<>\"\",ROW(WorkLisr),ROW()+ROWS(WorkLisr))),ROW()-ROW(FolowList)+1),COLUMN(WorkLisr),4)))","v":""}]
[null,null,null,null,null,null,null,{"$f":"IF(ROW()-ROW(FolowList)+1>ROWS(WorkLisr)-COUNTBLANK(WorkLisr),\"\",INDIRECT(ADDRESS(SMALL((IF(WorkLisr<>\"\",ROW(WorkLisr),ROW()+ROWS(WorkLisr))),ROW()-ROW(FolowList)+1),COLUMN(WorkLisr),4)))","v":""}]
[null,null,null,null,null,null,null,{"$f":"IF(ROW()-ROW(FolowList)+1>ROWS(WorkLisr)-COUNTBLANK(WorkLisr),\"\",INDIRECT(ADDRESS(SMALL((IF(WorkLisr<>\"\",ROW(WorkLisr),ROW()+ROWS(WorkLisr))),ROW()-ROW(FolowList)+1),COLUMN(WorkLisr),4)))","v":""}]
[null,null,null,null,null,null,null,{"$f":"IF(ROW()-ROW(FolowList)+1>ROWS(WorkLisr)-COUNTBLANK(WorkLisr),\"\",INDIRECT(ADDRESS(SMALL((IF(WorkLisr<>\"\",ROW(WorkLisr),ROW()+ROWS(WorkLisr))),ROW()-ROW(FolowList)+1),COLUMN(WorkLisr),4)))","v":""}]
[null,null,null,null,null,null,null,{"$f":"IF(ROW()-ROW(FolowList)+1>ROWS(WorkLisr)-COUNTBLANK(WorkLisr),\"\",INDIRECT(ADDRESS(SMALL((IF(WorkLisr<>\"\",ROW(WorkLisr),ROW()+ROWS(WorkLisr))),ROW()-ROW(FolowList)+1),COLUMN(WorkLisr),4)))","v":""}]
[null,null,null,null,null,null,null,{"$f":"IF(ROW()-ROW(FolowList)+1>ROWS(WorkLisr)-COUNTBLANK(WorkLisr),\"\",INDIRECT(ADDRESS(SMALL((IF(WorkLisr<>\"\",ROW(WorkLisr),ROW()+ROWS(WorkLisr))),ROW()-ROW(FolowList)+1),COLUMN(WorkLisr),4)))","v":""}]
[null,null,null,null,null,null,null,{"$f":"IF(ROW()-ROW(FolowList)+1>ROWS(WorkLisr)-COUNTBLANK(WorkLisr),\"\",INDIRECT(ADDRESS(SMALL((IF(WorkLisr<>\"\",ROW(WorkLisr),ROW()+ROWS(WorkLisr))),ROW()-ROW(FolowList)+1),COLUMN(WorkLisr),4)))","v":""}]
[null,null,null,null,null,null,null,{"$f":"IF(ROW()-ROW(FolowList)+1>ROWS(WorkLisr)-COUNTBLANK(WorkLisr),\"\",INDIRECT(ADDRESS(SMALL((IF(WorkLisr<>\"\",ROW(WorkLisr),ROW()+ROWS(WorkLisr))),ROW()-ROW(FolowList)+1),COLUMN(WorkLisr),4)))","v":""}]
[null,null,null,null,null,null,null,{"$f":"IF(ROW()-ROW(FolowList)+1>ROWS(WorkLisr)-COUNTBLANK(WorkLisr),\"\",INDIRECT(ADDRESS(SMALL((IF(WorkLisr<>\"\",ROW(WorkLisr),ROW()+ROWS(WorkLisr))),ROW()-ROW(FolowList)+1),COLUMN(WorkLisr),4)))","v":""}]
[null,null,null,null,null,null,null,{"$f":"IF(ROW()-ROW(FolowList)+1>ROWS(WorkLisr)-COUNTBLANK(WorkLisr),\"\",INDIRECT(ADDRESS(SMALL((IF(WorkLisr<>\"\",ROW(WorkLisr),ROW()+ROWS(WorkLisr))),ROW()-ROW(FolowList)+1),COLUMN(WorkLisr),4)))","v":""}]
[null,null,null,null,null,null,null,{"$f":"IF(ROW()-ROW(FolowList)+1>ROWS(WorkLisr)-COUNTBLANK(WorkLisr),\"\",INDIRECT(ADDRESS(SMALL((IF(WorkLisr<>\"\",ROW(WorkLisr),ROW()+ROWS(WorkLisr))),ROW()-ROW(FolowList)+1),COLUMN(WorkLisr),4)))","v":""}]
[null,null,null,null,null,null,null,{"$f":"IF(ROW()-ROW(FolowList)+1>ROWS(WorkLisr)-COUNTBLANK(WorkLisr),\"\",INDIRECT(ADDRESS(SMALL((IF(WorkLisr<>\"\",ROW(WorkLisr),ROW()+ROWS(WorkLisr))),ROW()-ROW(FolowList)+1),COLUMN(WorkLisr),4)))","v":""}]
[null,null,null,null,null,null,null,{"$f":"IF(ROW()-ROW(FolowList)+1>ROWS(WorkLisr)-COUNTBLANK(WorkLisr),\"\",INDIRECT(ADDRESS(SMALL((IF(WorkLisr<>\"\",ROW(WorkLisr),ROW()+ROWS(WorkLisr))),ROW()-ROW(FolowList)+1),COLUMN(WorkLisr),4)))","v":""}]
[null,null,null,null,null,null,null,{"$f":"IF(ROW()-ROW(FolowList)+1>ROWS(WorkLisr)-COUNTBLANK(WorkLisr),\"\",INDIRECT(ADDRESS(SMALL((IF(WorkLisr<>\"\",ROW(WorkLisr),ROW()+ROWS(WorkLisr))),ROW()-ROW(FolowList)+1),COLUMN(WorkLisr),4)))","v":""}]
[null,null,null,null,null,null,null,{"$f":"IF(ROW()-ROW(FolowList)+1>ROWS(WorkLisr)-COUNTBLANK(WorkLisr),\"\",INDIRECT(ADDRESS(SMALL((IF(WorkLisr<>\"\",ROW(WorkLisr),ROW()+ROWS(WorkLisr))),ROW()-ROW(FolowList)+1),COLUMN(WorkLisr),4)))","v":""}]
[null,null,null,null,null,null,null,{"$f":"IF(ROW()-ROW(FolowList)+1>ROWS(WorkLisr)-COUNTBLANK(WorkLisr),\"\",INDIRECT(ADDRESS(SMALL((IF(WorkLisr<>\"\",ROW(WorkLisr),ROW()+ROWS(WorkLisr))),ROW()-ROW(FolowList)+1),COLUMN(WorkLisr),4)))","v":""}]
[null,null,null,null,null,null,null,{"$f":"IF(ROW()-ROW(FolowList)+1>ROWS(WorkLisr)-COUNTBLANK(WorkLisr),\"\",INDIRECT(ADDRESS(SMALL((IF(WorkLisr<>\"\",ROW(WorkLisr),ROW()+ROWS(WorkLisr))),ROW()-ROW(FolowList)+1),COLUMN(WorkLisr),4)))","v":""}]
[null,null,null,null,null,null,null,{"$f":"IF(ROW()-ROW(FolowList)+1>ROWS(WorkLisr)-COUNTBLANK(WorkLisr),\"\",INDIRECT(ADDRESS(SMALL((IF(WorkLisr<>\"\",ROW(WorkLisr),ROW()+ROWS(WorkLisr))),ROW()-ROW(FolowList)+1),COLUMN(WorkLisr),4)))","v":""}]
[null,null,null,null,null,null,null,{"$f":"IF(ROW()-ROW(FolowList)+1>ROWS(WorkLisr)-COUNTBLANK(WorkLisr),\"\",INDIRECT(ADDRESS(SMALL((IF(WorkLisr<>\"\",ROW(WorkLisr),ROW()+ROWS(WorkLisr))),ROW()-ROW(FolowList)+1),COLUMN(WorkLisr),4)))","v":""}]
[null,null,null,null,null,null,null,{"$f":"IF(ROW()-ROW(FolowList)+1>ROWS(WorkLisr)-COUNTBLANK(WorkLisr),\"\",INDIRECT(ADDRESS(SMALL((IF(WorkLisr<>\"\",ROW(WorkLisr),ROW()+ROWS(WorkLisr))),ROW()-ROW(FolowList)+1),COLUMN(WorkLisr),4)))","v":""}]
[null,null,null,null,null,null,null,{"$f":"IF(ROW()-ROW(FolowList)+1>ROWS(WorkLisr)-COUNTBLANK(WorkLisr),\"\",INDIRECT(ADDRESS(SMALL((IF(WorkLisr<>\"\",ROW(WorkLisr),ROW()+ROWS(WorkLisr))),ROW()-ROW(FolowList)+1),COLUMN(WorkLisr),4)))","v":""}]
[null,null,null,null,null,null,null,{"$f":"IF(ROW()-ROW(FolowList)+1>ROWS(WorkLisr)-COUNTBLANK(WorkLisr),\"\",INDIRECT(ADDRESS(SMALL((IF(WorkLisr<>\"\",ROW(WorkLisr),ROW()+ROWS(WorkLisr))),ROW()-ROW(FolowList)+1),COLUMN(WorkLisr),4)))","v":""}]
[null,null,null,null,null,null,null,{"$f":"IF(ROW()-ROW(FolowList)+1>ROWS(WorkLisr)-COUNTBLANK(WorkLisr),\"\",INDIRECT(ADDRESS(SMALL((IF(WorkLisr<>\"\",ROW(WorkLisr),ROW()+ROWS(WorkLisr))),ROW()-ROW(FolowList)+1),COLUMN(WorkLisr),4)))","v":""}]
[null,null,null,null,null,null,null,{"$f":"IF(ROW()-ROW(FolowList)+1>ROWS(WorkLisr)-COUNTBLANK(WorkLisr),\"\",INDIRECT(ADDRESS(SMALL((IF(WorkLisr<>\"\",ROW(WorkLisr),ROW()+ROWS(WorkLisr))),ROW()-ROW(FolowList)+1),COLUMN(WorkLisr),4)))","v":""}]
[null,null,null,null,null,null,null,{"$f":"IF(ROW()-ROW(FolowList)+1>ROWS(WorkLisr)-COUNTBLANK(WorkLisr),\"\",INDIRECT(ADDRESS(SMALL((IF(WorkLisr<>\"\",ROW(WorkLisr),ROW()+ROWS(WorkLisr))),ROW()-ROW(FolowList)+1),COLUMN(WorkLisr),4)))","v":""}]
[null,null,null,null,null,null,null,{"$f":"IF(ROW()-ROW(FolowList)+1>ROWS(WorkLisr)-COUNTBLANK(WorkLisr),\"\",INDIRECT(ADDRESS(SMALL((IF(WorkLisr<>\"\",ROW(WorkLisr),ROW()+ROWS(WorkLisr))),ROW()-ROW(FolowList)+1),COLUMN(WorkLisr),4)))","v":""}]
[null,null,null,null,null,null,null,{"$f":"IF(ROW()-ROW(FolowList)+1>ROWS(WorkLisr)-COUNTBLANK(WorkLisr),\"\",INDIRECT(ADDRESS(SMALL((IF(WorkLisr<>\"\",ROW(WorkLisr),ROW()+ROWS(WorkLisr))),ROW()-ROW(FolowList)+1),COLUMN(WorkLisr),4)))","v":""}]
[null,null,null,null,null,null,null,{"$f":"IF(ROW()-ROW(FolowList)+1>ROWS(WorkLisr)-COUNTBLANK(WorkLisr),\"\",INDIRECT(ADDRESS(SMALL((IF(WorkLisr<>\"\",ROW(WorkLisr),ROW()+ROWS(WorkLisr))),ROW()-ROW(FolowList)+1),COLUMN(WorkLisr),4)))","v":""}]
[null,null,null,null,null,null,null,{"$f":"IF(ROW()-ROW(FolowList)+1>ROWS(WorkLisr)-COUNTBLANK(WorkLisr),\"\",INDIRECT(ADDRESS(SMALL((IF(WorkLisr<>\"\",ROW(WorkLisr),ROW()+ROWS(WorkLisr))),ROW()-ROW(FolowList)+1),COLUMN(WorkLisr),4)))","v":""}]
[null,null,null,null,null,null,null,{"$f":"IF(ROW()-ROW(FolowList)+1>ROWS(WorkLisr)-COUNTBLANK(WorkLisr),\"\",INDIRECT(ADDRESS(SMALL((IF(WorkLisr<>\"\",ROW(WorkLisr),ROW()+ROWS(WorkLisr))),ROW()-ROW(FolowList)+1),COLUMN(WorkLisr),4)))","v":""}]
[null,null,null,null,null,null,null,{"$f":"IF(ROW()-ROW(FolowList)+1>ROWS(WorkLisr)-COUNTBLANK(WorkLisr),\"\",INDIRECT(ADDRESS(SMALL((IF(WorkLisr<>\"\",ROW(WorkLisr),ROW()+ROWS(WorkLisr))),ROW()-ROW(FolowList)+1),COLUMN(WorkLisr),4)))","v":""}]
[null,null,null,null,null,null,null,{"$f":"IF(ROW()-ROW(FolowList)+1>ROWS(WorkLisr)-COUNTBLANK(WorkLisr),\"\",INDIRECT(ADDRESS(SMALL((IF(WorkLisr<>\"\",ROW(WorkLisr),ROW()+ROWS(WorkLisr))),ROW()-ROW(FolowList)+1),COLUMN(WorkLisr),4)))","v":""}]
[null,null,null,null,null,null,null,{"$f":"IF(ROW()-ROW(FolowList)+1>ROWS(WorkLisr)-COUNTBLANK(WorkLisr),\"\",INDIRECT(ADDRESS(SMALL((IF(WorkLisr<>\"\",ROW(WorkLisr),ROW()+ROWS(WorkLisr))),ROW()-ROW(FolowList)+1),COLUMN(WorkLisr),4)))","v":""}]
[null,null,null,null,null,null,null,{"$f":"IF(ROW()-ROW(FolowList)+1>ROWS(WorkLisr)-COUNTBLANK(WorkLisr),\"\",INDIRECT(ADDRESS(SMALL((IF(WorkLisr<>\"\",ROW(WorkLisr),ROW()+ROWS(WorkLisr))),ROW()-ROW(FolowList)+1),COLUMN(WorkLisr),4)))","v":""}]
[null,null,null,null,null,null,null,{"$f":"IF(ROW()-ROW(FolowList)+1>ROWS(WorkLisr)-COUNTBLANK(WorkLisr),\"\",INDIRECT(ADDRESS(SMALL((IF(WorkLisr<>\"\",ROW(WorkLisr),ROW()+ROWS(WorkLisr))),ROW()-ROW(FolowList)+1),COLUMN(WorkLisr),4)))","v":""}]
[null,null,null,null,null,null,null,{"$f":"IF(ROW()-ROW(FolowList)+1>ROWS(WorkLisr)-COUNTBLANK(WorkLisr),\"\",INDIRECT(ADDRESS(SMALL((IF(WorkLisr<>\"\",ROW(WorkLisr),ROW()+ROWS(WorkLisr))),ROW()-ROW(FolowList)+1),COLUMN(WorkLisr),4)))","v":""}]
[null,null,null,null,null,null,null,{"$f":"IF(ROW()-ROW(FolowList)+1>ROWS(WorkLisr)-COUNTBLANK(WorkLisr),\"\",INDIRECT(ADDRESS(SMALL((IF(WorkLisr<>\"\",ROW(WorkLisr),ROW()+ROWS(WorkLisr))),ROW()-ROW(FolowList)+1),COLUMN(WorkLisr),4)))","v":""}]
[null,null,null,null,null,null,null,{"$f":"IF(ROW()-ROW(FolowList)+1>ROWS(WorkLisr)-COUNTBLANK(WorkLisr),\"\",INDIRECT(ADDRESS(SMALL((IF(WorkLisr<>\"\",ROW(WorkLisr),ROW()+ROWS(WorkLisr))),ROW()-ROW(FolowList)+1),COLUMN(WorkLisr),4)))","v":""}]
[null,null,null,null,null,null,null,{"$f":"IF(ROW()-ROW(FolowList)+1>ROWS(WorkLisr)-COUNTBLANK(WorkLisr),\"\",INDIRECT(ADDRESS(SMALL((IF(WorkLisr<>\"\",ROW(WorkLisr),ROW()+ROWS(WorkLisr))),ROW()-ROW(FolowList)+1),COLUMN(WorkLisr),4)))","v":""}]
[null,null,null,null,null,null,null,{"$f":"IF(ROW()-ROW(FolowList)+1>ROWS(WorkLisr)-COUNTBLANK(WorkLisr),\"\",INDIRECT(ADDRESS(SMALL((IF(WorkLisr<>\"\",ROW(WorkLisr),ROW()+ROWS(WorkLisr))),ROW()-ROW(FolowList)+1),COLUMN(WorkLisr),4)))","v":""}]
[null,null,null,null,null,null,null,{"$f":"IF(ROW()-ROW(FolowList)+1>ROWS(WorkLisr)-COUNTBLANK(WorkLisr),\"\",INDIRECT(ADDRESS(SMALL((IF(WorkLisr<>\"\",ROW(WorkLisr),ROW()+ROWS(WorkLisr))),ROW()-ROW(FolowList)+1),COLUMN(WorkLisr),4)))","v":""}]
[null,null,null,null,null,null,null,{"$f":"IF(ROW()-ROW(FolowList)+1>ROWS(WorkLisr)-COUNTBLANK(WorkLisr),\"\",INDIRECT(ADDRESS(SMALL((IF(WorkLisr<>\"\",ROW(WorkLisr),ROW()+ROWS(WorkLisr))),ROW()-ROW(FolowList)+1),COLUMN(WorkLisr),4)))","v":""}]
[null,null,null,null,null,null,null,{"$f":"IF(ROW()-ROW(FolowList)+1>ROWS(WorkLisr)-COUNTBLANK(WorkLisr),\"\",INDIRECT(ADDRESS(SMALL((IF(WorkLisr<>\"\",ROW(WorkLisr),ROW()+ROWS(WorkLisr))),ROW()-ROW(FolowList)+1),COLUMN(WorkLisr),4)))","v":""}]
[null,null,null,null,null,null,null,{"$f":"IF(ROW()-ROW(FolowList)+1>ROWS(WorkLisr)-COUNTBLANK(WorkLisr),\"\",INDIRECT(ADDRESS(SMALL((IF(WorkLisr<>\"\",ROW(WorkLisr),ROW()+ROWS(WorkLisr))),ROW()-ROW(FolowList)+1),COLUMN(WorkLisr),4)))","v":""}]
[null,null,null,null,null,null,null,{"$f":"IF(ROW()-ROW(FolowList)+1>ROWS(WorkLisr)-COUNTBLANK(WorkLisr),\"\",INDIRECT(ADDRESS(SMALL((IF(WorkLisr<>\"\",ROW(WorkLisr),ROW()+ROWS(WorkLisr))),ROW()-ROW(FolowList)+1),COLUMN(WorkLisr),4)))","v":""}]
[null,null,null,null,null,null,null,{"$f":"IF(ROW()-ROW(FolowList)+1>ROWS(WorkLisr)-COUNTBLANK(WorkLisr),\"\",INDIRECT(ADDRESS(SMALL((IF(WorkLisr<>\"\",ROW(WorkLisr),ROW()+ROWS(WorkLisr))),ROW()-ROW(FolowList)+1),COLUMN(WorkLisr),4)))","v":""}]
[null,null,null,null,null,null,null,{"$f":"IF(ROW()-ROW(FolowList)+1>ROWS(WorkLisr)-COUNTBLANK(WorkLisr),\"\",INDIRECT(ADDRESS(SMALL((IF(WorkLisr<>\"\",ROW(WorkLisr),ROW()+ROWS(WorkLisr))),ROW()-ROW(FolowList)+1),COLUMN(WorkLisr),4)))","v":""}]
[null,null,null,null,null,null,null,{"$f":"IF(ROW()-ROW(FolowList)+1>ROWS(WorkLisr)-COUNTBLANK(WorkLisr),\"\",INDIRECT(ADDRESS(SMALL((IF(WorkLisr<>\"\",ROW(WorkLisr),ROW()+ROWS(WorkLisr))),ROW()-ROW(FolowList)+1),COLUMN(WorkLisr),4)))","v":""}]
[null,null,null,null,null,null,null,{"$f":"IF(ROW()-ROW(FolowList)+1>ROWS(WorkLisr)-COUNTBLANK(WorkLisr),\"\",INDIRECT(ADDRESS(SMALL((IF(WorkLisr<>\"\",ROW(WorkLisr),ROW()+ROWS(WorkLisr))),ROW()-ROW(FolowList)+1),COLUMN(WorkLisr),4)))","v":""}]
[null,null,null,null,null,null,null,{"$f":"IF(ROW()-ROW(FolowList)+1>ROWS(WorkLisr)-COUNTBLANK(WorkLisr),\"\",INDIRECT(ADDRESS(SMALL((IF(WorkLisr<>\"\",ROW(WorkLisr),ROW()+ROWS(WorkLisr))),ROW()-ROW(FolowList)+1),COLUMN(WorkLisr),4)))","v":""}]
[null,null,null,null,null,null,null,{"$f":"IF(ROW()-ROW(FolowList)+1>ROWS(WorkLisr)-COUNTBLANK(WorkLisr),\"\",INDIRECT(ADDRESS(SMALL((IF(WorkLisr<>\"\",ROW(WorkLisr),ROW()+ROWS(WorkLisr))),ROW()-ROW(FolowList)+1),COLUMN(WorkLisr),4)))","v":""}]
[null,null,null,null,null,null,null,{"$f":"IF(ROW()-ROW(FolowList)+1>ROWS(WorkLisr)-COUNTBLANK(WorkLisr),\"\",INDIRECT(ADDRESS(SMALL((IF(WorkLisr<>\"\",ROW(WorkLisr),ROW()+ROWS(WorkLisr))),ROW()-ROW(FolowList)+1),COLUMN(WorkLisr),4)))","v":""}]
[null,null,null,null,null,null,null,{"$f":"IF(ROW()-ROW(FolowList)+1>ROWS(WorkLisr)-COUNTBLANK(WorkLisr),\"\",INDIRECT(ADDRESS(SMALL((IF(WorkLisr<>\"\",ROW(WorkLisr),ROW()+ROWS(WorkLisr))),ROW()-ROW(FolowList)+1),COLUMN(WorkLisr),4)))","v":""}]
[null,null,null,null,null,null,null,{"$f":"IF(ROW()-ROW(FolowList)+1>ROWS(WorkLisr)-COUNTBLANK(WorkLisr),\"\",INDIRECT(ADDRESS(SMALL((IF(WorkLisr<>\"\",ROW(WorkLisr),ROW()+ROWS(WorkLisr))),ROW()-ROW(FolowList)+1),COLUMN(WorkLisr),4)))","v":""}]
[null,null,null,null,null,null,null,{"$f":"IF(ROW()-ROW(FolowList)+1>ROWS(WorkLisr)-COUNTBLANK(WorkLisr),\"\",INDIRECT(ADDRESS(SMALL((IF(WorkLisr<>\"\",ROW(WorkLisr),ROW()+ROWS(WorkLisr))),ROW()-ROW(FolowList)+1),COLUMN(WorkLisr),4)))","v":""}]
[null,null,null,null,null,null,null,{"$f":"IF(ROW()-ROW(FolowList)+1>ROWS(WorkLisr)-COUNTBLANK(WorkLisr),\"\",INDIRECT(ADDRESS(SMALL((IF(WorkLisr<>\"\",ROW(WorkLisr),ROW()+ROWS(WorkLisr))),ROW()-ROW(FolowList)+1),COLUMN(WorkLisr),4)))","v":""}]
[null,null,null,null,null,null,null,{"$f":"IF(ROW()-ROW(FolowList)+1>ROWS(WorkLisr)-COUNTBLANK(WorkLisr),\"\",INDIRECT(ADDRESS(SMALL((IF(WorkLisr<>\"\",ROW(WorkLisr),ROW()+ROWS(WorkLisr))),ROW()-ROW(FolowList)+1),COLUMN(WorkLisr),4)))","v":""}]
[null,null,null,null,null,null,null,{"$f":"IF(ROW()-ROW(FolowList)+1>ROWS(WorkLisr)-COUNTBLANK(WorkLisr),\"\",INDIRECT(ADDRESS(SMALL((IF(WorkLisr<>\"\",ROW(WorkLisr),ROW()+ROWS(WorkLisr))),ROW()-ROW(FolowList)+1),COLUMN(WorkLisr),4)))","v":""}]
[null,null,null,null,null,null,null,{"$f":"IF(ROW()-ROW(FolowList)+1>ROWS(WorkLisr)-COUNTBLANK(WorkLisr),\"\",INDIRECT(ADDRESS(SMALL((IF(WorkLisr<>\"\",ROW(WorkLisr),ROW()+ROWS(WorkLisr))),ROW()-ROW(FolowList)+1),COLUMN(WorkLisr),4)))","v":""}]
[null,null,null,null,null,null,null,{"$f":"IF(ROW()-ROW(FolowList)+1>ROWS(WorkLisr)-COUNTBLANK(WorkLisr),\"\",INDIRECT(ADDRESS(SMALL((IF(WorkLisr<>\"\",ROW(WorkLisr),ROW()+ROWS(WorkLisr))),ROW()-ROW(FolowList)+1),COLUMN(WorkLisr),4)))","v":""}]
[null,null,null,null,null,null,null,{"$f":"IF(ROW()-ROW(FolowList)+1>ROWS(WorkLisr)-COUNTBLANK(WorkLisr),\"\",INDIRECT(ADDRESS(SMALL((IF(WorkLisr<>\"\",ROW(WorkLisr),ROW()+ROWS(WorkLisr))),ROW()-ROW(FolowList)+1),COLUMN(WorkLisr),4)))","v":""}]
[null,null,null,null,null,null,null,{"$f":"IF(ROW()-ROW(FolowList)+1>ROWS(WorkLisr)-COUNTBLANK(WorkLisr),\"\",INDIRECT(ADDRESS(SMALL((IF(WorkLisr<>\"\",ROW(WorkLisr),ROW()+ROWS(WorkLisr))),ROW()-ROW(FolowList)+1),COLUMN(WorkLisr),4)))","v":""}]
[null,null,null,null,null,null,null,{"$f":"IF(ROW()-ROW(FolowList)+1>ROWS(WorkLisr)-COUNTBLANK(WorkLisr),\"\",INDIRECT(ADDRESS(SMALL((IF(WorkLisr<>\"\",ROW(WorkLisr),ROW()+ROWS(WorkLisr))),ROW()-ROW(FolowList)+1),COLUMN(WorkLisr),4)))","v":""}]
[null,null,null,null,null,null,null,{"$f":"IF(ROW()-ROW(FolowList)+1>ROWS(WorkLisr)-COUNTBLANK(WorkLisr),\"\",INDIRECT(ADDRESS(SMALL((IF(WorkLisr<>\"\",ROW(WorkLisr),ROW()+ROWS(WorkLisr))),ROW()-ROW(FolowList)+1),COLUMN(WorkLisr),4)))","v":""}]
[null,null,null,null,null,null,null,{"$f":"IF(ROW()-ROW(FolowList)+1>ROWS(WorkLisr)-COUNTBLANK(WorkLisr),\"\",INDIRECT(ADDRESS(SMALL((IF(WorkLisr<>\"\",ROW(WorkLisr),ROW()+ROWS(WorkLisr))),ROW()-ROW(FolowList)+1),COLUMN(WorkLisr),4)))","v":""}]
[null,null,null,null,null,null,null,{"$f":"IF(ROW()-ROW(FolowList)+1>ROWS(WorkLisr)-COUNTBLANK(WorkLisr),\"\",INDIRECT(ADDRESS(SMALL((IF(WorkLisr<>\"\",ROW(WorkLisr),ROW()+ROWS(WorkLisr))),ROW()-ROW(FolowList)+1),COLUMN(WorkLisr),4)))","v":""}]
[null,null,null,null,null,null,null,{"$f":"IF(ROW()-ROW(FolowList)+1>ROWS(WorkLisr)-COUNTBLANK(WorkLisr),\"\",INDIRECT(ADDRESS(SMALL((IF(WorkLisr<>\"\",ROW(WorkLisr),ROW()+ROWS(WorkLisr))),ROW()-ROW(FolowList)+1),COLUMN(WorkLisr),4)))","v":""}]
[null,null,null,null,null,null,null,{"$f":"IF(ROW()-ROW(FolowList)+1>ROWS(WorkLisr)-COUNTBLANK(WorkLisr),\"\",INDIRECT(ADDRESS(SMALL((IF(WorkLisr<>\"\",ROW(WorkLisr),ROW()+ROWS(WorkLisr))),ROW()-ROW(FolowList)+1),COLUMN(WorkLisr),4)))","v":""}]
[null,null,null,null,null,null,null,{"$f":"IF(ROW()-ROW(FolowList)+1>ROWS(WorkLisr)-COUNTBLANK(WorkLisr),\"\",INDIRECT(ADDRESS(SMALL((IF(WorkLisr<>\"\",ROW(WorkLisr),ROW()+ROWS(WorkLisr))),ROW()-ROW(FolowList)+1),COLUMN(WorkLisr),4)))","v":""}]
[null,null,null,null,null,null,null,{"$f":"IF(ROW()-ROW(FolowList)+1>ROWS(WorkLisr)-COUNTBLANK(WorkLisr),\"\",INDIRECT(ADDRESS(SMALL((IF(WorkLisr<>\"\",ROW(WorkLisr),ROW()+ROWS(WorkLisr))),ROW()-ROW(FolowList)+1),COLUMN(WorkLisr),4)))","v":""}]
[null,null,null,null,null,null,null,{"$f":"IF(ROW()-ROW(FolowList)+1>ROWS(WorkLisr)-COUNTBLANK(WorkLisr),\"\",INDIRECT(ADDRESS(SMALL((IF(WorkLisr<>\"\",ROW(WorkLisr),ROW()+ROWS(WorkLisr))),ROW()-ROW(FolowList)+1),COLUMN(WorkLisr),4)))","v":""}]
[null,null,null,null,null,null,null,{"$f":"IF(ROW()-ROW(FolowList)+1>ROWS(WorkLisr)-COUNTBLANK(WorkLisr),\"\",INDIRECT(ADDRESS(SMALL((IF(WorkLisr<>\"\",ROW(WorkLisr),ROW()+ROWS(WorkLisr))),ROW()-ROW(FolowList)+1),COLUMN(WorkLisr),4)))","v":""}]
[null,null,null,null,null,null,null,{"$f":"IF(ROW()-ROW(FolowList)+1>ROWS(WorkLisr)-COUNTBLANK(WorkLisr),\"\",INDIRECT(ADDRESS(SMALL((IF(WorkLisr<>\"\",ROW(WorkLisr),ROW()+ROWS(WorkLisr))),ROW()-ROW(FolowList)+1),COLUMN(WorkLisr),4)))","v":""}]
[null,null,null,null,null,null,null,{"$f":"IF(ROW()-ROW(FolowList)+1>ROWS(WorkLisr)-COUNTBLANK(WorkLisr),\"\",INDIRECT(ADDRESS(SMALL((IF(WorkLisr<>\"\",ROW(WorkLisr),ROW()+ROWS(WorkLisr))),ROW()-ROW(FolowList)+1),COLUMN(WorkLisr),4)))","v":""}]
[null,null,null,null,null,null,null,{"$f":"IF(ROW()-ROW(FolowList)+1>ROWS(WorkLisr)-COUNTBLANK(WorkLisr),\"\",INDIRECT(ADDRESS(SMALL((IF(WorkLisr<>\"\",ROW(WorkLisr),ROW()+ROWS(WorkLisr))),ROW()-ROW(FolowList)+1),COLUMN(WorkLisr),4)))","v":""}]
[null,null,null,null,null,null,null,{"$f":"IF(ROW()-ROW(FolowList)+1>ROWS(WorkLisr)-COUNTBLANK(WorkLisr),\"\",INDIRECT(ADDRESS(SMALL((IF(WorkLisr<>\"\",ROW(WorkLisr),ROW()+ROWS(WorkLisr))),ROW()-ROW(FolowList)+1),COLUMN(WorkLisr),4)))","v":""}]
[null,null,null,null,null,null,null,{"$f":"IF(ROW()-ROW(FolowList)+1>ROWS(WorkLisr)-COUNTBLANK(WorkLisr),\"\",INDIRECT(ADDRESS(SMALL((IF(WorkLisr<>\"\",ROW(WorkLisr),ROW()+ROWS(WorkLisr))),ROW()-ROW(FolowList)+1),COLUMN(WorkLisr),4)))","v":""}]
[null,null,null,null,null,null,null,{"$f":"IF(ROW()-ROW(FolowList)+1>ROWS(WorkLisr)-COUNTBLANK(WorkLisr),\"\",INDIRECT(ADDRESS(SMALL((IF(WorkLisr<>\"\",ROW(WorkLisr),ROW()+ROWS(WorkLisr))),ROW()-ROW(FolowList)+1),COLUMN(WorkLisr),4)))","v":""}]
[null,null,null,null,null,null,null,{"$f":"IF(ROW()-ROW(FolowList)+1>ROWS(WorkLisr)-COUNTBLANK(WorkLisr),\"\",INDIRECT(ADDRESS(SMALL((IF(WorkLisr<>\"\",ROW(WorkLisr),ROW()+ROWS(WorkLisr))),ROW()-ROW(FolowList)+1),COLUMN(WorkLisr),4)))","v":""}]
[null,null,null,null,null,null,null,{"$f":"IF(ROW()-ROW(FolowList)+1>ROWS(WorkLisr)-COUNTBLANK(WorkLisr),\"\",INDIRECT(ADDRESS(SMALL((IF(WorkLisr<>\"\",ROW(WorkLisr),ROW()+ROWS(WorkLisr))),ROW()-ROW(FolowList)+1),COLUMN(WorkLisr),4)))","v":""}]
[null,null,null,null,null,null,null,{"$f":"IF(ROW()-ROW(FolowList)+1>ROWS(WorkLisr)-COUNTBLANK(WorkLisr),\"\",INDIRECT(ADDRESS(SMALL((IF(WorkLisr<>\"\",ROW(WorkLisr),ROW()+ROWS(WorkLisr))),ROW()-ROW(FolowList)+1),COLUMN(WorkLisr),4)))","v":""}]
[null,null,null,null,null,null,null,{"$f":"IF(ROW()-ROW(FolowList)+1>ROWS(WorkLisr)-COUNTBLANK(WorkLisr),\"\",INDIRECT(ADDRESS(SMALL((IF(WorkLisr<>\"\",ROW(WorkLisr),ROW()+ROWS(WorkLisr))),ROW()-ROW(FolowList)+1),COLUMN(WorkLisr),4)))","v":""}]
[null,null,null,null,null,null,null,{"$f":"IF(ROW()-ROW(FolowList)+1>ROWS(WorkLisr)-COUNTBLANK(WorkLisr),\"\",INDIRECT(ADDRESS(SMALL((IF(WorkLisr<>\"\",ROW(WorkLisr),ROW()+ROWS(WorkLisr))),ROW()-ROW(FolowList)+1),COLUMN(WorkLisr),4)))","v":""}]
[null,null,null,null,null,null,null,{"$f":"IF(ROW()-ROW(FolowList)+1>ROWS(WorkLisr)-COUNTBLANK(WorkLisr),\"\",INDIRECT(ADDRESS(SMALL((IF(WorkLisr<>\"\",ROW(WorkLisr),ROW()+ROWS(WorkLisr))),ROW()-ROW(FolowList)+1),COLUMN(WorkLisr),4)))","v":""}]
[null,null,null,null,null,null,null,{"$f":"IF(ROW()-ROW(FolowList)+1>ROWS(WorkLisr)-COUNTBLANK(WorkLisr),\"\",INDIRECT(ADDRESS(SMALL((IF(WorkLisr<>\"\",ROW(WorkLisr),ROW()+ROWS(WorkLisr))),ROW()-ROW(FolowList)+1),COLUMN(WorkLisr),4)))","v":""}]
[null,null,null,null,null,null,null,{"$f":"IF(ROW()-ROW(FolowList)+1>ROWS(WorkLisr)-COUNTBLANK(WorkLisr),\"\",INDIRECT(ADDRESS(SMALL((IF(WorkLisr<>\"\",ROW(WorkLisr),ROW()+ROWS(WorkLisr))),ROW()-ROW(FolowList)+1),COLUMN(WorkLisr),4)))","v":""}]
[null,null,null,null,null,null,null,{"$f":"IF(ROW()-ROW(FolowList)+1>ROWS(WorkLisr)-COUNTBLANK(WorkLisr),\"\",INDIRECT(ADDRESS(SMALL((IF(WorkLisr<>\"\",ROW(WorkLisr),ROW()+ROWS(WorkLisr))),ROW()-ROW(FolowList)+1),COLUMN(WorkLisr),4)))","v":""}]
[null,null,null,null,null,null,null,{"$f":"IF(ROW()-ROW(FolowList)+1>ROWS(WorkLisr)-COUNTBLANK(WorkLisr),\"\",INDIRECT(ADDRESS(SMALL((IF(WorkLisr<>\"\",ROW(WorkLisr),ROW()+ROWS(WorkLisr))),ROW()-ROW(FolowList)+1),COLUMN(WorkLisr),4)))","v":""}]
[null,null,null,null,null,null,null,{"$f":"IF(ROW()-ROW(FolowList)+1>ROWS(WorkLisr)-COUNTBLANK(WorkLisr),\"\",INDIRECT(ADDRESS(SMALL((IF(WorkLisr<>\"\",ROW(WorkLisr),ROW()+ROWS(WorkLisr))),ROW()-ROW(FolowList)+1),COLUMN(WorkLisr),4)))","v":""}]
[null,null,null,null,null,null,null,{"$f":"IF(ROW()-ROW(FolowList)+1>ROWS(WorkLisr)-COUNTBLANK(WorkLisr),\"\",INDIRECT(ADDRESS(SMALL((IF(WorkLisr<>\"\",ROW(WorkLisr),ROW()+ROWS(WorkLisr))),ROW()-ROW(FolowList)+1),COLUMN(WorkLisr),4)))","v":""}]
[null,null,null,null,null,null,null,{"$f":"IF(ROW()-ROW(FolowList)+1>ROWS(WorkLisr)-COUNTBLANK(WorkLisr),\"\",INDIRECT(ADDRESS(SMALL((IF(WorkLisr<>\"\",ROW(WorkLisr),ROW()+ROWS(WorkLisr))),ROW()-ROW(FolowList)+1),COLUMN(WorkLisr),4)))","v":""}]
[null,null,null,null,null,null,null,{"$f":"IF(ROW()-ROW(FolowList)+1>ROWS(WorkLisr)-COUNTBLANK(WorkLisr),\"\",INDIRECT(ADDRESS(SMALL((IF(WorkLisr<>\"\",ROW(WorkLisr),ROW()+ROWS(WorkLisr))),ROW()-ROW(FolowList)+1),COLUMN(WorkLisr),4)))","v":""}]
[null,null,null,null,null,null,null,{"$f":"IF(ROW()-ROW(FolowList)+1>ROWS(WorkLisr)-COUNTBLANK(WorkLisr),\"\",INDIRECT(ADDRESS(SMALL((IF(WorkLisr<>\"\",ROW(WorkLisr),ROW()+ROWS(WorkLisr))),ROW()-ROW(FolowList)+1),COLUMN(WorkLisr),4)))","v":""}]
[null,null,null,null,null,null,null,{"$f":"IF(ROW()-ROW(FolowList)+1>ROWS(WorkLisr)-COUNTBLANK(WorkLisr),\"\",INDIRECT(ADDRESS(SMALL((IF(WorkLisr<>\"\",ROW(WorkLisr),ROW()+ROWS(WorkLisr))),ROW()-ROW(FolowList)+1),COLUMN(WorkLisr),4)))","v":""}]
[null,null,null,null,null,null,null,{"$f":"IF(ROW()-ROW(FolowList)+1>ROWS(WorkLisr)-COUNTBLANK(WorkLisr),\"\",INDIRECT(ADDRESS(SMALL((IF(WorkLisr<>\"\",ROW(WorkLisr),ROW()+ROWS(WorkLisr))),ROW()-ROW(FolowList)+1),COLUMN(WorkLisr),4)))","v":""}]
[null,null,null,null,null,null,null,{"$f":"IF(ROW()-ROW(FolowList)+1>ROWS(WorkLisr)-COUNTBLANK(WorkLisr),\"\",INDIRECT(ADDRESS(SMALL((IF(WorkLisr<>\"\",ROW(WorkLisr),ROW()+ROWS(WorkLisr))),ROW()-ROW(FolowList)+1),COLUMN(WorkLisr),4)))","v":""}]
[null,null,null,null,null,null,null,{"$f":"IF(ROW()-ROW(FolowList)+1>ROWS(WorkLisr)-COUNTBLANK(WorkLisr),\"\",INDIRECT(ADDRESS(SMALL((IF(WorkLisr<>\"\",ROW(WorkLisr),ROW()+ROWS(WorkLisr))),ROW()-ROW(FolowList)+1),COLUMN(WorkLisr),4)))","v":""}]
[null,null,null,null,null,null,null,{"$f":"IF(ROW()-ROW(FolowList)+1>ROWS(WorkLisr)-COUNTBLANK(WorkLisr),\"\",INDIRECT(ADDRESS(SMALL((IF(WorkLisr<>\"\",ROW(WorkLisr),ROW()+ROWS(WorkLisr))),ROW()-ROW(FolowList)+1),COLUMN(WorkLisr),4)))","v":""}]
[null,null,null,null,null,null,null,{"$f":"IF(ROW()-ROW(FolowList)+1>ROWS(WorkLisr)-COUNTBLANK(WorkLisr),\"\",INDIRECT(ADDRESS(SMALL((IF(WorkLisr<>\"\",ROW(WorkLisr),ROW()+ROWS(WorkLisr))),ROW()-ROW(FolowList)+1),COLUMN(WorkLisr),4)))","v":""}]
[null,null,null,null,null,null,null,{"$f":"IF(ROW()-ROW(FolowList)+1>ROWS(WorkLisr)-COUNTBLANK(WorkLisr),\"\",INDIRECT(ADDRESS(SMALL((IF(WorkLisr<>\"\",ROW(WorkLisr),ROW()+ROWS(WorkLisr))),ROW()-ROW(FolowList)+1),COLUMN(WorkLisr),4)))","v":""}]
[null,null,null,null,null,null,null,{"$f":"IF(ROW()-ROW(FolowList)+1>ROWS(WorkLisr)-COUNTBLANK(WorkLisr),\"\",INDIRECT(ADDRESS(SMALL((IF(WorkLisr<>\"\",ROW(WorkLisr),ROW()+ROWS(WorkLisr))),ROW()-ROW(FolowList)+1),COLUMN(WorkLisr),4)))","v":""}]
[null,null,null,null,null,null,null,{"$f":"IF(ROW()-ROW(FolowList)+1>ROWS(WorkLisr)-COUNTBLANK(WorkLisr),\"\",INDIRECT(ADDRESS(SMALL((IF(WorkLisr<>\"\",ROW(WorkLisr),ROW()+ROWS(WorkLisr))),ROW()-ROW(FolowList)+1),COLUMN(WorkLisr),4)))","v":""}]
[null,null,null,null,null,null,null,{"$f":"IF(ROW()-ROW(FolowList)+1>ROWS(WorkLisr)-COUNTBLANK(WorkLisr),\"\",INDIRECT(ADDRESS(SMALL((IF(WorkLisr<>\"\",ROW(WorkLisr),ROW()+ROWS(WorkLisr))),ROW()-ROW(FolowList)+1),COLUMN(WorkLisr),4)))","v":""}]
[null,null,null,null,null,null,null,{"$f":"IF(ROW()-ROW(FolowList)+1>ROWS(WorkLisr)-COUNTBLANK(WorkLisr),\"\",INDIRECT(ADDRESS(SMALL((IF(WorkLisr<>\"\",ROW(WorkLisr),ROW()+ROWS(WorkLisr))),ROW()-ROW(FolowList)+1),COLUMN(WorkLisr),4)))","v":""}]
[null,null,null,null,null,null,null,{"$f":"IF(ROW()-ROW(FolowList)+1>ROWS(WorkLisr)-COUNTBLANK(WorkLisr),\"\",INDIRECT(ADDRESS(SMALL((IF(WorkLisr<>\"\",ROW(WorkLisr),ROW()+ROWS(WorkLisr))),ROW()-ROW(FolowList)+1),COLUMN(WorkLisr),4)))","v":""}]
[null,null,null,null,null,null,null,{"$f":"IF(ROW()-ROW(FolowList)+1>ROWS(WorkLisr)-COUNTBLANK(WorkLisr),\"\",INDIRECT(ADDRESS(SMALL((IF(WorkLisr<>\"\",ROW(WorkLisr),ROW()+ROWS(WorkLisr))),ROW()-ROW(FolowList)+1),COLUMN(WorkLisr),4)))","v":""}]
[null,null,null,null,null,null,null,{"$f":"IF(ROW()-ROW(FolowList)+1>ROWS(WorkLisr)-COUNTBLANK(WorkLisr),\"\",INDIRECT(ADDRESS(SMALL((IF(WorkLisr<>\"\",ROW(WorkLisr),ROW()+ROWS(WorkLisr))),ROW()-ROW(FolowList)+1),COLUMN(WorkLisr),4)))","v":""}]
[null,null,null,null,null,null,null,{"$f":"IF(ROW()-ROW(FolowList)+1>ROWS(WorkLisr)-COUNTBLANK(WorkLisr),\"\",INDIRECT(ADDRESS(SMALL((IF(WorkLisr<>\"\",ROW(WorkLisr),ROW()+ROWS(WorkLisr))),ROW()-ROW(FolowList)+1),COLUMN(WorkLisr),4)))","v":""}]
[null,null,null,null,null,null,null,{"$f":"IF(ROW()-ROW(FolowList)+1>ROWS(WorkLisr)-COUNTBLANK(WorkLisr),\"\",INDIRECT(ADDRESS(SMALL((IF(WorkLisr<>\"\",ROW(WorkLisr),ROW()+ROWS(WorkLisr))),ROW()-ROW(FolowList)+1),COLUMN(WorkLisr),4)))","v":""}]
[null,null,null,null,null,null,null,{"$f":"IF(ROW()-ROW(FolowList)+1>ROWS(WorkLisr)-COUNTBLANK(WorkLisr),\"\",INDIRECT(ADDRESS(SMALL((IF(WorkLisr<>\"\",ROW(WorkLisr),ROW()+ROWS(WorkLisr))),ROW()-ROW(FolowList)+1),COLUMN(WorkLisr),4)))","v":""}]
[null,null,null,null,null,null,null,{"$f":"IF(ROW()-ROW(FolowList)+1>ROWS(WorkLisr)-COUNTBLANK(WorkLisr),\"\",INDIRECT(ADDRESS(SMALL((IF(WorkLisr<>\"\",ROW(WorkLisr),ROW()+ROWS(WorkLisr))),ROW()-ROW(FolowList)+1),COLUMN(WorkLisr),4)))","v":""}]
[null,null,null,null,null,null,null,{"$f":"IF(ROW()-ROW(FolowList)+1>ROWS(WorkLisr)-COUNTBLANK(WorkLisr),\"\",INDIRECT(ADDRESS(SMALL((IF(WorkLisr<>\"\",ROW(WorkLisr),ROW()+ROWS(WorkLisr))),ROW()-ROW(FolowList)+1),COLUMN(WorkLisr),4)))","v":""}]
[null,null,null,null,null,null,null,{"$f":"IF(ROW()-ROW(FolowList)+1>ROWS(WorkLisr)-COUNTBLANK(WorkLisr),\"\",INDIRECT(ADDRESS(SMALL((IF(WorkLisr<>\"\",ROW(WorkLisr),ROW()+ROWS(WorkLisr))),ROW()-ROW(FolowList)+1),COLUMN(WorkLisr),4)))","v":""}]
[null,null,null,null,null,null,null,{"$f":"IF(ROW()-ROW(FolowList)+1>ROWS(WorkLisr)-COUNTBLANK(WorkLisr),\"\",INDIRECT(ADDRESS(SMALL((IF(WorkLisr<>\"\",ROW(WorkLisr),ROW()+ROWS(WorkLisr))),ROW()-ROW(FolowList)+1),COLUMN(WorkLisr),4)))","v":""}]
[null,null,null,null,null,null,null,{"$f":"IF(ROW()-ROW(FolowList)+1>ROWS(WorkLisr)-COUNTBLANK(WorkLisr),\"\",INDIRECT(ADDRESS(SMALL((IF(WorkLisr<>\"\",ROW(WorkLisr),ROW()+ROWS(WorkLisr))),ROW()-ROW(FolowList)+1),COLUMN(WorkLisr),4)))","v":""}]
[null,null,null,null,null,null,null,{"$f":"IF(ROW()-ROW(FolowList)+1>ROWS(WorkLisr)-COUNTBLANK(WorkLisr),\"\",INDIRECT(ADDRESS(SMALL((IF(WorkLisr<>\"\",ROW(WorkLisr),ROW()+ROWS(WorkLisr))),ROW()-ROW(FolowList)+1),COLUMN(WorkLisr),4)))","v":""}]
[null,null,null,null,null,null,null,{"$f":"IF(ROW()-ROW(FolowList)+1>ROWS(WorkLisr)-COUNTBLANK(WorkLisr),\"\",INDIRECT(ADDRESS(SMALL((IF(WorkLisr<>\"\",ROW(WorkLisr),ROW()+ROWS(WorkLisr))),ROW()-ROW(FolowList)+1),COLUMN(WorkLisr),4)))","v":""}]
[null,null,null,null,null,null,null,{"$f":"IF(ROW()-ROW(FolowList)+1>ROWS(WorkLisr)-COUNTBLANK(WorkLisr),\"\",INDIRECT(ADDRESS(SMALL((IF(WorkLisr<>\"\",ROW(WorkLisr),ROW()+ROWS(WorkLisr))),ROW()-ROW(FolowList)+1),COLUMN(WorkLisr),4)))","v":""}]
[null,null,null,null,null,null,null,{"$f":"IF(ROW()-ROW(FolowList)+1>ROWS(WorkLisr)-COUNTBLANK(WorkLisr),\"\",INDIRECT(ADDRESS(SMALL((IF(WorkLisr<>\"\",ROW(WorkLisr),ROW()+ROWS(WorkLisr))),ROW()-ROW(FolowList)+1),COLUMN(WorkLisr),4)))","v":""}]
[null,null,null,null,null,null,null,{"$f":"IF(ROW()-ROW(FolowList)+1>ROWS(WorkLisr)-COUNTBLANK(WorkLisr),\"\",INDIRECT(ADDRESS(SMALL((IF(WorkLisr<>\"\",ROW(WorkLisr),ROW()+ROWS(WorkLisr))),ROW()-ROW(FolowList)+1),COLUMN(WorkLisr),4)))","v":""}]
[null,null,null,null,null,null,null,{"$f":"IF(ROW()-ROW(FolowList)+1>ROWS(WorkLisr)-COUNTBLANK(WorkLisr),\"\",INDIRECT(ADDRESS(SMALL((IF(WorkLisr<>\"\",ROW(WorkLisr),ROW()+ROWS(WorkLisr))),ROW()-ROW(FolowList)+1),COLUMN(WorkLisr),4)))","v":""}]
[null,null,null,null,null,null,null,{"$f":"IF(ROW()-ROW(FolowList)+1>ROWS(WorkLisr)-COUNTBLANK(WorkLisr),\"\",INDIRECT(ADDRESS(SMALL((IF(WorkLisr<>\"\",ROW(WorkLisr),ROW()+ROWS(WorkLisr))),ROW()-ROW(FolowList)+1),COLUMN(WorkLisr),4)))","v":""}]
[null,null,null,null,null,null,null,{"$f":"IF(ROW()-ROW(FolowList)+1>ROWS(WorkLisr)-COUNTBLANK(WorkLisr),\"\",INDIRECT(ADDRESS(SMALL((IF(WorkLisr<>\"\",ROW(WorkLisr),ROW()+ROWS(WorkLisr))),ROW()-ROW(FolowList)+1),COLUMN(WorkLisr),4)))","v":""}]
[null,null,null,null,null,null,null,{"$f":"IF(ROW()-ROW(FolowList)+1>ROWS(WorkLisr)-COUNTBLANK(WorkLisr),\"\",INDIRECT(ADDRESS(SMALL((IF(WorkLisr<>\"\",ROW(WorkLisr),ROW()+ROWS(WorkLisr))),ROW()-ROW(FolowList)+1),COLUMN(WorkLisr),4)))","v":""}]
[null,null,null,null,null,null,null,{"$f":"IF(ROW()-ROW(FolowList)+1>ROWS(WorkLisr)-COUNTBLANK(WorkLisr),\"\",INDIRECT(ADDRESS(SMALL((IF(WorkLisr<>\"\",ROW(WorkLisr),ROW()+ROWS(WorkLisr))),ROW()-ROW(FolowList)+1),COLUMN(WorkLisr),4)))","v":""}]
[null,null,null,null,null,null,null,{"$f":"IF(ROW()-ROW(FolowList)+1>ROWS(WorkLisr)-COUNTBLANK(WorkLisr),\"\",INDIRECT(ADDRESS(SMALL((IF(WorkLisr<>\"\",ROW(WorkLisr),ROW()+ROWS(WorkLisr))),ROW()-ROW(FolowList)+1),COLUMN(WorkLisr),4)))","v":""}]
[null,null,null,null,null,null,null,{"$f":"IF(ROW()-ROW(FolowList)+1>ROWS(WorkLisr)-COUNTBLANK(WorkLisr),\"\",INDIRECT(ADDRESS(SMALL((IF(WorkLisr<>\"\",ROW(WorkLisr),ROW()+ROWS(WorkLisr))),ROW()-ROW(FolowList)+1),COLUMN(WorkLisr),4)))","v":""}]
[null,null,null,null,null,null,null,{"$f":"IF(ROW()-ROW(FolowList)+1>ROWS(WorkLisr)-COUNTBLANK(WorkLisr),\"\",INDIRECT(ADDRESS(SMALL((IF(WorkLisr<>\"\",ROW(WorkLisr),ROW()+ROWS(WorkLisr))),ROW()-ROW(FolowList)+1),COLUMN(WorkLisr),4)))","v":""}]
[null,null,null,null,null,null,null,{"$f":"IF(ROW()-ROW(FolowList)+1>ROWS(WorkLisr)-COUNTBLANK(WorkLisr),\"\",INDIRECT(ADDRESS(SMALL((IF(WorkLisr<>\"\",ROW(WorkLisr),ROW()+ROWS(WorkLisr))),ROW()-ROW(FolowList)+1),COLUMN(WorkLisr),4)))","v":""}]
[null,null,null,null,null,null,null,{"$f":"IF(ROW()-ROW(FolowList)+1>ROWS(WorkLisr)-COUNTBLANK(WorkLisr),\"\",INDIRECT(ADDRESS(SMALL((IF(WorkLisr<>\"\",ROW(WorkLisr),ROW()+ROWS(WorkLisr))),ROW()-ROW(FolowList)+1),COLUMN(WorkLisr),4)))","v":""}]
[null,null,null,null,null,null,null,{"$f":"IF(ROW()-ROW(FolowList)+1>ROWS(WorkLisr)-COUNTBLANK(WorkLisr),\"\",INDIRECT(ADDRESS(SMALL((IF(WorkLisr<>\"\",ROW(WorkLisr),ROW()+ROWS(WorkLisr))),ROW()-ROW(FolowList)+1),COLUMN(WorkLisr),4)))","v":""}]
[null,null,null,null,null,null,null,{"$f":"IF(ROW()-ROW(FolowList)+1>ROWS(WorkLisr)-COUNTBLANK(WorkLisr),\"\",INDIRECT(ADDRESS(SMALL((IF(WorkLisr<>\"\",ROW(WorkLisr),ROW()+ROWS(WorkLisr))),ROW()-ROW(FolowList)+1),COLUMN(WorkLisr),4)))","v":""}]
[null,null,null,null,null,null,null,{"$f":"IF(ROW()-ROW(FolowList)+1>ROWS(WorkLisr)-COUNTBLANK(WorkLisr),\"\",INDIRECT(ADDRESS(SMALL((IF(WorkLisr<>\"\",ROW(WorkLisr),ROW()+ROWS(WorkLisr))),ROW()-ROW(FolowList)+1),COLUMN(WorkLisr),4)))","v":""}]
[null,null,null,null,null,null,null,{"$f":"IF(ROW()-ROW(FolowList)+1>ROWS(WorkLisr)-COUNTBLANK(WorkLisr),\"\",INDIRECT(ADDRESS(SMALL((IF(WorkLisr<>\"\",ROW(WorkLisr),ROW()+ROWS(WorkLisr))),ROW()-ROW(FolowList)+1),COLUMN(WorkLisr),4)))","v":""}]
[null,null,null,null,null,null,null,{"$f":"IF(ROW()-ROW(FolowList)+1>ROWS(WorkLisr)-COUNTBLANK(WorkLisr),\"\",INDIRECT(ADDRESS(SMALL((IF(WorkLisr<>\"\",ROW(WorkLisr),ROW()+ROWS(WorkLisr))),ROW()-ROW(FolowList)+1),COLUMN(WorkLisr),4)))","v":""}]
[null,null,null,null,null,null,null,{"$f":"IF(ROW()-ROW(FolowList)+1>ROWS(WorkLisr)-COUNTBLANK(WorkLisr),\"\",INDIRECT(ADDRESS(SMALL((IF(WorkLisr<>\"\",ROW(WorkLisr),ROW()+ROWS(WorkLisr))),ROW()-ROW(FolowList)+1),COLUMN(WorkLisr),4)))","v":""}]
[null,null,null,null,null,null,null,{"$f":"IF(ROW()-ROW(FolowList)+1>ROWS(WorkLisr)-COUNTBLANK(WorkLisr),\"\",INDIRECT(ADDRESS(SMALL((IF(WorkLisr<>\"\",ROW(WorkLisr),ROW()+ROWS(WorkLisr))),ROW()-ROW(FolowList)+1),COLUMN(WorkLisr),4)))","v":""}]
[null,null,null,null,null,null,null,{"$f":"IF(ROW()-ROW(FolowList)+1>ROWS(WorkLisr)-COUNTBLANK(WorkLisr),\"\",INDIRECT(ADDRESS(SMALL((IF(WorkLisr<>\"\",ROW(WorkLisr),ROW()+ROWS(WorkLisr))),ROW()-ROW(FolowList)+1),COLUMN(WorkLisr),4)))","v":""}]
[null,null,null,null,null,null,null,{"$f":"IF(ROW()-ROW(FolowList)+1>ROWS(WorkLisr)-COUNTBLANK(WorkLisr),\"\",INDIRECT(ADDRESS(SMALL((IF(WorkLisr<>\"\",ROW(WorkLisr),ROW()+ROWS(WorkLisr))),ROW()-ROW(FolowList)+1),COLUMN(WorkLisr),4)))","v":""}]
[null,null,null,null,null,null,null,{"$f":"IF(ROW()-ROW(FolowList)+1>ROWS(WorkLisr)-COUNTBLANK(WorkLisr),\"\",INDIRECT(ADDRESS(SMALL((IF(WorkLisr<>\"\",ROW(WorkLisr),ROW()+ROWS(WorkLisr))),ROW()-ROW(FolowList)+1),COLUMN(WorkLisr),4)))","v":""}]
[null,null,null,null,null,null,null,{"$f":"IF(ROW()-ROW(FolowList)+1>ROWS(WorkLisr)-COUNTBLANK(WorkLisr),\"\",INDIRECT(ADDRESS(SMALL((IF(WorkLisr<>\"\",ROW(WorkLisr),ROW()+ROWS(WorkLisr))),ROW()-ROW(FolowList)+1),COLUMN(WorkLisr),4)))","v":""}]
[null,null,null,null,null,null,null,{"$f":"IF(ROW()-ROW(FolowList)+1>ROWS(WorkLisr)-COUNTBLANK(WorkLisr),\"\",INDIRECT(ADDRESS(SMALL((IF(WorkLisr<>\"\",ROW(WorkLisr),ROW()+ROWS(WorkLisr))),ROW()-ROW(FolowList)+1),COLUMN(WorkLisr),4)))","v":""}]
[null,null,null,null,null,null,null,{"$f":"IF(ROW()-ROW(FolowList)+1>ROWS(WorkLisr)-COUNTBLANK(WorkLisr),\"\",INDIRECT(ADDRESS(SMALL((IF(WorkLisr<>\"\",ROW(WorkLisr),ROW()+ROWS(WorkLisr))),ROW()-ROW(FolowList)+1),COLUMN(WorkLisr),4)))","v":""}]
[null,null,null,null,null,null,null,{"$f":"IF(ROW()-ROW(FolowList)+1>ROWS(WorkLisr)-COUNTBLANK(WorkLisr),\"\",INDIRECT(ADDRESS(SMALL((IF(WorkLisr<>\"\",ROW(WorkLisr),ROW()+ROWS(WorkLisr))),ROW()-ROW(FolowList)+1),COLUMN(WorkLisr),4)))","v":""}]
[null,null,null,null,null,null,null,{"$f":"IF(ROW()-ROW(FolowList)+1>ROWS(WorkLisr)-COUNTBLANK(WorkLisr),\"\",INDIRECT(ADDRESS(SMALL((IF(WorkLisr<>\"\",ROW(WorkLisr),ROW()+ROWS(WorkLisr))),ROW()-ROW(FolowList)+1),COLUMN(WorkLisr),4)))","v":""}]
[null,null,null,null,null,null,null,{"$f":"IF(ROW()-ROW(FolowList)+1>ROWS(WorkLisr)-COUNTBLANK(WorkLisr),\"\",INDIRECT(ADDRESS(SMALL((IF(WorkLisr<>\"\",ROW(WorkLisr),ROW()+ROWS(WorkLisr))),ROW()-ROW(FolowList)+1),COLUMN(WorkLisr),4)))","v":""}]
[null,null,null,null,null,null,null,{"$f":"IF(ROW()-ROW(FolowList)+1>ROWS(WorkLisr)-COUNTBLANK(WorkLisr),\"\",INDIRECT(ADDRESS(SMALL((IF(WorkLisr<>\"\",ROW(WorkLisr),ROW()+ROWS(WorkLisr))),ROW()-ROW(FolowList)+1),COLUMN(WorkLisr),4)))","v":""}]
[null,null,null,null,null,null,null,{"$f":"IF(ROW()-ROW(FolowList)+1>ROWS(WorkLisr)-COUNTBLANK(WorkLisr),\"\",INDIRECT(ADDRESS(SMALL((IF(WorkLisr<>\"\",ROW(WorkLisr),ROW()+ROWS(WorkLisr))),ROW()-ROW(FolowList)+1),COLUMN(WorkLisr),4)))","v":""}]
[null,null,null,null,null,null,null,{"$f":"IF(ROW()-ROW(FolowList)+1>ROWS(WorkLisr)-COUNTBLANK(WorkLisr),\"\",INDIRECT(ADDRESS(SMALL((IF(WorkLisr<>\"\",ROW(WorkLisr),ROW()+ROWS(WorkLisr))),ROW()-ROW(FolowList)+1),COLUMN(WorkLisr),4)))","v":""}]
[null,null,null,null,null,null,null,{"$f":"IF(ROW()-ROW(FolowList)+1>ROWS(WorkLisr)-COUNTBLANK(WorkLisr),\"\",INDIRECT(ADDRESS(SMALL((IF(WorkLisr<>\"\",ROW(WorkLisr),ROW()+ROWS(WorkLisr))),ROW()-ROW(FolowList)+1),COLUMN(WorkLisr),4)))","v":""}]
[null,null,null,null,null,null,null,{"$f":"IF(ROW()-ROW(FolowList)+1>ROWS(WorkLisr)-COUNTBLANK(WorkLisr),\"\",INDIRECT(ADDRESS(SMALL((IF(WorkLisr<>\"\",ROW(WorkLisr),ROW()+ROWS(WorkLisr))),ROW()-ROW(FolowList)+1),COLUMN(WorkLisr),4)))","v":""}]
[null,null,null,null,null,null,null,{"$f":"IF(ROW()-ROW(FolowList)+1>ROWS(WorkLisr)-COUNTBLANK(WorkLisr),\"\",INDIRECT(ADDRESS(SMALL((IF(WorkLisr<>\"\",ROW(WorkLisr),ROW()+ROWS(WorkLisr))),ROW()-ROW(FolowList)+1),COLUMN(WorkLisr),4)))","v":""}]
[null,null,null,null,null,null,null,{"$f":"IF(ROW()-ROW(FolowList)+1>ROWS(WorkLisr)-COUNTBLANK(WorkLisr),\"\",INDIRECT(ADDRESS(SMALL((IF(WorkLisr<>\"\",ROW(WorkLisr),ROW()+ROWS(WorkLisr))),ROW()-ROW(FolowList)+1),COLUMN(WorkLisr),4)))","v":""}]
[null,null,null,null,null,null,null,{"$f":"IF(ROW()-ROW(FolowList)+1>ROWS(WorkLisr)-COUNTBLANK(WorkLisr),\"\",INDIRECT(ADDRESS(SMALL((IF(WorkLisr<>\"\",ROW(WorkLisr),ROW()+ROWS(WorkLisr))),ROW()-ROW(FolowList)+1),COLUMN(WorkLisr),4)))","v":""}]
[null,null,null,null,null,null,null,{"$f":"IF(ROW()-ROW(FolowList)+1>ROWS(WorkLisr)-COUNTBLANK(WorkLisr),\"\",INDIRECT(ADDRESS(SMALL((IF(WorkLisr<>\"\",ROW(WorkLisr),ROW()+ROWS(WorkLisr))),ROW()-ROW(FolowList)+1),COLUMN(WorkLisr),4)))","v":""}]
[null,null,null,null,null,null,null,{"$f":"IF(ROW()-ROW(FolowList)+1>ROWS(WorkLisr)-COUNTBLANK(WorkLisr),\"\",INDIRECT(ADDRESS(SMALL((IF(WorkLisr<>\"\",ROW(WorkLisr),ROW()+ROWS(WorkLisr))),ROW()-ROW(FolowList)+1),COLUMN(WorkLisr),4)))","v":""}]
[null,null,null,null,null,null,null,{"$f":"IF(ROW()-ROW(FolowList)+1>ROWS(WorkLisr)-COUNTBLANK(WorkLisr),\"\",INDIRECT(ADDRESS(SMALL((IF(WorkLisr<>\"\",ROW(WorkLisr),ROW()+ROWS(WorkLisr))),ROW()-ROW(FolowList)+1),COLUMN(WorkLisr),4)))","v":""}]
[null,null,null,null,null,null,null,{"$f":"IF(ROW()-ROW(FolowList)+1>ROWS(WorkLisr)-COUNTBLANK(WorkLisr),\"\",INDIRECT(ADDRESS(SMALL((IF(WorkLisr<>\"\",ROW(WorkLisr),ROW()+ROWS(WorkLisr))),ROW()-ROW(FolowList)+1),COLUMN(WorkLisr),4)))","v":""}]
[null,null,null,null,null,null,null,{"$f":"IF(ROW()-ROW(FolowList)+1>ROWS(WorkLisr)-COUNTBLANK(WorkLisr),\"\",INDIRECT(ADDRESS(SMALL((IF(WorkLisr<>\"\",ROW(WorkLisr),ROW()+ROWS(WorkLisr))),ROW()-ROW(FolowList)+1),COLUMN(WorkLisr),4)))","v":""}]
[null,null,null,null,null,null,null,{"$f":"IF(ROW()-ROW(FolowList)+1>ROWS(WorkLisr)-COUNTBLANK(WorkLisr),\"\",INDIRECT(ADDRESS(SMALL((IF(WorkLisr<>\"\",ROW(WorkLisr),ROW()+ROWS(WorkLisr))),ROW()-ROW(FolowList)+1),COLUMN(WorkLisr),4)))","v":""}]
[null,null,null,null,null,null,null,{"$f":"IF(ROW()-ROW(FolowList)+1>ROWS(WorkLisr)-COUNTBLANK(WorkLisr),\"\",INDIRECT(ADDRESS(SMALL((IF(WorkLisr<>\"\",ROW(WorkLisr),ROW()+ROWS(WorkLisr))),ROW()-ROW(FolowList)+1),COLUMN(WorkLisr),4)))","v":""}]
[null,null,null,null,null,null,null,{"$f":"IF(ROW()-ROW(FolowList)+1>ROWS(WorkLisr)-COUNTBLANK(WorkLisr),\"\",INDIRECT(ADDRESS(SMALL((IF(WorkLisr<>\"\",ROW(WorkLisr),ROW()+ROWS(WorkLisr))),ROW()-ROW(FolowList)+1),COLUMN(WorkLisr),4)))","v":""}]
[null,null,null,null,null,null,null,{"$f":"IF(ROW()-ROW(FolowList)+1>ROWS(WorkLisr)-COUNTBLANK(WorkLisr),\"\",INDIRECT(ADDRESS(SMALL((IF(WorkLisr<>\"\",ROW(WorkLisr),ROW()+ROWS(WorkLisr))),ROW()-ROW(FolowList)+1),COLUMN(WorkLisr),4)))","v":""}]
[null,null,null,null,null,null,null,{"$f":"IF(ROW()-ROW(FolowList)+1>ROWS(WorkLisr)-COUNTBLANK(WorkLisr),\"\",INDIRECT(ADDRESS(SMALL((IF(WorkLisr<>\"\",ROW(WorkLisr),ROW()+ROWS(WorkLisr))),ROW()-ROW(FolowList)+1),COLUMN(WorkLisr),4)))","v":""}]
[null,null,null,null,null,null,null,{"$f":"IF(ROW()-ROW(FolowList)+1>ROWS(WorkLisr)-COUNTBLANK(WorkLisr),\"\",INDIRECT(ADDRESS(SMALL((IF(WorkLisr<>\"\",ROW(WorkLisr),ROW()+ROWS(WorkLisr))),ROW()-ROW(FolowList)+1),COLUMN(WorkLisr),4)))","v":""}]
[null,null,null,null,null,null,null,{"$f":"IF(ROW()-ROW(FolowList)+1>ROWS(WorkLisr)-COUNTBLANK(WorkLisr),\"\",INDIRECT(ADDRESS(SMALL((IF(WorkLisr<>\"\",ROW(WorkLisr),ROW()+ROWS(WorkLisr))),ROW()-ROW(FolowList)+1),COLUMN(WorkLisr),4)))","v":""}]
[null,null,null,null,null,null,null,{"$f":"IF(ROW()-ROW(FolowList)+1>ROWS(WorkLisr)-COUNTBLANK(WorkLisr),\"\",INDIRECT(ADDRESS(SMALL((IF(WorkLisr<>\"\",ROW(WorkLisr),ROW()+ROWS(WorkLisr))),ROW()-ROW(FolowList)+1),COLUMN(WorkLisr),4)))","v":""}]
[null,null,null,null,null,null,null,{"$f":"IF(ROW()-ROW(FolowList)+1>ROWS(WorkLisr)-COUNTBLANK(WorkLisr),\"\",INDIRECT(ADDRESS(SMALL((IF(WorkLisr<>\"\",ROW(WorkLisr),ROW()+ROWS(WorkLisr))),ROW()-ROW(FolowList)+1),COLUMN(WorkLisr),4)))","v":""}]
[null,null,null,null,null,null,null,{"$f":"IF(ROW()-ROW(FolowList)+1>ROWS(WorkLisr)-COUNTBLANK(WorkLisr),\"\",INDIRECT(ADDRESS(SMALL((IF(WorkLisr<>\"\",ROW(WorkLisr),ROW()+ROWS(WorkLisr))),ROW()-ROW(FolowList)+1),COLUMN(WorkLisr),4)))","v":""}]
[null,null,null,null,null,null,null,{"$f":"IF(ROW()-ROW(FolowList)+1>ROWS(WorkLisr)-COUNTBLANK(WorkLisr),\"\",INDIRECT(ADDRESS(SMALL((IF(WorkLisr<>\"\",ROW(WorkLisr),ROW()+ROWS(WorkLisr))),ROW()-ROW(FolowList)+1),COLUMN(WorkLisr),4)))","v":""}]
[null,null,null,null,null,null,null,{"$f":"IF(ROW()-ROW(FolowList)+1>ROWS(WorkLisr)-COUNTBLANK(WorkLisr),\"\",INDIRECT(ADDRESS(SMALL((IF(WorkLisr<>\"\",ROW(WorkLisr),ROW()+ROWS(WorkLisr))),ROW()-ROW(FolowList)+1),COLUMN(WorkLisr),4)))","v":""}]
[null,null,null,null,null,null,null,{"$f":"IF(ROW()-ROW(FolowList)+1>ROWS(WorkLisr)-COUNTBLANK(WorkLisr),\"\",INDIRECT(ADDRESS(SMALL((IF(WorkLisr<>\"\",ROW(WorkLisr),ROW()+ROWS(WorkLisr))),ROW()-ROW(FolowList)+1),COLUMN(WorkLisr),4)))","v":""}]
[null,null,null,null,null,null,null,{"$f":"IF(ROW()-ROW(FolowList)+1>ROWS(WorkLisr)-COUNTBLANK(WorkLisr),\"\",INDIRECT(ADDRESS(SMALL((IF(WorkLisr<>\"\",ROW(WorkLisr),ROW()+ROWS(WorkLisr))),ROW()-ROW(FolowList)+1),COLUMN(WorkLisr),4)))","v":""}]
[null,null,null,null,null,null,null,{"$f":"IF(ROW()-ROW(FolowList)+1>ROWS(WorkLisr)-COUNTBLANK(WorkLisr),\"\",INDIRECT(ADDRESS(SMALL((IF(WorkLisr<>\"\",ROW(WorkLisr),ROW()+ROWS(WorkLisr))),ROW()-ROW(FolowList)+1),COLUMN(WorkLisr),4)))","v":""}]
[null,null,null,null,null,null,null,{"$f":"IF(ROW()-ROW(FolowList)+1>ROWS(WorkLisr)-COUNTBLANK(WorkLisr),\"\",INDIRECT(ADDRESS(SMALL((IF(WorkLisr<>\"\",ROW(WorkLisr),ROW()+ROWS(WorkLisr))),ROW()-ROW(FolowList)+1),COLUMN(WorkLisr),4)))","v":""}]
[null,null,null,null,null,null,null,{"$f":"IF(ROW()-ROW(FolowList)+1>ROWS(WorkLisr)-COUNTBLANK(WorkLisr),\"\",INDIRECT(ADDRESS(SMALL((IF(WorkLisr<>\"\",ROW(WorkLisr),ROW()+ROWS(WorkLisr))),ROW()-ROW(FolowList)+1),COLUMN(WorkLisr),4)))","v":""}]
[null,null,null,null,null,null,null,{"$f":"IF(ROW()-ROW(FolowList)+1>ROWS(WorkLisr)-COUNTBLANK(WorkLisr),\"\",INDIRECT(ADDRESS(SMALL((IF(WorkLisr<>\"\",ROW(WorkLisr),ROW()+ROWS(WorkLisr))),ROW()-ROW(FolowList)+1),COLUMN(WorkLisr),4)))","v":""}]
[null,null,null,null,null,null,null,{"$f":"IF(ROW()-ROW(FolowList)+1>ROWS(WorkLisr)-COUNTBLANK(WorkLisr),\"\",INDIRECT(ADDRESS(SMALL((IF(WorkLisr<>\"\",ROW(WorkLisr),ROW()+ROWS(WorkLisr))),ROW()-ROW(FolowList)+1),COLUMN(WorkLisr),4)))","v":""}]
[null,null,null,null,null,null,null,{"$f":"IF(ROW()-ROW(FolowList)+1>ROWS(WorkLisr)-COUNTBLANK(WorkLisr),\"\",INDIRECT(ADDRESS(SMALL((IF(WorkLisr<>\"\",ROW(WorkLisr),ROW()+ROWS(WorkLisr))),ROW()-ROW(FolowList)+1),COLUMN(WorkLisr),4)))","v":""}]
[null,null,null,null,null,null,null,{"$f":"IF(ROW()-ROW(FolowList)+1>ROWS(WorkLisr)-COUNTBLANK(WorkLisr),\"\",INDIRECT(ADDRESS(SMALL((IF(WorkLisr<>\"\",ROW(WorkLisr),ROW()+ROWS(WorkLisr))),ROW()-ROW(FolowList)+1),COLUMN(WorkLisr),4)))","v":""}]
[null,null,null,null,null,null,null,{"$f":"IF(ROW()-ROW(FolowList)+1>ROWS(WorkLisr)-COUNTBLANK(WorkLisr),\"\",INDIRECT(ADDRESS(SMALL((IF(WorkLisr<>\"\",ROW(WorkLisr),ROW()+ROWS(WorkLisr))),ROW()-ROW(FolowList)+1),COLUMN(WorkLisr),4)))","v":""}]
[null,null,null,null,null,null,null,{"$f":"IF(ROW()-ROW(FolowList)+1>ROWS(WorkLisr)-COUNTBLANK(WorkLisr),\"\",INDIRECT(ADDRESS(SMALL((IF(WorkLisr<>\"\",ROW(WorkLisr),ROW()+ROWS(WorkLisr))),ROW()-ROW(FolowList)+1),COLUMN(WorkLisr),4)))","v":""}]
[null,null,null,null,null,null,null,{"$f":"IF(ROW()-ROW(FolowList)+1>ROWS(WorkLisr)-COUNTBLANK(WorkLisr),\"\",INDIRECT(ADDRESS(SMALL((IF(WorkLisr<>\"\",ROW(WorkLisr),ROW()+ROWS(WorkLisr))),ROW()-ROW(FolowList)+1),COLUMN(WorkLisr),4)))","v":""}]
[null,null,null,null,null,null,null,{"$f":"IF(ROW()-ROW(FolowList)+1>ROWS(WorkLisr)-COUNTBLANK(WorkLisr),\"\",INDIRECT(ADDRESS(SMALL((IF(WorkLisr<>\"\",ROW(WorkLisr),ROW()+ROWS(WorkLisr))),ROW()-ROW(FolowList)+1),COLUMN(WorkLisr),4)))","v":""}]
[null,null,null,null,null,null,null,{"$f":"IF(ROW()-ROW(FolowList)+1>ROWS(WorkLisr)-COUNTBLANK(WorkLisr),\"\",INDIRECT(ADDRESS(SMALL((IF(WorkLisr<>\"\",ROW(WorkLisr),ROW()+ROWS(WorkLisr))),ROW()-ROW(FolowList)+1),COLUMN(WorkLisr),4)))","v":""}]
[null,null,null,null,null,null,null,{"$f":"IF(ROW()-ROW(FolowList)+1>ROWS(WorkLisr)-COUNTBLANK(WorkLisr),\"\",INDIRECT(ADDRESS(SMALL((IF(WorkLisr<>\"\",ROW(WorkLisr),ROW()+ROWS(WorkLisr))),ROW()-ROW(FolowList)+1),COLUMN(WorkLisr),4)))","v":""}]
[null,null,null,null,null,null,null,{"$f":"IF(ROW()-ROW(FolowList)+1>ROWS(WorkLisr)-COUNTBLANK(WorkLisr),\"\",INDIRECT(ADDRESS(SMALL((IF(WorkLisr<>\"\",ROW(WorkLisr),ROW()+ROWS(WorkLisr))),ROW()-ROW(FolowList)+1),COLUMN(WorkLisr),4)))","v":""}]
[null,null,null,null,null,null,null,{"$f":"IF(ROW()-ROW(FolowList)+1>ROWS(WorkLisr)-COUNTBLANK(WorkLisr),\"\",INDIRECT(ADDRESS(SMALL((IF(WorkLisr<>\"\",ROW(WorkLisr),ROW()+ROWS(WorkLisr))),ROW()-ROW(FolowList)+1),COLUMN(WorkLisr),4)))","v":""}]
[null,null,null,null,null,null,null,{"$f":"IF(ROW()-ROW(FolowList)+1>ROWS(WorkLisr)-COUNTBLANK(WorkLisr),\"\",INDIRECT(ADDRESS(SMALL((IF(WorkLisr<>\"\",ROW(WorkLisr),ROW()+ROWS(WorkLisr))),ROW()-ROW(FolowList)+1),COLUMN(WorkLisr),4)))","v":""}]
[null,null,null,null,null,null,null,{"$f":"IF(ROW()-ROW(FolowList)+1>ROWS(WorkLisr)-COUNTBLANK(WorkLisr),\"\",INDIRECT(ADDRESS(SMALL((IF(WorkLisr<>\"\",ROW(WorkLisr),ROW()+ROWS(WorkLisr))),ROW()-ROW(FolowList)+1),COLUMN(WorkLisr),4)))","v":""}]
[null,null,null,null,null,null,null,{"$f":"IF(ROW()-ROW(FolowList)+1>ROWS(WorkLisr)-COUNTBLANK(WorkLisr),\"\",INDIRECT(ADDRESS(SMALL((IF(WorkLisr<>\"\",ROW(WorkLisr),ROW()+ROWS(WorkLisr))),ROW()-ROW(FolowList)+1),COLUMN(WorkLisr),4)))","v":""}]
[null,null,null,null,null,null,null,{"$f":"IF(ROW()-ROW(FolowList)+1>ROWS(WorkLisr)-COUNTBLANK(WorkLisr),\"\",INDIRECT(ADDRESS(SMALL((IF(WorkLisr<>\"\",ROW(WorkLisr),ROW()+ROWS(WorkLisr))),ROW()-ROW(FolowList)+1),COLUMN(WorkLisr),4)))","v":""}]
[null,null,null,null,null,null,null,{"$f":"IF(ROW()-ROW(FolowList)+1>ROWS(WorkLisr)-COUNTBLANK(WorkLisr),\"\",INDIRECT(ADDRESS(SMALL((IF(WorkLisr<>\"\",ROW(WorkLisr),ROW()+ROWS(WorkLisr))),ROW()-ROW(FolowList)+1),COLUMN(WorkLisr),4)))","v":""}]
[null,null,null,null,null,null,null,{"$f":"IF(ROW()-ROW(FolowList)+1>ROWS(WorkLisr)-COUNTBLANK(WorkLisr),\"\",INDIRECT(ADDRESS(SMALL((IF(WorkLisr<>\"\",ROW(WorkLisr),ROW()+ROWS(WorkLisr))),ROW()-ROW(FolowList)+1),COLUMN(WorkLisr),4)))","v":""}]
[null,null,null,null,null,null,null,{"$f":"IF(ROW()-ROW(FolowList)+1>ROWS(WorkLisr)-COUNTBLANK(WorkLisr),\"\",INDIRECT(ADDRESS(SMALL((IF(WorkLisr<>\"\",ROW(WorkLisr),ROW()+ROWS(WorkLisr))),ROW()-ROW(FolowList)+1),COLUMN(WorkLisr),4)))","v":""}]
[null,null,null,null,null,null,null,{"$f":"IF(ROW()-ROW(FolowList)+1>ROWS(WorkLisr)-COUNTBLANK(WorkLisr),\"\",INDIRECT(ADDRESS(SMALL((IF(WorkLisr<>\"\",ROW(WorkLisr),ROW()+ROWS(WorkLisr))),ROW()-ROW(FolowList)+1),COLUMN(WorkLisr),4)))","v":""}]
[null,null,null,null,null,null,null,{"$f":"IF(ROW()-ROW(FolowList)+1>ROWS(WorkLisr)-COUNTBLANK(WorkLisr),\"\",INDIRECT(ADDRESS(SMALL((IF(WorkLisr<>\"\",ROW(WorkLisr),ROW()+ROWS(WorkLisr))),ROW()-ROW(FolowList)+1),COLUMN(WorkLisr),4)))","v":""}]
[null,null,null,null,null,null,null,{"$f":"IF(ROW()-ROW(FolowList)+1>ROWS(WorkLisr)-COUNTBLANK(WorkLisr),\"\",INDIRECT(ADDRESS(SMALL((IF(WorkLisr<>\"\",ROW(WorkLisr),ROW()+ROWS(WorkLisr))),ROW()-ROW(FolowList)+1),COLUMN(WorkLisr),4)))","v":""}]
[null,null,null,null,null,null,null,{"$f":"IF(ROW()-ROW(FolowList)+1>ROWS(WorkLisr)-COUNTBLANK(WorkLisr),\"\",INDIRECT(ADDRESS(SMALL((IF(WorkLisr<>\"\",ROW(WorkLisr),ROW()+ROWS(WorkLisr))),ROW()-ROW(FolowList)+1),COLUMN(WorkLisr),4)))","v":""}]
[null,null,null,null,null,null,null,{"$f":"IF(ROW()-ROW(FolowList)+1>ROWS(WorkLisr)-COUNTBLANK(WorkLisr),\"\",INDIRECT(ADDRESS(SMALL((IF(WorkLisr<>\"\",ROW(WorkLisr),ROW()+ROWS(WorkLisr))),ROW()-ROW(FolowList)+1),COLUMN(WorkLisr),4)))","v":""}]
[null,null,null,null,null,null,null,{"$f":"IF(ROW()-ROW(FolowList)+1>ROWS(WorkLisr)-COUNTBLANK(WorkLisr),\"\",INDIRECT(ADDRESS(SMALL((IF(WorkLisr<>\"\",ROW(WorkLisr),ROW()+ROWS(WorkLisr))),ROW()-ROW(FolowList)+1),COLUMN(WorkLisr),4)))","v":""}]
[null,null,null,null,null,null,null,{"$f":"IF(ROW()-ROW(FolowList)+1>ROWS(WorkLisr)-COUNTBLANK(WorkLisr),\"\",INDIRECT(ADDRESS(SMALL((IF(WorkLisr<>\"\",ROW(WorkLisr),ROW()+ROWS(WorkLisr))),ROW()-ROW(FolowList)+1),COLUMN(WorkLisr),4)))","v":""}]
[null,null,null,null,null,null,null,{"$f":"IF(ROW()-ROW(FolowList)+1>ROWS(WorkLisr)-COUNTBLANK(WorkLisr),\"\",INDIRECT(ADDRESS(SMALL((IF(WorkLisr<>\"\",ROW(WorkLisr),ROW()+ROWS(WorkLisr))),ROW()-ROW(FolowList)+1),COLUMN(WorkLisr),4)))","v":""}]
[null,null,null,null,null,null,null,{"$f":"IF(ROW()-ROW(FolowList)+1>ROWS(WorkLisr)-COUNTBLANK(WorkLisr),\"\",INDIRECT(ADDRESS(SMALL((IF(WorkLisr<>\"\",ROW(WorkLisr),ROW()+ROWS(WorkLisr))),ROW()-ROW(FolowList)+1),COLUMN(WorkLisr),4)))","v":""}]
[null,null,null,null,null,null,null,{"$f":"IF(ROW()-ROW(FolowList)+1>ROWS(WorkLisr)-COUNTBLANK(WorkLisr),\"\",INDIRECT(ADDRESS(SMALL((IF(WorkLisr<>\"\",ROW(WorkLisr),ROW()+ROWS(WorkLisr))),ROW()-ROW(FolowList)+1),COLUMN(WorkLisr),4)))","v":""}]
[null,null,null,null,null,null,null,{"$f":"IF(ROW()-ROW(FolowList)+1>ROWS(WorkLisr)-COUNTBLANK(WorkLisr),\"\",INDIRECT(ADDRESS(SMALL((IF(WorkLisr<>\"\",ROW(WorkLisr),ROW()+ROWS(WorkLisr))),ROW()-ROW(FolowList)+1),COLUMN(WorkLisr),4)))","v":""}]
[null,null,null,null,null,null,null,{"$f":"IF(ROW()-ROW(FolowList)+1>ROWS(WorkLisr)-COUNTBLANK(WorkLisr),\"\",INDIRECT(ADDRESS(SMALL((IF(WorkLisr<>\"\",ROW(WorkLisr),ROW()+ROWS(WorkLisr))),ROW()-ROW(FolowList)+1),COLUMN(WorkLisr),4)))","v":""}]
[null,null,null,null,null,null,null,{"$f":"IF(ROW()-ROW(FolowList)+1>ROWS(WorkLisr)-COUNTBLANK(WorkLisr),\"\",INDIRECT(ADDRESS(SMALL((IF(WorkLisr<>\"\",ROW(WorkLisr),ROW()+ROWS(WorkLisr))),ROW()-ROW(FolowList)+1),COLUMN(WorkLisr),4)))","v":""}]
[null,null,null,null,null,null,null,{"$f":"IF(ROW()-ROW(FolowList)+1>ROWS(WorkLisr)-COUNTBLANK(WorkLisr),\"\",INDIRECT(ADDRESS(SMALL((IF(WorkLisr<>\"\",ROW(WorkLisr),ROW()+ROWS(WorkLisr))),ROW()-ROW(FolowList)+1),COLUMN(WorkLisr),4)))","v":""}]
[null,null,null,null,null,null,null,{"$f":"IF(ROW()-ROW(FolowList)+1>ROWS(WorkLisr)-COUNTBLANK(WorkLisr),\"\",INDIRECT(ADDRESS(SMALL((IF(WorkLisr<>\"\",ROW(WorkLisr),ROW()+ROWS(WorkLisr))),ROW()-ROW(FolowList)+1),COLUMN(WorkLisr),4)))","v":""}]
[null,null,null,null,null,null,null,{"$f":"IF(ROW()-ROW(FolowList)+1>ROWS(WorkLisr)-COUNTBLANK(WorkLisr),\"\",INDIRECT(ADDRESS(SMALL((IF(WorkLisr<>\"\",ROW(WorkLisr),ROW()+ROWS(WorkLisr))),ROW()-ROW(FolowList)+1),COLUMN(WorkLisr),4)))","v":""}]
[null,null,null,null,null,null,null,{"$f":"IF(ROW()-ROW(FolowList)+1>ROWS(WorkLisr)-COUNTBLANK(WorkLisr),\"\",INDIRECT(ADDRESS(SMALL((IF(WorkLisr<>\"\",ROW(WorkLisr),ROW()+ROWS(WorkLisr))),ROW()-ROW(FolowList)+1),COLUMN(WorkLisr),4)))","v":""}]
[null,null,null,null,null,null,null,{"$f":"IF(ROW()-ROW(FolowList)+1>ROWS(WorkLisr)-COUNTBLANK(WorkLisr),\"\",INDIRECT(ADDRESS(SMALL((IF(WorkLisr<>\"\",ROW(WorkLisr),ROW()+ROWS(WorkLisr))),ROW()-ROW(FolowList)+1),COLUMN(WorkLisr),4)))","v":""}]
[null,null,null,null,null,null,null,{"$f":"IF(ROW()-ROW(FolowList)+1>ROWS(WorkLisr)-COUNTBLANK(WorkLisr),\"\",INDIRECT(ADDRESS(SMALL((IF(WorkLisr<>\"\",ROW(WorkLisr),ROW()+ROWS(WorkLisr))),ROW()-ROW(FolowList)+1),COLUMN(WorkLisr),4)))","v":""}]
[null,null,null,null,null,null,null,{"$f":"IF(ROW()-ROW(FolowList)+1>ROWS(WorkLisr)-COUNTBLANK(WorkLisr),\"\",INDIRECT(ADDRESS(SMALL((IF(WorkLisr<>\"\",ROW(WorkLisr),ROW()+ROWS(WorkLisr))),ROW()-ROW(FolowList)+1),COLUMN(WorkLisr),4)))","v":""}]
[null,null,null,null,null,null,null,{"$f":"IF(ROW()-ROW(FolowList)+1>ROWS(WorkLisr)-COUNTBLANK(WorkLisr),\"\",INDIRECT(ADDRESS(SMALL((IF(WorkLisr<>\"\",ROW(WorkLisr),ROW()+ROWS(WorkLisr))),ROW()-ROW(FolowList)+1),COLUMN(WorkLisr),4)))","v":""}]
[null,null,null,null,null,null,null,{"$f":"IF(ROW()-ROW(FolowList)+1>ROWS(WorkLisr)-COUNTBLANK(WorkLisr),\"\",INDIRECT(ADDRESS(SMALL((IF(WorkLisr<>\"\",ROW(WorkLisr),ROW()+ROWS(WorkLisr))),ROW()-ROW(FolowList)+1),COLUMN(WorkLisr),4)))","v":""}]
[null,null,null,null,null,null,null,{"$f":"IF(ROW()-ROW(FolowList)+1>ROWS(WorkLisr)-COUNTBLANK(WorkLisr),\"\",INDIRECT(ADDRESS(SMALL((IF(WorkLisr<>\"\",ROW(WorkLisr),ROW()+ROWS(WorkLisr))),ROW()-ROW(FolowList)+1),COLUMN(WorkLisr),4)))","v":""}]
[null,null,null,null,null,null,null,{"$f":"IF(ROW()-ROW(FolowList)+1>ROWS(WorkLisr)-COUNTBLANK(WorkLisr),\"\",INDIRECT(ADDRESS(SMALL((IF(WorkLisr<>\"\",ROW(WorkLisr),ROW()+ROWS(WorkLisr))),ROW()-ROW(FolowList)+1),COLUMN(WorkLisr),4)))","v":""}]
[null,null,null,null,null,null,null,{"$f":"IF(ROW()-ROW(FolowList)+1>ROWS(WorkLisr)-COUNTBLANK(WorkLisr),\"\",INDIRECT(ADDRESS(SMALL((IF(WorkLisr<>\"\",ROW(WorkLisr),ROW()+ROWS(WorkLisr))),ROW()-ROW(FolowList)+1),COLUMN(WorkLisr),4)))","v":""}]
[null,null,null,null,null,null,null,{"$f":"IF(ROW()-ROW(FolowList)+1>ROWS(WorkLisr)-COUNTBLANK(WorkLisr),\"\",INDIRECT(ADDRESS(SMALL((IF(WorkLisr<>\"\",ROW(WorkLisr),ROW()+ROWS(WorkLisr))),ROW()-ROW(FolowList)+1),COLUMN(WorkLisr),4)))","v":""}]
[null,null,null,null,null,null,null,{"$f":"IF(ROW()-ROW(FolowList)+1>ROWS(WorkLisr)-COUNTBLANK(WorkLisr),\"\",INDIRECT(ADDRESS(SMALL((IF(WorkLisr<>\"\",ROW(WorkLisr),ROW()+ROWS(WorkLisr))),ROW()-ROW(FolowList)+1),COLUMN(WorkLisr),4)))","v":""}]
[null,null,null,null,null,null,null,{"$f":"IF(ROW()-ROW(FolowList)+1>ROWS(WorkLisr)-COUNTBLANK(WorkLisr),\"\",INDIRECT(ADDRESS(SMALL((IF(WorkLisr<>\"\",ROW(WorkLisr),ROW()+ROWS(WorkLisr))),ROW()-ROW(FolowList)+1),COLUMN(WorkLisr),4)))","v":""}]
[null,null,null,null,null,null,null,{"$f":"IF(ROW()-ROW(FolowList)+1>ROWS(WorkLisr)-COUNTBLANK(WorkLisr),\"\",INDIRECT(ADDRESS(SMALL((IF(WorkLisr<>\"\",ROW(WorkLisr),ROW()+ROWS(WorkLisr))),ROW()-ROW(FolowList)+1),COLUMN(WorkLisr),4)))","v":""}]
[null,null,null,null,null,null,null,{"$f":"IF(ROW()-ROW(FolowList)+1>ROWS(WorkLisr)-COUNTBLANK(WorkLisr),\"\",INDIRECT(ADDRESS(SMALL((IF(WorkLisr<>\"\",ROW(WorkLisr),ROW()+ROWS(WorkLisr))),ROW()-ROW(FolowList)+1),COLUMN(WorkLisr),4)))","v":""}]
[null,null,null,null,null,null,null,{"$f":"IF(ROW()-ROW(FolowList)+1>ROWS(WorkLisr)-COUNTBLANK(WorkLisr),\"\",INDIRECT(ADDRESS(SMALL((IF(WorkLisr<>\"\",ROW(WorkLisr),ROW()+ROWS(WorkLisr))),ROW()-ROW(FolowList)+1),COLUMN(WorkLisr),4)))","v":""}]
[null,null,null,null,null,null,null,{"$f":"IF(ROW()-ROW(FolowList)+1>ROWS(WorkLisr)-COUNTBLANK(WorkLisr),\"\",INDIRECT(ADDRESS(SMALL((IF(WorkLisr<>\"\",ROW(WorkLisr),ROW()+ROWS(WorkLisr))),ROW()-ROW(FolowList)+1),COLUMN(WorkLisr),4)))","v":""}]
[null,null,null,null,null,null,null,{"$f":"IF(ROW()-ROW(FolowList)+1>ROWS(WorkLisr)-COUNTBLANK(WorkLisr),\"\",INDIRECT(ADDRESS(SMALL((IF(WorkLisr<>\"\",ROW(WorkLisr),ROW()+ROWS(WorkLisr))),ROW()-ROW(FolowList)+1),COLUMN(WorkLisr),4)))","v":""}]
[null,null,null,null,null,null,null,{"$f":"IF(ROW()-ROW(FolowList)+1>ROWS(WorkLisr)-COUNTBLANK(WorkLisr),\"\",INDIRECT(ADDRESS(SMALL((IF(WorkLisr<>\"\",ROW(WorkLisr),ROW()+ROWS(WorkLisr))),ROW()-ROW(FolowList)+1),COLUMN(WorkLisr),4)))","v":""}]
[null,null,null,null,null,null,null,{"$f":"IF(ROW()-ROW(FolowList)+1>ROWS(WorkLisr)-COUNTBLANK(WorkLisr),\"\",INDIRECT(ADDRESS(SMALL((IF(WorkLisr<>\"\",ROW(WorkLisr),ROW()+ROWS(WorkLisr))),ROW()-ROW(FolowList)+1),COLUMN(WorkLisr),4)))","v":""}]
[null,null,null,null,null,null,null,{"$f":"IF(ROW()-ROW(FolowList)+1>ROWS(WorkLisr)-COUNTBLANK(WorkLisr),\"\",INDIRECT(ADDRESS(SMALL((IF(WorkLisr<>\"\",ROW(WorkLisr),ROW()+ROWS(WorkLisr))),ROW()-ROW(FolowList)+1),COLUMN(WorkLisr),4)))","v":""}]
[null,null,null,null,null,null,null,{"$f":"IF(ROW()-ROW(FolowList)+1>ROWS(WorkLisr)-COUNTBLANK(WorkLisr),\"\",INDIRECT(ADDRESS(SMALL((IF(WorkLisr<>\"\",ROW(WorkLisr),ROW()+ROWS(WorkLisr))),ROW()-ROW(FolowList)+1),COLUMN(WorkLisr),4)))","v":""}]
[null,null,null,null,null,null,null,{"$f":"IF(ROW()-ROW(FolowList)+1>ROWS(WorkLisr)-COUNTBLANK(WorkLisr),\"\",INDIRECT(ADDRESS(SMALL((IF(WorkLisr<>\"\",ROW(WorkLisr),ROW()+ROWS(WorkLisr))),ROW()-ROW(FolowList)+1),COLUMN(WorkLisr),4)))","v":""}]
[null,null,null,null,null,null,null,{"$f":"IF(ROW()-ROW(FolowList)+1>ROWS(WorkLisr)-COUNTBLANK(WorkLisr),\"\",INDIRECT(ADDRESS(SMALL((IF(WorkLisr<>\"\",ROW(WorkLisr),ROW()+ROWS(WorkLisr))),ROW()-ROW(FolowList)+1),COLUMN(WorkLisr),4)))","v":""}]
[null,null,null,null,null,null,null,{"$f":"IF(ROW()-ROW(FolowList)+1>ROWS(WorkLisr)-COUNTBLANK(WorkLisr),\"\",INDIRECT(ADDRESS(SMALL((IF(WorkLisr<>\"\",ROW(WorkLisr),ROW()+ROWS(WorkLisr))),ROW()-ROW(FolowList)+1),COLUMN(WorkLisr),4)))","v":""}]
[null,null,null,null,null,null,null,{"$f":"IF(ROW()-ROW(FolowList)+1>ROWS(WorkLisr)-COUNTBLANK(WorkLisr),\"\",INDIRECT(ADDRESS(SMALL((IF(WorkLisr<>\"\",ROW(WorkLisr),ROW()+ROWS(WorkLisr))),ROW()-ROW(FolowList)+1),COLUMN(WorkLisr),4)))","v":""}]
[null,null,null,null,null,null,null,{"$f":"IF(ROW()-ROW(FolowList)+1>ROWS(WorkLisr)-COUNTBLANK(WorkLisr),\"\",INDIRECT(ADDRESS(SMALL((IF(WorkLisr<>\"\",ROW(WorkLisr),ROW()+ROWS(WorkLisr))),ROW()-ROW(FolowList)+1),COLUMN(WorkLisr),4)))","v":""}]
[null,null,null,null,null,null,null,{"$f":"IF(ROW()-ROW(FolowList)+1>ROWS(WorkLisr)-COUNTBLANK(WorkLisr),\"\",INDIRECT(ADDRESS(SMALL((IF(WorkLisr<>\"\",ROW(WorkLisr),ROW()+ROWS(WorkLisr))),ROW()-ROW(FolowList)+1),COLUMN(WorkLisr),4)))","v":""}]
[null,null,null,null,null,null,null,{"$f":"IF(ROW()-ROW(FolowList)+1>ROWS(WorkLisr)-COUNTBLANK(WorkLisr),\"\",INDIRECT(ADDRESS(SMALL((IF(WorkLisr<>\"\",ROW(WorkLisr),ROW()+ROWS(WorkLisr))),ROW()-ROW(FolowList)+1),COLUMN(WorkLisr),4)))","v":""}]
[null,null,null,null,null,null,null,{"$f":"IF(ROW()-ROW(FolowList)+1>ROWS(WorkLisr)-COUNTBLANK(WorkLisr),\"\",INDIRECT(ADDRESS(SMALL((IF(WorkLisr<>\"\",ROW(WorkLisr),ROW()+ROWS(WorkLisr))),ROW()-ROW(FolowList)+1),COLUMN(WorkLisr),4)))","v":""}]
[null,null,null,null,null,null,null,{"$f":"IF(ROW()-ROW(FolowList)+1>ROWS(WorkLisr)-COUNTBLANK(WorkLisr),\"\",INDIRECT(ADDRESS(SMALL((IF(WorkLisr<>\"\",ROW(WorkLisr),ROW()+ROWS(WorkLisr))),ROW()-ROW(FolowList)+1),COLUMN(WorkLisr),4)))","v":""}]
[null,null,null,null,null,null,null,{"$f":"IF(ROW()-ROW(FolowList)+1>ROWS(WorkLisr)-COUNTBLANK(WorkLisr),\"\",INDIRECT(ADDRESS(SMALL((IF(WorkLisr<>\"\",ROW(WorkLisr),ROW()+ROWS(WorkLisr))),ROW()-ROW(FolowList)+1),COLUMN(WorkLisr),4)))","v":""}]
[null,null,null,null,null,null,null,{"$f":"IF(ROW()-ROW(FolowList)+1>ROWS(WorkLisr)-COUNTBLANK(WorkLisr),\"\",INDIRECT(ADDRESS(SMALL((IF(WorkLisr<>\"\",ROW(WorkLisr),ROW()+ROWS(WorkLisr))),ROW()-ROW(FolowList)+1),COLUMN(WorkLisr),4)))","v":""}]
[null,null,null,null,null,null,null,{"$f":"IF(ROW()-ROW(FolowList)+1>ROWS(WorkLisr)-COUNTBLANK(WorkLisr),\"\",INDIRECT(ADDRESS(SMALL((IF(WorkLisr<>\"\",ROW(WorkLisr),ROW()+ROWS(WorkLisr))),ROW()-ROW(FolowList)+1),COLUMN(WorkLisr),4)))","v":""}]
[null,null,null,null,null,null,null,{"$f":"IF(ROW()-ROW(FolowList)+1>ROWS(WorkLisr)-COUNTBLANK(WorkLisr),\"\",INDIRECT(ADDRESS(SMALL((IF(WorkLisr<>\"\",ROW(WorkLisr),ROW()+ROWS(WorkLisr))),ROW()-ROW(FolowList)+1),COLUMN(WorkLisr),4)))","v":""}]
[null,null,null,null,null,null,null,{"$f":"IF(ROW()-ROW(FolowList)+1>ROWS(WorkLisr)-COUNTBLANK(WorkLisr),\"\",INDIRECT(ADDRESS(SMALL((IF(WorkLisr<>\"\",ROW(WorkLisr),ROW()+ROWS(WorkLisr))),ROW()-ROW(FolowList)+1),COLUMN(WorkLisr),4)))","v":""}]
[null,null,null,null,null,null,null,{"$f":"IF(ROW()-ROW(FolowList)+1>ROWS(WorkLisr)-COUNTBLANK(WorkLisr),\"\",INDIRECT(ADDRESS(SMALL((IF(WorkLisr<>\"\",ROW(WorkLisr),ROW()+ROWS(WorkLisr))),ROW()-ROW(FolowList)+1),COLUMN(WorkLisr),4)))","v":""}]
[null,null,null,null,null,null,null,{"$f":"IF(ROW()-ROW(FolowList)+1>ROWS(WorkLisr)-COUNTBLANK(WorkLisr),\"\",INDIRECT(ADDRESS(SMALL((IF(WorkLisr<>\"\",ROW(WorkLisr),ROW()+ROWS(WorkLisr))),ROW()-ROW(FolowList)+1),COLUMN(WorkLisr),4)))","v":""}]
[null,null,null,null,null,null,null,{"$f":"IF(ROW()-ROW(FolowList)+1>ROWS(WorkLisr)-COUNTBLANK(WorkLisr),\"\",INDIRECT(ADDRESS(SMALL((IF(WorkLisr<>\"\",ROW(WorkLisr),ROW()+ROWS(WorkLisr))),ROW()-ROW(FolowList)+1),COLUMN(WorkLisr),4)))","v":""}]
[null,null,null,null,null,null,null,{"$f":"IF(ROW()-ROW(FolowList)+1>ROWS(WorkLisr)-COUNTBLANK(WorkLisr),\"\",INDIRECT(ADDRESS(SMALL((IF(WorkLisr<>\"\",ROW(WorkLisr),ROW()+ROWS(WorkLisr))),ROW()-ROW(FolowList)+1),COLUMN(WorkLisr),4)))","v":""}]
[null,null,null,null,null,null,null,{"$f":"IF(ROW()-ROW(FolowList)+1>ROWS(WorkLisr)-COUNTBLANK(WorkLisr),\"\",INDIRECT(ADDRESS(SMALL((IF(WorkLisr<>\"\",ROW(WorkLisr),ROW()+ROWS(WorkLisr))),ROW()-ROW(FolowList)+1),COLUMN(WorkLisr),4)))","v":""}]
[null,null,null,null,null,null,null,{"$f":"IF(ROW()-ROW(FolowList)+1>ROWS(WorkLisr)-COUNTBLANK(WorkLisr),\"\",INDIRECT(ADDRESS(SMALL((IF(WorkLisr<>\"\",ROW(WorkLisr),ROW()+ROWS(WorkLisr))),ROW()-ROW(FolowList)+1),COLUMN(WorkLisr),4)))","v":""}]
[null,null,null,null,null,null,null,{"$f":"IF(ROW()-ROW(FolowList)+1>ROWS(WorkLisr)-COUNTBLANK(WorkLisr),\"\",INDIRECT(ADDRESS(SMALL((IF(WorkLisr<>\"\",ROW(WorkLisr),ROW()+ROWS(WorkLisr))),ROW()-ROW(FolowList)+1),COLUMN(WorkLisr),4)))","v":""}]
[null,null,null,null,null,null,null,{"$f":"IF(ROW()-ROW(FolowList)+1>ROWS(WorkLisr)-COUNTBLANK(WorkLisr),\"\",INDIRECT(ADDRESS(SMALL((IF(WorkLisr<>\"\",ROW(WorkLisr),ROW()+ROWS(WorkLisr))),ROW()-ROW(FolowList)+1),COLUMN(WorkLisr),4)))","v":""}]
[null,null,null,null,null,null,null,{"$f":"IF(ROW()-ROW(FolowList)+1>ROWS(WorkLisr)-COUNTBLANK(WorkLisr),\"\",INDIRECT(ADDRESS(SMALL((IF(WorkLisr<>\"\",ROW(WorkLisr),ROW()+ROWS(WorkLisr))),ROW()-ROW(FolowList)+1),COLUMN(WorkLisr),4)))","v":""}]
[null,null,null,null,null,null,null,{"$f":"IF(ROW()-ROW(FolowList)+1>ROWS(WorkLisr)-COUNTBLANK(WorkLisr),\"\",INDIRECT(ADDRESS(SMALL((IF(WorkLisr<>\"\",ROW(WorkLisr),ROW()+ROWS(WorkLisr))),ROW()-ROW(FolowList)+1),COLUMN(WorkLisr),4)))","v":""}]
[null,null,null,null,null,null,null,{"$f":"IF(ROW()-ROW(FolowList)+1>ROWS(WorkLisr)-COUNTBLANK(WorkLisr),\"\",INDIRECT(ADDRESS(SMALL((IF(WorkLisr<>\"\",ROW(WorkLisr),ROW()+ROWS(WorkLisr))),ROW()-ROW(FolowList)+1),COLUMN(WorkLisr),4)))","v":""}]
[null,null,null,null,null,null,null,{"$f":"IF(ROW()-ROW(FolowList)+1>ROWS(WorkLisr)-COUNTBLANK(WorkLisr),\"\",INDIRECT(ADDRESS(SMALL((IF(WorkLisr<>\"\",ROW(WorkLisr),ROW()+ROWS(WorkLisr))),ROW()-ROW(FolowList)+1),COLUMN(WorkLisr),4)))","v":""}]
[null,null,null,null,null,null,null,{"$f":"IF(ROW()-ROW(FolowList)+1>ROWS(WorkLisr)-COUNTBLANK(WorkLisr),\"\",INDIRECT(ADDRESS(SMALL((IF(WorkLisr<>\"\",ROW(WorkLisr),ROW()+ROWS(WorkLisr))),ROW()-ROW(FolowList)+1),COLUMN(WorkLisr),4)))","v":""}]
[null,null,null,null,null,null,null,{"$f":"IF(ROW()-ROW(FolowList)+1>ROWS(WorkLisr)-COUNTBLANK(WorkLisr),\"\",INDIRECT(ADDRESS(SMALL((IF(WorkLisr<>\"\",ROW(WorkLisr),ROW()+ROWS(WorkLisr))),ROW()-ROW(FolowList)+1),COLUMN(WorkLisr),4)))","v":""}]
[null,null,null,null,null,null,null,{"$f":"IF(ROW()-ROW(FolowList)+1>ROWS(WorkLisr)-COUNTBLANK(WorkLisr),\"\",INDIRECT(ADDRESS(SMALL((IF(WorkLisr<>\"\",ROW(WorkLisr),ROW()+ROWS(WorkLisr))),ROW()-ROW(FolowList)+1),COLUMN(WorkLisr),4)))","v":""}]
[null,null,null,null,null,null,null,{"$f":"IF(ROW()-ROW(FolowList)+1>ROWS(WorkLisr)-COUNTBLANK(WorkLisr),\"\",INDIRECT(ADDRESS(SMALL((IF(WorkLisr<>\"\",ROW(WorkLisr),ROW()+ROWS(WorkLisr))),ROW()-ROW(FolowList)+1),COLUMN(WorkLisr),4)))","v":""}]
[null,null,null,null,null,null,null,{"$f":"IF(ROW()-ROW(FolowList)+1>ROWS(WorkLisr)-COUNTBLANK(WorkLisr),\"\",INDIRECT(ADDRESS(SMALL((IF(WorkLisr<>\"\",ROW(WorkLisr),ROW()+ROWS(WorkLisr))),ROW()-ROW(FolowList)+1),COLUMN(WorkLisr),4)))","v":""}]
[null,null,null,null,null,null,null,{"$f":"IF(ROW()-ROW(FolowList)+1>ROWS(WorkLisr)-COUNTBLANK(WorkLisr),\"\",INDIRECT(ADDRESS(SMALL((IF(WorkLisr<>\"\",ROW(WorkLisr),ROW()+ROWS(WorkLisr))),ROW()-ROW(FolowList)+1),COLUMN(WorkLisr),4)))","v":""}]
[null,null,null,null,null,null,null,{"$f":"IF(ROW()-ROW(FolowList)+1>ROWS(WorkLisr)-COUNTBLANK(WorkLisr),\"\",INDIRECT(ADDRESS(SMALL((IF(WorkLisr<>\"\",ROW(WorkLisr),ROW()+ROWS(WorkLisr))),ROW()-ROW(FolowList)+1),COLUMN(WorkLisr),4)))","v":""}]
[null,null,null,null,null,null,null,{"$f":"IF(ROW()-ROW(FolowList)+1>ROWS(WorkLisr)-COUNTBLANK(WorkLisr),\"\",INDIRECT(ADDRESS(SMALL((IF(WorkLisr<>\"\",ROW(WorkLisr),ROW()+ROWS(WorkLisr))),ROW()-ROW(FolowList)+1),COLUMN(WorkLisr),4)))","v":""}]
[null,null,null,null,null,null,null,{"$f":"IF(ROW()-ROW(FolowList)+1>ROWS(WorkLisr)-COUNTBLANK(WorkLisr),\"\",INDIRECT(ADDRESS(SMALL((IF(WorkLisr<>\"\",ROW(WorkLisr),ROW()+ROWS(WorkLisr))),ROW()-ROW(FolowList)+1),COLUMN(WorkLisr),4)))","v":""}]
[null,null,null,null,null,null,null,{"$f":"IF(ROW()-ROW(FolowList)+1>ROWS(WorkLisr)-COUNTBLANK(WorkLisr),\"\",INDIRECT(ADDRESS(SMALL((IF(WorkLisr<>\"\",ROW(WorkLisr),ROW()+ROWS(WorkLisr))),ROW()-ROW(FolowList)+1),COLUMN(WorkLisr),4)))","v":""}]
[null,null,null,null,null,null,null,{"$f":"IF(ROW()-ROW(FolowList)+1>ROWS(WorkLisr)-COUNTBLANK(WorkLisr),\"\",INDIRECT(ADDRESS(SMALL((IF(WorkLisr<>\"\",ROW(WorkLisr),ROW()+ROWS(WorkLisr))),ROW()-ROW(FolowList)+1),COLUMN(WorkLisr),4)))","v":""}]
[null,null,null,null,null,null,null,{"$f":"IF(ROW()-ROW(FolowList)+1>ROWS(WorkLisr)-COUNTBLANK(WorkLisr),\"\",INDIRECT(ADDRESS(SMALL((IF(WorkLisr<>\"\",ROW(WorkLisr),ROW()+ROWS(WorkLisr))),ROW()-ROW(FolowList)+1),COLUMN(WorkLisr),4)))","v":""}]
[null,null,null,null,null,null,null,{"$f":"IF(ROW()-ROW(FolowList)+1>ROWS(WorkLisr)-COUNTBLANK(WorkLisr),\"\",INDIRECT(ADDRESS(SMALL((IF(WorkLisr<>\"\",ROW(WorkLisr),ROW()+ROWS(WorkLisr))),ROW()-ROW(FolowList)+1),COLUMN(WorkLisr),4)))","v":""}]
[null,null,null,null,null,null,null,{"$f":"IF(ROW()-ROW(FolowList)+1>ROWS(WorkLisr)-COUNTBLANK(WorkLisr),\"\",INDIRECT(ADDRESS(SMALL((IF(WorkLisr<>\"\",ROW(WorkLisr),ROW()+ROWS(WorkLisr))),ROW()-ROW(FolowList)+1),COLUMN(WorkLisr),4)))","v":""}]
[null,null,null,null,null,null,null,{"$f":"IF(ROW()-ROW(FolowList)+1>ROWS(WorkLisr)-COUNTBLANK(WorkLisr),\"\",INDIRECT(ADDRESS(SMALL((IF(WorkLisr<>\"\",ROW(WorkLisr),ROW()+ROWS(WorkLisr))),ROW()-ROW(FolowList)+1),COLUMN(WorkLisr),4)))","v":""}]
[null,null,null,null,null,null,null,{"$f":"IF(ROW()-ROW(FolowList)+1>ROWS(WorkLisr)-COUNTBLANK(WorkLisr),\"\",INDIRECT(ADDRESS(SMALL((IF(WorkLisr<>\"\",ROW(WorkLisr),ROW()+ROWS(WorkLisr))),ROW()-ROW(FolowList)+1),COLUMN(WorkLisr),4)))","v":""}]
[null,null,null,null,null,null,null,{"$f":"IF(ROW()-ROW(FolowList)+1>ROWS(WorkLisr)-COUNTBLANK(WorkLisr),\"\",INDIRECT(ADDRESS(SMALL((IF(WorkLisr<>\"\",ROW(WorkLisr),ROW()+ROWS(WorkLisr))),ROW()-ROW(FolowList)+1),COLUMN(WorkLisr),4)))","v":""}]
[null,null,null,null,null,null,null,{"$f":"IF(ROW()-ROW(FolowList)+1>ROWS(WorkLisr)-COUNTBLANK(WorkLisr),\"\",INDIRECT(ADDRESS(SMALL((IF(WorkLisr<>\"\",ROW(WorkLisr),ROW()+ROWS(WorkLisr))),ROW()-ROW(FolowList)+1),COLUMN(WorkLisr),4)))","v":""}]
[null,null,null,null,null,null,null,{"$f":"IF(ROW()-ROW(FolowList)+1>ROWS(WorkLisr)-COUNTBLANK(WorkLisr),\"\",INDIRECT(ADDRESS(SMALL((IF(WorkLisr<>\"\",ROW(WorkLisr),ROW()+ROWS(WorkLisr))),ROW()-ROW(FolowList)+1),COLUMN(WorkLisr),4)))","v":""}]
[null,null,null,null,null,null,null,{"$f":"IF(ROW()-ROW(FolowList)+1>ROWS(WorkLisr)-COUNTBLANK(WorkLisr),\"\",INDIRECT(ADDRESS(SMALL((IF(WorkLisr<>\"\",ROW(WorkLisr),ROW()+ROWS(WorkLisr))),ROW()-ROW(FolowList)+1),COLUMN(WorkLisr),4)))","v":""}]
[null,null,null,null,null,null,null,{"$f":"IF(ROW()-ROW(FolowList)+1>ROWS(WorkLisr)-COUNTBLANK(WorkLisr),\"\",INDIRECT(ADDRESS(SMALL((IF(WorkLisr<>\"\",ROW(WorkLisr),ROW()+ROWS(WorkLisr))),ROW()-ROW(FolowList)+1),COLUMN(WorkLisr),4)))","v":""}]
[null,null,null,null,null,null,null,{"$f":"IF(ROW()-ROW(FolowList)+1>ROWS(WorkLisr)-COUNTBLANK(WorkLisr),\"\",INDIRECT(ADDRESS(SMALL((IF(WorkLisr<>\"\",ROW(WorkLisr),ROW()+ROWS(WorkLisr))),ROW()-ROW(FolowList)+1),COLUMN(WorkLisr),4)))","v":""}]
[null,null,null,null,null,null,null,{"$f":"IF(ROW()-ROW(FolowList)+1>ROWS(WorkLisr)-COUNTBLANK(WorkLisr),\"\",INDIRECT(ADDRESS(SMALL((IF(WorkLisr<>\"\",ROW(WorkLisr),ROW()+ROWS(WorkLisr))),ROW()-ROW(FolowList)+1),COLUMN(WorkLisr),4)))","v":""}]
[null,null,null,null,null,null,null,{"$f":"IF(ROW()-ROW(FolowList)+1>ROWS(WorkLisr)-COUNTBLANK(WorkLisr),\"\",INDIRECT(ADDRESS(SMALL((IF(WorkLisr<>\"\",ROW(WorkLisr),ROW()+ROWS(WorkLisr))),ROW()-ROW(FolowList)+1),COLUMN(WorkLisr),4)))","v":""}]
[null,null,null,null,null,null,null,{"$f":"IF(ROW()-ROW(FolowList)+1>ROWS(WorkLisr)-COUNTBLANK(WorkLisr),\"\",INDIRECT(ADDRESS(SMALL((IF(WorkLisr<>\"\",ROW(WorkLisr),ROW()+ROWS(WorkLisr))),ROW()-ROW(FolowList)+1),COLUMN(WorkLisr),4)))","v":""}]
[null,null,null,null,null,null,null,{"$f":"IF(ROW()-ROW(FolowList)+1>ROWS(WorkLisr)-COUNTBLANK(WorkLisr),\"\",INDIRECT(ADDRESS(SMALL((IF(WorkLisr<>\"\",ROW(WorkLisr),ROW()+ROWS(WorkLisr))),ROW()-ROW(FolowList)+1),COLUMN(WorkLisr),4)))","v":""}]
[null,null,null,null,null,null,null,{"$f":"IF(ROW()-ROW(FolowList)+1>ROWS(WorkLisr)-COUNTBLANK(WorkLisr),\"\",INDIRECT(ADDRESS(SMALL((IF(WorkLisr<>\"\",ROW(WorkLisr),ROW()+ROWS(WorkLisr))),ROW()-ROW(FolowList)+1),COLUMN(WorkLisr),4)))","v":""}]
[null,null,null,null,null,null,null,{"$f":"IF(ROW()-ROW(FolowList)+1>ROWS(WorkLisr)-COUNTBLANK(WorkLisr),\"\",INDIRECT(ADDRESS(SMALL((IF(WorkLisr<>\"\",ROW(WorkLisr),ROW()+ROWS(WorkLisr))),ROW()-ROW(FolowList)+1),COLUMN(WorkLisr),4)))","v":""}]
[null,null,null,null,null,null,null,{"$f":"IF(ROW()-ROW(FolowList)+1>ROWS(WorkLisr)-COUNTBLANK(WorkLisr),\"\",INDIRECT(ADDRESS(SMALL((IF(WorkLisr<>\"\",ROW(WorkLisr),ROW()+ROWS(WorkLisr))),ROW()-ROW(FolowList)+1),COLUMN(WorkLisr),4)))","v":""}]
[null,null,null,null,null,null,null,{"$f":"IF(ROW()-ROW(FolowList)+1>ROWS(WorkLisr)-COUNTBLANK(WorkLisr),\"\",INDIRECT(ADDRESS(SMALL((IF(WorkLisr<>\"\",ROW(WorkLisr),ROW()+ROWS(WorkLisr))),ROW()-ROW(FolowList)+1),COLUMN(WorkLisr),4)))","v":""}]
[null,null,null,null,null,null,null,{"$f":"IF(ROW()-ROW(FolowList)+1>ROWS(WorkLisr)-COUNTBLANK(WorkLisr),\"\",INDIRECT(ADDRESS(SMALL((IF(WorkLisr<>\"\",ROW(WorkLisr),ROW()+ROWS(WorkLisr))),ROW()-ROW(FolowList)+1),COLUMN(WorkLisr),4)))","v":""}]
[null,null,null,null,null,null,null,{"$f":"IF(ROW()-ROW(FolowList)+1>ROWS(WorkLisr)-COUNTBLANK(WorkLisr),\"\",INDIRECT(ADDRESS(SMALL((IF(WorkLisr<>\"\",ROW(WorkLisr),ROW()+ROWS(WorkLisr))),ROW()-ROW(FolowList)+1),COLUMN(WorkLisr),4)))","v":""}]
[null,null,null,null,null,null,null,{"$f":"IF(ROW()-ROW(FolowList)+1>ROWS(WorkLisr)-COUNTBLANK(WorkLisr),\"\",INDIRECT(ADDRESS(SMALL((IF(WorkLisr<>\"\",ROW(WorkLisr),ROW()+ROWS(WorkLisr))),ROW()-ROW(FolowList)+1),COLUMN(WorkLisr),4)))","v":""}]
[null,null,null,null,null,null,null,{"$f":"IF(ROW()-ROW(FolowList)+1>ROWS(WorkLisr)-COUNTBLANK(WorkLisr),\"\",INDIRECT(ADDRESS(SMALL((IF(WorkLisr<>\"\",ROW(WorkLisr),ROW()+ROWS(WorkLisr))),ROW()-ROW(FolowList)+1),COLUMN(WorkLisr),4)))","v":""}]
[null,null,null,null,null,null,null,{"$f":"IF(ROW()-ROW(FolowList)+1>ROWS(WorkLisr)-COUNTBLANK(WorkLisr),\"\",INDIRECT(ADDRESS(SMALL((IF(WorkLisr<>\"\",ROW(WorkLisr),ROW()+ROWS(WorkLisr))),ROW()-ROW(FolowList)+1),COLUMN(WorkLisr),4)))","v":""}]
[null,null,null,null,null,null,null,{"$f":"IF(ROW()-ROW(FolowList)+1>ROWS(WorkLisr)-COUNTBLANK(WorkLisr),\"\",INDIRECT(ADDRESS(SMALL((IF(WorkLisr<>\"\",ROW(WorkLisr),ROW()+ROWS(WorkLisr))),ROW()-ROW(FolowList)+1),COLUMN(WorkLisr),4)))","v":""}]
[null,null,null,null,null,null,null,{"$f":"IF(ROW()-ROW(FolowList)+1>ROWS(WorkLisr)-COUNTBLANK(WorkLisr),\"\",INDIRECT(ADDRESS(SMALL((IF(WorkLisr<>\"\",ROW(WorkLisr),ROW()+ROWS(WorkLisr))),ROW()-ROW(FolowList)+1),COLUMN(WorkLisr),4)))","v":""}]
[null,null,null,null,null,null,null,{"$f":"IF(ROW()-ROW(FolowList)+1>ROWS(WorkLisr)-COUNTBLANK(WorkLisr),\"\",INDIRECT(ADDRESS(SMALL((IF(WorkLisr<>\"\",ROW(WorkLisr),ROW()+ROWS(WorkLisr))),ROW()-ROW(FolowList)+1),COLUMN(WorkLisr),4)))","v":""}]
[null,null,null,null,null,null,null,{"$f":"IF(ROW()-ROW(FolowList)+1>ROWS(WorkLisr)-COUNTBLANK(WorkLisr),\"\",INDIRECT(ADDRESS(SMALL((IF(WorkLisr<>\"\",ROW(WorkLisr),ROW()+ROWS(WorkLisr))),ROW()-ROW(FolowList)+1),COLUMN(WorkLisr),4)))","v":""}]
[null,null,null,null,null,null,null,{"$f":"IF(ROW()-ROW(FolowList)+1>ROWS(WorkLisr)-COUNTBLANK(WorkLisr),\"\",INDIRECT(ADDRESS(SMALL((IF(WorkLisr<>\"\",ROW(WorkLisr),ROW()+ROWS(WorkLisr))),ROW()-ROW(FolowList)+1),COLUMN(WorkLisr),4)))","v":""}]
[null,null,null,null,null,null,null,{"$f":"IF(ROW()-ROW(FolowList)+1>ROWS(WorkLisr)-COUNTBLANK(WorkLisr),\"\",INDIRECT(ADDRESS(SMALL((IF(WorkLisr<>\"\",ROW(WorkLisr),ROW()+ROWS(WorkLisr))),ROW()-ROW(FolowList)+1),COLUMN(WorkLisr),4)))","v":""}]
[null,null,null,null,null,null,null,{"$f":"IF(ROW()-ROW(FolowList)+1>ROWS(WorkLisr)-COUNTBLANK(WorkLisr),\"\",INDIRECT(ADDRESS(SMALL((IF(WorkLisr<>\"\",ROW(WorkLisr),ROW()+ROWS(WorkLisr))),ROW()-ROW(FolowList)+1),COLUMN(WorkLisr),4)))","v":""}]
[null,null,null,null,null,null,null,{"$f":"IF(ROW()-ROW(FolowList)+1>ROWS(WorkLisr)-COUNTBLANK(WorkLisr),\"\",INDIRECT(ADDRESS(SMALL((IF(WorkLisr<>\"\",ROW(WorkLisr),ROW()+ROWS(WorkLisr))),ROW()-ROW(FolowList)+1),COLUMN(WorkLisr),4)))","v":""}]
[null,null,null,null,null,null,null,{"$f":"IF(ROW()-ROW(FolowList)+1>ROWS(WorkLisr)-COUNTBLANK(WorkLisr),\"\",INDIRECT(ADDRESS(SMALL((IF(WorkLisr<>\"\",ROW(WorkLisr),ROW()+ROWS(WorkLisr))),ROW()-ROW(FolowList)+1),COLUMN(WorkLisr),4)))","v":""}]
[null,null,null,null,null,null,null,{"$f":"IF(ROW()-ROW(FolowList)+1>ROWS(WorkLisr)-COUNTBLANK(WorkLisr),\"\",INDIRECT(ADDRESS(SMALL((IF(WorkLisr<>\"\",ROW(WorkLisr),ROW()+ROWS(WorkLisr))),ROW()-ROW(FolowList)+1),COLUMN(WorkLisr),4)))","v":""}]
[null,null,null,null,null,null,null,{"$f":"IF(ROW()-ROW(FolowList)+1>ROWS(WorkLisr)-COUNTBLANK(WorkLisr),\"\",INDIRECT(ADDRESS(SMALL((IF(WorkLisr<>\"\",ROW(WorkLisr),ROW()+ROWS(WorkLisr))),ROW()-ROW(FolowList)+1),COLUMN(WorkLisr),4)))","v":""}]
[null,null,null,null,null,null,null,{"$f":"IF(ROW()-ROW(FolowList)+1>ROWS(WorkLisr)-COUNTBLANK(WorkLisr),\"\",INDIRECT(ADDRESS(SMALL((IF(WorkLisr<>\"\",ROW(WorkLisr),ROW()+ROWS(WorkLisr))),ROW()-ROW(FolowList)+1),COLUMN(WorkLisr),4)))","v":""}]
[null,null,null,null,null,null,null,{"$f":"IF(ROW()-ROW(FolowList)+1>ROWS(WorkLisr)-COUNTBLANK(WorkLisr),\"\",INDIRECT(ADDRESS(SMALL((IF(WorkLisr<>\"\",ROW(WorkLisr),ROW()+ROWS(WorkLisr))),ROW()-ROW(FolowList)+1),COLUMN(WorkLisr),4)))","v":""}]
[null,null,null,null,null,null,null,{"$f":"IF(ROW()-ROW(FolowList)+1>ROWS(WorkLisr)-COUNTBLANK(WorkLisr),\"\",INDIRECT(ADDRESS(SMALL((IF(WorkLisr<>\"\",ROW(WorkLisr),ROW()+ROWS(WorkLisr))),ROW()-ROW(FolowList)+1),COLUMN(WorkLisr),4)))","v":""}]
[null,null,null,null,null,null,null,{"$f":"IF(ROW()-ROW(FolowList)+1>ROWS(WorkLisr)-COUNTBLANK(WorkLisr),\"\",INDIRECT(ADDRESS(SMALL((IF(WorkLisr<>\"\",ROW(WorkLisr),ROW()+ROWS(WorkLisr))),ROW()-ROW(FolowList)+1),COLUMN(WorkLisr),4)))","v":""}]
[null,null,null,null,null,null,null,{"$f":"IF(ROW()-ROW(FolowList)+1>ROWS(WorkLisr)-COUNTBLANK(WorkLisr),\"\",INDIRECT(ADDRESS(SMALL((IF(WorkLisr<>\"\",ROW(WorkLisr),ROW()+ROWS(WorkLisr))),ROW()-ROW(FolowList)+1),COLUMN(WorkLisr),4)))","v":""}]
[null,null,null,null,null,null,null,{"$f":"IF(ROW()-ROW(FolowList)+1>ROWS(WorkLisr)-COUNTBLANK(WorkLisr),\"\",INDIRECT(ADDRESS(SMALL((IF(WorkLisr<>\"\",ROW(WorkLisr),ROW()+ROWS(WorkLisr))),ROW()-ROW(FolowList)+1),COLUMN(WorkLisr),4)))","v":""}]
[null,null,null,null,null,null,null,{"$f":"IF(ROW()-ROW(FolowList)+1>ROWS(WorkLisr)-COUNTBLANK(WorkLisr),\"\",INDIRECT(ADDRESS(SMALL((IF(WorkLisr<>\"\",ROW(WorkLisr),ROW()+ROWS(WorkLisr))),ROW()-ROW(FolowList)+1),COLUMN(WorkLisr),4)))","v":""}]
[null,null,null,null,null,null,null,{"$f":"IF(ROW()-ROW(FolowList)+1>ROWS(WorkLisr)-COUNTBLANK(WorkLisr),\"\",INDIRECT(ADDRESS(SMALL((IF(WorkLisr<>\"\",ROW(WorkLisr),ROW()+ROWS(WorkLisr))),ROW()-ROW(FolowList)+1),COLUMN(WorkLisr),4)))","v":""}]
[null,null,null,null,null,null,null,{"$f":"IF(ROW()-ROW(FolowList)+1>ROWS(WorkLisr)-COUNTBLANK(WorkLisr),\"\",INDIRECT(ADDRESS(SMALL((IF(WorkLisr<>\"\",ROW(WorkLisr),ROW()+ROWS(WorkLisr))),ROW()-ROW(FolowList)+1),COLUMN(WorkLisr),4)))","v":""}]
[null,null,null,null,null,null,null,{"$f":"IF(ROW()-ROW(FolowList)+1>ROWS(WorkLisr)-COUNTBLANK(WorkLisr),\"\",INDIRECT(ADDRESS(SMALL((IF(WorkLisr<>\"\",ROW(WorkLisr),ROW()+ROWS(WorkLisr))),ROW()-ROW(FolowList)+1),COLUMN(WorkLisr),4)))","v":""}]
[null,null,null,null,null,null,null,{"$f":"IF(ROW()-ROW(FolowList)+1>ROWS(WorkLisr)-COUNTBLANK(WorkLisr),\"\",INDIRECT(ADDRESS(SMALL((IF(WorkLisr<>\"\",ROW(WorkLisr),ROW()+ROWS(WorkLisr))),ROW()-ROW(FolowList)+1),COLUMN(WorkLisr),4)))","v":""}]
[null,null,null,null,null,null,null,{"$f":"IF(ROW()-ROW(FolowList)+1>ROWS(WorkLisr)-COUNTBLANK(WorkLisr),\"\",INDIRECT(ADDRESS(SMALL((IF(WorkLisr<>\"\",ROW(WorkLisr),ROW()+ROWS(WorkLisr))),ROW()-ROW(FolowList)+1),COLUMN(WorkLisr),4)))","v":""}]
[null,null,null,null,null,null,null,{"$f":"IF(ROW()-ROW(FolowList)+1>ROWS(WorkLisr)-COUNTBLANK(WorkLisr),\"\",INDIRECT(ADDRESS(SMALL((IF(WorkLisr<>\"\",ROW(WorkLisr),ROW()+ROWS(WorkLisr))),ROW()-ROW(FolowList)+1),COLUMN(WorkLisr),4)))","v":""}]
[null,null,null,null,null,null,null,{"$f":"IF(ROW()-ROW(FolowList)+1>ROWS(WorkLisr)-COUNTBLANK(WorkLisr),\"\",INDIRECT(ADDRESS(SMALL((IF(WorkLisr<>\"\",ROW(WorkLisr),ROW()+ROWS(WorkLisr))),ROW()-ROW(FolowList)+1),COLUMN(WorkLisr),4)))","v":""}]
[null,null,null,null,null,null,null,{"$f":"IF(ROW()-ROW(FolowList)+1>ROWS(WorkLisr)-COUNTBLANK(WorkLisr),\"\",INDIRECT(ADDRESS(SMALL((IF(WorkLisr<>\"\",ROW(WorkLisr),ROW()+ROWS(WorkLisr))),ROW()-ROW(FolowList)+1),COLUMN(WorkLisr),4)))","v":""}]
[null,null,null,null,null,null,null,{"$f":"IF(ROW()-ROW(FolowList)+1>ROWS(WorkLisr)-COUNTBLANK(WorkLisr),\"\",INDIRECT(ADDRESS(SMALL((IF(WorkLisr<>\"\",ROW(WorkLisr),ROW()+ROWS(WorkLisr))),ROW()-ROW(FolowList)+1),COLUMN(WorkLisr),4)))","v":""}]
[null,null,null,null,null,null,null,{"$f":"IF(ROW()-ROW(FolowList)+1>ROWS(WorkLisr)-COUNTBLANK(WorkLisr),\"\",INDIRECT(ADDRESS(SMALL((IF(WorkLisr<>\"\",ROW(WorkLisr),ROW()+ROWS(WorkLisr))),ROW()-ROW(FolowList)+1),COLUMN(WorkLisr),4)))","v":""}]
[null,null,null,null,null,null,null,{"$f":"IF(ROW()-ROW(FolowList)+1>ROWS(WorkLisr)-COUNTBLANK(WorkLisr),\"\",INDIRECT(ADDRESS(SMALL((IF(WorkLisr<>\"\",ROW(WorkLisr),ROW()+ROWS(WorkLisr))),ROW()-ROW(FolowList)+1),COLUMN(WorkLisr),4)))","v":""}]
[null,null,null,null,null,null,null,{"$f":"IF(ROW()-ROW(FolowList)+1>ROWS(WorkLisr)-COUNTBLANK(WorkLisr),\"\",INDIRECT(ADDRESS(SMALL((IF(WorkLisr<>\"\",ROW(WorkLisr),ROW()+ROWS(WorkLisr))),ROW()-ROW(FolowList)+1),COLUMN(WorkLisr),4)))","v":""}]
[null,null,null,null,null,null,null,{"$f":"IF(ROW()-ROW(FolowList)+1>ROWS(WorkLisr)-COUNTBLANK(WorkLisr),\"\",INDIRECT(ADDRESS(SMALL((IF(WorkLisr<>\"\",ROW(WorkLisr),ROW()+ROWS(WorkLisr))),ROW()-ROW(FolowList)+1),COLUMN(WorkLisr),4)))","v":""}]
[null,null,null,null,null,null,null,{"$f":"IF(ROW()-ROW(FolowList)+1>ROWS(WorkLisr)-COUNTBLANK(WorkLisr),\"\",INDIRECT(ADDRESS(SMALL((IF(WorkLisr<>\"\",ROW(WorkLisr),ROW()+ROWS(WorkLisr))),ROW()-ROW(FolowList)+1),COLUMN(WorkLisr),4)))","v":""}]
[null,null,null,null,null,null,null,{"$f":"IF(ROW()-ROW(FolowList)+1>ROWS(WorkLisr)-COUNTBLANK(WorkLisr),\"\",INDIRECT(ADDRESS(SMALL((IF(WorkLisr<>\"\",ROW(WorkLisr),ROW()+ROWS(WorkLisr))),ROW()-ROW(FolowList)+1),COLUMN(WorkLisr),4)))","v":""}]
[null,null,null,null,null,null,null,{"$f":"IF(ROW()-ROW(FolowList)+1>ROWS(WorkLisr)-COUNTBLANK(WorkLisr),\"\",INDIRECT(ADDRESS(SMALL((IF(WorkLisr<>\"\",ROW(WorkLisr),ROW()+ROWS(WorkLisr))),ROW()-ROW(FolowList)+1),COLUMN(WorkLisr),4)))","v":""}]
[null,null,null,null,null,null,null,{"$f":"IF(ROW()-ROW(FolowList)+1>ROWS(WorkLisr)-COUNTBLANK(WorkLisr),\"\",INDIRECT(ADDRESS(SMALL((IF(WorkLisr<>\"\",ROW(WorkLisr),ROW()+ROWS(WorkLisr))),ROW()-ROW(FolowList)+1),COLUMN(WorkLisr),4)))","v":""}]
[null,null,null,null,null,null,null,{"$f":"IF(ROW()-ROW(FolowList)+1>ROWS(WorkLisr)-COUNTBLANK(WorkLisr),\"\",INDIRECT(ADDRESS(SMALL((IF(WorkLisr<>\"\",ROW(WorkLisr),ROW()+ROWS(WorkLisr))),ROW()-ROW(FolowList)+1),COLUMN(WorkLisr),4)))","v":""}]
[null,null,null,null,null,null,null,{"$f":"IF(ROW()-ROW(FolowList)+1>ROWS(WorkLisr)-COUNTBLANK(WorkLisr),\"\",INDIRECT(ADDRESS(SMALL((IF(WorkLisr<>\"\",ROW(WorkLisr),ROW()+ROWS(WorkLisr))),ROW()-ROW(FolowList)+1),COLUMN(WorkLisr),4)))","v":""}]
[null,null,null,null,null,null,null,{"$f":"IF(ROW()-ROW(FolowList)+1>ROWS(WorkLisr)-COUNTBLANK(WorkLisr),\"\",INDIRECT(ADDRESS(SMALL((IF(WorkLisr<>\"\",ROW(WorkLisr),ROW()+ROWS(WorkLisr))),ROW()-ROW(FolowList)+1),COLUMN(WorkLisr),4)))","v":""}]
[null,null,null,null,null,null,null,{"$f":"IF(ROW()-ROW(FolowList)+1>ROWS(WorkLisr)-COUNTBLANK(WorkLisr),\"\",INDIRECT(ADDRESS(SMALL((IF(WorkLisr<>\"\",ROW(WorkLisr),ROW()+ROWS(WorkLisr))),ROW()-ROW(FolowList)+1),COLUMN(WorkLisr),4)))","v":""}]
[null,null,null,null,null,null,null,{"$f":"IF(ROW()-ROW(FolowList)+1>ROWS(WorkLisr)-COUNTBLANK(WorkLisr),\"\",INDIRECT(ADDRESS(SMALL((IF(WorkLisr<>\"\",ROW(WorkLisr),ROW()+ROWS(WorkLisr))),ROW()-ROW(FolowList)+1),COLUMN(WorkLisr),4)))","v":""}]
[null,null,null,null,null,null,null,{"$f":"IF(ROW()-ROW(FolowList)+1>ROWS(WorkLisr)-COUNTBLANK(WorkLisr),\"\",INDIRECT(ADDRESS(SMALL((IF(WorkLisr<>\"\",ROW(WorkLisr),ROW()+ROWS(WorkLisr))),ROW()-ROW(FolowList)+1),COLUMN(WorkLisr),4)))","v":""}]
[null,null,null,null,null,null,null,{"$f":"IF(ROW()-ROW(FolowList)+1>ROWS(WorkLisr)-COUNTBLANK(WorkLisr),\"\",INDIRECT(ADDRESS(SMALL((IF(WorkLisr<>\"\",ROW(WorkLisr),ROW()+ROWS(WorkLisr))),ROW()-ROW(FolowList)+1),COLUMN(WorkLisr),4)))","v":""}]
[null,null,null,null,null,null,null,{"$f":"IF(ROW()-ROW(FolowList)+1>ROWS(WorkLisr)-COUNTBLANK(WorkLisr),\"\",INDIRECT(ADDRESS(SMALL((IF(WorkLisr<>\"\",ROW(WorkLisr),ROW()+ROWS(WorkLisr))),ROW()-ROW(FolowList)+1),COLUMN(WorkLisr),4)))","v":""}]
[null,null,null,null,null,null,null,{"$f":"IF(ROW()-ROW(FolowList)+1>ROWS(WorkLisr)-COUNTBLANK(WorkLisr),\"\",INDIRECT(ADDRESS(SMALL((IF(WorkLisr<>\"\",ROW(WorkLisr),ROW()+ROWS(WorkLisr))),ROW()-ROW(FolowList)+1),COLUMN(WorkLisr),4)))","v":""}]
[null,null,null,null,null,null,null,{"$f":"IF(ROW()-ROW(FolowList)+1>ROWS(WorkLisr)-COUNTBLANK(WorkLisr),\"\",INDIRECT(ADDRESS(SMALL((IF(WorkLisr<>\"\",ROW(WorkLisr),ROW()+ROWS(WorkLisr))),ROW()-ROW(FolowList)+1),COLUMN(WorkLisr),4)))","v":""}]
[null,null,null,null,null,null,null,{"$f":"IF(ROW()-ROW(FolowList)+1>ROWS(WorkLisr)-COUNTBLANK(WorkLisr),\"\",INDIRECT(ADDRESS(SMALL((IF(WorkLisr<>\"\",ROW(WorkLisr),ROW()+ROWS(WorkLisr))),ROW()-ROW(FolowList)+1),COLUMN(WorkLisr),4)))","v":""}]
[null,null,null,null,null,null,null,{"$f":"IF(ROW()-ROW(FolowList)+1>ROWS(WorkLisr)-COUNTBLANK(WorkLisr),\"\",INDIRECT(ADDRESS(SMALL((IF(WorkLisr<>\"\",ROW(WorkLisr),ROW()+ROWS(WorkLisr))),ROW()-ROW(FolowList)+1),COLUMN(WorkLisr),4)))","v":""}]
[null,null,null,null,null,null,null,{"$f":"IF(ROW()-ROW(FolowList)+1>ROWS(WorkLisr)-COUNTBLANK(WorkLisr),\"\",INDIRECT(ADDRESS(SMALL((IF(WorkLisr<>\"\",ROW(WorkLisr),ROW()+ROWS(WorkLisr))),ROW()-ROW(FolowList)+1),COLUMN(WorkLisr),4)))","v":""}]
[null,null,null,null,null,null,null,{"$f":"IF(ROW()-ROW(FolowList)+1>ROWS(WorkLisr)-COUNTBLANK(WorkLisr),\"\",INDIRECT(ADDRESS(SMALL((IF(WorkLisr<>\"\",ROW(WorkLisr),ROW()+ROWS(WorkLisr))),ROW()-ROW(FolowList)+1),COLUMN(WorkLisr),4)))","v":""}]
[null,null,null,null,null,null,null,{"$f":"IF(ROW()-ROW(FolowList)+1>ROWS(WorkLisr)-COUNTBLANK(WorkLisr),\"\",INDIRECT(ADDRESS(SMALL((IF(WorkLisr<>\"\",ROW(WorkLisr),ROW()+ROWS(WorkLisr))),ROW()-ROW(FolowList)+1),COLUMN(WorkLisr),4)))","v":""}]
[null,null,null,null,null,null,null,{"$f":"IF(ROW()-ROW(FolowList)+1>ROWS(WorkLisr)-COUNTBLANK(WorkLisr),\"\",INDIRECT(ADDRESS(SMALL((IF(WorkLisr<>\"\",ROW(WorkLisr),ROW()+ROWS(WorkLisr))),ROW()-ROW(FolowList)+1),COLUMN(WorkLisr),4)))","v":""}]
[null,null,null,null,null,null,null,{"$f":"IF(ROW()-ROW(FolowList)+1>ROWS(WorkLisr)-COUNTBLANK(WorkLisr),\"\",INDIRECT(ADDRESS(SMALL((IF(WorkLisr<>\"\",ROW(WorkLisr),ROW()+ROWS(WorkLisr))),ROW()-ROW(FolowList)+1),COLUMN(WorkLisr),4)))","v":""}]
[null,null,null,null,null,null,null,{"$f":"IF(ROW()-ROW(FolowList)+1>ROWS(WorkLisr)-COUNTBLANK(WorkLisr),\"\",INDIRECT(ADDRESS(SMALL((IF(WorkLisr<>\"\",ROW(WorkLisr),ROW()+ROWS(WorkLisr))),ROW()-ROW(FolowList)+1),COLUMN(WorkLisr),4)))","v":""}]
[null,null,null,null,null,null,null,{"$f":"IF(ROW()-ROW(FolowList)+1>ROWS(WorkLisr)-COUNTBLANK(WorkLisr),\"\",INDIRECT(ADDRESS(SMALL((IF(WorkLisr<>\"\",ROW(WorkLisr),ROW()+ROWS(WorkLisr))),ROW()-ROW(FolowList)+1),COLUMN(WorkLisr),4)))","v":""}]
[null,null,null,null,null,null,null,{"$f":"IF(ROW()-ROW(FolowList)+1>ROWS(WorkLisr)-COUNTBLANK(WorkLisr),\"\",INDIRECT(ADDRESS(SMALL((IF(WorkLisr<>\"\",ROW(WorkLisr),ROW()+ROWS(WorkLisr))),ROW()-ROW(FolowList)+1),COLUMN(WorkLisr),4)))","v":""}]
[null,null,null,null,null,null,null,{"$f":"IF(ROW()-ROW(FolowList)+1>ROWS(WorkLisr)-COUNTBLANK(WorkLisr),\"\",INDIRECT(ADDRESS(SMALL((IF(WorkLisr<>\"\",ROW(WorkLisr),ROW()+ROWS(WorkLisr))),ROW()-ROW(FolowList)+1),COLUMN(WorkLisr),4)))","v":""}]
[null,null,null,null,null,null,null,{"$f":"IF(ROW()-ROW(FolowList)+1>ROWS(WorkLisr)-COUNTBLANK(WorkLisr),\"\",INDIRECT(ADDRESS(SMALL((IF(WorkLisr<>\"\",ROW(WorkLisr),ROW()+ROWS(WorkLisr))),ROW()-ROW(FolowList)+1),COLUMN(WorkLisr),4)))","v":""}]
[null,null,null,null,null,null,null,{"$f":"IF(ROW()-ROW(FolowList)+1>ROWS(WorkLisr)-COUNTBLANK(WorkLisr),\"\",INDIRECT(ADDRESS(SMALL((IF(WorkLisr<>\"\",ROW(WorkLisr),ROW()+ROWS(WorkLisr))),ROW()-ROW(FolowList)+1),COLUMN(WorkLisr),4)))","v":""}]
[null,null,null,null,null,null,null,{"$f":"IF(ROW()-ROW(FolowList)+1>ROWS(WorkLisr)-COUNTBLANK(WorkLisr),\"\",INDIRECT(ADDRESS(SMALL((IF(WorkLisr<>\"\",ROW(WorkLisr),ROW()+ROWS(WorkLisr))),ROW()-ROW(FolowList)+1),COLUMN(WorkLisr),4)))","v":""}]
[null,null,null,null,null,null,null,{"$f":"IF(ROW()-ROW(FolowList)+1>ROWS(WorkLisr)-COUNTBLANK(WorkLisr),\"\",INDIRECT(ADDRESS(SMALL((IF(WorkLisr<>\"\",ROW(WorkLisr),ROW()+ROWS(WorkLisr))),ROW()-ROW(FolowList)+1),COLUMN(WorkLisr),4)))","v":""}]
[null,null,null,null,null,null,null,{"$f":"IF(ROW()-ROW(FolowList)+1>ROWS(WorkLisr)-COUNTBLANK(WorkLisr),\"\",INDIRECT(ADDRESS(SMALL((IF(WorkLisr<>\"\",ROW(WorkLisr),ROW()+ROWS(WorkLisr))),ROW()-ROW(FolowList)+1),COLUMN(WorkLisr),4)))","v":""}]
[null,null,null,null,null,null,null,{"$f":"IF(ROW()-ROW(FolowList)+1>ROWS(WorkLisr)-COUNTBLANK(WorkLisr),\"\",INDIRECT(ADDRESS(SMALL((IF(WorkLisr<>\"\",ROW(WorkLisr),ROW()+ROWS(WorkLisr))),ROW()-ROW(FolowList)+1),COLUMN(WorkLisr),4)))","v":""}]
[null,null,null,null,null,null,null,{"$f":"IF(ROW()-ROW(FolowList)+1>ROWS(WorkLisr)-COUNTBLANK(WorkLisr),\"\",INDIRECT(ADDRESS(SMALL((IF(WorkLisr<>\"\",ROW(WorkLisr),ROW()+ROWS(WorkLisr))),ROW()-ROW(FolowList)+1),COLUMN(WorkLisr),4)))","v":""}]
[null,null,null,null,null,null,null,{"$f":"IF(ROW()-ROW(FolowList)+1>ROWS(WorkLisr)-COUNTBLANK(WorkLisr),\"\",INDIRECT(ADDRESS(SMALL((IF(WorkLisr<>\"\",ROW(WorkLisr),ROW()+ROWS(WorkLisr))),ROW()-ROW(FolowList)+1),COLUMN(WorkLisr),4)))","v":""}]
[null,null,null,null,null,null,null,{"$f":"IF(ROW()-ROW(FolowList)+1>ROWS(WorkLisr)-COUNTBLANK(WorkLisr),\"\",INDIRECT(ADDRESS(SMALL((IF(WorkLisr<>\"\",ROW(WorkLisr),ROW()+ROWS(WorkLisr))),ROW()-ROW(FolowList)+1),COLUMN(WorkLisr),4)))","v":""}]
[null,null,null,null,null,null,null,{"$f":"IF(ROW()-ROW(FolowList)+1>ROWS(WorkLisr)-COUNTBLANK(WorkLisr),\"\",INDIRECT(ADDRESS(SMALL((IF(WorkLisr<>\"\",ROW(WorkLisr),ROW()+ROWS(WorkLisr))),ROW()-ROW(FolowList)+1),COLUMN(WorkLisr),4)))","v":""}]
[null,null,null,null,null,null,null,{"$f":"IF(ROW()-ROW(FolowList)+1>ROWS(WorkLisr)-COUNTBLANK(WorkLisr),\"\",INDIRECT(ADDRESS(SMALL((IF(WorkLisr<>\"\",ROW(WorkLisr),ROW()+ROWS(WorkLisr))),ROW()-ROW(FolowList)+1),COLUMN(WorkLisr),4)))","v":""}]
[null,null,null,null,null,null,null,{"$f":"IF(ROW()-ROW(FolowList)+1>ROWS(WorkLisr)-COUNTBLANK(WorkLisr),\"\",INDIRECT(ADDRESS(SMALL((IF(WorkLisr<>\"\",ROW(WorkLisr),ROW()+ROWS(WorkLisr))),ROW()-ROW(FolowList)+1),COLUMN(WorkLisr),4)))","v":""}]
[null,null,null,null,null,null,null,{"$f":"IF(ROW()-ROW(FolowList)+1>ROWS(WorkLisr)-COUNTBLANK(WorkLisr),\"\",INDIRECT(ADDRESS(SMALL((IF(WorkLisr<>\"\",ROW(WorkLisr),ROW()+ROWS(WorkLisr))),ROW()-ROW(FolowList)+1),COLUMN(WorkLisr),4)))","v":""}]
[null,null,null,null,null,null,null,{"$f":"IF(ROW()-ROW(FolowList)+1>ROWS(WorkLisr)-COUNTBLANK(WorkLisr),\"\",INDIRECT(ADDRESS(SMALL((IF(WorkLisr<>\"\",ROW(WorkLisr),ROW()+ROWS(WorkLisr))),ROW()-ROW(FolowList)+1),COLUMN(WorkLisr),4)))","v":""}]
[null,null,null,null,null,null,null,{"$f":"IF(ROW()-ROW(FolowList)+1>ROWS(WorkLisr)-COUNTBLANK(WorkLisr),\"\",INDIRECT(ADDRESS(SMALL((IF(WorkLisr<>\"\",ROW(WorkLisr),ROW()+ROWS(WorkLisr))),ROW()-ROW(FolowList)+1),COLUMN(WorkLisr),4)))","v":""}]
[null,null,null,null,null,null,null,{"$f":"IF(ROW()-ROW(FolowList)+1>ROWS(WorkLisr)-COUNTBLANK(WorkLisr),\"\",INDIRECT(ADDRESS(SMALL((IF(WorkLisr<>\"\",ROW(WorkLisr),ROW()+ROWS(WorkLisr))),ROW()-ROW(FolowList)+1),COLUMN(WorkLisr),4)))","v":""}]
[null,null,null,null,null,null,null,{"$f":"IF(ROW()-ROW(FolowList)+1>ROWS(WorkLisr)-COUNTBLANK(WorkLisr),\"\",INDIRECT(ADDRESS(SMALL((IF(WorkLisr<>\"\",ROW(WorkLisr),ROW()+ROWS(WorkLisr))),ROW()-ROW(FolowList)+1),COLUMN(WorkLisr),4)))","v":""}]
[null,null,null,null,null,null,null,{"$f":"IF(ROW()-ROW(FolowList)+1>ROWS(WorkLisr)-COUNTBLANK(WorkLisr),\"\",INDIRECT(ADDRESS(SMALL((IF(WorkLisr<>\"\",ROW(WorkLisr),ROW()+ROWS(WorkLisr))),ROW()-ROW(FolowList)+1),COLUMN(WorkLisr),4)))","v":""}]
[null,null,null,null,null,null,null,{"$f":"IF(ROW()-ROW(FolowList)+1>ROWS(WorkLisr)-COUNTBLANK(WorkLisr),\"\",INDIRECT(ADDRESS(SMALL((IF(WorkLisr<>\"\",ROW(WorkLisr),ROW()+ROWS(WorkLisr))),ROW()-ROW(FolowList)+1),COLUMN(WorkLisr),4)))","v":""}]
[null,null,null,null,null,null,null,{"$f":"IF(ROW()-ROW(FolowList)+1>ROWS(WorkLisr)-COUNTBLANK(WorkLisr),\"\",INDIRECT(ADDRESS(SMALL((IF(WorkLisr<>\"\",ROW(WorkLisr),ROW()+ROWS(WorkLisr))),ROW()-ROW(FolowList)+1),COLUMN(WorkLisr),4)))","v":""}]
[null,null,null,null,null,null,null,{"$f":"IF(ROW()-ROW(FolowList)+1>ROWS(WorkLisr)-COUNTBLANK(WorkLisr),\"\",INDIRECT(ADDRESS(SMALL((IF(WorkLisr<>\"\",ROW(WorkLisr),ROW()+ROWS(WorkLisr))),ROW()-ROW(FolowList)+1),COLUMN(WorkLisr),4)))","v":""}]
[null,null,null,null,null,null,null,{"$f":"IF(ROW()-ROW(FolowList)+1>ROWS(WorkLisr)-COUNTBLANK(WorkLisr),\"\",INDIRECT(ADDRESS(SMALL((IF(WorkLisr<>\"\",ROW(WorkLisr),ROW()+ROWS(WorkLisr))),ROW()-ROW(FolowList)+1),COLUMN(WorkLisr),4)))","v":""}]
[null,null,null,null,null,null,null,{"$f":"IF(ROW()-ROW(FolowList)+1>ROWS(WorkLisr)-COUNTBLANK(WorkLisr),\"\",INDIRECT(ADDRESS(SMALL((IF(WorkLisr<>\"\",ROW(WorkLisr),ROW()+ROWS(WorkLisr))),ROW()-ROW(FolowList)+1),COLUMN(WorkLisr),4)))","v":""}]